{"text_format":"3","workbook":"xlsx","n_sheets":9,"sheets":["Accueil","TCD AFC","BASE","Liste Site","LIB","Feuil8","Feuil9","Feuil10","LISTE CCS"],"not_rendered":{"charts":2,"images":5,"macros":1,"defined_names":4,"comments":1,"pivot_tables":3},"read":"whole","date_system":"1900"}

{"sheet":"Accueil","index":0,"n_rows":0,"n_cols":0,"rows_kept":0}

{"sheet":"TCD AFC","index":1,"n_rows":106,"n_cols":10,"rows_kept":106,"merged":[[52,0,52,13]]}
[]
[]
[]
[]
[]
["Étiquettes de lignes","Nombre d'interventions",{"$nulls":4},"Étiquettes de lignes","Nombre de Contrôle"]
["EST-DRG",{"$nulls":5},"Retard de plus d'un mois",9]
["A faire",1,{"$nulls":4},"EST-DRG",9]
["Retard",5,{"$nulls":4},"CONTROLE POLLUTION",7]
["Retard de plus d'un mois",19,{"$nulls":4},"CONTROLE TECHNIQUE",2]
["Total général",25,{"$nulls":4},"Total général",9]
{"$rows_empty":24}
[{"$nulls":8},"Retour Accueil"]
{"$rows_empty":12}
[{"$nulls":7},"Nombre de VL",null,"RDV à prendre "]
[{"$nulls":7},{"$f":"COUNTA(C56:C348)","v":21},null,{"$f":"COUNTIF(G56:G314,G56)","v":0}]
[{"$nulls":7},"Nombre d'opérations d'entretien"]
["Planning de ","(Tous)",{"$nulls":5},{"$f":"COUNTA(F56:F348)","v":0}]
[" 2015\nCONTRÔLE REGLEMENTAIRE ET ENTRETIEN VL  AFC"]
[]
["Unité","Lib CCS","Intervention à réaliser","Date anniversaire"]
["EST-DRG","EXPLOITATION GAZ FCN","CONTROLE POLLUTION","2014-09-16"]
[{"$nulls":3},"2014-10-18"]
[{"$nulls":3},"2014-11-04"]
[null,null,"CTRL REMORQUE","2014-04-25"]
[null,null,"ENTRETIEN REVISION","2014-11-19"]
[{"$nulls":3},"2014-12-20"]
[null,"MSG AFC","COURROIE DE DISTRIBUTION","2014-09-24"]
[{"$nulls":3},"2013-10-07"]
[null,null,"CTRL REMORQUE","2015-02-26"]
[null,null,"ENTRETIEN REVISION","2013-05-06"]
[{"$nulls":3},"2015-03-01"]
[{"$nulls":3},"2013-08-16"]
[null,"INGENIERIE GAZ FCS","CONTROLE POLLUTION","2014-09-13"]
[{"$nulls":3},"2014-09-24"]
[null,null,"CONTROLE TECHNIQUE","2014-10-17"]
[null,null,"COURROIE DE DISTRIBUTION","2014-10-08"]
[null,null,"ENTRETIEN REVISION","2014-10-11"]
[null,"EXPLOITATION GAZ ALSACE","COURROIE DE DISTRIBUTION","2011-07-18"]
[{"$nulls":3},"2012-11-15"]
[{"$nulls":3},"2013-08-19"]
[{"$nulls":3},"2013-11-14"]
[{"$nulls":3},"2014-08-05"]
[{"$nulls":3},"2014-09-24"]
[null,null,"CTRL REMORQUE","1990-05-19"]
[{"$nulls":3},"2012-01-25"]
[{"$nulls":3},"2012-11-24"]
[{"$nulls":3},"2014-08-19"]
[{"$nulls":3},"2015-01-20"]
[{"$nulls":3},"2015-01-29"]
[null,null,"ENTRETIEN REVISION","1990-05-19"]
[{"$nulls":3},"2012-02-04"]
[{"$nulls":3},"2013-05-13"]
[{"$nulls":3},"2014-09-17"]
[{"$nulls":3},"2014-09-21"]
[{"$nulls":3},"2014-11-28"]
[{"$nulls":3},"2015-01-16"]
[{"$nulls":3},"2015-02-20"]
[{"$nulls":3},"2015-03-30"]
[{"$nulls":3},"2011-03-23"]
[null,"EXPLOITATION GAZ FCS","CONTROLE POLLUTION","2014-09-04"]
[null,null,"CTRL REMORQUE","2014-04-19"]
[{"$nulls":3},"2014-12-03"]
[null,null,"ENTRETIEN REVISION","2014-08-21"]
[{"$nulls":3},"2014-09-03"]
[{"$nulls":3},"2015-02-18"]
[null,"INGENIERIE GAZ FCN","CONTROLE TECHNIQUE","2015-02-11"]
[null,null,"ENTRETIEN REVISION","2015-02-25"]
[{"$nulls":3},"2014-11-25"]
[null,"ETAT_MAJOR_URG_AFC","CONTROLE POLLUTION","2014-09-05"]
[null,null,"ENTRETIEN REVISION","2014-07-12"]
[null,"TOUS VEHICULES UNITE","(vide)","(vide)"]

{"sheet":"BASE","index":2,"n_rows":360,"n_cols":17,"rows_kept":360}
["Plaque","Unité","Lib CCS","Libellé","Km prév. proch ent","Km limite proch ent","Date prév. proch ent","Date limite proch ent","Cpt 2 actuel","Cpt 2 prév","Cpt 2 max","Flag","Km théo","Planning de ","DATE RDV","Etat","Unité + lib CCS"]
["EST-AFC","EST-DCT","T&D AGENCE TERRITOIRE  AFC","ENTRETIEN REVISION",30000,30000,"2014-07-09","2014-07-09",0,0,0,15,0,"2015-03-01",null,{"$f":"IF(BASE!G311>TODAY(),\"A faire\",IF(BASE!G311>=DATE(YEAR(TODAY()),MONTH(TODAY())-1,DAY(TODAY())),\"Retard\",\"Retard de plus d'un mois\"))","v":"Retard de plus d'un mois"},{"$f":"CONCATENATE(B2,\" - \",C2)","v":"EST-DCT - T&D AGENCE TERRITOIRE  AFC"}]
["EST-AFC","EST-DCT","T&D-AGENCE ENTREPRISE AFC","ENTRETIEN REVISION",51640,51640,"2014-04-16","2014-04-16",0,0,0,15,40000,"2015-03-01",null,{"$f":"IF(BASE!G184>TODAY(),\"A faire\",IF(BASE!G184>=DATE(YEAR(TODAY()),MONTH(TODAY())-1,DAY(TODAY())),\"Retard\",\"Retard de plus d'un mois\"))","v":"Retard de plus d'un mois"},"EST-DCT - T&D-AGENCE ENTREPRISE AFC"]
["EST-AFC","EST-DCT","T&D-AGENCE ENTREPRISE AFC","ENTRETIEN REVISION",59455,59455,"2014-12-09","2014-12-09",0,0,0,15,20000,"2015-03-01",null,{"$f":"IF(BASE!G211>TODAY(),\"A faire\",IF(BASE!G211>=DATE(YEAR(TODAY()),MONTH(TODAY())-1,DAY(TODAY())),\"Retard\",\"Retard de plus d'un mois\"))","v":"Retard de plus d'un mois"},"EST-DCT - T&D-AGENCE ENTREPRISE AFC"]
["EST-AFC","EST-DCT","T&D-AGENCE ENTREPRISE AFC","CONTROLE TECHNIQUE",0,0,"2015-02-28","2015-02-28",0,0,0,15,0,"2015-03-01",null,{"$f":"IF(BASE!G280>TODAY(),\"A faire\",IF(BASE!G280>=DATE(YEAR(TODAY()),MONTH(TODAY())-1,DAY(TODAY())),\"Retard\",\"Retard de plus d'un mois\"))","v":"Retard"},"EST-DCT - T&D-AGENCE ENTREPRISE AFC"]
["EST-AFC","EST-DCT","T&D-AGENCE ENTREPRISE AFC","CONTROLE TECHNIQUE",0,0,"2015-02-28","2015-02-28",0,0,0,15,0,"2015-03-01",null,{"$f":"IF(BASE!G300>TODAY(),\"A faire\",IF(BASE!G300>=DATE(YEAR(TODAY()),MONTH(TODAY())-1,DAY(TODAY())),\"Retard\",\"Retard de plus d'un mois\"))","v":"Retard de plus d'un mois"},"EST-DCT - T&D-AGENCE ENTREPRISE AFC"]
["EST-AFC","EST-DCT","T&D-AGENCE ENTREPRISE AFC","CONTROLE TECHNIQUE",0,0,"2015-02-25","2015-02-25",0,0,0,15,0,"2015-03-01",null,{"$f":"IF(BASE!G286>TODAY(),\"A faire\",IF(BASE!G286>=DATE(YEAR(TODAY()),MONTH(TODAY())-1,DAY(TODAY())),\"Retard\",\"Retard de plus d'un mois\"))","v":"Retard"},"EST-DCT - T&D-AGENCE ENTREPRISE AFC"]
["EST-AFC","EST-DCT","T&D-AGENCE ENTREPRISE AFC","ENTRETIEN REVISION",59767,59767,"2015-01-29","2015-01-29",0,0,0,15,30000,"2015-03-01",null,{"$f":"IF(BASE!G287>TODAY(),\"A faire\",IF(BASE!G287>=DATE(YEAR(TODAY()),MONTH(TODAY())-1,DAY(TODAY())),\"Retard\",\"Retard de plus d'un mois\"))","v":"Retard"},"EST-DCT - T&D-AGENCE ENTREPRISE AFC"]
["EST-AFC","EST-DCT","T&D-AGENCE ENTREPRISE AFC","CONTROLE TECHNIQUE",0,0,"2015-02-28","2015-02-28",0,0,0,15,0,"2015-03-01",null,{"$f":"IF(BASE!G301>TODAY(),\"A faire\",IF(BASE!G301>=DATE(YEAR(TODAY()),MONTH(TODAY())-1,DAY(TODAY())),\"Retard\",\"Retard de plus d'un mois\"))","v":"Retard de plus d'un mois"},"EST-DCT - T&D-AGENCE ENTREPRISE AFC"]
["EST-AFC","EST-DCT","T&D-AGENCE ENTREPRISE AFC","CONTROLE TECHNIQUE",0,0,"2015-03-29","2015-03-29",0,0,0,"N/A",0,"2015-03-01",null,{"$f":"IF(BASE!G292>TODAY(),\"A faire\",IF(BASE!G292>=DATE(YEAR(TODAY()),MONTH(TODAY())-1,DAY(TODAY())),\"Retard\",\"Retard de plus d'un mois\"))","v":"Retard de plus d'un mois"},"EST-DCT - T&D-AGENCE ENTREPRISE AFC"]
["EST-AFC","EST-DCT","T&D-AGENCE ENTREPRISE AFC","ENTRETIEN REVISION",90595,90595,"2014-09-02","2014-09-02",0,0,0,15,30000,"2015-03-01",null,{"$f":"IF(BASE!G293>TODAY(),\"A faire\",IF(BASE!G293>=DATE(YEAR(TODAY()),MONTH(TODAY())-1,DAY(TODAY())),\"Retard\",\"Retard de plus d'un mois\"))","v":"Retard de plus d'un mois"},"EST-DCT - T&D-AGENCE ENTREPRISE AFC"]
["EST-AFC","EST-DCT","T&D-AGENCE ENTREPRISE AFC","ENTRETIEN REVISION",30000,30000,"2014-08-08","2014-08-08",0,0,0,15,0,"2015-03-01",null,{"$f":"IF(BASE!G99>TODAY(),\"A faire\",IF(BASE!G99>=DATE(YEAR(TODAY()),MONTH(TODAY())-1,DAY(TODAY())),\"Retard\",\"Retard de plus d'un mois\"))","v":"A faire"},"EST-DCT - T&D-AGENCE ENTREPRISE AFC"]
["EST-AFC","EST-DCT","T&D-AGENCE ENTREPRISE AFC","ENTRETIEN REVISION",30000,30000,"2014-08-08","2014-08-08",0,0,0,15,0,"2015-03-01",null,{"$f":"IF(BASE!G330>TODAY(),\"A faire\",IF(BASE!G330>=DATE(YEAR(TODAY()),MONTH(TODAY())-1,DAY(TODAY())),\"Retard\",\"Retard de plus d'un mois\"))","v":"Retard de plus d'un mois"},"EST-DCT - T&D-AGENCE ENTREPRISE AFC"]
["EST-AFC","EST-DCT","T&D-AGENCE ENTREPRISE AFC","ENTRETIEN REVISION",30000,30000,"2014-12-18","2014-12-18",0,0,0,15,0,"2015-03-01",null,{"$f":"IF(BASE!G217>TODAY(),\"A faire\",IF(BASE!G217>=DATE(YEAR(TODAY()),MONTH(TODAY())-1,DAY(TODAY())),\"Retard\",\"Retard de plus d'un mois\"))","v":"Retard de plus d'un mois"},"EST-DCT - T&D-AGENCE ENTREPRISE AFC"]
["EST-AFC","EST-DCT","T&D-AGENCE ENTREPRISE LORCA","CONTROLE TECHNIQUE",0,0,"2015-02-28","2015-02-28",0,0,0,15,0,"2015-03-01",null,{"$f":"IF(BASE!G299>TODAY(),\"A faire\",IF(BASE!G299>=DATE(YEAR(TODAY()),MONTH(TODAY())-1,DAY(TODAY())),\"Retard\",\"Retard de plus d'un mois\"))","v":"Retard de plus d'un mois"},"EST-DCT - T&D-AGENCE ENTREPRISE LORCA"]
["EST-AFC","EST-DCT","T&D-AGENCE ENTREPRISE LORCA","ENTRETIEN REVISION",91916,91916,"2014-12-19","2014-12-19",0,0,0,15,30000,"2015-03-01",null,{"$f":"IF(BASE!G218>TODAY(),\"A faire\",IF(BASE!G218>=DATE(YEAR(TODAY()),MONTH(TODAY())-1,DAY(TODAY())),\"Retard\",\"Retard de plus d'un mois\"))","v":"Retard de plus d'un mois"},"EST-DCT - T&D-AGENCE ENTREPRISE LORCA"]
["EST-AFC","EST-DCT","T&D-AGENCE MARCHE GRAND PUBLIC  AFC","CONTROLE TECHNIQUE",0,0,"2015-02-28","2015-02-28",0,0,0,15,0,"2015-03-01",null,{"$f":"IF(BASE!G289>TODAY(),\"A faire\",IF(BASE!G289>=DATE(YEAR(TODAY()),MONTH(TODAY())-1,DAY(TODAY())),\"Retard\",\"Retard de plus d'un mois\"))","v":"Retard de plus d'un mois"},"EST-DCT - T&D-AGENCE MARCHE GRAND PUBLIC  AFC"]
["EST-AFC","EST-DCT","T&D-AGENCE MARCHE GRAND PUBLIC  AFC","ENTRETIEN REVISION",30000,30000,"2013-10-31","2013-10-31",0,0,0,15,0,"2015-03-01",null,{"$f":"IF(BASE!G303>TODAY(),\"A faire\",IF(BASE!G303>=DATE(YEAR(TODAY()),MONTH(TODAY())-1,DAY(TODAY())),\"Retard\",\"Retard de plus d'un mois\"))","v":"Retard de plus d'un mois"},"EST-DCT - T&D-AGENCE MARCHE GRAND PUBLIC  AFC"]
["EST-AFC","EST-DCT","T&D-AGENCE MARCHE GRAND PUBLIC  AFC","ENTRETIEN REVISION",30000,30000,"2014-08-08","2014-08-08",null,0,0,15,0,"2015-03-01",null,{"$f":"IF(BASE!G329>TODAY(),\"A faire\",IF(BASE!G329>=DATE(YEAR(TODAY()),MONTH(TODAY())-1,DAY(TODAY())),\"Retard\",\"Retard de plus d'un mois\"))","v":"Retard de plus d'un mois"},"EST-DCT - T&D-AGENCE MARCHE GRAND PUBLIC  AFC"]
["EST-AFC","EST-DR-AFC","EMA APE PREVENTION","ENTRETIEN REVISION",136705,136705,"2015-03-08","2015-03-08",0,0,0,15,150000,"2015-03-01",null,{"$f":"IF(BASE!G322>TODAY(),\"A faire\",IF(BASE!G322>=DATE(YEAR(TODAY()),MONTH(TODAY())-1,DAY(TODAY())),\"Retard\",\"Retard de plus d'un mois\"))","v":"Retard de plus d'un mois"},"EST-DR-AFC - EMA APE PREVENTION"]
["EST-AFC","EST-DR-AFC","EMA DIR ETAT MAJOR","ENTRETIEN REVISION",30000,30000,"2014-08-28","2014-08-28",0,0,0,15,0,"2015-03-01",null,{"$f":"IF(BASE!G105>TODAY(),\"A faire\",IF(BASE!G105>=DATE(YEAR(TODAY()),MONTH(TODAY())-1,DAY(TODAY())),\"Retard\",\"Retard de plus d'un mois\"))","v":"Retard de plus d'un mois"},"EST-DR-AFC - EMA DIR ETAT MAJOR"]
["EST-AFC","EST-DR-AFC","IRE ENCADT OP PATRI ALSACE","COURROIE DE DISTRIBUTION",218332,223332,"2014-11-06","2014-12-06",0,0,0,15,120000,"2015-03-01",null,{"$f":"IF(BASE!G113>TODAY(),\"A faire\",IF(BASE!G113>=DATE(YEAR(TODAY()),MONTH(TODAY())-1,DAY(TODAY())),\"Retard\",\"Retard de plus d'un mois\"))","v":"Retard de plus d'un mois"},"EST-DR-AFC - IRE ENCADT OP PATRI ALSACE"]
["EST-AFC","EST-DR-AFC","IRE ENCADT OP PATRI ALSACE","ENTRETIEN REVISION",154585,154585,"2014-06-06","2014-06-06",0,0,0,15,60000,"2015-03-01",null,{"$f":"IF(BASE!G114>TODAY(),\"A faire\",IF(BASE!G114>=DATE(YEAR(TODAY()),MONTH(TODAY())-1,DAY(TODAY())),\"Retard\",\"Retard de plus d'un mois\"))","v":"Retard de plus d'un mois"},"EST-DR-AFC - IRE ENCADT OP PATRI ALSACE"]
["EST-AFC","EST-DR-AFC","IRE ENCADT OP PATRI ALSACE","CONTROLE POLLUTION",0,0,"2015-02-09","2015-02-09",0,0,0,15,0,"2015-03-01",null,{"$f":"IF(BASE!G253>TODAY(),\"A faire\",IF(BASE!G253>=DATE(YEAR(TODAY()),MONTH(TODAY())-1,DAY(TODAY())),\"Retard\",\"Retard de plus d'un mois\"))","v":"Retard de plus d'un mois"},"EST-DR-AFC - IRE ENCADT OP PATRI ALSACE"]
["EST-AFC","EST-DR-AFC","IRE ENCADT OP PATRI ALSACE","CONTROLE TECHNIQUE",0,0,"2015-03-16","2015-03-16",0,0,0,30,0,"2015-03-01",null,{"$f":"IF(BASE!G291>TODAY(),\"A faire\",IF(BASE!G291>=DATE(YEAR(TODAY()),MONTH(TODAY())-1,DAY(TODAY())),\"Retard\",\"Retard de plus d'un mois\"))","v":"Retard de plus d'un mois"},"EST-DR-AFC - IRE ENCADT OP PATRI ALSACE"]
["EST-AFC","EST-DR-AFC","IRE ENCADT OP PATRI FRANCHE COMTE","ENTRETIEN REVISION",150302,150302,"2015-02-10","2015-02-10",0,0,0,15,105000,"2015-03-01","2015-01-29",{"$f":"IF(BASE!G268>TODAY(),\"A faire\",IF(BASE!G268>=DATE(YEAR(TODAY()),MONTH(TODAY())-1,DAY(TODAY())),\"Retard\",\"Retard de plus d'un mois\"))","v":"Retard de plus d'un mois"},"EST-DR-AFC - IRE ENCADT OP PATRI FRANCHE COMTE"]
["EST-AFC","EST-DR-AFC","IRE ENCADT OP PATRI FRANCHE COMTE","CONTROLE POLLUTION",0,0,"2014-09-16","2014-09-16",0,0,0,15,0,"2015-03-01","2014-09-09",{"$f":"IF(BASE!G120>TODAY(),\"A faire\",IF(BASE!G120>=DATE(YEAR(TODAY()),MONTH(TODAY())-1,DAY(TODAY())),\"Retard\",\"Retard de plus d'un mois\"))","v":"Retard de plus d'un mois"},"EST-DR-AFC - IRE ENCADT OP PATRI FRANCHE COMTE"]
["EST-AFC","EST-DR-AFC","IRE ENCADT OP PATRI FRANCHE COMTE","CONTROLE TECHNIQUE",0,0,"2015-03-06","2015-03-06",0,0,0,15,0,"2015-03-01",null,{"$f":"IF(BASE!G310>TODAY(),\"A faire\",IF(BASE!G310>=DATE(YEAR(TODAY()),MONTH(TODAY())-1,DAY(TODAY())),\"Retard\",\"Retard de plus d'un mois\"))","v":"Retard de plus d'un mois"},"EST-DR-AFC - IRE ENCADT OP PATRI FRANCHE COMTE"]
["EST-AFC","EST-DR-AFC","IRE ENCADT OP PATRI FRANCHE COMTE","CONTROLE POLLUTION",0,0,"2014-10-25","2014-10-25",0,0,0,15,0,"2015-03-01","2014-10-10",{"$f":"IF(BASE!G166>TODAY(),\"A faire\",IF(BASE!G166>=DATE(YEAR(TODAY()),MONTH(TODAY())-1,DAY(TODAY())),\"Retard\",\"Retard de plus d'un mois\"))","v":"Retard de plus d'un mois"},"EST-DR-AFC - IRE ENCADT OP PATRI FRANCHE COMTE"]
["EST-AFC","EST-DR-AFC","IRE ENCADT OP PATRI FRANCHE COMTE","CONTROLE TECHNIQUE",0,0,"2015-02-01","2015-02-01",0,0,0,15,0,"2015-03-01","2015-01-30",{"$f":"IF(BASE!G247>TODAY(),\"A faire\",IF(BASE!G247>=DATE(YEAR(TODAY()),MONTH(TODAY())-1,DAY(TODAY())),\"Retard\",\"Retard de plus d'un mois\"))","v":"Retard de plus d'un mois"},"EST-DR-AFC - IRE ENCADT OP PATRI FRANCHE COMTE"]
["EST-AFC","EST-DR-AFC","IRE ENCADT OP PATRI FRANCHE COMTE","ENTRETIEN REVISION",40625,40625,"2015-03-19","2015-03-19",0,0,0,30,30000,"2015-03-01",null,{"$f":"IF(BASE!G334>TODAY(),\"A faire\",IF(BASE!G334>=DATE(YEAR(TODAY()),MONTH(TODAY())-1,DAY(TODAY())),\"Retard\",\"Retard de plus d'un mois\"))","v":"Retard de plus d'un mois"},"EST-DR-AFC - IRE ENCADT OP PATRI FRANCHE COMTE"]
["EST-AFC","EST-DR-AFC","IRE ENCADT OP PATRI FRANCHE COMTE","CONTROLE TECHNIQUE",0,0,"2015-02-01","2015-02-01",0,0,0,15,0,"2015-03-01",null,{"$f":"IF(BASE!G251>TODAY(),\"A faire\",IF(BASE!G251>=DATE(YEAR(TODAY()),MONTH(TODAY())-1,DAY(TODAY())),\"Retard\",\"Retard de plus d'un mois\"))","v":"Retard de plus d'un mois"},"EST-DR-AFC - IRE ENCADT OP PATRI FRANCHE COMTE"]
["EST-AFC","EST-DR-AFC","IRE ENCADT OP PATRI FRANCHE COMTE","ENTRETIEN REVISION",52657,52657,"2015-02-26","2015-02-26",0,0,0,15,30000,"2015-03-01",null,{"$f":"IF(BASE!G288>TODAY(),\"A faire\",IF(BASE!G288>=DATE(YEAR(TODAY()),MONTH(TODAY())-1,DAY(TODAY())),\"Retard\",\"Retard de plus d'un mois\"))","v":"Retard"},"EST-DR-AFC - IRE ENCADT OP PATRI FRANCHE COMTE"]
["EST-AFC","EST-DR-AFC","IRE ENCADT OP PATRI FRANCHE COMTE","ENTRETIEN REVISION",30000,30000,"2015-03-21","2015-03-21",0,0,0,30,0,"2015-03-01",null,{"$f":"IF(BASE!G340>TODAY(),\"A faire\",IF(BASE!G340>=DATE(YEAR(TODAY()),MONTH(TODAY())-1,DAY(TODAY())),\"Retard\",\"Retard de plus d'un mois\"))","v":"Retard de plus d'un mois"},"EST-DR-AFC - IRE ENCADT OP PATRI FRANCHE COMTE"]
["EST-AFC","EST-DR-AFC","OPE AME  PF FC","ENTRETIEN REVISION",206694,206694,"2015-03-03","2015-03-03",0,0,0,15,105000,"2015-03-01",null,{"$f":"IF(BASE!G306>TODAY(),\"A faire\",IF(BASE!G306>=DATE(YEAR(TODAY()),MONTH(TODAY())-1,DAY(TODAY())),\"Retard\",\"Retard de plus d'un mois\"))","v":"Retard de plus d'un mois"},"EST-DR-AFC - OPE AME  PF FC"]
["EST-AFC","EST-DR-AFC","OPE AME  PF FC","CTRL REMORQUE",0,0,"1979-07-27","1979-08-27",0,0,0,15,0,"2015-03-01",null,{"$f":"IF(BASE!G15>TODAY(),\"A faire\",IF(BASE!G15>=DATE(YEAR(TODAY()),MONTH(TODAY())-1,DAY(TODAY())),\"Retard\",\"Retard de plus d'un mois\"))","v":"Retard de plus d'un mois"},"EST-DR-AFC - OPE AME  PF FC"]
["EST-AFC","EST-DR-AFC","OPE AME  PF FC","ENTRETIEN ANNUEL PORTE-ECHELLE",0,0,"2007-11-30","2007-11-30",0,0,0,15,0,"2015-03-01",null,{"$f":"IF(BASE!G6>TODAY(),\"A faire\",IF(BASE!G6>=DATE(YEAR(TODAY()),MONTH(TODAY())-1,DAY(TODAY())),\"Retard\",\"Retard de plus d'un mois\"))","v":"Retard de plus d'un mois"},"EST-DR-AFC - OPE AME  PF FC"]
["EST-AFC","EST-DR-AFC","OPE AME  PF FC","CONTROLE TECHNIQUE",0,0,"2014-07-16","2014-07-16",0,0,0,15,0,"2015-03-01",null,{"$f":"IF(BASE!G90>TODAY(),\"A faire\",IF(BASE!G90>=DATE(YEAR(TODAY()),MONTH(TODAY())-1,DAY(TODAY())),\"Retard\",\"Retard de plus d'un mois\"))","v":"Retard de plus d'un mois"},"EST-DR-AFC - OPE AME  PF FC"]
["EST-AFC","EST-DR-AFC","OPE AME  PF FC","ENTRETIEN ANNUEL PORTE-ECHELLE",0,0,"1995-06-29","1995-06-29",0,0,0,15,0,"2015-03-01",null,{"$f":"IF(BASE!G5>TODAY(),\"A faire\",IF(BASE!G5>=DATE(YEAR(TODAY()),MONTH(TODAY())-1,DAY(TODAY())),\"Retard\",\"Retard de plus d'un mois\"))","v":"Retard de plus d'un mois"},"EST-DR-AFC - OPE AME  PF FC"]
["EST-AFC","EST-DR-AFC","OPE AME  PF FC","ENTRETIEN REVISION",293634,293634,"2015-02-11","2015-02-11",0,0,0,15,90000,"2015-03-01",null,{"$f":"IF(BASE!G270>TODAY(),\"A faire\",IF(BASE!G270>=DATE(YEAR(TODAY()),MONTH(TODAY())-1,DAY(TODAY())),\"Retard\",\"Retard de plus d'un mois\"))","v":"Retard de plus d'un mois"},"EST-DR-AFC - OPE AME  PF FC"]
["EST-AFC","EST-DR-AFC","OPE AME  PF FC","ENTRETIEN REVISION",127208,127208,"2014-10-04","2014-10-04",0,0,0,15,120000,"2015-03-01",null,{"$f":"IF(BASE!G140>TODAY(),\"A faire\",IF(BASE!G140>=DATE(YEAR(TODAY()),MONTH(TODAY())-1,DAY(TODAY())),\"Retard\",\"Retard de plus d'un mois\"))","v":"Retard de plus d'un mois"},"EST-DR-AFC - OPE AME  PF FC"]
["EST-AFC","EST-DR-AFC","OPE AME  PF FC","CTRL REMORQUE",0,0,"1988-01-15","1988-02-15",0,0,0,15,0,"2015-03-01",null,{"$f":"IF(BASE!G164>TODAY(),\"A faire\",IF(BASE!G164>=DATE(YEAR(TODAY()),MONTH(TODAY())-1,DAY(TODAY())),\"Retard\",\"Retard de plus d'un mois\"))","v":"Retard de plus d'un mois"},"EST-DR-AFC - OPE AME  PF FC"]
["EST-AFC","EST-DR-AFC","OPE AME  PF FC","CTRL REMORQUE",0,0,"1996-08-23","1996-09-23",0,0,0,15,0,"2015-03-01",null,{"$f":"IF(BASE!G181>TODAY(),\"A faire\",IF(BASE!G181>=DATE(YEAR(TODAY()),MONTH(TODAY())-1,DAY(TODAY())),\"Retard\",\"Retard de plus d'un mois\"))","v":"Retard de plus d'un mois"},"EST-DR-AFC - OPE AME  PF FC"]
["EST-AFC","EST-DR-AFC","OPE AME  PF FC","ENTRETIEN ANNUEL PORTE-ECHELLE",0,0,"2010-12-03","2010-12-03",0,0,0,15,0,"2015-03-01",null,{"$f":"IF(BASE!G7>TODAY(),\"A faire\",IF(BASE!G7>=DATE(YEAR(TODAY()),MONTH(TODAY())-1,DAY(TODAY())),\"Retard\",\"Retard de plus d'un mois\"))","v":"Retard de plus d'un mois"},"EST-DR-AFC - OPE AME  PF FC"]
["EST-AFC","EST-DR-AFC","OPE AME  PF FC","ENTRETIEN REVISION",128982,128982,"2015-02-07","2015-02-07",0,0,0,15,120000,"2015-03-01",null,{"$f":"IF(BASE!G263>TODAY(),\"A faire\",IF(BASE!G263>=DATE(YEAR(TODAY()),MONTH(TODAY())-1,DAY(TODAY())),\"Retard\",\"Retard de plus d'un mois\"))","v":"Retard de plus d'un mois"},"EST-DR-AFC - OPE AME  PF FC"]
["EST-AFC","EST-DR-AFC","OPE AME  PF FC","CTRL REMORQUE",0,0,"2014-04-18","2014-05-18",0,0,0,15,0,"2015-03-01",null,{"$f":"IF(BASE!G72>TODAY(),\"A faire\",IF(BASE!G72>=DATE(YEAR(TODAY()),MONTH(TODAY())-1,DAY(TODAY())),\"Retard\",\"Retard de plus d'un mois\"))","v":"Retard de plus d'un mois"},"EST-DR-AFC - OPE AME  PF FC"]
["EST-AFC","EST-DR-AFC","OPE AME  PF FC","ENTRETIEN REVISION",113381,113381,"2015-01-18","2015-01-18",0,0,0,15,90000,"2015-03-01",null,{"$f":"IF(BASE!G238>TODAY(),\"A faire\",IF(BASE!G238>=DATE(YEAR(TODAY()),MONTH(TODAY())-1,DAY(TODAY())),\"Retard\",\"Retard de plus d'un mois\"))","v":"Retard de plus d'un mois"},"EST-DR-AFC - OPE AME  PF FC"]
["EST-AFC","EST-DR-AFC","OPE AME  PF FC","COURROIE DE DISTRIBUTION",120000,125000,"2015-01-18","2015-03-06",0,0,0,15,0,"2015-03-01",null,{"$f":"IF(BASE!G239>TODAY(),\"A faire\",IF(BASE!G239>=DATE(YEAR(TODAY()),MONTH(TODAY())-1,DAY(TODAY())),\"Retard\",\"Retard de plus d'un mois\"))","v":"Retard de plus d'un mois"},"EST-DR-AFC - OPE AME  PF FC"]
["EST-AFC","EST-DR-AFC","OPE AME  PF FC","ENTRETIEN REVISION",119013,119013,"2015-01-08","2015-01-08",0,0,0,15,90000,"2015-03-01",null,{"$f":"IF(BASE!G234>TODAY(),\"A faire\",IF(BASE!G234>=DATE(YEAR(TODAY()),MONTH(TODAY())-1,DAY(TODAY())),\"Retard\",\"Retard de plus d'un mois\"))","v":"Retard de plus d'un mois"},"EST-DR-AFC - OPE AME  PF FC"]
["EST-AFC","EST-DR-AFC","OPE AME  PF FC","ENTRETIEN ANNUEL PORTE-ECHELLE",0,0,"2013-03-27","2013-03-27",0,0,0,15,0,"2015-03-01",null,{"$f":"IF(BASE!G30>TODAY(),\"A faire\",IF(BASE!G30>=DATE(YEAR(TODAY()),MONTH(TODAY())-1,DAY(TODAY())),\"Retard\",\"Retard de plus d'un mois\"))","v":"Retard de plus d'un mois"},"EST-DR-AFC - OPE AME  PF FC"]
["EST-AFC","EST-DR-AFC","OPE AME PF ALS","ENTRETIEN REVISION",66215,66215,"2012-12-22","2012-12-22",0,0,0,15,80000,"2015-03-01",null,{"$f":"IF(BASE!G107>TODAY(),\"A faire\",IF(BASE!G107>=DATE(YEAR(TODAY()),MONTH(TODAY())-1,DAY(TODAY())),\"Retard\",\"Retard de plus d'un mois\"))","v":"Retard de plus d'un mois"},"EST-DR-AFC - OPE AME PF ALS"]
["EST-AFC","EST-DR-AFC","OPE AME PF ALS","COURROIE DE DISTRIBUTION",120000,125000,"2013-01-04","2013-02-04",0,0,0,15,0,"2015-03-01",null,{"$f":"IF(BASE!G130>TODAY(),\"A faire\",IF(BASE!G130>=DATE(YEAR(TODAY()),MONTH(TODAY())-1,DAY(TODAY())),\"Retard\",\"Retard de plus d'un mois\"))","v":"Retard de plus d'un mois"},"EST-DR-AFC - OPE AME PF ALS"]
["EST-AFC","EST-DR-AFC","OPE AME PF ALS","ENTRETIEN ANNUEL PORTE-ECHELLE",0,0,"2010-12-18","2010-12-18",0,0,0,15,0,"2015-03-01",null,{"$f":"IF(BASE!G242>TODAY(),\"A faire\",IF(BASE!G242>=DATE(YEAR(TODAY()),MONTH(TODAY())-1,DAY(TODAY())),\"Retard\",\"Retard de plus d'un mois\"))","v":"Retard de plus d'un mois"},"EST-DR-AFC - OPE AME PF ALS"]
["EST-AFC","EST-DR-AFC","OPE AME PF ALS","CONTROLE TECHNIQUE",0,0,"2015-03-03","2015-03-03",0,0,0,15,0,"2015-03-01",null,{"$f":"IF(BASE!G283>TODAY(),\"A faire\",IF(BASE!G283>=DATE(YEAR(TODAY()),MONTH(TODAY())-1,DAY(TODAY())),\"Retard\",\"Retard de plus d'un mois\"))","v":"Retard de plus d'un mois"},"EST-DR-AFC - OPE AME PF ALS"]
["EST-AFC","EST-DR-AFC","OPE AME PF ALS","ENTRETIEN REVISION",88740,88740,"2014-05-10","2014-05-10",0,0,0,15,60000,"2015-03-01",null,{"$f":"IF(BASE!G284>TODAY(),\"A faire\",IF(BASE!G284>=DATE(YEAR(TODAY()),MONTH(TODAY())-1,DAY(TODAY())),\"Retard\",\"Retard de plus d'un mois\"))","v":"Retard de plus d'un mois"},"EST-DR-AFC - OPE AME PF ALS"]
["EST-AFC","EST-DR-AFC","OPE AME PF ALS","ENTRETIEN ANNUEL PORTE-ECHELLE",0,0,"2012-08-10","2012-08-10",0,0,0,15,0,"2015-03-01",null,{"$f":"IF(BASE!G294>TODAY(),\"A faire\",IF(BASE!G294>=DATE(YEAR(TODAY()),MONTH(TODAY())-1,DAY(TODAY())),\"Retard\",\"Retard de plus d'un mois\"))","v":"Retard de plus d'un mois"},"EST-DR-AFC - OPE AME PF ALS"]
["EST-AFC","EST-DR-AFC","OPE AME PF ALS","ENTRETIEN ANNUEL PORTE-ECHELLE",0,0,"2013-10-03","2013-10-03",0,0,0,15,0,"2015-03-01",null,{"$f":"IF(BASE!G319>TODAY(),\"A faire\",IF(BASE!G319>=DATE(YEAR(TODAY()),MONTH(TODAY())-1,DAY(TODAY())),\"Retard\",\"Retard de plus d'un mois\"))","v":"Retard de plus d'un mois"},"EST-DR-AFC - OPE AME PF ALS"]
["EST-AFC","EST-DR-AFC","OPE AME PF ALS","ENTRETIEN REVISION",30000,30000,"2014-11-14","2014-11-14",0,0,0,15,0,"2015-03-01",null,{"$f":"IF(BASE!G321>TODAY(),\"A faire\",IF(BASE!G321>=DATE(YEAR(TODAY()),MONTH(TODAY())-1,DAY(TODAY())),\"Retard\",\"Retard de plus d'un mois\"))","v":"Retard de plus d'un mois"},"EST-DR-AFC - OPE AME PF ALS"]
["EST-AFC","EST-DR-AFC","OPE AME PF ALS","ENTRETIEN REVISION",30000,30000,"2014-12-08","2014-12-08",0,0,0,15,0,"2015-03-01",null,{"$f":"IF(BASE!G341>TODAY(),\"A faire\",IF(BASE!G341>=DATE(YEAR(TODAY()),MONTH(TODAY())-1,DAY(TODAY())),\"Retard\",\"Retard de plus d'un mois\"))","v":"Retard de plus d'un mois"},"EST-DR-AFC - OPE AME PF ALS"]
["EST-AFC","EST-DR-AFC","OPE AME PF ALS","ENTRETIEN REVISION",30000,30000,"2015-03-02","2015-03-02",0,0,0,15,0,"2015-03-01",null,{"$f":"IF(BASE!G343>TODAY(),\"A faire\",IF(BASE!G343>=DATE(YEAR(TODAY()),MONTH(TODAY())-1,DAY(TODAY())),\"Retard\",\"Retard de plus d'un mois\"))","v":"Retard de plus d'un mois"},"EST-DR-AFC - OPE AME PF ALS"]
["EST-AFC","EST-DR-AFC","OPE AME PF ALS","ENTRETIEN REVISION",30000,30000,"2015-03-19","2015-03-19",0,0,0,30,0,"2015-03-01",null,{"$f":"IF(BASE!G350>TODAY(),\"A faire\",IF(BASE!G350>=DATE(YEAR(TODAY()),MONTH(TODAY())-1,DAY(TODAY())),\"Retard\",\"Retard de plus d'un mois\"))","v":"Retard de plus d'un mois"},"EST-DR-AFC - OPE AME PF ALS"]
["EST-AFC","EST-DR-AFC","OPE ARX BEX  PF","CONTROLE TECHNIQUE",0,0,"2015-02-28","2015-02-28",0,0,0,15,0,"2015-03-01",null,{"$f":"IF(BASE!G304>TODAY(),\"A faire\",IF(BASE!G304>=DATE(YEAR(TODAY()),MONTH(TODAY())-1,DAY(TODAY())),\"Retard\",\"Retard de plus d'un mois\"))","v":"Retard de plus d'un mois"},"EST-DR-AFC - OPE ARX BEX  PF"]
["EST-AFC","EST-DR-AFC","OPE ARX BEX  PF","VISITE HORAIRE 300 H",0,0,"2014-03-22","2014-03-22",0,0,0,15,300,"2015-03-01",null,{"$f":"IF(BASE!G69>TODAY(),\"A faire\",IF(BASE!G69>=DATE(YEAR(TODAY()),MONTH(TODAY())-1,DAY(TODAY())),\"Retard\",\"Retard de plus d'un mois\"))","v":"Retard"},"EST-DR-AFC - OPE ARX BEX  PF"]
["EST-AFC","EST-DR-AFC","OPE INT ALSACE PF","CTRL REMORQUE",0,0,"1994-08-24","1994-09-24",0,0,0,15,0,"2015-03-01",null,{"$f":"IF(BASE!G9>TODAY(),\"A faire\",IF(BASE!G9>=DATE(YEAR(TODAY()),MONTH(TODAY())-1,DAY(TODAY())),\"Retard\",\"Retard de plus d'un mois\"))","v":"Retard de plus d'un mois"},"EST-DR-AFC - OPE INT ALSACE PF"]
["EST-AFC","EST-DR-AFC","OPE INT ALSACE PF","COURROIE DE DISTRIBUTION",120000,125000,"2013-11-14","2013-12-14",0,0,0,15,0,"2015-03-01",null,{"$f":"IF(BASE!G17>TODAY(),\"A faire\",IF(BASE!G17>=DATE(YEAR(TODAY()),MONTH(TODAY())-1,DAY(TODAY())),\"Retard\",\"Retard de plus d'un mois\"))","v":"Retard de plus d'un mois"},"EST-DR-AFC - OPE INT ALSACE PF"]
["EST-AFC","EST-DR-AFC","OPE INT ALSACE PF","CTRL REMORQUE",0,0,"2012-05-30","2012-06-30",0,0,0,15,0,"2015-03-01",null,{"$f":"IF(BASE!G21>TODAY(),\"A faire\",IF(BASE!G21>=DATE(YEAR(TODAY()),MONTH(TODAY())-1,DAY(TODAY())),\"Retard\",\"Retard de plus d'un mois\"))","v":"Retard de plus d'un mois"},{"$f":"CONCATENATE(B66,\" - \",C66)","v":"EST-DR-AFC - OPE INT ALSACE PF"}]
["EST-AFC","EST-DR-AFC","OPE INT ALSACE PF","ENTRETIEN ANNUEL PORTE-ECHELLE",0,0,"2007-03-16","2007-03-16",0,0,0,15,0,"2015-03-01",null,{"$f":"IF(BASE!G23>TODAY(),\"A faire\",IF(BASE!G23>=DATE(YEAR(TODAY()),MONTH(TODAY())-1,DAY(TODAY())),\"Retard\",\"Retard de plus d'un mois\"))","v":"Retard de plus d'un mois"},"EST-DR-AFC - OPE INT ALSACE PF"]
["EST-AFC","EST-DR-AFC","OPE INT ALSACE PF","ENTRETIEN REVISION",173320,173320,"2015-03-08","2015-03-08",0,0,0,15,180000,"2015-03-01",null,{"$f":"IF(BASE!G24>TODAY(),\"A faire\",IF(BASE!G24>=DATE(YEAR(TODAY()),MONTH(TODAY())-1,DAY(TODAY())),\"Retard\",\"Retard de plus d'un mois\"))","v":"Retard de plus d'un mois"},"EST-DR-AFC - OPE INT ALSACE PF"]
["EST-AFC","EST-DR-AFC","OPE INT ALSACE PF","CONTROLE POLLUTION",0,0,"2015-03-25","2015-03-25",0,0,0,"N/A",0,"2015-03-01",null,{"$f":"IF(BASE!G25>TODAY(),\"A faire\",IF(BASE!G25>=DATE(YEAR(TODAY()),MONTH(TODAY())-1,DAY(TODAY())),\"Retard\",\"Retard de plus d'un mois\"))","v":"Retard"},"EST-DR-AFC - OPE INT ALSACE PF"]
["EST-AFC","EST-DR-AFC","OPE INT ALSACE PF","ENTRETIEN REVISION",196967,196967,"2015-01-10","2015-01-10",0,0,0,15,270000,"2015-03-01",null,{"$f":"IF(BASE!G26>TODAY(),\"A faire\",IF(BASE!G26>=DATE(YEAR(TODAY()),MONTH(TODAY())-1,DAY(TODAY())),\"Retard\",\"Retard de plus d'un mois\"))","v":"Retard de plus d'un mois"},"EST-DR-AFC - OPE INT ALSACE PF"]
["EST-AFC","EST-DR-AFC","OPE INT ALSACE PF","COURROIE DE DISTRIBUTION",120000,125000,"2013-08-07","2013-09-07",0,0,0,15,0,"2015-03-01",null,{"$f":"IF(BASE!G39>TODAY(),\"A faire\",IF(BASE!G39>=DATE(YEAR(TODAY()),MONTH(TODAY())-1,DAY(TODAY())),\"Retard\",\"Retard de plus d'un mois\"))","v":"Retard de plus d'un mois"},"EST-DR-AFC - OPE INT ALSACE PF"]
["EST-AFC","EST-DR-AFC","OPE INT ALSACE PF","COURROIE DE DISTRIBUTION",160000,165000,"2013-08-31","2013-09-30",0,0,0,15,0,"2015-03-01",null,{"$f":"IF(BASE!G50>TODAY(),\"A faire\",IF(BASE!G50>=DATE(YEAR(TODAY()),MONTH(TODAY())-1,DAY(TODAY())),\"Retard\",\"Retard de plus d'un mois\"))","v":"Retard de plus d'un mois"},"EST-DR-AFC - OPE INT ALSACE PF"]
["EST-AFC","EST-DR-AFC","OPE INT ALSACE PF","ENTRETIEN REVISION",135201,135201,"2013-11-14","2013-11-14",0,0,0,15,180000,"2015-03-01",null,{"$f":"IF(BASE!G51>TODAY(),\"A faire\",IF(BASE!G51>=DATE(YEAR(TODAY()),MONTH(TODAY())-1,DAY(TODAY())),\"Retard\",\"Retard de plus d'un mois\"))","v":"Retard de plus d'un mois"},"EST-DR-AFC - OPE INT ALSACE PF"]
["EST-AFC","EST-DR-AFC","OPE INT ALSACE PF","ENTRETIEN ANNUEL PORTE-ECHELLE",0,0,"2008-08-31","2008-08-31",0,0,0,15,0,"2015-03-01",null,{"$f":"IF(BASE!G52>TODAY(),\"A faire\",IF(BASE!G52>=DATE(YEAR(TODAY()),MONTH(TODAY())-1,DAY(TODAY())),\"Retard\",\"Retard de plus d'un mois\"))","v":"Retard de plus d'un mois"},"EST-DR-AFC - OPE INT ALSACE PF"]
["EST-AFC","EST-DR-AFC","OPE INT ALSACE PF","ENTRETIEN REVISION",210200,210200,"2015-03-28","2015-03-28",0,0,0,"N/A",300000,"2015-03-01",null,{"$f":"IF(BASE!G53>TODAY(),\"A faire\",IF(BASE!G53>=DATE(YEAR(TODAY()),MONTH(TODAY())-1,DAY(TODAY())),\"Retard\",\"Retard de plus d'un mois\"))","v":"Retard de plus d'un mois"},"EST-DR-AFC - OPE INT ALSACE PF"]
["EST-AFC","EST-DR-AFC","OPE INT ALSACE PF","CTRL REMORQUE",0,0,"2014-05-31","2014-06-30",0,0,0,15,0,"2015-03-01",null,{"$f":"IF(BASE!G55>TODAY(),\"A faire\",IF(BASE!G55>=DATE(YEAR(TODAY()),MONTH(TODAY())-1,DAY(TODAY())),\"Retard\",\"Retard de plus d'un mois\"))","v":"Retard de plus d'un mois"},"EST-DR-AFC - OPE INT ALSACE PF"]
["EST-AFC","EST-DR-AFC","OPE INT ALSACE PF","COURROIE DE DISTRIBUTION",120000,125000,"2013-08-19","2013-09-19",0,0,0,15,0,"2015-03-01",null,{"$f":"IF(BASE!G62>TODAY(),\"A faire\",IF(BASE!G62>=DATE(YEAR(TODAY()),MONTH(TODAY())-1,DAY(TODAY())),\"Retard\",\"Retard de plus d'un mois\"))","v":"Retard de plus d'un mois"},"EST-DR-AFC - OPE INT ALSACE PF"]
["EST-AFC","EST-DR-AFC","OPE INT ALSACE PF","CTRL REMORQUE",0,0,"1980-11-12","1980-12-12",0,0,0,15,0,"2015-03-01",null,{"$f":"IF(BASE!G64>TODAY(),\"A faire\",IF(BASE!G64>=DATE(YEAR(TODAY()),MONTH(TODAY())-1,DAY(TODAY())),\"Retard\",\"Retard de plus d'un mois\"))","v":"Retard de plus d'un mois"},"EST-DR-AFC - OPE INT ALSACE PF"]
["EST-AFC","EST-DR-AFC","OPE INT ALSACE PF","CTRL REMORQUE",0,0,"2012-05-30","2012-06-30",0,0,0,15,0,"2015-03-01",null,{"$f":"IF(BASE!G85>TODAY(),\"A faire\",IF(BASE!G85>=DATE(YEAR(TODAY()),MONTH(TODAY())-1,DAY(TODAY())),\"Retard\",\"Retard de plus d'un mois\"))","v":"Retard de plus d'un mois"},"EST-DR-AFC - OPE INT ALSACE PF"]
["EST-AFC","EST-DR-AFC","OPE INT ALSACE PF","CTRL REMORQUE",0,0,"2013-01-25","2013-02-25",0,0,0,15,0,"2015-03-01",null,{"$f":"IF(BASE!G100>TODAY(),\"A faire\",IF(BASE!G100>=DATE(YEAR(TODAY()),MONTH(TODAY())-1,DAY(TODAY())),\"Retard\",\"Retard de plus d'un mois\"))","v":"Retard de plus d'un mois"},"EST-DR-AFC - OPE INT ALSACE PF"]
["EST-AFC","EST-DR-AFC","OPE INT ALSACE PF","COURROIE DE DISTRIBUTION",212950,217950,"2014-03-04","2014-04-04",0,0,0,15,120000,"2015-03-01",null,{"$f":"IF(BASE!G131>TODAY(),\"A faire\",IF(BASE!G131>=DATE(YEAR(TODAY()),MONTH(TODAY())-1,DAY(TODAY())),\"Retard\",\"Retard de plus d'un mois\"))","v":"Retard de plus d'un mois"},"EST-DR-AFC - OPE INT ALSACE PF"]
["EST-AFC","EST-DR-AFC","OPE INT ALSACE PF","ENTRETIEN REVISION",120850,120850,"2011-04-09","2011-04-09",0,0,0,15,45000,"2015-03-01",null,{"$f":"IF(BASE!G132>TODAY(),\"A faire\",IF(BASE!G132>=DATE(YEAR(TODAY()),MONTH(TODAY())-1,DAY(TODAY())),\"Retard\",\"Retard de plus d'un mois\"))","v":"Retard"},"EST-DR-AFC - OPE INT ALSACE PF"]
["EST-AFC","EST-DR-AFC","OPE INT ALSACE PF","COURROIE DE DISTRIBUTION",214586,219586,"2015-01-28","2015-02-28",0,0,0,15,120000,"2015-03-01",null,{"$f":"IF(BASE!G171>TODAY(),\"A faire\",IF(BASE!G171>=DATE(YEAR(TODAY()),MONTH(TODAY())-1,DAY(TODAY())),\"Retard\",\"Retard de plus d'un mois\"))","v":"Retard de plus d'un mois"},"EST-DR-AFC - OPE INT ALSACE PF"]
["EST-AFC","EST-DR-AFC","OPE INT ALSACE PF","COURROIE DE DISTRIBUTION",120000,125000,"2014-10-28","2014-11-28",0,0,0,15,0,"2015-03-01",null,{"$f":"IF(BASE!G223>TODAY(),\"A faire\",IF(BASE!G223>=DATE(YEAR(TODAY()),MONTH(TODAY())-1,DAY(TODAY())),\"Retard\",\"Retard de plus d'un mois\"))","v":"Retard de plus d'un mois"},"EST-DR-AFC - OPE INT ALSACE PF"]
["EST-AFC","EST-DR-AFC","OPE INT ALSACE PF","ENTRETIEN REVISION",121840,121840,"2014-04-18","2014-04-18",0,0,0,15,80000,"2015-03-01",null,{"$f":"IF(BASE!G236>TODAY(),\"A faire\",IF(BASE!G236>=DATE(YEAR(TODAY()),MONTH(TODAY())-1,DAY(TODAY())),\"Retard\",\"Retard de plus d'un mois\"))","v":"Retard de plus d'un mois"},"EST-DR-AFC - OPE INT ALSACE PF"]
["EST-AFC","EST-DR-AFC","OPE INT ALSACE PF","COURROIE DE DISTRIBUTION",120000,125000,"2014-10-10","2014-12-13",0,0,0,15,0,"2015-03-01",null,{"$f":"IF(BASE!G248>TODAY(),\"A faire\",IF(BASE!G248>=DATE(YEAR(TODAY()),MONTH(TODAY())-1,DAY(TODAY())),\"Retard\",\"Retard de plus d'un mois\"))","v":"Retard de plus d'un mois"},"EST-DR-AFC - OPE INT ALSACE PF"]
["EST-AFC","EST-DR-AFC","OPE INT ALSACE PF","ENTRETIEN ANNUEL PORTE-ECHELLE",0,0,"2011-11-10","2011-11-10",0,0,0,15,0,"2015-03-01",null,{"$f":"IF(BASE!G259>TODAY(),\"A faire\",IF(BASE!G259>=DATE(YEAR(TODAY()),MONTH(TODAY())-1,DAY(TODAY())),\"Retard\",\"Retard de plus d'un mois\"))","v":"Retard de plus d'un mois"},"EST-DR-AFC - OPE INT ALSACE PF"]
["EST-AFC","EST-DR-AFC","OPE INT ALSACE PF","ENTRETIEN REVISION",91662,91662,"2014-12-31","2014-12-31",0,0,0,15,40000,"2015-03-01",null,{"$f":"IF(BASE!G262>TODAY(),\"A faire\",IF(BASE!G262>=DATE(YEAR(TODAY()),MONTH(TODAY())-1,DAY(TODAY())),\"Retard\",\"Retard de plus d'un mois\"))","v":"Retard"},"EST-DR-AFC - OPE INT ALSACE PF"]
["EST-AFC","EST-DR-AFC","OPE INT ALSACE PF","ENTRETIEN ANNUEL PORTE-ECHELLE",0,0,"2012-08-10","2012-08-10",0,0,0,15,0,"2015-03-01",null,{"$f":"IF(BASE!G295>TODAY(),\"A faire\",IF(BASE!G295>=DATE(YEAR(TODAY()),MONTH(TODAY())-1,DAY(TODAY())),\"Retard\",\"Retard de plus d'un mois\"))","v":"Retard de plus d'un mois"},"EST-DR-AFC - OPE INT ALSACE PF"]
["EST-AFC","EST-DR-AFC","OPE INT ALSACE PF","COURROIE DE DISTRIBUTION",160000,165000,"2014-10-22","2014-11-22",0,0,0,15,0,"2015-03-01",null,{"$f":"IF(BASE!G314>TODAY(),\"A faire\",IF(BASE!G314>=DATE(YEAR(TODAY()),MONTH(TODAY())-1,DAY(TODAY())),\"Retard\",\"Retard de plus d'un mois\"))","v":"Retard de plus d'un mois"},"EST-DR-AFC - OPE INT ALSACE PF"]
["EST-AFC","EST-DR-AFC","OPE INT ALSACE PF","ENTRETIEN ANNUEL PORTE-ECHELLE",0,0,"2009-10-22","2009-10-22",0,0,0,15,0,"2015-03-01",null,{"$f":"IF(BASE!G315>TODAY(),\"A faire\",IF(BASE!G315>=DATE(YEAR(TODAY()),MONTH(TODAY())-1,DAY(TODAY())),\"Retard\",\"Retard de plus d'un mois\"))","v":"Retard de plus d'un mois"},"EST-DR-AFC - OPE INT ALSACE PF"]
["EST-AFC","EST-DR-AFC","OPE INT ALSACE PF","ENTRETIEN REVISION",150041,150041,"2013-12-12","2013-12-12",0,0,0,15,240000,"2015-03-01",null,{"$f":"IF(BASE!G316>TODAY(),\"A faire\",IF(BASE!G316>=DATE(YEAR(TODAY()),MONTH(TODAY())-1,DAY(TODAY())),\"Retard\",\"Retard de plus d'un mois\"))","v":"Retard de plus d'un mois"},"EST-DR-AFC - OPE INT ALSACE PF"]
["EST-AFC","EST-DR-AFC","OPE INT ALSACE PF","ENTRETIEN ANNUEL PORTE-ECHELLE",0,0,"2013-09-21","2013-09-21",0,0,0,15,0,"2015-03-01",null,{"$f":"IF(BASE!G318>TODAY(),\"A faire\",IF(BASE!G318>=DATE(YEAR(TODAY()),MONTH(TODAY())-1,DAY(TODAY())),\"Retard\",\"Retard de plus d'un mois\"))","v":"Retard de plus d'un mois"},"EST-DR-AFC - OPE INT ALSACE PF"]
["EST-AFC","EST-DR-AFC","OPE INT ALSACE PF","ENTRETIEN ANNUEL PORTE-ECHELLE",0,0,"2014-09-25","2014-09-25",0,0,0,15,0,"2015-03-01",null,{"$f":"IF(BASE!G335>TODAY(),\"A faire\",IF(BASE!G335>=DATE(YEAR(TODAY()),MONTH(TODAY())-1,DAY(TODAY())),\"Retard\",\"Retard de plus d'un mois\"))","v":"Retard"},"EST-DR-AFC - OPE INT ALSACE PF"]
["EST-AFC","EST-DR-AFC","OPE INT ALSACE PF","ENTRETIEN REVISION",20000,20000,"2014-07-25","2014-07-25",0,0,0,15,0,"2015-03-01",null,{"$f":"IF(BASE!G336>TODAY(),\"A faire\",IF(BASE!G336>=DATE(YEAR(TODAY()),MONTH(TODAY())-1,DAY(TODAY())),\"Retard\",\"Retard de plus d'un mois\"))","v":"Retard de plus d'un mois"},"EST-DR-AFC - OPE INT ALSACE PF"]
["EST-AFC","EST-DR-AFC","OPE INT ALSACE PF","ENTRETIEN REVISION",30000,30000,"2015-02-23","2015-02-23",0,0,0,15,0,"2015-03-01",null,{"$f":"IF(BASE!G342>TODAY(),\"A faire\",IF(BASE!G342>=DATE(YEAR(TODAY()),MONTH(TODAY())-1,DAY(TODAY())),\"Retard\",\"Retard de plus d'un mois\"))","v":"Retard de plus d'un mois"},"EST-DR-AFC - OPE INT ALSACE PF"]
["EST-AFC","EST-DR-AFC","OPE INT ALSACE PF","ENTRETIEN ANNUEL PORTE-ECHELLE",0,0,"2015-01-29","2015-01-29",0,0,0,15,0,"2015-03-01",null,{"$f":"IF(BASE!G351>TODAY(),\"A faire\",IF(BASE!G351>=DATE(YEAR(TODAY()),MONTH(TODAY())-1,DAY(TODAY())),\"Retard\",\"Retard de plus d'un mois\"))","v":"Retard de plus d'un mois"},"EST-DR-AFC - OPE INT ALSACE PF"]
["EST-AFC","EST-DR-AFC","OPE INT ALSACE PF","ENTRETIEN REVISION",20000,20000,"2014-12-22","2014-12-22",0,0,0,15,0,"2015-03-01",null,{"$f":"IF(BASE!G352>TODAY(),\"A faire\",IF(BASE!G352>=DATE(YEAR(TODAY()),MONTH(TODAY())-1,DAY(TODAY())),\"Retard\",\"Retard de plus d'un mois\"))","v":"Retard de plus d'un mois"},"EST-DR-AFC - OPE INT ALSACE PF"]
["EST-AFC","EST-DR-AFC","OPE INT FCC PF","CTRL REMORQUE",0,0,"2015-03-31","2015-04-30",0,0,0,"N/A",0,"2015-03-01",null,{"$f":"IF(BASE!G353>TODAY(),\"A faire\",IF(BASE!G353>=DATE(YEAR(TODAY()),MONTH(TODAY())-1,DAY(TODAY())),\"Retard\",\"Retard de plus d'un mois\"))","v":"Retard de plus d'un mois"},"EST-DR-AFC - OPE INT FCC PF"]
["EST-AFC","EST-DR-AFC","OPE INT FCC PF","CTRL REMORQUE",0,0,"2012-07-29","2012-08-29",0,0,0,15,0,"2015-03-01","semaine 23",{"$f":"IF(BASE!G22>TODAY(),\"A faire\",IF(BASE!G22>=DATE(YEAR(TODAY()),MONTH(TODAY())-1,DAY(TODAY())),\"Retard\",\"Retard de plus d'un mois\"))","v":"Retard de plus d'un mois"},"EST-DR-AFC - OPE INT FCC PF"]
["EST-AFC","EST-DR-AFC","OPE INT FCC PF","COURROIE DE DISTRIBUTION",236971,241971,"2014-03-10","2014-04-10",0,0,0,15,360000,"2015-03-01",null,{"$f":"IF(BASE!G67>TODAY(),\"A faire\",IF(BASE!G67>=DATE(YEAR(TODAY()),MONTH(TODAY())-1,DAY(TODAY())),\"Retard\",\"Retard de plus d'un mois\"))","v":"Retard de plus d'un mois"},"EST-DR-AFC - OPE INT FCC PF"]
["EST-AFC","EST-DR-AFC","OPE INT FCC PF","CONTROLE POLLUTION",0,0,"2014-10-02","2014-10-02",0,0,0,15,0,"2015-03-01","2014-10-20",{"$f":"IF(BASE!G139>TODAY(),\"A faire\",IF(BASE!G139>=DATE(YEAR(TODAY()),MONTH(TODAY())-1,DAY(TODAY())),\"Retard\",\"Retard de plus d'un mois\"))","v":"Retard de plus d'un mois"},"EST-DR-AFC - OPE INT FCC PF"]
["EST-AFC","EST-DR-AFC","OPE INT FCC PF","ENTRETIEN REVISION",92590,92590,"2015-03-06","2015-03-06",0,0,0,15,80000,"2015-03-01",null,{"$f":"IF(BASE!G309>TODAY(),\"A faire\",IF(BASE!G309>=DATE(YEAR(TODAY()),MONTH(TODAY())-1,DAY(TODAY())),\"Retard\",\"Retard de plus d'un mois\"))","v":"Retard de plus d'un mois"},"EST-DR-AFC - OPE INT FCC PF"]
["EST-AFC","EST-DR-AFC","OPE INT FCC PF","CONTROLE POLLUTION",0,0,"2015-02-21","2015-02-21",0,0,0,15,0,"2015-03-01",null,{"$f":"IF(BASE!G279>TODAY(),\"A faire\",IF(BASE!G279>=DATE(YEAR(TODAY()),MONTH(TODAY())-1,DAY(TODAY())),\"Retard\",\"Retard de plus d'un mois\"))","v":"Retard"},"EST-DR-AFC - OPE INT FCC PF"]
["EST-AFC","EST-DR-AFC","OPE INT FCC PF","CTRL REMORQUE",0,0,"2014-06-05","2014-07-05",0,0,0,15,0,"2015-03-01","2014-04-25",{"$f":"IF(BASE!G83>TODAY(),\"A faire\",IF(BASE!G83>=DATE(YEAR(TODAY()),MONTH(TODAY())-1,DAY(TODAY())),\"Retard\",\"Retard de plus d'un mois\"))","v":"Retard de plus d'un mois"},"EST-DR-AFC - OPE INT FCC PF"]
["EST-AFC","EST-DR-AFC","OPE INT FCC PF","CTRL REMORQUE",0,0,"2014-07-04","2014-08-04",0,0,0,15,0,"2015-03-01",null,{"$f":"IF(BASE!G84>TODAY(),\"A faire\",IF(BASE!G84>=DATE(YEAR(TODAY()),MONTH(TODAY())-1,DAY(TODAY())),\"Retard\",\"Retard de plus d'un mois\"))","v":"Retard de plus d'un mois"},"EST-DR-AFC - OPE INT FCC PF"]
["EST-AFC","EST-DR-AFC","OPE INT FCC PF","CTRL REMORQUE",0,0,"1986-04-09","1986-05-09",0,0,0,15,0,"2015-03-01",null,{"$f":"IF(BASE!G2>TODAY(),\"A faire\",IF(BASE!G2>=DATE(YEAR(TODAY()),MONTH(TODAY())-1,DAY(TODAY())),\"Retard\",\"Retard de plus d'un mois\"))","v":"Retard de plus d'un mois"},"EST-DR-AFC - OPE INT FCC PF"]
["EST-AFC","EST-DR-AFC","OPE INT FCC PF","ENTRETIEN REVISION",176337,176337,"2014-10-24","2014-10-24",0,0,0,15,180000,"2015-03-01","2014-10-30",{"$f":"IF(BASE!G165>TODAY(),\"A faire\",IF(BASE!G165>=DATE(YEAR(TODAY()),MONTH(TODAY())-1,DAY(TODAY())),\"Retard\",\"Retard de plus d'un mois\"))","v":"Retard de plus d'un mois"},"EST-DR-AFC - OPE INT FCC PF"]
["EST-AFC","EST-DR-AFC","OPE INT FCC PF","ENTRETIEN REVISION",170450,170450,"2015-02-15","2015-02-15",0,0,0,15,160000,"2015-03-01","2015-02-02",{"$f":"IF(BASE!G273>TODAY(),\"A faire\",IF(BASE!G273>=DATE(YEAR(TODAY()),MONTH(TODAY())-1,DAY(TODAY())),\"Retard\",\"Retard de plus d'un mois\"))","v":"Retard de plus d'un mois"},"EST-DR-AFC - OPE INT FCC PF"]
["EST-AFC","EST-DR-AFC","OPE INT FCC PF","CONTROLE POLLUTION",0,0,"2014-09-23","2014-09-23",0,0,0,15,0,"2015-03-01","2014-10-31",{"$f":"IF(BASE!G133>TODAY(),\"A faire\",IF(BASE!G133>=DATE(YEAR(TODAY()),MONTH(TODAY())-1,DAY(TODAY())),\"Retard\",\"Retard de plus d'un mois\"))","v":"Retard de plus d'un mois"},"EST-DR-AFC - OPE INT FCC PF"]
["EST-AFC","EST-DR-AFC","OPE INT FCC PF","ENTRETIEN REVISION",68800,68800,"2013-08-24","2013-08-24",0,0,0,15,60000,"2015-03-01","2014-10-31",{"$f":"IF(BASE!G36>TODAY(),\"A faire\",IF(BASE!G36>=DATE(YEAR(TODAY()),MONTH(TODAY())-1,DAY(TODAY())),\"Retard\",\"Retard de plus d'un mois\"))","v":"Retard de plus d'un mois"},"EST-DR-AFC - OPE INT FCC PF"]
["EST-AFC","EST-DR-AFC","OPE INT FCC PF","CONTROLE POLLUTION",0,0,"2014-11-18","2014-11-18",0,0,0,15,0,"2015-03-01","2014-10-28",{"$f":"IF(BASE!G182>TODAY(),\"A faire\",IF(BASE!G182>=DATE(YEAR(TODAY()),MONTH(TODAY())-1,DAY(TODAY())),\"Retard\",\"Retard de plus d'un mois\"))","v":"Retard de plus d'un mois"},"EST-DR-AFC - OPE INT FCC PF"]
["EST-AFC","EST-DR-AFC","OPE INT FCC PF","ENTRETIEN REVISION",141398,141398,"2014-10-23","2014-10-23",0,0,0,15,120000,"2015-03-01","2014-10-28",{"$f":"IF(BASE!G161>TODAY(),\"A faire\",IF(BASE!G161>=DATE(YEAR(TODAY()),MONTH(TODAY())-1,DAY(TODAY())),\"Retard\",\"Retard de plus d'un mois\"))","v":"Retard de plus d'un mois"},"EST-DR-AFC - OPE INT FCC PF"]
["EST-AFC","EST-DR-AFC","OPE INT FCC PF","CONTROLE POLLUTION",0,0,"2014-12-27","2014-12-27",0,0,0,15,0,"2015-03-01","2015-01-09",{"$f":"IF(BASE!G224>TODAY(),\"A faire\",IF(BASE!G224>=DATE(YEAR(TODAY()),MONTH(TODAY())-1,DAY(TODAY())),\"Retard\",\"Retard de plus d'un mois\"))","v":"Retard de plus d'un mois"},"EST-DR-AFC - OPE INT FCC PF"]
["EST-AFC","EST-DR-AFC","OPE INT FCC PF","ENTRETIEN REVISION",113980,113980,"2015-02-12","2015-02-12",0,0,0,15,90000,"2015-03-01",null,{"$f":"IF(BASE!G272>TODAY(),\"A faire\",IF(BASE!G272>=DATE(YEAR(TODAY()),MONTH(TODAY())-1,DAY(TODAY())),\"Retard\",\"Retard de plus d'un mois\"))","v":"Retard de plus d'un mois"},"EST-DR-AFC - OPE INT FCC PF"]
["EST-AFC","EST-DR-AFC","OPE INT FCC PF","CONTROLE POLLUTION",0,0,"2015-03-19","2015-03-19",0,0,0,30,0,"2015-03-01",null,{"$f":"IF(BASE!G333>TODAY(),\"A faire\",IF(BASE!G333>=DATE(YEAR(TODAY()),MONTH(TODAY())-1,DAY(TODAY())),\"Retard\",\"Retard de plus d'un mois\"))","v":"Retard de plus d'un mois"},"EST-DR-AFC - OPE INT FCC PF"]
["EST-AFC","EST-DR-AFC","OPE INT FCC PF","CONTROLE POLLUTION",0,0,"2015-02-28","2015-02-28",0,0,0,15,0,"2015-03-01","2015-02-27",{"$f":"IF(BASE!G298>TODAY(),\"A faire\",IF(BASE!G298>=DATE(YEAR(TODAY()),MONTH(TODAY())-1,DAY(TODAY())),\"Retard\",\"Retard de plus d'un mois\"))","v":"Retard de plus d'un mois"},"EST-DR-AFC - OPE INT FCC PF"]
["EST-AFC","EST-DR-AFC","OPE INT FCC PF","CONTROLE POLLUTION",0,0,"2015-02-03","2015-02-03",0,0,0,15,0,"2015-03-01",null,{"$f":"IF(BASE!G255>TODAY(),\"A faire\",IF(BASE!G255>=DATE(YEAR(TODAY()),MONTH(TODAY())-1,DAY(TODAY())),\"Retard\",\"Retard de plus d'un mois\"))","v":"Retard de plus d'un mois"},"EST-DR-AFC - OPE INT FCC PF"]
["EST-AFC","EST-DR-AFC","OPE INT FCC PF","ENTRETIEN REVISION",92050,92050,"2014-11-15","2014-11-15",0,0,0,15,90000,"2015-03-01","2014-12-01",{"$f":"IF(BASE!G180>TODAY(),\"A faire\",IF(BASE!G180>=DATE(YEAR(TODAY()),MONTH(TODAY())-1,DAY(TODAY())),\"Retard\",\"Retard de plus d'un mois\"))","v":"Retard de plus d'un mois"},"EST-DR-AFC - OPE INT FCC PF"]
["EST-AFC","EST-DR-AFC","OPE INT FCC PF","ENTRETIEN ANNUEL PORTE-ECHELLE",0,0,"2013-09-21","2013-09-21",0,0,0,15,0,"2015-03-01","OK",{"$f":"IF(BASE!G40>TODAY(),\"A faire\",IF(BASE!G40>=DATE(YEAR(TODAY()),MONTH(TODAY())-1,DAY(TODAY())),\"Retard\",\"Retard de plus d'un mois\"))","v":"Retard de plus d'un mois"},"EST-DR-AFC - OPE INT FCC PF"]
["EST-AFC","EST-DR-AFC","OPE INT FCC PF","ENTRETIEN REVISION",30000,30000,"2014-12-28","2014-12-28",0,0,0,15,0,"2015-03-01",null,{"$f":"IF(BASE!G225>TODAY(),\"A faire\",IF(BASE!G225>=DATE(YEAR(TODAY()),MONTH(TODAY())-1,DAY(TODAY())),\"Retard\",\"Retard de plus d'un mois\"))","v":"Retard de plus d'un mois"},"EST-DR-AFC - OPE INT FCC PF"]
["EST-AFC","EST-DR-AFC","OPE INT FCC PF","ENTRETIEN ANNUEL PORTE-ECHELLE",0,0,"2014-11-28","2014-11-28",0,0,0,15,0,"2015-03-01",null,{"$f":"IF(BASE!G193>TODAY(),\"A faire\",IF(BASE!G193>=DATE(YEAR(TODAY()),MONTH(TODAY())-1,DAY(TODAY())),\"Retard\",\"Retard de plus d'un mois\"))","v":"Retard de plus d'un mois"},"EST-DR-AFC - OPE INT FCC PF"]
["EST-AFC","EST-DR-AFC","OPE INT FCN PF","CONTROLE POLLUTION",0,0,"2014-12-04","2014-12-04",0,0,0,15,0,"2015-03-01","2014-12-02",{"$f":"IF(BASE!G201>TODAY(),\"A faire\",IF(BASE!G201>=DATE(YEAR(TODAY()),MONTH(TODAY())-1,DAY(TODAY())),\"Retard\",\"Retard de plus d'un mois\"))","v":"Retard de plus d'un mois"},"EST-DR-AFC - OPE INT FCN PF"]
["EST-AFC","EST-DR-AFC","OPE INT FCN PF","ENTRETIEN REVISION",171441,171441,"2015-03-03","2015-03-03",0,0,0,15,150000,"2015-03-01",null,{"$f":"IF(BASE!G305>TODAY(),\"A faire\",IF(BASE!G305>=DATE(YEAR(TODAY()),MONTH(TODAY())-1,DAY(TODAY())),\"Retard\",\"Retard de plus d'un mois\"))","v":"Retard de plus d'un mois"},"EST-DR-AFC - OPE INT FCN PF"]
["EST-AFC","EST-DR-AFC","OPE INT FCN PF","ENTRETIEN REVISION",156760,156760,"2015-03-11","2015-03-11",0,0,0,30,120000,"2015-03-01",null,{"$f":"IF(BASE!G323>TODAY(),\"A faire\",IF(BASE!G323>=DATE(YEAR(TODAY()),MONTH(TODAY())-1,DAY(TODAY())),\"Retard\",\"Retard de plus d'un mois\"))","v":"Retard"},"EST-DR-AFC - OPE INT FCN PF"]
["EST-AFC","EST-DR-AFC","OPE INT FCN PF","CONTROLE TECHNIQUE",0,0,"2015-01-08","2015-01-08",0,0,0,15,0,"2015-03-01",null,{"$f":"IF(BASE!G232>TODAY(),\"A faire\",IF(BASE!G232>=DATE(YEAR(TODAY()),MONTH(TODAY())-1,DAY(TODAY())),\"Retard\",\"Retard de plus d'un mois\"))","v":"Retard de plus d'un mois"},"EST-DR-AFC - OPE INT FCN PF"]
["EST-AFC","EST-DR-AFC","OPE INT FCN PF","ENTRETIEN REVISION",210102,210102,"2014-11-01","2014-11-01",0,0,0,15,200000,"2015-03-01",null,{"$f":"IF(BASE!G167>TODAY(),\"A faire\",IF(BASE!G167>=DATE(YEAR(TODAY()),MONTH(TODAY())-1,DAY(TODAY())),\"Retard\",\"Retard de plus d'un mois\"))","v":"Retard de plus d'un mois"},"EST-DR-AFC - OPE INT FCN PF"]
["EST-AFC","EST-DR-AFC","OPE INT FCN PF","CTRL REMORQUE",0,0,"2014-11-12","2014-12-12",0,0,0,15,0,"2015-03-01",null,{"$f":"IF(BASE!G176>TODAY(),\"A faire\",IF(BASE!G176>=DATE(YEAR(TODAY()),MONTH(TODAY())-1,DAY(TODAY())),\"Retard\",\"Retard de plus d'un mois\"))","v":"Retard de plus d'un mois"},"EST-DR-AFC - OPE INT FCN PF"]
["EST-AFC","EST-DR-AFC","OPE INT FCN PF","CTRL REMORQUE",0,0,"2015-02-28","2015-03-28",0,0,0,15,0,"2015-03-01",null,{"$f":"IF(BASE!G290>TODAY(),\"A faire\",IF(BASE!G290>=DATE(YEAR(TODAY()),MONTH(TODAY())-1,DAY(TODAY())),\"Retard\",\"Retard de plus d'un mois\"))","v":"Retard de plus d'un mois"},"EST-DR-AFC - OPE INT FCN PF"]
["EST-AFC","EST-DR-AFC","OPE INT FCN PF","CONTROLE POLLUTION",0,0,"2014-11-15","2014-11-15",0,0,0,15,0,"2015-03-01","2014-12-19",{"$f":"IF(BASE!G179>TODAY(),\"A faire\",IF(BASE!G179>=DATE(YEAR(TODAY()),MONTH(TODAY())-1,DAY(TODAY())),\"Retard\",\"Retard de plus d'un mois\"))","v":"Retard de plus d'un mois"},{"$f":"CONCATENATE(B130,\" - \",C130)","v":"EST-DR-AFC - OPE INT FCN PF"}]
["EST-AFC","EST-DR-AFC","OPE INT FCN PF","CONTROLE POLLUTION",0,0,"2015-01-27","2015-01-27",0,0,0,15,0,"2015-03-01",null,{"$f":"IF(BASE!G244>TODAY(),\"A faire\",IF(BASE!G244>=DATE(YEAR(TODAY()),MONTH(TODAY())-1,DAY(TODAY())),\"Retard\",\"Retard de plus d'un mois\"))","v":"Retard de plus d'un mois"},"EST-DR-AFC - OPE INT FCN PF"]
["EST-AFC","EST-DR-AFC","OPE INT FCN PF","ENTRETIEN REVISION",59879,59879,"2015-03-12","2015-03-12",0,0,0,30,40000,"2015-03-01",null,{"$f":"IF(BASE!G324>TODAY(),\"A faire\",IF(BASE!G324>=DATE(YEAR(TODAY()),MONTH(TODAY())-1,DAY(TODAY())),\"Retard\",\"Retard de plus d'un mois\"))","v":"Retard"},"EST-DR-AFC - OPE INT FCN PF"]
["EST-AFC","EST-DR-AFC","OPE INT FCN PF","ENTRETIEN REVISION",89892,89892,"2013-11-30","2013-11-30",0,0,0,15,60000,"2015-03-01","FAIT EN NOV 2013 ?",{"$f":"IF(BASE!G54>TODAY(),\"A faire\",IF(BASE!G54>=DATE(YEAR(TODAY()),MONTH(TODAY())-1,DAY(TODAY())),\"Retard\",\"Retard de plus d'un mois\"))","v":"Retard"},"EST-DR-AFC - OPE INT FCN PF"]
["EST-AFC","EST-DR-AFC","OPE INT FCN PF","CONTROLE TECHNIQUE",0,0,"2015-01-21","2015-01-21",0,0,0,15,0,"2015-03-01","2015-01-20",{"$f":"IF(BASE!G240>TODAY(),\"A faire\",IF(BASE!G240>=DATE(YEAR(TODAY()),MONTH(TODAY())-1,DAY(TODAY())),\"Retard\",\"Retard de plus d'un mois\"))","v":"Retard de plus d'un mois"},"EST-DR-AFC - OPE INT FCN PF"]
["EST-AFC","EST-DR-AFC","OPE INT FCN PF","ENTRETIEN REVISION",109488,109488,"2014-09-01","2014-09-01",0,0,0,15,80000,"2015-03-01","2014-09-04",{"$f":"IF(BASE!G106>TODAY(),\"A faire\",IF(BASE!G106>=DATE(YEAR(TODAY()),MONTH(TODAY())-1,DAY(TODAY())),\"Retard\",\"Retard de plus d'un mois\"))","v":"Retard de plus d'un mois"},"EST-DR-AFC - OPE INT FCN PF"]
["EST-AFC","EST-DR-AFC","OPE INT FCN PF","ENTRETIEN REVISION",47520,47520,"2014-12-06","2014-12-06",0,0,0,15,30000,"2015-03-01","2014-12-19",{"$f":"IF(BASE!G208>TODAY(),\"A faire\",IF(BASE!G208>=DATE(YEAR(TODAY()),MONTH(TODAY())-1,DAY(TODAY())),\"Retard\",\"Retard de plus d'un mois\"))","v":"Retard de plus d'un mois"},"EST-DR-AFC - OPE INT FCN PF"]
["EST-AFC","EST-DR-AFC","OPE INT FCN PF","ENTRETIEN ANNUEL PORTE-ECHELLE",0,0,"2014-09-18","2014-09-18",0,0,0,15,0,"2015-03-01",null,{"$f":"IF(BASE!G129>TODAY(),\"A faire\",IF(BASE!G129>=DATE(YEAR(TODAY()),MONTH(TODAY())-1,DAY(TODAY())),\"Retard\",\"Retard de plus d'un mois\"))","v":"Retard de plus d'un mois"},"EST-DR-AFC - OPE INT FCN PF"]
["EST-AFC","EST-DR-AFC","OPE INT JURA PF","CTRL REMORQUE",0,0,"2014-09-06","2014-10-06",0,0,0,15,0,"2015-03-01",null,{"$f":"IF(BASE!G117>TODAY(),\"A faire\",IF(BASE!G117>=DATE(YEAR(TODAY()),MONTH(TODAY())-1,DAY(TODAY())),\"Retard\",\"Retard de plus d'un mois\"))","v":"Retard de plus d'un mois"},"EST-DR-AFC - OPE INT JURA PF"]
["EST-AFC","EST-DR-AFC","OPE INT JURA PF","CTRL REMORQUE",0,0,"2015-02-18","2015-03-18",0,0,0,15,0,"2015-03-01",null,{"$f":"IF(BASE!G274>TODAY(),\"A faire\",IF(BASE!G274>=DATE(YEAR(TODAY()),MONTH(TODAY())-1,DAY(TODAY())),\"Retard\",\"Retard de plus d'un mois\"))","v":"Retard de plus d'un mois"},"EST-DR-AFC - OPE INT JURA PF"]
["EST-AFC","EST-DR-AFC","OPE INT JURA PF","ENTRETIEN REVISION",186174,186174,"2015-02-23","2015-02-23",0,0,0,15,105000,"2015-03-01","2015-02-13",{"$f":"IF(BASE!G281>TODAY(),\"A faire\",IF(BASE!G281>=DATE(YEAR(TODAY()),MONTH(TODAY())-1,DAY(TODAY())),\"Retard\",\"Retard de plus d'un mois\"))","v":"Retard de plus d'un mois"},"EST-DR-AFC - OPE INT JURA PF"]
["EST-AFC","EST-DR-AFC","OPE INT JURA PF","ENTRETIEN REVISION",133468,133468,"2015-03-31","2015-03-31",0,0,0,"N/A",120000,"2015-03-01",null,{"$f":"IF(BASE!G354>TODAY(),\"A faire\",IF(BASE!G354>=DATE(YEAR(TODAY()),MONTH(TODAY())-1,DAY(TODAY())),\"Retard\",\"Retard de plus d'un mois\"))","v":"Retard"},"EST-DR-AFC - OPE INT JURA PF"]
["EST-AFC","EST-DR-AFC","OPE INT JURA PF","CONTROLE POLLUTION",0,0,"2014-08-06","2014-08-06",0,0,0,15,0,"2015-03-01",null,{"$f":"IF(BASE!G91>TODAY(),\"A faire\",IF(BASE!G91>=DATE(YEAR(TODAY()),MONTH(TODAY())-1,DAY(TODAY())),\"Retard\",\"Retard de plus d'un mois\"))","v":"Retard de plus d'un mois"},"EST-DR-AFC - OPE INT JURA PF"]
["EST-AFC","EST-DR-AFC","OPE INT JURA PF","ENTRETIEN REVISION",213585,213585,"2014-09-25","2014-09-25",0,0,0,15,105000,"2015-03-01",null,{"$f":"IF(BASE!G135>TODAY(),\"A faire\",IF(BASE!G135>=DATE(YEAR(TODAY()),MONTH(TODAY())-1,DAY(TODAY())),\"Retard\",\"Retard de plus d'un mois\"))","v":"Retard de plus d'un mois"},"EST-DR-AFC - OPE INT JURA PF"]
["EST-AFC","EST-DR-AFC","OPE INT JURA PF","CTRL REMORQUE",0,0,"2013-10-11","2013-11-11",0,0,0,15,0,"2015-03-01",{"$f":"VLOOKUP(#REF!,Feuil8!A:D,2,FALSE)","v":{"$error":"#REF!"}},{"$f":"IF(BASE!G44>TODAY(),\"A faire\",IF(BASE!G44>=DATE(YEAR(TODAY()),MONTH(TODAY())-1,DAY(TODAY())),\"Retard\",\"Retard de plus d'un mois\"))","v":"Retard de plus d'un mois"},"EST-DR-AFC - OPE INT JURA PF"]
["EST-AFC","EST-DR-AFC","OPE INT JURA PF","CONTROLE POLLUTION",0,0,"2014-04-24","2014-04-24",0,0,0,15,0,"2015-03-01",null,{"$f":"IF(BASE!G76>TODAY(),\"A faire\",IF(BASE!G76>=DATE(YEAR(TODAY()),MONTH(TODAY())-1,DAY(TODAY())),\"Retard\",\"Retard de plus d'un mois\"))","v":"Retard de plus d'un mois"},"EST-DR-AFC - OPE INT JURA PF"]
["EST-AFC","EST-DR-AFC","OPE INT JURA PF","ENTRETIEN REVISION",179638,179638,"2014-11-06","2014-11-06",0,0,0,15,120000,"2015-03-01",null,{"$f":"IF(BASE!G175>TODAY(),\"A faire\",IF(BASE!G175>=DATE(YEAR(TODAY()),MONTH(TODAY())-1,DAY(TODAY())),\"Retard\",\"Retard de plus d'un mois\"))","v":"Retard de plus d'un mois"},"EST-DR-AFC - OPE INT JURA PF"]
["EST-AFC","EST-DR-AFC","OPE INT JURA PF","CONTROLE TECHNIQUE",0,0,"2014-10-24","2014-10-24",0,0,0,15,0,"2015-03-01","2014-12-18",{"$f":"IF(BASE!G163>TODAY(),\"A faire\",IF(BASE!G163>=DATE(YEAR(TODAY()),MONTH(TODAY())-1,DAY(TODAY())),\"Retard\",\"Retard de plus d'un mois\"))","v":"Retard de plus d'un mois"},"EST-DR-AFC - OPE INT JURA PF"]
["EST-AFC","EST-DR-AFC","OPE INT JURA PF","CONTROLE POLLUTION",0,0,"2014-10-16","2014-10-16",0,0,0,15,0,"2015-03-01",null,{"$f":"IF(BASE!G156>TODAY(),\"A faire\",IF(BASE!G156>=DATE(YEAR(TODAY()),MONTH(TODAY())-1,DAY(TODAY())),\"Retard\",\"Retard de plus d'un mois\"))","v":"Retard de plus d'un mois"},"EST-DR-AFC - OPE INT JURA PF"]
["EST-AFC","EST-DR-AFC","OPE INT JURA PF","CONTROLE TECHNIQUE",0,0,"2013-10-16","2013-10-16",0,0,0,15,0,"2015-03-01",null,{"$f":"IF(BASE!G46>TODAY(),\"A faire\",IF(BASE!G46>=DATE(YEAR(TODAY()),MONTH(TODAY())-1,DAY(TODAY())),\"Retard\",\"Retard de plus d'un mois\"))","v":"Retard de plus d'un mois"},"EST-DR-AFC - OPE INT JURA PF"]
["EST-AFC","EST-DR-AFC","OPE INT JURA PF","ENTRETIEN REVISION",176788,176788,"2015-02-28","2015-02-28",0,0,0,15,150000,"2015-03-01",null,{"$f":"IF(BASE!G297>TODAY(),\"A faire\",IF(BASE!G297>=DATE(YEAR(TODAY()),MONTH(TODAY())-1,DAY(TODAY())),\"Retard\",\"Retard de plus d'un mois\"))","v":"Retard de plus d'un mois"},"EST-DR-AFC - OPE INT JURA PF"]
["EST-AFC","EST-DR-AFC","OPE INT JURA PF","ENTRETIEN REVISION",180919,180919,"2015-02-04","2015-02-04",0,0,0,15,150000,"2015-03-01","2015-01-26",{"$f":"IF(BASE!G257>TODAY(),\"A faire\",IF(BASE!G257>=DATE(YEAR(TODAY()),MONTH(TODAY())-1,DAY(TODAY())),\"Retard\",\"Retard de plus d'un mois\"))","v":"Retard de plus d'un mois"},"EST-DR-AFC - OPE INT JURA PF"]
["EST-AFC","EST-DR-AFC","OPE INT JURA PF","CONTROLE POLLUTION",0,0,"2015-01-29","2015-01-29",0,0,0,15,0,"2015-03-01","2015-01-15",{"$f":"IF(BASE!G245>TODAY(),\"A faire\",IF(BASE!G245>=DATE(YEAR(TODAY()),MONTH(TODAY())-1,DAY(TODAY())),\"Retard\",\"Retard de plus d'un mois\"))","v":"Retard de plus d'un mois"},"EST-DR-AFC - OPE INT JURA PF"]
["EST-AFC","EST-DR-AFC","OPE INT JURA PF","ENTRETIEN REVISION",80827,80827,"2015-03-07","2015-03-07",0,0,0,15,60000,"2015-03-01",null,{"$f":"IF(BASE!G320>TODAY(),\"A faire\",IF(BASE!G320>=DATE(YEAR(TODAY()),MONTH(TODAY())-1,DAY(TODAY())),\"Retard\",\"Retard de plus d'un mois\"))","v":"Retard de plus d'un mois"},"EST-DR-AFC - OPE INT JURA PF"]
["EST-AFC","EST-DR-AFC","OPE INT JURA PF","ENTRETIEN REVISION",109579,109579,"2013-09-20","2013-09-20",0,0,0,15,90000,"2015-03-01",null,{"$f":"IF(BASE!G37>TODAY(),\"A faire\",IF(BASE!G37>=DATE(YEAR(TODAY()),MONTH(TODAY())-1,DAY(TODAY())),\"Retard\",\"Retard de plus d'un mois\"))","v":"Retard de plus d'un mois"},"EST-DR-AFC - OPE INT JURA PF"]
["EST-AFC","EST-DR-AFC","OPE INT JURA PF","ENTRETIEN REVISION",132121,132121,"2015-02-10","2015-02-10",0,0,0,15,90000,"2015-03-01","2014-02-10",{"$f":"IF(BASE!G269>TODAY(),\"A faire\",IF(BASE!G269>=DATE(YEAR(TODAY()),MONTH(TODAY())-1,DAY(TODAY())),\"Retard\",\"Retard de plus d'un mois\"))","v":"Retard de plus d'un mois"},"EST-DR-AFC - OPE INT JURA PF"]
["EST-AFC","EST-DR-AFC","OPE INT JURA PF","ENTRETIEN REVISION",75597,75597,"2015-02-09","2015-02-09",0,0,0,15,60000,"2015-03-01",null,{"$f":"IF(BASE!G267>TODAY(),\"A faire\",IF(BASE!G267>=DATE(YEAR(TODAY()),MONTH(TODAY())-1,DAY(TODAY())),\"Retard\",\"Retard de plus d'un mois\"))","v":"Retard de plus d'un mois"},"EST-DR-AFC - OPE INT JURA PF"]
["EST-AFC","EST-DR-AFC","OPE INT JURA PF","ENTRETIEN ANNUEL PORTE-ECHELLE",0,0,"2012-09-13","2012-09-13",0,0,0,15,0,"2015-03-01",null,{"$f":"IF(BASE!G28>TODAY(),\"A faire\",IF(BASE!G28>=DATE(YEAR(TODAY()),MONTH(TODAY())-1,DAY(TODAY())),\"Retard\",\"Retard de plus d'un mois\"))","v":"Retard"},"EST-DR-AFC - OPE INT JURA PF"]
["EST-AFC","EST-DR-AFC","OPE INT JURA PF","ENTRETIEN ANNUEL PORTE-ECHELLE",0,0,"2013-09-21","2013-09-21",0,0,0,15,0,"2015-03-01",null,{"$f":"IF(BASE!G38>TODAY(),\"A faire\",IF(BASE!G38>=DATE(YEAR(TODAY()),MONTH(TODAY())-1,DAY(TODAY())),\"Retard\",\"Retard de plus d'un mois\"))","v":"Retard de plus d'un mois"},"EST-DR-AFC - OPE INT JURA PF"]
["EST-AFC","EST-DR-AFC","OPE INT JURA PF","ENTRETIEN ANNUEL PORTE-ECHELLE",0,0,"2014-11-28","2014-11-28",0,0,0,15,0,"2015-03-01",null,{"$f":"IF(BASE!G194>TODAY(),\"A faire\",IF(BASE!G194>=DATE(YEAR(TODAY()),MONTH(TODAY())-1,DAY(TODAY())),\"Retard\",\"Retard de plus d'un mois\"))","v":"Retard de plus d'un mois"},"EST-DR-AFC - OPE INT JURA PF"]
["EST-AFC","EST-DR-AFC","OPE TST PF ALS","CTRL REMORQUE",0,0,"2011-06-17","2011-07-17",0,0,0,15,0,"2015-03-01",null,{"$f":"IF(BASE!G31>TODAY(),\"A faire\",IF(BASE!G31>=DATE(YEAR(TODAY()),MONTH(TODAY())-1,DAY(TODAY())),\"Retard\",\"Retard de plus d'un mois\"))","v":"Retard"},"EST-DR-AFC - OPE TST PF ALS"]
["EST-AFC","EST-DR-AFC","OPE TST PF ALS","COURROIE DE DISTRIBUTION",237800,242800,"2014-08-21","2014-09-21",0,0,0,15,120000,"2015-03-01",null,{"$f":"IF(BASE!G74>TODAY(),\"A faire\",IF(BASE!G74>=DATE(YEAR(TODAY()),MONTH(TODAY())-1,DAY(TODAY())),\"Retard\",\"Retard de plus d'un mois\"))","v":"Retard de plus d'un mois"},"EST-DR-AFC - OPE TST PF ALS"]
["EST-AFC","EST-DR-AFC","OPE TST PF ALS","ENTRETIEN REVISION",232025,232025,"2015-02-17","2015-02-17",0,0,0,15,120000,"2015-03-01",null,{"$f":"IF(BASE!G75>TODAY(),\"A faire\",IF(BASE!G75>=DATE(YEAR(TODAY()),MONTH(TODAY())-1,DAY(TODAY())),\"Retard\",\"Retard de plus d'un mois\"))","v":"Retard"},"EST-DR-AFC - OPE TST PF ALS"]
["EST-AFC","EST-DR-AFC","OPE TST PF ALS","CTRL REMORQUE",0,0,"1994-12-22","1995-01-22",0,0,0,15,0,"2015-03-01",null,{"$f":"IF(BASE!G77>TODAY(),\"A faire\",IF(BASE!G77>=DATE(YEAR(TODAY()),MONTH(TODAY())-1,DAY(TODAY())),\"Retard\",\"Retard de plus d'un mois\"))","v":"Retard de plus d'un mois"},"EST-DR-AFC - OPE TST PF ALS"]
["EST-AFC","EST-DR-AFC","OPE TST PF ALS","CTRL REMORQUE",0,0,"2012-08-30","2012-09-30",0,0,0,15,0,"2015-03-01",null,{"$f":"IF(BASE!G81>TODAY(),\"A faire\",IF(BASE!G81>=DATE(YEAR(TODAY()),MONTH(TODAY())-1,DAY(TODAY())),\"Retard\",\"Retard de plus d'un mois\"))","v":"Retard de plus d'un mois"},"EST-DR-AFC - OPE TST PF ALS"]
["EST-AFC","EST-DR-AFC","OPE TST PF ALS","CTRL REMORQUE",0,0,"2014-04-24","2014-05-24",0,0,0,15,0,"2015-03-01",null,{"$f":"IF(BASE!G326>TODAY(),\"A faire\",IF(BASE!G326>=DATE(YEAR(TODAY()),MONTH(TODAY())-1,DAY(TODAY())),\"Retard\",\"Retard de plus d'un mois\"))","v":"Retard de plus d'un mois"},"EST-DR-AFC - OPE TST PF ALS"]
["EST-AFC","EST-DR-AFC","OPE TST PF FC","CTRL REMORQUE",0,0,"2014-05-03","2014-06-03",0,0,0,15,0,"2015-03-01",null,{"$f":"IF(BASE!G79>TODAY(),\"A faire\",IF(BASE!G79>=DATE(YEAR(TODAY()),MONTH(TODAY())-1,DAY(TODAY())),\"Retard\",\"Retard de plus d'un mois\"))","v":"Retard de plus d'un mois"},"EST-DR-AFC - OPE TST PF FC"]
["EST-AFC","EST-DR-AFC","OPE TST PF FC","CTRL REMORQUE",0,0,"2010-12-16","2011-01-16",0,0,0,15,0,"2015-03-01",null,{"$f":"IF(BASE!G8>TODAY(),\"A faire\",IF(BASE!G8>=DATE(YEAR(TODAY()),MONTH(TODAY())-1,DAY(TODAY())),\"Retard\",\"Retard de plus d'un mois\"))","v":"Retard de plus d'un mois"},"EST-DR-AFC - OPE TST PF FC"]
["EST-AFC","EST-DR-AFC","OPE TST PF FC","CONTROLE TECHNIQUE",0,0,"2014-01-19","2014-01-19",0,0,0,15,0,"2015-03-01","2014-02-03",{"$f":"IF(BASE!G58>TODAY(),\"A faire\",IF(BASE!G58>=DATE(YEAR(TODAY()),MONTH(TODAY())-1,DAY(TODAY())),\"Retard\",\"Retard de plus d'un mois\"))","v":"Retard de plus d'un mois"},"EST-DR-AFC - OPE TST PF FC"]
["EST-AFC","EST-DR-AFC","OPE TST PF FC","ENTRETIEN REVISION",152621,152621,"2014-07-11","2014-07-11",0,0,0,15,180000,"2015-03-01","2015-01-23",{"$f":"IF(BASE!G86>TODAY(),\"A faire\",IF(BASE!G86>=DATE(YEAR(TODAY()),MONTH(TODAY())-1,DAY(TODAY())),\"Retard\",\"Retard de plus d'un mois\"))","v":"Retard de plus d'un mois"},"EST-DR-AFC - OPE TST PF FC"]
["EST-AFC","EST-DR-AFC","OPE TST PF FC","CTRL REMORQUE",0,0,"2012-06-06","2012-07-06",0,0,0,15,0,"2015-03-01",null,{"$f":"IF(BASE!G13>TODAY(),\"A faire\",IF(BASE!G13>=DATE(YEAR(TODAY()),MONTH(TODAY())-1,DAY(TODAY())),\"Retard\",\"Retard de plus d'un mois\"))","v":"Retard de plus d'un mois"},"EST-DR-AFC - OPE TST PF FC"]
["EST-AFC","EST-DR-AFC","OPE TST PF FC","ENTRETIEN REVISION",167956,167956,"2014-12-06","2014-12-06",0,0,0,15,150000,"2015-03-01","2015-01-16",{"$f":"IF(BASE!G207>TODAY(),\"A faire\",IF(BASE!G207>=DATE(YEAR(TODAY()),MONTH(TODAY())-1,DAY(TODAY())),\"Retard\",\"Retard de plus d'un mois\"))","v":"Retard de plus d'un mois"},"EST-DR-AFC - OPE TST PF FC"]
["EST-AFC","EST-DR-AFC","OPE TST PF FC","CTRL REMORQUE",0,0,"2012-06-28","2012-07-28",0,0,0,15,0,"2015-03-01",null,{"$f":"IF(BASE!G14>TODAY(),\"A faire\",IF(BASE!G14>=DATE(YEAR(TODAY()),MONTH(TODAY())-1,DAY(TODAY())),\"Retard\",\"Retard de plus d'un mois\"))","v":"Retard de plus d'un mois"},"EST-DR-AFC - OPE TST PF FC"]
["EST-AFC","EST-DR-AFC","OPE TST PF FC","CTRL REMORQUE",0,0,"2015-02-07","2015-03-07",0,0,0,15,0,"2015-03-01",null,{"$f":"IF(BASE!G261>TODAY(),\"A faire\",IF(BASE!G261>=DATE(YEAR(TODAY()),MONTH(TODAY())-1,DAY(TODAY())),\"Retard\",\"Retard de plus d'un mois\"))","v":"Retard de plus d'un mois"},"EST-DR-AFC - OPE TST PF FC"]
["EST-AFC","EST-DR-AFC","OPE TST PF FC","CTRL REMORQUE",0,0,"2015-01-15","2015-02-15",0,0,0,15,0,"2015-03-01",null,{"$f":"IF(BASE!G235>TODAY(),\"A faire\",IF(BASE!G235>=DATE(YEAR(TODAY()),MONTH(TODAY())-1,DAY(TODAY())),\"Retard\",\"Retard de plus d'un mois\"))","v":"Retard de plus d'un mois"},"EST-DR-AFC - OPE TST PF FC"]
["EST-AFC","EST-DR-AFC","OPE TST PF FC","CTRL REMORQUE",0,0,"2012-10-14","2012-11-14",0,0,0,15,0,"2015-03-01",null,{"$f":"IF(BASE!G29>TODAY(),\"A faire\",IF(BASE!G29>=DATE(YEAR(TODAY()),MONTH(TODAY())-1,DAY(TODAY())),\"Retard\",\"Retard de plus d'un mois\"))","v":"Retard de plus d'un mois"},"EST-DR-AFC - OPE TST PF FC"]
["EST-AFC","EST-DR-AFC","OPE TST PF FC","CTRL REMORQUE",0,0,"2013-09-24","2013-10-24",0,0,0,15,0,"2015-03-01",null,{"$f":"IF(BASE!G41>TODAY(),\"A faire\",IF(BASE!G41>=DATE(YEAR(TODAY()),MONTH(TODAY())-1,DAY(TODAY())),\"Retard\",\"Retard de plus d'un mois\"))","v":"Retard de plus d'un mois"},"EST-DR-AFC - OPE TST PF FC"]
["EST-AFC","EST-DR-AFC","OPE TST PF FC","CTRL REMORQUE",0,0,"2012-04-18","2012-05-18",0,0,0,15,0,"2015-03-01",null,{"$f":"IF(BASE!G11>TODAY(),\"A faire\",IF(BASE!G11>=DATE(YEAR(TODAY()),MONTH(TODAY())-1,DAY(TODAY())),\"Retard\",\"Retard de plus d'un mois\"))","v":"Retard de plus d'un mois"},"EST-DR-AFC - OPE TST PF FC"]
["EST-AFC","EST-DR-AFC","OPE TST PF FC","COURROIE DE DISTRIBUTION",193400,198400,"2014-09-15","2014-10-15",0,0,0,15,120000,"2015-03-01",null,{"$f":"IF(BASE!G119>TODAY(),\"A faire\",IF(BASE!G119>=DATE(YEAR(TODAY()),MONTH(TODAY())-1,DAY(TODAY())),\"Retard\",\"Retard de plus d'un mois\"))","v":"Retard de plus d'un mois"},"EST-DR-AFC - OPE TST PF FC"]
["EST-AFC","EST-DR-AFC","OPE TST PF FC","ENTRETIEN REVISION",162240,162240,"2014-12-08","2014-12-08",0,0,0,15,90000,"2015-03-01","2015-01-08",{"$f":"IF(BASE!G210>TODAY(),\"A faire\",IF(BASE!G210>=DATE(YEAR(TODAY()),MONTH(TODAY())-1,DAY(TODAY())),\"Retard\",\"Retard de plus d'un mois\"))","v":"Retard de plus d'un mois"},"EST-DR-AFC - OPE TST PF FC"]
["EST-AFC","EST-DR-AFC","OPE TST PF FC","CTRL REMORQUE",0,0,"2012-04-28","2012-05-28",0,0,0,15,0,"2015-03-01",null,{"$f":"IF(BASE!G12>TODAY(),\"A faire\",IF(BASE!G12>=DATE(YEAR(TODAY()),MONTH(TODAY())-1,DAY(TODAY())),\"Retard\",\"Retard de plus d'un mois\"))","v":"Retard de plus d'un mois"},"EST-DR-AFC - OPE TST PF FC"]
["EST-AFC","EST-DR-AFC","OPE TST PF FC","ENTRETIEN REVISION",209975,209975,"2015-02-20","2015-02-20",0,0,0,15,135000,"2015-03-01",null,{"$f":"IF(BASE!G278>TODAY(),\"A faire\",IF(BASE!G278>=DATE(YEAR(TODAY()),MONTH(TODAY())-1,DAY(TODAY())),\"Retard\",\"Retard de plus d'un mois\"))","v":"Retard de plus d'un mois"},"EST-DR-AFC - OPE TST PF FC"]
["EST-AFC","EST-DR-AFC","OPE TST PF FC","CTRL REMORQUE",0,0,"2015-01-31","2015-02-28",0,0,0,15,0,"2015-03-01",null,{"$f":"IF(BASE!G246>TODAY(),\"A faire\",IF(BASE!G246>=DATE(YEAR(TODAY()),MONTH(TODAY())-1,DAY(TODAY())),\"Retard\",\"Retard de plus d'un mois\"))","v":"Retard de plus d'un mois"},"EST-DR-AFC - OPE TST PF FC"]
["EST-AFC","EST-DR-AFC","OPE TST PF FC","ENTRETIEN REVISION",107797,107797,"2014-11-01","2014-11-01",0,0,0,15,80000,"2015-03-01",null,{"$f":"IF(BASE!G169>TODAY(),\"A faire\",IF(BASE!G169>=DATE(YEAR(TODAY()),MONTH(TODAY())-1,DAY(TODAY())),\"Retard\",\"Retard de plus d'un mois\"))","v":"Retard de plus d'un mois"},"EST-DR-AFC - OPE TST PF FC"]
["EST-AFC","EST-DR-AFC","OPE TST PF FC","CONTROLE TECHNIQUE",0,0,"2014-12-21","2014-12-21",0,0,0,15,0,"2015-03-01","2015-01-27",{"$f":"IF(BASE!G220>TODAY(),\"A faire\",IF(BASE!G220>=DATE(YEAR(TODAY()),MONTH(TODAY())-1,DAY(TODAY())),\"Retard\",\"Retard de plus d'un mois\"))","v":"Retard de plus d'un mois"},"EST-DR-AFC - OPE TST PF FC"]
["EST-AFC","EST-DR-AFC","OPE TST PF FC","CTRL REMORQUE",0,0,"2012-07-06","2012-08-06",0,0,0,15,0,"2015-03-01",null,{"$f":"IF(BASE!G16>TODAY(),\"A faire\",IF(BASE!G16>=DATE(YEAR(TODAY()),MONTH(TODAY())-1,DAY(TODAY())),\"Retard\",\"Retard de plus d'un mois\"))","v":"Retard de plus d'un mois"},"EST-DR-AFC - OPE TST PF FC"]
["EST-AFC","EST-DR-AFC","RCI RMM QUALITE PF","ENTRETIEN REVISION",124571,124571,"2015-01-05","2015-01-05",0,0,0,15,120000,"2015-03-01","2015-02-18",{"$f":"IF(BASE!G230>TODAY(),\"A faire\",IF(BASE!G230>=DATE(YEAR(TODAY()),MONTH(TODAY())-1,DAY(TODAY())),\"Retard\",\"Retard de plus d'un mois\"))","v":"Retard de plus d'un mois"},"EST-DR-AFC - RCI RMM QUALITE PF"]
["EST-AFC","EST-DR-AFC","RCI RMM QUALITE PF","CONTROLE POLLUTION",0,0,"2014-11-26","2014-11-26",0,0,0,15,0,"2015-03-01","2014-11-19",{"$f":"IF(BASE!G192>TODAY(),\"A faire\",IF(BASE!G192>=DATE(YEAR(TODAY()),MONTH(TODAY())-1,DAY(TODAY())),\"Retard\",\"Retard de plus d'un mois\"))","v":"Retard"},"EST-DR-AFC - RCI RMM QUALITE PF"]
["EST-AFC","EST-DR-AFC","RCI RMM QUALITE PF","ENTRETIEN REVISION",129830,129830,"2015-03-07","2015-03-07",0,0,0,15,120000,"2015-03-01",null,{"$f":"IF(BASE!G313>TODAY(),\"A faire\",IF(BASE!G313>=DATE(YEAR(TODAY()),MONTH(TODAY())-1,DAY(TODAY())),\"Retard\",\"Retard de plus d'un mois\"))","v":"Retard de plus d'un mois"},"EST-DR-AFC - RCI RMM QUALITE PF"]
["EST-AFC","EST-DR-AFC","RCI RMM QUALITE PF","CONTROLE TECHNIQUE",0,0,"2015-03-21","2015-03-21",0,0,0,30,0,"2015-03-01",null,{"$f":"IF(BASE!G124>TODAY(),\"A faire\",IF(BASE!G124>=DATE(YEAR(TODAY()),MONTH(TODAY())-1,DAY(TODAY())),\"Retard\",\"Retard de plus d'un mois\"))","v":"Retard"},"EST-DR-AFC - RCI RMM QUALITE PF"]
["EST-AFC","EST-DR-AFC","RCI RMM QUALITE PF","CONTROLE POLLUTION",0,0,"2014-01-03","2014-01-03",0,0,0,15,0,"2015-03-01","2014-03-03",{"$f":"IF(BASE!G56>TODAY(),\"A faire\",IF(BASE!G56>=DATE(YEAR(TODAY()),MONTH(TODAY())-1,DAY(TODAY())),\"Retard\",\"Retard de plus d'un mois\"))","v":"Retard de plus d'un mois"},"EST-DR-AFC - RCI RMM QUALITE PF"]
["EST-AFC","EST-DR-AFC","RCI RMM QUALITE PF","CONTROLE TECHNIQUE",0,0,"2015-01-03","2015-01-03",0,0,0,15,0,"2015-03-01",null,{"$f":"IF(BASE!G228>TODAY(),\"A faire\",IF(BASE!G228>=DATE(YEAR(TODAY()),MONTH(TODAY())-1,DAY(TODAY())),\"Retard\",\"Retard de plus d'un mois\"))","v":"Retard de plus d'un mois"},"EST-DR-AFC - RCI RMM QUALITE PF"]
["EST-AFC","EST-DR-AFC","RCI RMM QUALITE PF","ENTRETIEN REVISION",120569,120569,"2015-03-05","2015-03-05",0,0,0,15,150000,"2015-03-01",null,{"$f":"IF(BASE!G153>TODAY(),\"A faire\",IF(BASE!G153>=DATE(YEAR(TODAY()),MONTH(TODAY())-1,DAY(TODAY())),\"Retard\",\"Retard de plus d'un mois\"))","v":"Retard"},"EST-DR-AFC - RCI RMM QUALITE PF"]
["EST-AFC","EST-DR-AFC","RCI RMM QUALITE PF","CONTROLE POLLUTION",0,0,"2014-09-05","2014-09-05",0,0,0,15,0,"2015-03-01","2014-09-30",{"$f":"IF(BASE!G116>TODAY(),\"A faire\",IF(BASE!G116>=DATE(YEAR(TODAY()),MONTH(TODAY())-1,DAY(TODAY())),\"Retard\",\"Retard de plus d'un mois\"))","v":"Retard"},"EST-DR-AFC - RCI RMM QUALITE PF"]
["EST-AFC","EST-DR-AFC","RCI RMM QUALITE PF","COURROIE DE DISTRIBUTION",120000,125000,"2014-10-08","2014-11-08",0,0,0,15,0,"2015-03-01","2014-11-20",{"$f":"IF(BASE!G154>TODAY(),\"A faire\",IF(BASE!G154>=DATE(YEAR(TODAY()),MONTH(TODAY())-1,DAY(TODAY())),\"Retard\",\"Retard de plus d'un mois\"))","v":"Retard de plus d'un mois"},{"$f":"CONCATENATE(B194,\" - \",C194)","v":"EST-DR-AFC - RCI RMM QUALITE PF"}]
["EST-AFC","EST-DR-AFC","RCI RMM QUALITE PF","ENTRETIEN REVISION",50525,50525,"2013-11-30","2013-11-30",0,0,0,15,30000,"2015-03-01","2014-11-20",{"$f":"IF(BASE!G49>TODAY(),\"A faire\",IF(BASE!G49>=DATE(YEAR(TODAY()),MONTH(TODAY())-1,DAY(TODAY())),\"Retard\",\"Retard de plus d'un mois\"))","v":"Retard de plus d'un mois"},"EST-DR-AFC - RCI RMM QUALITE PF"]
["EST-AFC","EST-DR-AFC","SRC ENC RELATION CLT","ENTRETIEN REVISION",91200,91200,"2015-03-21","2015-03-21",0,0,0,30,60000,"2015-03-01",null,{"$f":"IF(BASE!G339>TODAY(),\"A faire\",IF(BASE!G339>=DATE(YEAR(TODAY()),MONTH(TODAY())-1,DAY(TODAY())),\"Retard\",\"Retard de plus d'un mois\"))","v":"Retard de plus d'un mois"},"EST-DR-AFC - SRC ENC RELATION CLT"]
["EST-AFC","EST-DR-AFC","SRC MAA ACM FC PF","ENTRETIEN ANNUEL PORTE-ECHELLE",0,0,"2004-12-02","2004-12-02",0,0,0,15,0,"2015-03-01",null,{"$f":"IF(BASE!G45>TODAY(),\"A faire\",IF(BASE!G45>=DATE(YEAR(TODAY()),MONTH(TODAY())-1,DAY(TODAY())),\"Retard\",\"Retard de plus d'un mois\"))","v":"Retard de plus d'un mois"},"EST-DR-AFC - SRC MAA ACM FC PF"]
["EST-AFC","EST-DR-AFC","SRC MAA ACM FC PF","COURROIE DE DISTRIBUTION",120000,125000,"2014-08-14","2014-09-14",0,0,0,15,0,"2015-03-01","2014-09-01",{"$f":"IF(BASE!G102>TODAY(),\"A faire\",IF(BASE!G102>=DATE(YEAR(TODAY()),MONTH(TODAY())-1,DAY(TODAY())),\"Retard\",\"Retard de plus d'un mois\"))","v":"Retard de plus d'un mois"},"EST-DR-AFC - SRC MAA ACM FC PF"]
["EST-AFC","EST-DR-AFC","SRC MAA ACM FC PF","ENTRETIEN REVISION",60669,60669,"2014-12-21","2014-12-21",0,0,0,15,40000,"2015-03-01","2015-01-02",{"$f":"IF(BASE!G221>TODAY(),\"A faire\",IF(BASE!G221>=DATE(YEAR(TODAY()),MONTH(TODAY())-1,DAY(TODAY())),\"Retard\",\"Retard de plus d'un mois\"))","v":"Retard de plus d'un mois"},"EST-DR-AFC - SRC MAA ACM FC PF"]
["EST-AFC","EST-DR-AFC","SRC MAA ACM FC PF","ENTRETIEN REVISION",60663,60663,"2015-02-25","2015-02-25",0,0,0,15,30000,"2015-03-01","2014-12-03",{"$f":"IF(BASE!G285>TODAY(),\"A faire\",IF(BASE!G285>=DATE(YEAR(TODAY()),MONTH(TODAY())-1,DAY(TODAY())),\"Retard\",\"Retard de plus d'un mois\"))","v":"Retard"},"EST-DR-AFC - SRC MAA ACM FC PF"]
["EST-AFC","EST-DR-AFC","TER DTL COLLOC 39/70","CONTROLE POLLUTION",0,0,"2014-10-21","2014-10-21",0,0,0,15,0,"2015-03-01","2014-10-10",{"$f":"IF(BASE!G160>TODAY(),\"A faire\",IF(BASE!G160>=DATE(YEAR(TODAY()),MONTH(TODAY())-1,DAY(TODAY())),\"Retard\",\"Retard de plus d'un mois\"))","v":"Retard de plus d'un mois"},"EST-DR-AFC - TER DTL COLLOC 39/70"]
["EST-AFC","EST-DR-AFC","TER DTL COLLOC 67/68","ENTRETIEN REVISION",30000,30000,"2014-06-27","2014-06-27",null,0,0,15,0,"2015-03-01",null,{"$f":"IF(BASE!G327>TODAY(),\"A faire\",IF(BASE!G327>=DATE(YEAR(TODAY()),MONTH(TODAY())-1,DAY(TODAY())),\"Retard\",\"Retard de plus d'un mois\"))","v":"Retard de plus d'un mois"},"EST-DR-AFC - TER DTL COLLOC 67/68"]
["EST-AFC","EST-DRG","ETAT_MAJOR_URG_AFC","CONTROLE POLLUTION",0,0,"2014-09-05","2014-09-05",0,0,0,15,0,"2015-03-01",null,{"$f":"IF(BASE!G115>TODAY(),\"A faire\",IF(BASE!G115>=DATE(YEAR(TODAY()),MONTH(TODAY())-1,DAY(TODAY())),\"Retard\",\"Retard de plus d'un mois\"))","v":"Retard de plus d'un mois"},"EST-DRG - ETAT_MAJOR_URG_AFC"]
["EST-AFC","EST-DRG","ETAT_MAJOR_URG_AFC","ENTRETIEN REVISION",191222,191222,"2014-07-12","2014-07-12",0,0,0,15,210000,"2015-03-01",null,{"$f":"IF(BASE!G89>TODAY(),\"A faire\",IF(BASE!G89>=DATE(YEAR(TODAY()),MONTH(TODAY())-1,DAY(TODAY())),\"Retard\",\"Retard de plus d'un mois\"))","v":"Retard de plus d'un mois"},"EST-DRG - ETAT_MAJOR_URG_AFC"]
["EST-AFC","EST-DRG","EXPLOITATION GAZ ALSACE","CTRL REMORQUE",0,0,"2012-01-25","2012-02-25",0,0,0,15,0,"2015-03-01",null,{"$f":"IF(BASE!G3>TODAY(),\"A faire\",IF(BASE!G3>=DATE(YEAR(TODAY()),MONTH(TODAY())-1,DAY(TODAY())),\"Retard\",\"Retard de plus d'un mois\"))","v":"Retard de plus d'un mois"},"EST-DRG - EXPLOITATION GAZ ALSACE"]
["EST-AFC","EST-DRG","EXPLOITATION GAZ ALSACE","CTRL REMORQUE",0,0,"2015-01-20","2015-02-20",0,0,0,15,0,"2015-03-01",null,{"$f":"IF(BASE!G10>TODAY(),\"A faire\",IF(BASE!G10>=DATE(YEAR(TODAY()),MONTH(TODAY())-1,DAY(TODAY())),\"Retard\",\"Retard de plus d'un mois\"))","v":"Retard"},"EST-DRG - EXPLOITATION GAZ ALSACE"]
["EST-AFC","EST-DRG","EXPLOITATION GAZ ALSACE","COURROIE DE DISTRIBUTION",120000,125000,"2013-11-14","2013-12-14",0,0,0,15,0,"2015-03-01",null,{"$f":"IF(BASE!G20>TODAY(),\"A faire\",IF(BASE!G20>=DATE(YEAR(TODAY()),MONTH(TODAY())-1,DAY(TODAY())),\"Retard\",\"Retard de plus d'un mois\"))","v":"Retard"},"EST-DRG - EXPLOITATION GAZ ALSACE"]
["EST-AFC","EST-DRG","EXPLOITATION GAZ ALSACE","COURROIE DE DISTRIBUTION",120000,125000,"2013-08-19","2013-09-19",0,0,0,15,0,"2015-03-01",null,{"$f":"IF(BASE!G59>TODAY(),\"A faire\",IF(BASE!G59>=DATE(YEAR(TODAY()),MONTH(TODAY())-1,DAY(TODAY())),\"Retard\",\"Retard de plus d'un mois\"))","v":"Retard de plus d'un mois"},"EST-DRG - EXPLOITATION GAZ ALSACE"]
["EST-AFC","EST-DRG","EXPLOITATION GAZ ALSACE","ENTRETIEN REVISION",192115,192115,"2015-03-30","2015-03-30",0,0,0,"N/A",270000,"2015-03-01",null,{"$f":"IF(BASE!G61>TODAY(),\"A faire\",IF(BASE!G61>=DATE(YEAR(TODAY()),MONTH(TODAY())-1,DAY(TODAY())),\"Retard\",\"Retard de plus d'un mois\"))","v":"Retard"},"EST-DRG - EXPLOITATION GAZ ALSACE"]
["EST-AFC","EST-DRG","EXPLOITATION GAZ ALSACE","ENTRETIEN REVISION",84826,84826,"2015-02-20","2015-02-20",0,0,0,15,90000,"2015-03-01",null,{"$f":"IF(BASE!G82>TODAY(),\"A faire\",IF(BASE!G82>=DATE(YEAR(TODAY()),MONTH(TODAY())-1,DAY(TODAY())),\"Retard\",\"Retard de plus d'un mois\"))","v":"Retard de plus d'un mois"},"EST-DRG - EXPLOITATION GAZ ALSACE"]
["EST-AFC","EST-DRG","EXPLOITATION GAZ ALSACE","COURROIE DE DISTRIBUTION",120000,125000,"2011-07-18","2011-08-18",0,0,0,15,0,"2015-03-01",null,{"$f":"IF(BASE!G112>TODAY(),\"A faire\",IF(BASE!G112>=DATE(YEAR(TODAY()),MONTH(TODAY())-1,DAY(TODAY())),\"Retard\",\"Retard de plus d'un mois\"))","v":"Retard de plus d'un mois"},"EST-DRG - EXPLOITATION GAZ ALSACE"]
["EST-AFC","EST-DRG","EXPLOITATION GAZ ALSACE","CTRL REMORQUE",0,0,"1990-05-19","1990-06-19",0,0,0,15,0,"2015-03-01",null,{"$f":"IF(BASE!G141>TODAY(),\"A faire\",IF(BASE!G141>=DATE(YEAR(TODAY()),MONTH(TODAY())-1,DAY(TODAY())),\"Retard\",\"Retard de plus d'un mois\"))","v":"A faire"},"EST-DRG - EXPLOITATION GAZ ALSACE"]
["EST-AFC","EST-DRG","EXPLOITATION GAZ ALSACE","ENTRETIEN REVISION",0,0,"1990-05-19","1990-05-19",0,0,0,15,0,"2015-03-01",null,{"$f":"IF(BASE!G142>TODAY(),\"A faire\",IF(BASE!G142>=DATE(YEAR(TODAY()),MONTH(TODAY())-1,DAY(TODAY())),\"Retard\",\"Retard de plus d'un mois\"))","v":"Retard de plus d'un mois"},"EST-DRG - EXPLOITATION GAZ ALSACE"]
["EST-AFC","EST-DRG","EXPLOITATION GAZ ALSACE","COURROIE DE DISTRIBUTION",120000,125000,"2012-11-15","2012-12-15",0,0,0,15,0,"2015-03-01",null,{"$f":"IF(BASE!G158>TODAY(),\"A faire\",IF(BASE!G158>=DATE(YEAR(TODAY()),MONTH(TODAY())-1,DAY(TODAY())),\"Retard\",\"Retard de plus d'un mois\"))","v":"Retard de plus d'un mois"},"EST-DRG - EXPLOITATION GAZ ALSACE"]
["EST-AFC","EST-DRG","EXPLOITATION GAZ ALSACE","CTRL REMORQUE",0,0,"2014-08-19","2014-09-19",0,0,0,15,0,"2015-03-01",null,{"$f":"IF(BASE!G178>TODAY(),\"A faire\",IF(BASE!G178>=DATE(YEAR(TODAY()),MONTH(TODAY())-1,DAY(TODAY())),\"Retard\",\"Retard de plus d'un mois\"))","v":"Retard de plus d'un mois"},"EST-DRG - EXPLOITATION GAZ ALSACE"]
["EST-AFC","EST-DRG","EXPLOITATION GAZ ALSACE","COURROIE DE DISTRIBUTION",120000,125000,"2014-08-05","2014-09-05",0,0,0,15,0,"2015-03-01",null,{"$f":"IF(BASE!G185>TODAY(),\"A faire\",IF(BASE!G185>=DATE(YEAR(TODAY()),MONTH(TODAY())-1,DAY(TODAY())),\"Retard\",\"Retard de plus d'un mois\"))","v":"Retard de plus d'un mois"},"EST-DRG - EXPLOITATION GAZ ALSACE"]
["EST-AFC","EST-DRG","EXPLOITATION GAZ ALSACE","ENTRETIEN REVISION",39360,39360,"2012-02-04","2012-02-04",0,0,0,15,20000,"2015-03-01",null,{"$f":"IF(BASE!G186>TODAY(),\"A faire\",IF(BASE!G186>=DATE(YEAR(TODAY()),MONTH(TODAY())-1,DAY(TODAY())),\"Retard\",\"Retard de plus d'un mois\"))","v":"Retard de plus d'un mois"},"EST-DRG - EXPLOITATION GAZ ALSACE"]
["EST-AFC","EST-DRG","EXPLOITATION GAZ ALSACE","COURROIE DE DISTRIBUTION",120000,125000,"2014-08-05","2014-09-05",0,0,0,15,0,"2015-03-01",null,{"$f":"IF(BASE!G187>TODAY(),\"A faire\",IF(BASE!G187>=DATE(YEAR(TODAY()),MONTH(TODAY())-1,DAY(TODAY())),\"Retard\",\"Retard de plus d'un mois\"))","v":"Retard de plus d'un mois"},"EST-DRG - EXPLOITATION GAZ ALSACE"]
["EST-AFC","EST-DRG","EXPLOITATION GAZ ALSACE","ENTRETIEN REVISION",39680,39680,"2011-03-23","2011-03-23",0,0,0,15,20000,"2015-03-01",null,{"$f":"IF(BASE!G188>TODAY(),\"A faire\",IF(BASE!G188>=DATE(YEAR(TODAY()),MONTH(TODAY())-1,DAY(TODAY())),\"Retard\",\"Retard de plus d'un mois\"))","v":"Retard"},"EST-DRG - EXPLOITATION GAZ ALSACE"]
["EST-AFC","EST-DRG","EXPLOITATION GAZ ALSACE","COURROIE DE DISTRIBUTION",120000,125000,"2014-08-05","2014-09-05",0,0,0,15,0,"2015-03-01","2014-09-17",{"$f":"IF(BASE!G190>TODAY(),\"A faire\",IF(BASE!G190>=DATE(YEAR(TODAY()),MONTH(TODAY())-1,DAY(TODAY())),\"Retard\",\"Retard de plus d'un mois\"))","v":"Retard de plus d'un mois"},"EST-DRG - EXPLOITATION GAZ ALSACE"]
["EST-AFC","EST-DRG","EXPLOITATION GAZ ALSACE","COURROIE DE DISTRIBUTION",120000,125000,"2014-08-05","2014-09-05",0,0,0,15,0,"2015-03-01",null,{"$f":"IF(BASE!G197>TODAY(),\"A faire\",IF(BASE!G197>=DATE(YEAR(TODAY()),MONTH(TODAY())-1,DAY(TODAY())),\"Retard\",\"Retard de plus d'un mois\"))","v":"Retard de plus d'un mois"},"EST-DRG - EXPLOITATION GAZ ALSACE"]
["EST-AFC","EST-DRG","EXPLOITATION GAZ ALSACE","ENTRETIEN REVISION",70545,70545,"2014-09-17","2014-09-17",0,0,0,15,60000,"2015-03-01",null,{"$f":"IF(BASE!G198>TODAY(),\"A faire\",IF(BASE!G198>=DATE(YEAR(TODAY()),MONTH(TODAY())-1,DAY(TODAY())),\"Retard\",\"Retard de plus d'un mois\"))","v":"Retard de plus d'un mois"},"EST-DRG - EXPLOITATION GAZ ALSACE"]
["EST-AFC","EST-DRG","EXPLOITATION GAZ ALSACE","COURROIE DE DISTRIBUTION",120000,125000,"2014-09-24","2014-10-24",0,0,0,15,0,"2015-03-01",null,{"$f":"IF(BASE!G205>TODAY(),\"A faire\",IF(BASE!G205>=DATE(YEAR(TODAY()),MONTH(TODAY())-1,DAY(TODAY())),\"Retard\",\"Retard de plus d'un mois\"))","v":"Retard de plus d'un mois"},"EST-DRG - EXPLOITATION GAZ ALSACE"]
["EST-AFC","EST-DRG","EXPLOITATION GAZ ALSACE","ENTRETIEN REVISION",59655,59655,"2013-05-13","2013-05-13",0,0,0,15,30000,"2015-03-01",null,{"$f":"IF(BASE!G206>TODAY(),\"A faire\",IF(BASE!G206>=DATE(YEAR(TODAY()),MONTH(TODAY())-1,DAY(TODAY())),\"Retard\",\"Retard de plus d'un mois\"))","v":"Retard de plus d'un mois"},"EST-DRG - EXPLOITATION GAZ ALSACE"]
["EST-AFC","EST-DRG","EXPLOITATION GAZ ALSACE","ENTRETIEN REVISION",56700,56700,"2015-01-16","2015-01-16",0,0,0,15,60000,"2015-03-01",null,{"$f":"IF(BASE!G254>TODAY(),\"A faire\",IF(BASE!G254>=DATE(YEAR(TODAY()),MONTH(TODAY())-1,DAY(TODAY())),\"Retard\",\"Retard de plus d'un mois\"))","v":"Retard de plus d'un mois"},"EST-DRG - EXPLOITATION GAZ ALSACE"]
["EST-AFC","EST-DRG","EXPLOITATION GAZ ALSACE","ENTRETIEN REVISION",186620,186620,"2014-11-28","2014-11-28",0,0,0,15,210000,"2015-03-01",null,{"$f":"IF(BASE!G258>TODAY(),\"A faire\",IF(BASE!G258>=DATE(YEAR(TODAY()),MONTH(TODAY())-1,DAY(TODAY())),\"Retard\",\"Retard de plus d'un mois\"))","v":"Retard de plus d'un mois"},"EST-DRG - EXPLOITATION GAZ ALSACE"]
["EST-AFC","EST-DRG","EXPLOITATION GAZ ALSACE","CTRL REMORQUE",0,0,"2012-11-24","2012-12-24",0,0,0,15,0,"2015-03-01",null,{"$f":"IF(BASE!G308>TODAY(),\"A faire\",IF(BASE!G308>=DATE(YEAR(TODAY()),MONTH(TODAY())-1,DAY(TODAY())),\"Retard\",\"Retard de plus d'un mois\"))","v":"Retard"},"EST-DRG - EXPLOITATION GAZ ALSACE"]
["EST-AFC","EST-DRG","EXPLOITATION GAZ ALSACE","ENTRETIEN REVISION",30000,30000,"2014-09-21","2014-09-21",0,0,0,15,0,"2015-03-01",null,{"$f":"IF(BASE!G317>TODAY(),\"A faire\",IF(BASE!G317>=DATE(YEAR(TODAY()),MONTH(TODAY())-1,DAY(TODAY())),\"Retard\",\"Retard de plus d'un mois\"))","v":"Retard de plus d'un mois"},"EST-DRG - EXPLOITATION GAZ ALSACE"]
["EST-AFC","EST-DRG","EXPLOITATION GAZ ALSACE","CTRL REMORQUE",0,0,"2015-01-29","2015-02-28",0,0,0,15,0,"2015-03-01",null,{"$f":"IF(BASE!G349>TODAY(),\"A faire\",IF(BASE!G349>=DATE(YEAR(TODAY()),MONTH(TODAY())-1,DAY(TODAY())),\"Retard\",\"Retard de plus d'un mois\"))","v":"Retard de plus d'un mois"},"EST-DRG - EXPLOITATION GAZ ALSACE"]
["EST-AFC","EST-DRG","EXPLOITATION GAZ FCN","CTRL REMORQUE",0,0,"2014-04-25","2014-05-25",0,0,0,15,0,"2015-03-01",null,{"$f":"IF(BASE!G78>TODAY(),\"A faire\",IF(BASE!G78>=DATE(YEAR(TODAY()),MONTH(TODAY())-1,DAY(TODAY())),\"Retard\",\"Retard de plus d'un mois\"))","v":"Retard de plus d'un mois"},"EST-DRG - EXPLOITATION GAZ FCN"]
["EST-AFC","EST-DRG","EXPLOITATION GAZ FCN","ENTRETIEN REVISION",96749,96749,"2014-11-19","2014-11-19",0,0,0,15,120000,"2015-03-01","2015-01-12",{"$f":"IF(BASE!G183>TODAY(),\"A faire\",IF(BASE!G183>=DATE(YEAR(TODAY()),MONTH(TODAY())-1,DAY(TODAY())),\"Retard\",\"Retard de plus d'un mois\"))","v":"Retard de plus d'un mois"},"EST-DRG - EXPLOITATION GAZ FCN"]
["EST-AFC","EST-DRG","EXPLOITATION GAZ FCN","CONTROLE POLLUTION",0,0,"2014-10-18","2014-10-18",0,0,0,15,0,"2015-03-01","2014-10-23",{"$f":"IF(BASE!G159>TODAY(),\"A faire\",IF(BASE!G159>=DATE(YEAR(TODAY()),MONTH(TODAY())-1,DAY(TODAY())),\"Retard\",\"Retard de plus d'un mois\"))","v":"Retard de plus d'un mois"},"EST-DRG - EXPLOITATION GAZ FCN"]
["EST-AFC","EST-DRG","EXPLOITATION GAZ FCN","CONTROLE POLLUTION",0,0,"2014-11-04","2014-11-04",0,0,0,15,0,"2015-03-01",null,{"$f":"IF(BASE!G174>TODAY(),\"A faire\",IF(BASE!G174>=DATE(YEAR(TODAY()),MONTH(TODAY())-1,DAY(TODAY())),\"Retard\",\"Retard de plus d'un mois\"))","v":"Retard de plus d'un mois"},"EST-DRG - EXPLOITATION GAZ FCN"]
["EST-AFC","EST-DRG","EXPLOITATION GAZ FCN","CONTROLE POLLUTION",0,0,"2014-09-16","2014-09-16",0,0,0,15,0,"2015-03-01","fait le 19/09/2014",{"$f":"IF(BASE!G122>TODAY(),\"A faire\",IF(BASE!G122>=DATE(YEAR(TODAY()),MONTH(TODAY())-1,DAY(TODAY())),\"Retard\",\"Retard de plus d'un mois\"))","v":"Retard de plus d'un mois"},"EST-DRG - EXPLOITATION GAZ FCN"]
["EST-AFC","EST-DRG","EXPLOITATION GAZ FCN","ENTRETIEN REVISION",152425,152425,"2014-12-20","2014-12-20",0,0,0,15,180000,"2015-03-01","proche réforme",{"$f":"IF(BASE!G219>TODAY(),\"A faire\",IF(BASE!G219>=DATE(YEAR(TODAY()),MONTH(TODAY())-1,DAY(TODAY())),\"Retard\",\"Retard de plus d'un mois\"))","v":"Retard de plus d'un mois"},"EST-DRG - EXPLOITATION GAZ FCN"]
["EST-AFC","EST-DRG","EXPLOITATION GAZ FCS","ENTRETIEN REVISION",73500,73500,"2014-09-03","2014-09-03",0,0,0,15,80000,"2015-03-01",null,{"$f":"IF(BASE!G108>TODAY(),\"A faire\",IF(BASE!G108>=DATE(YEAR(TODAY()),MONTH(TODAY())-1,DAY(TODAY())),\"Retard\",\"Retard de plus d'un mois\"))","v":"Retard de plus d'un mois"},"EST-DRG - EXPLOITATION GAZ FCS"]
["EST-AFC","EST-DRG","EXPLOITATION GAZ FCS","CONTROLE POLLUTION",0,0,"2014-09-04","2014-09-04",0,0,0,15,0,"2015-03-01","2015-02-12",{"$f":"IF(BASE!G111>TODAY(),\"A faire\",IF(BASE!G111>=DATE(YEAR(TODAY()),MONTH(TODAY())-1,DAY(TODAY())),\"Retard\",\"Retard de plus d'un mois\"))","v":"Retard de plus d'un mois"},"EST-DRG - EXPLOITATION GAZ FCS"]
["EST-AFC","EST-DRG","EXPLOITATION GAZ FCS","ENTRETIEN REVISION",89628,89628,"2014-08-21","2014-08-21",0,0,0,15,60000,"2015-03-01",null,{"$f":"IF(BASE!G103>TODAY(),\"A faire\",IF(BASE!G103>=DATE(YEAR(TODAY()),MONTH(TODAY())-1,DAY(TODAY())),\"Retard\",\"Retard de plus d'un mois\"))","v":"Retard"},"EST-DRG - EXPLOITATION GAZ FCS"]
["EST-AFC","EST-DRG","EXPLOITATION GAZ FCS","ENTRETIEN REVISION",82899,82899,"2015-02-18","2015-02-18",0,0,0,15,60000,"2015-03-01",null,{"$f":"IF(BASE!G276>TODAY(),\"A faire\",IF(BASE!G276>=DATE(YEAR(TODAY()),MONTH(TODAY())-1,DAY(TODAY())),\"Retard\",\"Retard de plus d'un mois\"))","v":"Retard"},"EST-DRG - EXPLOITATION GAZ FCS"]
["EST-AFC","EST-DRG","EXPLOITATION GAZ FCS","CTRL REMORQUE",0,0,"2014-04-19","2014-05-19",0,0,0,15,0,"2015-03-01","2015-01-08",{"$f":"IF(BASE!G73>TODAY(),\"A faire\",IF(BASE!G73>=DATE(YEAR(TODAY()),MONTH(TODAY())-1,DAY(TODAY())),\"Retard\",\"Retard de plus d'un mois\"))","v":"Retard de plus d'un mois"},"EST-DRG - EXPLOITATION GAZ FCS"]
["EST-AFC","EST-DRG","EXPLOITATION GAZ FCS","CTRL REMORQUE",0,0,"2014-12-03","2015-01-03",0,0,0,15,0,"2015-03-01",null,{"$f":"IF(BASE!G195>TODAY(),\"A faire\",IF(BASE!G195>=DATE(YEAR(TODAY()),MONTH(TODAY())-1,DAY(TODAY())),\"Retard\",\"Retard de plus d'un mois\"))","v":"Retard de plus d'un mois"},"EST-DRG - EXPLOITATION GAZ FCS"]
["EST-AFC","EST-DRG","INGENIERIE GAZ FCN","ENTRETIEN REVISION",125746,125746,"2015-02-25","2015-02-25",0,0,0,15,90000,"2015-03-01",null,{"$f":"IF(BASE!G282>TODAY(),\"A faire\",IF(BASE!G282>=DATE(YEAR(TODAY()),MONTH(TODAY())-1,DAY(TODAY())),\"Retard\",\"Retard de plus d'un mois\"))","v":"Retard de plus d'un mois"},"EST-DRG - INGENIERIE GAZ FCN"]
["EST-AFC","EST-DRG","INGENIERIE GAZ FCN","CONTROLE TECHNIQUE",0,0,"2015-02-11","2015-02-11",0,0,0,15,0,"2015-03-01","2015-02-02",{"$f":"IF(BASE!G271>TODAY(),\"A faire\",IF(BASE!G271>=DATE(YEAR(TODAY()),MONTH(TODAY())-1,DAY(TODAY())),\"Retard\",\"Retard de plus d'un mois\"))","v":"Retard de plus d'un mois"},"EST-DRG - INGENIERIE GAZ FCN"]
["EST-AFC","EST-DRG","INGENIERIE GAZ FCN","ENTRETIEN REVISION",110023,110023,"2014-11-25","2014-11-25",0,0,0,15,90000,"2015-03-01","2014-12-05",{"$f":"IF(BASE!G189>TODAY(),\"A faire\",IF(BASE!G189>=DATE(YEAR(TODAY()),MONTH(TODAY())-1,DAY(TODAY())),\"Retard\",\"Retard de plus d'un mois\"))","v":"Retard"},"EST-DRG - INGENIERIE GAZ FCN"]
["EST-AFC","EST-DRG","INGENIERIE GAZ FCS","CONTROLE TECHNIQUE",0,0,"2014-10-17","2014-10-17",0,0,0,15,0,"2015-03-01","2014-10-09",{"$f":"IF(BASE!G157>TODAY(),\"A faire\",IF(BASE!G157>=DATE(YEAR(TODAY()),MONTH(TODAY())-1,DAY(TODAY())),\"Retard\",\"Retard de plus d'un mois\"))","v":"Retard de plus d'un mois"},"EST-DRG - INGENIERIE GAZ FCS"]
["EST-AFC","EST-DRG","INGENIERIE GAZ FCS","ENTRETIEN REVISION",66040,66040,"2014-10-11","2014-10-11",0,0,0,15,60000,"2015-03-01",null,{"$f":"IF(BASE!G155>TODAY(),\"A faire\",IF(BASE!G155>=DATE(YEAR(TODAY()),MONTH(TODAY())-1,DAY(TODAY())),\"Retard\",\"Retard de plus d'un mois\"))","v":"Retard de plus d'un mois"},"EST-DRG - INGENIERIE GAZ FCS"]
["EST-AFC","EST-DRG","INGENIERIE GAZ FCS","CONTROLE POLLUTION",0,0,"2014-09-13","2014-09-13",0,0,0,15,0,"2015-03-01",null,{"$f":"IF(BASE!G118>TODAY(),\"A faire\",IF(BASE!G118>=DATE(YEAR(TODAY()),MONTH(TODAY())-1,DAY(TODAY())),\"Retard\",\"Retard de plus d'un mois\"))","v":"Retard de plus d'un mois"},"EST-DRG - INGENIERIE GAZ FCS"]
["EST-AFC","EST-DRG","INGENIERIE GAZ FCS","COURROIE DE DISTRIBUTION",120000,125000,"2014-10-08","2014-11-08",0,0,0,15,0,"2015-03-01",null,{"$f":"IF(BASE!G150>TODAY(),\"A faire\",IF(BASE!G150>=DATE(YEAR(TODAY()),MONTH(TODAY())-1,DAY(TODAY())),\"Retard\",\"Retard de plus d'un mois\"))","v":"Retard de plus d'un mois"},"EST-DRG - INGENIERIE GAZ FCS"]
["EST-AFC","EST-DRG","INGENIERIE GAZ FCS","CONTROLE POLLUTION",0,0,"2014-09-24","2014-09-24",0,0,0,15,0,"2015-03-01",null,{"$f":"IF(BASE!G134>TODAY(),\"A faire\",IF(BASE!G134>=DATE(YEAR(TODAY()),MONTH(TODAY())-1,DAY(TODAY())),\"Retard\",\"Retard de plus d'un mois\"))","v":"Retard de plus d'un mois"},"EST-DRG - INGENIERIE GAZ FCS"]
["EST-AFC","EST-DRG","INGENIERIE GAZ FCS","COURROIE DE DISTRIBUTION",120000,125000,"2014-10-08","2014-11-08",0,0,0,15,0,"2015-03-01",null,{"$f":"IF(BASE!G152>TODAY(),\"A faire\",IF(BASE!G152>=DATE(YEAR(TODAY()),MONTH(TODAY())-1,DAY(TODAY())),\"Retard\",\"Retard de plus d'un mois\"))","v":"Retard de plus d'un mois"},"EST-DRG - INGENIERIE GAZ FCS"]
["EST-AFC","EST-DRG","MSG AFC","ENTRETIEN REVISION",81600,81600,"2015-03-01","2015-03-01",0,0,0,15,90000,"2015-03-01",null,{"$f":"IF(BASE!G92>TODAY(),\"A faire\",IF(BASE!G92>=DATE(YEAR(TODAY()),MONTH(TODAY())-1,DAY(TODAY())),\"Retard\",\"Retard de plus d'un mois\"))","v":"Retard de plus d'un mois"},"EST-DRG - MSG AFC"]
["EST-AFC","EST-DRG","MSG AFC","ENTRETIEN REVISION",65643,65643,"2013-08-16","2013-08-16",0,0,0,15,60000,"2015-03-01",null,{"$f":"IF(BASE!G196>TODAY(),\"A faire\",IF(BASE!G196>=DATE(YEAR(TODAY()),MONTH(TODAY())-1,DAY(TODAY())),\"Retard\",\"Retard de plus d'un mois\"))","v":"Retard"},"EST-DRG - MSG AFC"]
["EST-AFC","EST-DRG","MSG AFC","COURROIE DE DISTRIBUTION",120000,125000,"2014-09-24","2014-10-24",0,0,0,15,0,"2015-03-01",null,{"$f":"IF(BASE!G202>TODAY(),\"A faire\",IF(BASE!G202>=DATE(YEAR(TODAY()),MONTH(TODAY())-1,DAY(TODAY())),\"Retard\",\"Retard de plus d'un mois\"))","v":"Retard de plus d'un mois"},"EST-DRG - MSG AFC"]
["EST-AFC","EST-DRG","MSG AFC","ENTRETIEN REVISION",59855,59855,"2013-05-06","2013-05-06",0,0,0,15,30000,"2015-03-01",null,{"$f":"IF(BASE!G203>TODAY(),\"A faire\",IF(BASE!G203>=DATE(YEAR(TODAY()),MONTH(TODAY())-1,DAY(TODAY())),\"Retard\",\"Retard de plus d'un mois\"))","v":"Retard de plus d'un mois"},"EST-DRG - MSG AFC"]
["EST-AFC","EST-DRG","MSG AFC","COURROIE DE DISTRIBUTION",120000,125000,"2013-10-07","2013-12-18",0,0,0,15,0,"2015-03-01",null,{"$f":"IF(BASE!G249>TODAY(),\"A faire\",IF(BASE!G249>=DATE(YEAR(TODAY()),MONTH(TODAY())-1,DAY(TODAY())),\"Retard\",\"Retard de plus d'un mois\"))","v":"Retard de plus d'un mois"},"EST-DRG - MSG AFC"]
["EST-AFC","EST-DRG","MSG AFC","CTRL REMORQUE",0,0,"2015-02-26","2015-03-26",0,0,0,15,0,"2015-03-01",null,{"$f":"IF(BASE!G266>TODAY(),\"A faire\",IF(BASE!G266>=DATE(YEAR(TODAY()),MONTH(TODAY())-1,DAY(TODAY())),\"Retard\",\"Retard de plus d'un mois\"))","v":"Retard de plus d'un mois"},"EST-DRG - MSG AFC"]
["EST-AFC","EST-UCF-AFC","OPE INT ATC ALS PF","ENTRETIEN REVISION",120500,120500,"2014-11-19","2014-11-19",0,0,0,15,45000,"2015-03-01",null,{"$f":"IF(BASE!G4>TODAY(),\"A faire\",IF(BASE!G4>=DATE(YEAR(TODAY()),MONTH(TODAY())-1,DAY(TODAY())),\"Retard\",\"Retard de plus d'un mois\"))","v":"Retard de plus d'un mois"},"EST-UCF-AFC - OPE INT ATC ALS PF"]
["EST-AFC","EST-UCF-AFC","OPE INT ATC ALS PF","ENTRETIEN REVISION",151330,151330,"2014-12-30","2014-12-30",0,0,0,15,240000,"2015-03-01",null,{"$f":"IF(BASE!G27>TODAY(),\"A faire\",IF(BASE!G27>=DATE(YEAR(TODAY()),MONTH(TODAY())-1,DAY(TODAY())),\"Retard\",\"Retard de plus d'un mois\"))","v":"Retard de plus d'un mois"},{"$f":"CONCATENATE(B258,\" - \",C258)","v":"EST-UCF-AFC - OPE INT ATC ALS PF"}]
["EST-AFC","EST-UCF-AFC","OPE INT ATC ALS PF","ENTRETIEN REVISION",94436,94436,"2014-05-06","2014-05-06",0,0,0,15,100000,"2015-03-01",null,{"$f":"IF(BASE!G34>TODAY(),\"A faire\",IF(BASE!G34>=DATE(YEAR(TODAY()),MONTH(TODAY())-1,DAY(TODAY())),\"Retard\",\"Retard de plus d'un mois\"))","v":"Retard"},"EST-UCF-AFC - OPE INT ATC ALS PF"]
["EST-AFC","EST-UCF-AFC","OPE INT ATC ALS PF","COURROIE DE DISTRIBUTION",242786,247786,"2014-08-04","2014-09-04",0,0,0,15,120000,"2015-03-01",null,{"$f":"IF(BASE!G42>TODAY(),\"A faire\",IF(BASE!G42>=DATE(YEAR(TODAY()),MONTH(TODAY())-1,DAY(TODAY())),\"Retard\",\"Retard de plus d'un mois\"))","v":"Retard de plus d'un mois"},"EST-UCF-AFC - OPE INT ATC ALS PF"]
["EST-AFC","EST-UCF-AFC","OPE INT ATC ALS PF","ENTRETIEN REVISION",119766,119766,"2013-10-08","2013-10-08",0,0,0,15,120000,"2015-03-01",null,{"$f":"IF(BASE!G43>TODAY(),\"A faire\",IF(BASE!G43>=DATE(YEAR(TODAY()),MONTH(TODAY())-1,DAY(TODAY())),\"Retard\",\"Retard de plus d'un mois\"))","v":"Retard de plus d'un mois"},"EST-UCF-AFC - OPE INT ATC ALS PF"]
["EST-AFC","EST-UCF-AFC","OPE INT ATC ALS PF","ENTRETIEN REVISION",165199,165199,"2015-03-10","2015-03-10",0,0,0,30,90000,"2015-03-01",null,{"$f":"IF(BASE!G47>TODAY(),\"A faire\",IF(BASE!G47>=DATE(YEAR(TODAY()),MONTH(TODAY())-1,DAY(TODAY())),\"Retard\",\"Retard de plus d'un mois\"))","v":"Retard de plus d'un mois"},"EST-UCF-AFC - OPE INT ATC ALS PF"]
["EST-AFC","EST-UCF-AFC","OPE INT ATC ALS PF","COURROIE DE DISTRIBUTION",120000,125000,"2013-08-19","2013-09-19",0,0,0,15,0,"2015-03-01",null,{"$f":"IF(BASE!G60>TODAY(),\"A faire\",IF(BASE!G60>=DATE(YEAR(TODAY()),MONTH(TODAY())-1,DAY(TODAY())),\"Retard\",\"Retard de plus d'un mois\"))","v":"Retard"},"EST-UCF-AFC - OPE INT ATC ALS PF"]
["EST-AFC","EST-UCF-AFC","OPE INT ATC ALS PF","COURROIE DE DISTRIBUTION",223727,228727,"2014-12-31","2015-01-31",0,0,0,15,120000,"2015-03-01",null,{"$f":"IF(BASE!G87>TODAY(),\"A faire\",IF(BASE!G87>=DATE(YEAR(TODAY()),MONTH(TODAY())-1,DAY(TODAY())),\"Retard\",\"Retard de plus d'un mois\"))","v":"Retard de plus d'un mois"},"EST-UCF-AFC - OPE INT ATC ALS PF"]
["EST-AFC","EST-UCF-AFC","OPE INT ATC ALS PF","COURROIE DE DISTRIBUTION",196530,201530,"2014-07-23","2014-08-23",0,0,0,15,120000,"2015-03-01",null,{"$f":"IF(BASE!G109>TODAY(),\"A faire\",IF(BASE!G109>=DATE(YEAR(TODAY()),MONTH(TODAY())-1,DAY(TODAY())),\"Retard\",\"Retard de plus d'un mois\"))","v":"Retard de plus d'un mois"},"EST-UCF-AFC - OPE INT ATC ALS PF"]
["EST-AFC","EST-UCF-AFC","OPE INT ATC ALS PF","ENTRETIEN REVISION",121597,121597,"2013-08-14","2013-08-14",0,0,0,15,60000,"2015-03-01",null,{"$f":"IF(BASE!G110>TODAY(),\"A faire\",IF(BASE!G110>=DATE(YEAR(TODAY()),MONTH(TODAY())-1,DAY(TODAY())),\"Retard\",\"Retard de plus d'un mois\"))","v":"Retard de plus d'un mois"},"EST-UCF-AFC - OPE INT ATC ALS PF"]
["EST-AFC","EST-UCF-AFC","OPE INT ATC ALS PF","ENTRETIEN REVISION",156671,156671,"2015-01-31","2015-01-31",0,0,0,15,160000,"2015-03-01",null,{"$f":"IF(BASE!G121>TODAY(),\"A faire\",IF(BASE!G121>=DATE(YEAR(TODAY()),MONTH(TODAY())-1,DAY(TODAY())),\"Retard\",\"Retard de plus d'un mois\"))","v":"Retard de plus d'un mois"},"EST-UCF-AFC - OPE INT ATC ALS PF"]
["EST-AFC","EST-UCF-AFC","OPE INT ATC ALS PF","ENTRETIEN REVISION",164434,164434,"2014-09-17","2014-09-17",0,0,0,15,240000,"2015-03-01",null,{"$f":"IF(BASE!G137>TODAY(),\"A faire\",IF(BASE!G137>=DATE(YEAR(TODAY()),MONTH(TODAY())-1,DAY(TODAY())),\"Retard\",\"Retard de plus d'un mois\"))","v":"Retard de plus d'un mois"},"EST-UCF-AFC - OPE INT ATC ALS PF"]
["EST-AFC","EST-UCF-AFC","OPE INT ATC ALS PF","COURROIE DE DISTRIBUTION",120000,125000,"2013-09-10","2014-02-15",0,0,0,15,0,"2015-03-01",null,{"$f":"IF(BASE!G138>TODAY(),\"A faire\",IF(BASE!G138>=DATE(YEAR(TODAY()),MONTH(TODAY())-1,DAY(TODAY())),\"Retard\",\"Retard de plus d'un mois\"))","v":"Retard de plus d'un mois"},"EST-UCF-AFC - OPE INT ATC ALS PF"]
["EST-AFC","EST-UCF-AFC","OPE INT ATC ALS PF","ENTRETIEN REVISION",151180,151180,"2015-01-30","2015-01-30",0,0,0,15,60000,"2015-03-01",null,{"$f":"IF(BASE!G147>TODAY(),\"A faire\",IF(BASE!G147>=DATE(YEAR(TODAY()),MONTH(TODAY())-1,DAY(TODAY())),\"Retard\",\"Retard de plus d'un mois\"))","v":"Retard de plus d'un mois"},"EST-UCF-AFC - OPE INT ATC ALS PF"]
["EST-AFC","EST-UCF-AFC","OPE INT ATC ALS PF","COURROIE DE DISTRIBUTION",120000,125000,"2014-08-05","2014-09-05",0,0,0,15,0,"2015-03-01",null,{"$f":"IF(BASE!G199>TODAY(),\"A faire\",IF(BASE!G199>=DATE(YEAR(TODAY()),MONTH(TODAY())-1,DAY(TODAY())),\"Retard\",\"Retard de plus d'un mois\"))","v":"Retard de plus d'un mois"},"EST-UCF-AFC - OPE INT ATC ALS PF"]
["EST-AFC","EST-UCF-AFC","OPE INT ATC ALS PF","ENTRETIEN REVISION",69925,69925,"2014-12-16","2014-12-16",0,0,0,15,40000,"2015-03-01",null,{"$f":"IF(BASE!G200>TODAY(),\"A faire\",IF(BASE!G200>=DATE(YEAR(TODAY()),MONTH(TODAY())-1,DAY(TODAY())),\"Retard\",\"Retard de plus d'un mois\"))","v":"Retard de plus d'un mois"},"EST-UCF-AFC - OPE INT ATC ALS PF"]
["EST-AFC","EST-UCF-AFC","OPE INT ATC ALS PF","ENTRETIEN REVISION",44500,44500,"2014-05-17","2014-05-17",0,0,0,15,20000,"2015-03-01",null,{"$f":"IF(BASE!G296>TODAY(),\"A faire\",IF(BASE!G296>=DATE(YEAR(TODAY()),MONTH(TODAY())-1,DAY(TODAY())),\"Retard\",\"Retard de plus d'un mois\"))","v":"Retard de plus d'un mois"},"EST-UCF-AFC - OPE INT ATC ALS PF"]
["EST-AFC","EST-UCF-AFC","OPE INT ATC ALS PF","ENTRETIEN REVISION",60270,60270,"2014-10-31","2014-10-31",0,0,0,15,40000,"2015-03-01",null,{"$f":"IF(BASE!G302>TODAY(),\"A faire\",IF(BASE!G302>=DATE(YEAR(TODAY()),MONTH(TODAY())-1,DAY(TODAY())),\"Retard\",\"Retard de plus d'un mois\"))","v":"Retard de plus d'un mois"},"EST-UCF-AFC - OPE INT ATC ALS PF"]
["EST-AFC","EST-UCF-AFC","OPE INT ATC ALS PF","CONTROLE TECHNIQUE",0,0,"2014-12-18","2014-12-18",0,0,0,15,0,"2015-03-01",null,{"$f":"IF(BASE!G347>TODAY(),\"A faire\",IF(BASE!G347>=DATE(YEAR(TODAY()),MONTH(TODAY())-1,DAY(TODAY())),\"Retard\",\"Retard de plus d'un mois\"))","v":"Retard de plus d'un mois"},"EST-UCF-AFC - OPE INT ATC ALS PF"]
["EST-AFC","EST-UCF-AFC","OPE INT ATC FC PF","ENTRETIEN REVISION",107508,107508,"2015-03-13","2015-03-13",0,0,0,30,120000,"2015-03-01",null,{"$f":"IF(BASE!G325>TODAY(),\"A faire\",IF(BASE!G325>=DATE(YEAR(TODAY()),MONTH(TODAY())-1,DAY(TODAY())),\"Retard\",\"Retard de plus d'un mois\"))","v":"Retard"},"EST-UCF-AFC - OPE INT ATC FC PF"]
["EST-AFC","EST-UCF-AFC","OPE INT ATC FC PF","CONTROLE POLLUTION",0,0,"2014-11-26","2014-11-26",0,0,0,15,0,"2015-03-01","2014-11-06",{"$f":"IF(BASE!G191>TODAY(),\"A faire\",IF(BASE!G191>=DATE(YEAR(TODAY()),MONTH(TODAY())-1,DAY(TODAY())),\"Retard\",\"Retard de plus d'un mois\"))","v":"Retard de plus d'un mois"},"EST-UCF-AFC - OPE INT ATC FC PF"]
["EST-AFC","EST-UCF-AFC","OPE INT ATC FC PF","ENTRETIEN REVISION",124040,124040,"2014-09-17","2014-09-17",0,0,0,15,120000,"2015-03-01","2014-09-03",{"$f":"IF(BASE!G123>TODAY(),\"A faire\",IF(BASE!G123>=DATE(YEAR(TODAY()),MONTH(TODAY())-1,DAY(TODAY())),\"Retard\",\"Retard de plus d'un mois\"))","v":"Retard de plus d'un mois"},"EST-UCF-AFC - OPE INT ATC FC PF"]
["EST-AFC","EST-UCF-AFC","OPE INT ATC FC PF","CONTROLE TECHNIQUE",0,0,"2015-03-15","2015-03-15",0,0,0,30,0,"2015-03-01",null,{"$f":"IF(BASE!G328>TODAY(),\"A faire\",IF(BASE!G328>=DATE(YEAR(TODAY()),MONTH(TODAY())-1,DAY(TODAY())),\"Retard\",\"Retard de plus d'un mois\"))","v":"Retard de plus d'un mois"},"EST-UCF-AFC - OPE INT ATC FC PF"]
["EST-AFC","EST-UCF-AFC","OPE INT ATC FC PF","ENTRETIEN REVISION",168380,168380,"2015-03-26","2015-03-26",0,0,0,"N/A",210000,"2015-03-01",null,{"$f":"IF(BASE!G345>TODAY(),\"A faire\",IF(BASE!G345>=DATE(YEAR(TODAY()),MONTH(TODAY())-1,DAY(TODAY())),\"Retard\",\"Retard de plus d'un mois\"))","v":"Retard de plus d'un mois"},"EST-UCF-AFC - OPE INT ATC FC PF"]
["EST-AFC","EST-UCF-AFC","OPE INT ATC FC PF","CONTROLE TECHNIQUE",0,0,"2015-02-18","2015-02-18",0,0,0,15,0,"2015-03-01","2015-02-17",{"$f":"IF(BASE!G275>TODAY(),\"A faire\",IF(BASE!G275>=DATE(YEAR(TODAY()),MONTH(TODAY())-1,DAY(TODAY())),\"Retard\",\"Retard de plus d'un mois\"))","v":"Retard de plus d'un mois"},"EST-UCF-AFC - OPE INT ATC FC PF"]
["EST-AFC","EST-UCF-AFC","OPE INT ATC FC PF","ENTRETIEN REVISION",110134,110134,"2013-05-07","2013-05-07",0,0,0,15,75000,"2015-03-01",null,{"$f":"IF(BASE!G33>TODAY(),\"A faire\",IF(BASE!G33>=DATE(YEAR(TODAY()),MONTH(TODAY())-1,DAY(TODAY())),\"Retard\",\"Retard de plus d'un mois\"))","v":"Retard de plus d'un mois"},"EST-UCF-AFC - OPE INT ATC FC PF"]
["EST-AFC","EST-UCF-AFC","OPE INT ATC FC PF","ENTRETIEN REVISION",39289,39289,"2015-02-06","2015-02-06",0,0,0,15,20000,"2015-03-01","2015-01-30",{"$f":"IF(BASE!G260>TODAY(),\"A faire\",IF(BASE!G260>=DATE(YEAR(TODAY()),MONTH(TODAY())-1,DAY(TODAY())),\"Retard\",\"Retard de plus d'un mois\"))","v":"Retard de plus d'un mois"},"EST-UCF-AFC - OPE INT ATC FC PF"]
["EST-AFC","EST-UCF-AFC","OPE INT ATC FC PF","ENTRETIEN REVISION",61576,61576,"2015-01-04","2015-01-04",0,0,0,15,40000,"2015-03-01","2015-02-05",{"$f":"IF(BASE!G229>TODAY(),\"A faire\",IF(BASE!G229>=DATE(YEAR(TODAY()),MONTH(TODAY())-1,DAY(TODAY())),\"Retard\",\"Retard de plus d'un mois\"))","v":"Retard de plus d'un mois"},"EST-UCF-AFC - OPE INT ATC FC PF"]
["EST-AFC","EST-UCF-AFC","OPE INT ATC FC PF","ENTRETIEN REVISION",78250,78250,"2015-03-24","2015-03-24",0,0,0,"N/A",40000,"2015-03-01",null,{"$f":"IF(BASE!G344>TODAY(),\"A faire\",IF(BASE!G344>=DATE(YEAR(TODAY()),MONTH(TODAY())-1,DAY(TODAY())),\"Retard\",\"Retard de plus d'un mois\"))","v":"Retard de plus d'un mois"},"EST-UCF-AFC - OPE INT ATC FC PF"]
["EST-AFC","EST-UCF-AFC","OPE INT ATC FC PF","CONTROLE TECHNIQUE",0,0,"2015-03-05","2015-03-05",0,0,0,15,0,"2015-03-01",null,{"$f":"IF(BASE!G307>TODAY(),\"A faire\",IF(BASE!G307>=DATE(YEAR(TODAY()),MONTH(TODAY())-1,DAY(TODAY())),\"Retard\",\"Retard de plus d'un mois\"))","v":"Retard de plus d'un mois"},"EST-UCF-AFC - OPE INT ATC FC PF"]
["EST-AFC","EST-UCF-AFC","TECHNIQUE CLIENTELE FCS","CONTROLE POLLUTION",0,0,"2015-03-28","2015-03-28",0,0,0,"N/A",0,"2015-03-01",null,{"$f":"IF(BASE!G348>TODAY(),\"A faire\",IF(BASE!G348>=DATE(YEAR(TODAY()),MONTH(TODAY())-1,DAY(TODAY())),\"Retard\",\"Retard de plus d'un mois\"))","v":"Retard de plus d'un mois"},"EST-UCF-AFC - TECHNIQUE CLIENTELE FCS"]
["EST-AFC","EST-UCF-AFC","TECHNIQUE CLIENTELE FCS","CONTROLE POLLUTION",0,0,"2015-03-17","2015-03-17",0,0,0,30,0,"2015-03-01",null,{"$f":"IF(BASE!G332>TODAY(),\"A faire\",IF(BASE!G332>=DATE(YEAR(TODAY()),MONTH(TODAY())-1,DAY(TODAY())),\"Retard\",\"Retard de plus d'un mois\"))","v":"Retard de plus d'un mois"},"EST-UCF-AFC - TECHNIQUE CLIENTELE FCS"]
["EST-AFC","EST-UCF-AFC","TECHNIQUE CLIENTELE FCS","CONTROLE POLLUTION",0,0,"2015-01-24","2015-01-24",0,0,0,15,0,"2015-03-01","2015-01-23",{"$f":"IF(BASE!G243>TODAY(),\"A faire\",IF(BASE!G243>=DATE(YEAR(TODAY()),MONTH(TODAY())-1,DAY(TODAY())),\"Retard\",\"Retard de plus d'un mois\"))","v":"Retard de plus d'un mois"},"EST-UCF-AFC - TECHNIQUE CLIENTELE FCS"]
["EST-AFC","EST-UCF-AFC","TECHNIQUE CLIENTELE FCS","ENTRETIEN REVISION",98478,98478,"2014-12-16","2014-12-16",0,0,0,15,120000,"2015-03-01","2014-12-30",{"$f":"IF(BASE!G215>TODAY(),\"A faire\",IF(BASE!G215>=DATE(YEAR(TODAY()),MONTH(TODAY())-1,DAY(TODAY())),\"Retard\",\"Retard de plus d'un mois\"))","v":"Retard de plus d'un mois"},"EST-UCF-AFC - TECHNIQUE CLIENTELE FCS"]
["EST-AFC","EST-UCF-AFC","TECHNIQUE CLIENTELE FCS","COURROIE DE DISTRIBUTION",120000,125000,"2014-10-08","2014-11-08",0,0,0,15,0,"2015-03-01","2014-10-28",{"$f":"IF(BASE!G148>TODAY(),\"A faire\",IF(BASE!G148>=DATE(YEAR(TODAY()),MONTH(TODAY())-1,DAY(TODAY())),\"Retard\",\"Retard de plus d'un mois\"))","v":"Retard de plus d'un mois"},"EST-UCF-AFC - TECHNIQUE CLIENTELE FCS"]
["EST-AFC","EST-UCF-AFC","TECHNIQUE CLIENTELE FCS","COURROIE DE DISTRIBUTION",120000,125000,"2014-10-08","2014-11-08",0,0,0,15,0,"2015-03-01",null,{"$f":"IF(BASE!G149>TODAY(),\"A faire\",IF(BASE!G149>=DATE(YEAR(TODAY()),MONTH(TODAY())-1,DAY(TODAY())),\"Retard\",\"Retard de plus d'un mois\"))","v":"Retard de plus d'un mois"},"EST-UCF-AFC - TECHNIQUE CLIENTELE FCS"]
["EST-AFC","EST-UCF-AFC","TECHNIQUE CLIENTELE FCS","ENTRETIEN REVISION",68963,68963,"2014-12-27","2014-12-27",0,0,0,15,30000,"2015-03-01",null,{"$f":"IF(BASE!G222>TODAY(),\"A faire\",IF(BASE!G222>=DATE(YEAR(TODAY()),MONTH(TODAY())-1,DAY(TODAY())),\"Retard\",\"Retard de plus d'un mois\"))","v":"Retard de plus d'un mois"},"EST-UCF-AFC - TECHNIQUE CLIENTELE FCS"]
["EST-AFC","EST-UCF-AFC","TECHNIQUE CLIENTELE FCS","COURROIE DE DISTRIBUTION",120000,125000,"2014-10-08","2014-11-08",0,0,0,15,0,"2015-03-01","2014-11-04",{"$f":"IF(BASE!G151>TODAY(),\"A faire\",IF(BASE!G151>=DATE(YEAR(TODAY()),MONTH(TODAY())-1,DAY(TODAY())),\"Retard\",\"Retard de plus d'un mois\"))","v":"Retard de plus d'un mois"},"EST-UCF-AFC - TECHNIQUE CLIENTELE FCS"]
["EST-AFC","EST-UCF-AFC","TECHNIQUE CLIENTELE FCS","COURROIE DE DISTRIBUTION",120000,125000,"2014-11-03","2014-12-03",0,0,0,15,0,"2015-03-01","VOIR SI DISTRI SUR VL",{"$f":"IF(BASE!G170>TODAY(),\"A faire\",IF(BASE!G170>=DATE(YEAR(TODAY()),MONTH(TODAY())-1,DAY(TODAY())),\"Retard\",\"Retard de plus d'un mois\"))","v":"Retard de plus d'un mois"},"EST-UCF-AFC - TECHNIQUE CLIENTELE FCS"]
["EST-AFC","EST-UCF-AFC","TECHNIQUE CLIENTELE FCS","ENTRETIEN REVISION",154516,154516,"2014-12-17","2014-12-17",0,0,0,15,120000,"2015-03-01","2014-12-03",{"$f":"IF(BASE!G216>TODAY(),\"A faire\",IF(BASE!G216>=DATE(YEAR(TODAY()),MONTH(TODAY())-1,DAY(TODAY())),\"Retard\",\"Retard de plus d'un mois\"))","v":"Retard de plus d'un mois"},"EST-UCF-AFC - TECHNIQUE CLIENTELE FCS"]
["EST-AFC","EST-UCF-AFC","TECHNIQUE CLIENTELE FCS","CONTROLE POLLUTION",0,0,"2015-01-08","2015-01-08",0,0,0,15,0,"2015-03-01","2015-01-05",{"$f":"IF(BASE!G233>TODAY(),\"A faire\",IF(BASE!G233>=DATE(YEAR(TODAY()),MONTH(TODAY())-1,DAY(TODAY())),\"Retard\",\"Retard de plus d'un mois\"))","v":"Retard de plus d'un mois"},"EST-UCF-AFC - TECHNIQUE CLIENTELE FCS"]
["EST-AFC","EST-UCF-AFC","TECHNIQUE CLIENTELE FCS","CONTROLE POLLUTION",0,0,"2015-02-03","2015-02-03",0,0,0,15,0,"2015-03-01",null,{"$f":"IF(BASE!G252>TODAY(),\"A faire\",IF(BASE!G252>=DATE(YEAR(TODAY()),MONTH(TODAY())-1,DAY(TODAY())),\"Retard\",\"Retard de plus d'un mois\"))","v":"Retard de plus d'un mois"},"EST-UCF-AFC - TECHNIQUE CLIENTELE FCS"]
["EST-AFC","EST-UCF-AFC","TECHNIQUE CLIENTELE FCS","ENTRETIEN REVISION",82967,82967,"2015-02-07","2015-02-07",0,0,0,15,60000,"2015-03-01",null,{"$f":"IF(BASE!G264>TODAY(),\"A faire\",IF(BASE!G264>=DATE(YEAR(TODAY()),MONTH(TODAY())-1,DAY(TODAY())),\"Retard\",\"Retard de plus d'un mois\"))","v":"Retard de plus d'un mois"},"EST-UCF-AFC - TECHNIQUE CLIENTELE FCS"]
["EST-AFC","EST-USR","VEHICULES POOL AFC","COURROIE DE DISTRIBUTION",120000,125000,"2013-11-14","2013-12-14",0,0,0,15,0,"2015-03-01",null,{"$f":"IF(BASE!G18>TODAY(),\"A faire\",IF(BASE!G18>=DATE(YEAR(TODAY()),MONTH(TODAY())-1,DAY(TODAY())),\"Retard\",\"Retard de plus d'un mois\"))","v":"Retard de plus d'un mois"},"EST-USR - VEHICULES POOL AFC"]
["EST-AFC","EST-USR","VEHICULES POOL AFC","ENTRETIEN REVISION",89750,89750,"2014-08-06","2014-08-06",0,0,0,15,120000,"2015-03-01",null,{"$f":"IF(BASE!G19>TODAY(),\"A faire\",IF(BASE!G19>=DATE(YEAR(TODAY()),MONTH(TODAY())-1,DAY(TODAY())),\"Retard\",\"Retard de plus d'un mois\"))","v":"Retard de plus d'un mois"},"EST-USR - VEHICULES POOL AFC"]
["EST-AFC","EST-USR","VEHICULES POOL AFC","COURROIE DE DISTRIBUTION",225341,230341,"2015-01-05","2015-02-05",0,0,0,15,120000,"2015-03-01",null,{"$f":"IF(BASE!G88>TODAY(),\"A faire\",IF(BASE!G88>=DATE(YEAR(TODAY()),MONTH(TODAY())-1,DAY(TODAY())),\"Retard\",\"Retard de plus d'un mois\"))","v":"Retard de plus d'un mois"},"EST-USR - VEHICULES POOL AFC"]
["EST-AFC","EST-USR","VEHICULES POOL AFC","CONTROLE TECHNIQUE",0,0,"2014-12-21","2014-12-21",0,0,0,15,0,"2015-03-01",null,{"$f":"IF(BASE!G93>TODAY(),\"A faire\",IF(BASE!G93>=DATE(YEAR(TODAY()),MONTH(TODAY())-1,DAY(TODAY())),\"Retard\",\"Retard de plus d'un mois\"))","v":"Retard de plus d'un mois"},"EST-USR - VEHICULES POOL AFC"]
["EST-AFC","EST-USR","VEHICULES POOL AFC","ENTRETIEN REVISION",254661,254661,"2014-08-07","2014-08-07",0,0,0,15,105000,"2015-03-01",null,{"$f":"IF(BASE!G94>TODAY(),\"A faire\",IF(BASE!G94>=DATE(YEAR(TODAY()),MONTH(TODAY())-1,DAY(TODAY())),\"Retard\",\"Retard de plus d'un mois\"))","v":"Retard de plus d'un mois"},"EST-USR - VEHICULES POOL AFC"]
["EST-AFC","EST-USR","VEHICULES POOL AFC","COURROIE DE DISTRIBUTION",206432,211432,"2013-02-21","2013-03-21",0,0,0,15,120000,"2015-03-01",null,{"$f":"IF(BASE!G95>TODAY(),\"A faire\",IF(BASE!G95>=DATE(YEAR(TODAY()),MONTH(TODAY())-1,DAY(TODAY())),\"Retard\",\"Retard de plus d'un mois\"))","v":"Retard de plus d'un mois"},"EST-USR - VEHICULES POOL AFC"]
["EST-AFC","EST-USR","VEHICULES POOL AFC","ENTRETIEN REVISION",180799,180799,"2015-01-10","2015-01-10",0,0,0,15,90000,"2015-03-01",null,{"$f":"IF(BASE!G96>TODAY(),\"A faire\",IF(BASE!G96>=DATE(YEAR(TODAY()),MONTH(TODAY())-1,DAY(TODAY())),\"Retard\",\"Retard de plus d'un mois\"))","v":"Retard de plus d'un mois"},"EST-USR - VEHICULES POOL AFC"]
["EST-AFC","EST-USR","VEHICULES POOL AFC","COURROIE DE DISTRIBUTION",210977,215977,"2013-11-14","2013-12-14",0,0,0,15,120000,"2015-03-01",null,{"$f":"IF(BASE!G97>TODAY(),\"A faire\",IF(BASE!G97>=DATE(YEAR(TODAY()),MONTH(TODAY())-1,DAY(TODAY())),\"Retard\",\"Retard de plus d'un mois\"))","v":"Retard de plus d'un mois"},"EST-USR - VEHICULES POOL AFC"]
["EST-AFC","EST-USR","VEHICULES POOL AFC","ENTRETIEN REVISION",196940,196940,"2015-03-06","2015-03-06",0,0,0,15,120000,"2015-03-01",null,{"$f":"IF(BASE!G98>TODAY(),\"A faire\",IF(BASE!G98>=DATE(YEAR(TODAY()),MONTH(TODAY())-1,DAY(TODAY())),\"Retard\",\"Retard de plus d'un mois\"))","v":"Retard de plus d'un mois"},"EST-USR - VEHICULES POOL AFC"]
["EST-AFC","EST-USR","VEHICULES POOL AFC","COURROIE DE DISTRIBUTION",195000,200000,"2012-12-20","2013-01-20",0,0,0,15,120000,"2015-03-01",null,{"$f":"IF(BASE!G125>TODAY(),\"A faire\",IF(BASE!G125>=DATE(YEAR(TODAY()),MONTH(TODAY())-1,DAY(TODAY())),\"Retard\",\"Retard de plus d'un mois\"))","v":"Retard"},"EST-USR - VEHICULES POOL AFC"]
["EST-AFC","EST-USR","VEHICULES POOL AFC","ENTRETIEN REVISION",181714,181714,"2015-01-08","2015-01-08",0,0,0,15,90000,"2015-03-01",null,{"$f":"IF(BASE!G126>TODAY(),\"A faire\",IF(BASE!G126>=DATE(YEAR(TODAY()),MONTH(TODAY())-1,DAY(TODAY())),\"Retard\",\"Retard de plus d'un mois\"))","v":"Retard de plus d'un mois"},"EST-USR - VEHICULES POOL AFC"]
["EST-AFC","EST-USR","VEHICULES POOL AFC","COURROIE DE DISTRIBUTION",195025,200025,"2013-04-30","2013-05-30",0,0,0,15,120000,"2015-03-01",null,{"$f":"IF(BASE!G127>TODAY(),\"A faire\",IF(BASE!G127>=DATE(YEAR(TODAY()),MONTH(TODAY())-1,DAY(TODAY())),\"Retard\",\"Retard de plus d'un mois\"))","v":"Retard de plus d'un mois"},"EST-USR - VEHICULES POOL AFC"]
["EST-AFC","EST-USR","VEHICULES POOL AFC","ENTRETIEN REVISION",180023,180023,"2014-11-14","2014-11-14",0,0,0,15,105000,"2015-03-01",null,{"$f":"IF(BASE!G128>TODAY(),\"A faire\",IF(BASE!G128>=DATE(YEAR(TODAY()),MONTH(TODAY())-1,DAY(TODAY())),\"Retard\",\"Retard de plus d'un mois\"))","v":"Retard de plus d'un mois"},"EST-USR - VEHICULES POOL AFC"]
["EST-AFC","EST-USR","VEHICULES POOL AFC","COURROIE DE DISTRIBUTION",225469,230469,"2013-04-21","2013-05-21",0,0,0,15,120000,"2015-03-01",null,{"$f":"IF(BASE!G145>TODAY(),\"A faire\",IF(BASE!G145>=DATE(YEAR(TODAY()),MONTH(TODAY())-1,DAY(TODAY())),\"Retard\",\"Retard de plus d'un mois\"))","v":"Retard de plus d'un mois"},"EST-USR - VEHICULES POOL AFC"]
["EST-AFC","EST-USR","VEHICULES POOL AFC","ENTRETIEN REVISION",178462,178462,"2014-04-09","2014-04-09",0,0,0,15,75000,"2015-03-01",null,{"$f":"IF(BASE!G146>TODAY(),\"A faire\",IF(BASE!G146>=DATE(YEAR(TODAY()),MONTH(TODAY())-1,DAY(TODAY())),\"Retard\",\"Retard de plus d'un mois\"))","v":"Retard de plus d'un mois"},"EST-USR - VEHICULES POOL AFC"]
["EST-AFC","EST-USR","VEHICULES POOL AFC","ENTRETIEN REVISION",121760,121760,"2015-02-27","2015-02-27",0,0,0,15,150000,"2015-03-01",null,{"$f":"IF(BASE!G168>TODAY(),\"A faire\",IF(BASE!G168>=DATE(YEAR(TODAY()),MONTH(TODAY())-1,DAY(TODAY())),\"Retard\",\"Retard de plus d'un mois\"))","v":"Retard de plus d'un mois"},"EST-USR - VEHICULES POOL AFC"]
["EST-AFC","EST-USR","VEHICULES POOL AFC","COURROIE DE DISTRIBUTION",244351,249351,"2014-05-19","2014-06-19",0,0,0,15,120000,"2015-03-01",null,{"$f":"IF(BASE!G172>TODAY(),\"A faire\",IF(BASE!G172>=DATE(YEAR(TODAY()),MONTH(TODAY())-1,DAY(TODAY())),\"Retard\",\"Retard de plus d'un mois\"))","v":"Retard de plus d'un mois"},"EST-USR - VEHICULES POOL AFC"]
["EST-AFC","EST-USR","VEHICULES POOL AFC","ENTRETIEN REVISION",223810,223810,"2015-02-28","2015-02-28",0,0,0,15,210000,"2015-03-01",null,{"$f":"IF(BASE!G173>TODAY(),\"A faire\",IF(BASE!G173>=DATE(YEAR(TODAY()),MONTH(TODAY())-1,DAY(TODAY())),\"Retard\",\"Retard de plus d'un mois\"))","v":"Retard de plus d'un mois"},"EST-USR - VEHICULES POOL AFC"]
["EST-AFC","EST-USR","VEHICULES POOL AFC","ENTRETIEN REVISION",14156,14156,"2014-03-01","2014-03-01",0,0,0,15,105000,"2015-03-01","OK",{"$f":"IF(BASE!G65>TODAY(),\"A faire\",IF(BASE!G65>=DATE(YEAR(TODAY()),MONTH(TODAY())-1,DAY(TODAY())),\"Retard\",\"Retard de plus d'un mois\"))","v":"Retard de plus d'un mois"},"EST-USR - VEHICULES POOL AFC"]
["EST-AFC","EST-USR","VEHICULES POOL AFC","COURROIE DE DISTRIBUTION",120000,125000,"2014-09-24","2014-10-24",0,0,0,15,0,"2015-03-01",null,{"$f":"IF(BASE!G204>TODAY(),\"A faire\",IF(BASE!G204>=DATE(YEAR(TODAY()),MONTH(TODAY())-1,DAY(TODAY())),\"Retard\",\"Retard de plus d'un mois\"))","v":"Retard de plus d'un mois"},"EST-USR - VEHICULES POOL AFC"]
["EST-AFC","EST-USR","VEHICULES POOL AFC","COURROIE DE DISTRIBUTION",120000,125000,"2014-10-07","2014-11-07",0,0,0,15,0,"2015-03-01","ok",{"$f":"IF(BASE!G144>TODAY(),\"A faire\",IF(BASE!G144>=DATE(YEAR(TODAY()),MONTH(TODAY())-1,DAY(TODAY())),\"Retard\",\"Retard de plus d'un mois\"))","v":"Retard de plus d'un mois"},"EST-USR - VEHICULES POOL AFC"]
["EST-AFC","EST-USR","VEHICULES POOL AFC","ENTRETIEN REVISION",89226,89226,"2015-02-08","2015-02-08",0,0,0,15,60000,"2015-03-01","2015-02-25",{"$f":"IF(BASE!G265>TODAY(),\"A faire\",IF(BASE!G265>=DATE(YEAR(TODAY()),MONTH(TODAY())-1,DAY(TODAY())),\"Retard\",\"Retard de plus d'un mois\"))","v":"Retard de plus d'un mois"},"EST-USR - VEHICULES POOL AFC"]
["EST-AFC","EST-USR","VEHICULES POOL AFC","ENTRETIEN REVISION",62678,62678,"2015-01-03","2015-01-03",0,0,0,15,30000,"2015-03-01",null,{"$f":"IF(BASE!G250>TODAY(),\"A faire\",IF(BASE!G250>=DATE(YEAR(TODAY()),MONTH(TODAY())-1,DAY(TODAY())),\"Retard\",\"Retard de plus d'un mois\"))","v":"Retard de plus d'un mois"},{"$f":"CONCATENATE(B322,\" - \",C322)","v":"EST-USR - VEHICULES POOL AFC"}]
["EST-AFC","EST-USR","VEHICULES POOL AFC","ENTRETIEN REVISION",61021,61021,"2015-03-19","2015-03-19",0,0,0,30,30000,"2015-03-01",null,{"$f":"IF(BASE!G337>TODAY(),\"A faire\",IF(BASE!G337>=DATE(YEAR(TODAY()),MONTH(TODAY())-1,DAY(TODAY())),\"Retard\",\"Retard de plus d'un mois\"))","v":"Retard de plus d'un mois"},"EST-USR - VEHICULES POOL AFC"]
["EST-AFC","EST-USR","VEHICULES POOL AFC","ENTRETIEN REVISION",61380,61380,"2015-03-27","2015-03-27",0,0,0,"N/A",30000,"2015-03-01",null,{"$f":"IF(BASE!G346>TODAY(),\"A faire\",IF(BASE!G346>=DATE(YEAR(TODAY()),MONTH(TODAY())-1,DAY(TODAY())),\"Retard\",\"Retard de plus d'un mois\"))","v":"Retard de plus d'un mois"},"EST-USR - VEHICULES POOL AFC"]
["EST-AFC","EST-USR","VEHICULES POOL AFC","ENTRETIEN REVISION",60379,60379,"2015-03-19","2015-03-19",0,0,0,30,30000,"2015-03-01",null,{"$f":"IF(BASE!G338>TODAY(),\"A faire\",IF(BASE!G338>=DATE(YEAR(TODAY()),MONTH(TODAY())-1,DAY(TODAY())),\"Retard\",\"Retard de plus d'un mois\"))","v":"Retard de plus d'un mois"},"EST-USR - VEHICULES POOL AFC"]
["EST-AFC","USL-EST-ATTENTE","SLO VEH","CONTROLE TECHNIQUE",0,0,"2014-12-12","2014-12-12",0,0,0,15,0,"2015-03-01",null,{"$f":"IF(BASE!G212>TODAY(),\"A faire\",IF(BASE!G212>=DATE(YEAR(TODAY()),MONTH(TODAY())-1,DAY(TODAY())),\"Retard\",\"Retard de plus d'un mois\"))","v":"Retard de plus d'un mois"},"USL-EST-ATTENTE - SLO VEH"]
["EST-AFC","USL-EST-ATTENTE","SLO VEH","ENTRETIEN REVISION",188551,188551,"2014-11-14","2014-11-14",0,0,0,15,105000,"2015-03-01",null,{"$f":"IF(BASE!G177>TODAY(),\"A faire\",IF(BASE!G177>=DATE(YEAR(TODAY()),MONTH(TODAY())-1,DAY(TODAY())),\"Retard\",\"Retard de plus d'un mois\"))","v":"Retard de plus d'un mois"},"USL-EST-ATTENTE - SLO VEH"]
["EST-AFC","USL-EST-ATTENTE","SLO VEH","ENTRETIEN REVISION",109590,109590,"2015-02-04","2015-02-04",0,0,0,15,100000,"2015-03-01",null,{"$f":"IF(BASE!G256>TODAY(),\"A faire\",IF(BASE!G256>=DATE(YEAR(TODAY()),MONTH(TODAY())-1,DAY(TODAY())),\"Retard\",\"Retard de plus d'un mois\"))","v":"Retard de plus d'un mois"},"USL-EST-ATTENTE - SLO VEH"]
["EST-AFC","USL-EST-ATTENTE","SLO VEH","COURROIE DE DISTRIBUTION",236791,241791,"2013-05-31","2013-06-30",0,0,0,15,120000,"2015-03-01",null,{"$f":"IF(BASE!G35>TODAY(),\"A faire\",IF(BASE!G35>=DATE(YEAR(TODAY()),MONTH(TODAY())-1,DAY(TODAY())),\"Retard\",\"Retard de plus d'un mois\"))","v":"Retard"},"USL-EST-ATTENTE - SLO VEH"]
["EST-AFC","USL-EST-ATTENTE","SLO VEH","ENTRETIEN REVISION",203937,203937,"2014-03-04","2014-03-04",0,0,0,15,120000,"2015-03-01",null,{"$f":"IF(BASE!G66>TODAY(),\"A faire\",IF(BASE!G66>=DATE(YEAR(TODAY()),MONTH(TODAY())-1,DAY(TODAY())),\"Retard\",\"Retard de plus d'un mois\"))","v":"Retard de plus d'un mois"},"USL-EST-ATTENTE - SLO VEH"]
["EST-AFC","USL-EST-ATTENTE","VEHICULES REFORMES AFC","CONTROLE POLLUTION",0,0,"2014-10-07","2014-10-07",0,0,0,15,0,"2015-03-01","2015-01-07",{"$f":"IF(BASE!G143>TODAY(),\"A faire\",IF(BASE!G143>=DATE(YEAR(TODAY()),MONTH(TODAY())-1,DAY(TODAY())),\"Retard\",\"Retard de plus d'un mois\"))","v":"Retard de plus d'un mois"},"USL-EST-ATTENTE - VEHICULES REFORMES AFC"]
["EST-AFC","USL-EST-ATTENTE","VEHICULES REFORMES AFC","ENTRETIEN REVISION",193856,193856,"2014-09-26","2014-09-26",0,0,0,15,180000,"2015-03-01",null,{"$f":"IF(BASE!G136>TODAY(),\"A faire\",IF(BASE!G136>=DATE(YEAR(TODAY()),MONTH(TODAY())-1,DAY(TODAY())),\"Retard\",\"Retard de plus d'un mois\"))","v":"Retard de plus d'un mois"},"USL-EST-ATTENTE - VEHICULES REFORMES AFC"]
["EST-AFC","USL-EST-ATTENTE","VEHICULES REFORMES AFC","CONTROLE TECHNIQUE",0,0,"2015-01-02","2015-01-02",0,0,0,15,0,"2015-03-01","REFORME",{"$f":"IF(BASE!G226>TODAY(),\"A faire\",IF(BASE!G226>=DATE(YEAR(TODAY()),MONTH(TODAY())-1,DAY(TODAY())),\"Retard\",\"Retard de plus d'un mois\"))","v":"Retard de plus d'un mois"},"USL-EST-ATTENTE - VEHICULES REFORMES AFC"]
["EST-AFC","USL-EST-ATTENTE","VEHICULES REFORMES AFC","ENTRETIEN REVISION",143447,143447,"2015-01-02","2015-01-02",0,0,0,15,180000,"2015-03-01","REFORME",{"$f":"IF(BASE!G227>TODAY(),\"A faire\",IF(BASE!G227>=DATE(YEAR(TODAY()),MONTH(TODAY())-1,DAY(TODAY())),\"Retard\",\"Retard de plus d'un mois\"))","v":"Retard de plus d'un mois"},"USL-EST-ATTENTE - VEHICULES REFORMES AFC"]
["EST-AFC","USL-EST-ATTENTE","VEHICULES REFORMES AFC","ENTRETIEN REVISION",167663,167663,"2015-03-17","2015-03-17",0,0,0,30,120000,"2015-03-01",null,{"$f":"IF(BASE!G331>TODAY(),\"A faire\",IF(BASE!G331>=DATE(YEAR(TODAY()),MONTH(TODAY())-1,DAY(TODAY())),\"Retard\",\"Retard de plus d'un mois\"))","v":"Retard de plus d'un mois"},"USL-EST-ATTENTE - VEHICULES REFORMES AFC"]
["EST-AFC","USL-EST-ATTENTE","VEHICULES REFORMES AFC","CONTROLE POLLUTION",0,0,"2014-08-22","2014-08-22",0,0,0,15,0,"2015-03-01",null,{"$f":"IF(BASE!G104>TODAY(),\"A faire\",IF(BASE!G104>=DATE(YEAR(TODAY()),MONTH(TODAY())-1,DAY(TODAY())),\"Retard\",\"Retard de plus d'un mois\"))","v":"Retard de plus d'un mois"},"USL-EST-ATTENTE - VEHICULES REFORMES AFC"]
["EST-AFC","USL-EST-ATTENTE","VEHICULES REFORMES AFC","ENTRETIEN REVISION",135625,135625,"2014-08-14","2014-08-14",0,0,0,15,90000,"2015-03-01",null,{"$f":"IF(BASE!G101>TODAY(),\"A faire\",IF(BASE!G101>=DATE(YEAR(TODAY()),MONTH(TODAY())-1,DAY(TODAY())),\"Retard\",\"Retard de plus d'un mois\"))","v":"Retard de plus d'un mois"},"USL-EST-ATTENTE - VEHICULES REFORMES AFC"]
["EST-AFC","USL-EST-ATTENTE","VEHICULES REFORMES AFC","CONTROLE TECHNIQUE",0,0,"2014-12-12","2014-12-12",0,0,0,15,0,"2015-03-01",null,{"$f":"IF(BASE!G213>TODAY(),\"A faire\",IF(BASE!G213>=DATE(YEAR(TODAY()),MONTH(TODAY())-1,DAY(TODAY())),\"Retard\",\"Retard de plus d'un mois\"))","v":"Retard de plus d'un mois"},"USL-EST-ATTENTE - VEHICULES REFORMES AFC"]
["EST-AFC","USL-EST-ATTENTE","VEHICULES REFORMES AFC","ENTRETIEN REVISION",167443,167443,"2014-12-16","2014-12-16",0,0,0,15,90000,"2015-03-01",null,{"$f":"IF(BASE!G214>TODAY(),\"A faire\",IF(BASE!G214>=DATE(YEAR(TODAY()),MONTH(TODAY())-1,DAY(TODAY())),\"Retard\",\"Retard de plus d'un mois\"))","v":"Retard de plus d'un mois"},"USL-EST-ATTENTE - VEHICULES REFORMES AFC"]
["EST-AFC","USL-EST-ATTENTE","VEHICULES REFORMES AFC","CONTROLE POLLUTION",0,0,"2015-02-20","2015-02-20",0,0,0,15,0,"2015-03-01",null,{"$f":"IF(BASE!G277>TODAY(),\"A faire\",IF(BASE!G277>=DATE(YEAR(TODAY()),MONTH(TODAY())-1,DAY(TODAY())),\"Retard\",\"Retard de plus d'un mois\"))","v":"Retard de plus d'un mois"},"USL-EST-ATTENTE - VEHICULES REFORMES AFC"]
["EST-AFC","USL-EST-ATTENTE","VEHICULES REFORMES AFC","ENTRETIEN REVISION",139538,139538,"2015-01-18","2015-01-18",0,0,0,15,180000,"2015-03-01",null,{"$f":"IF(BASE!G237>TODAY(),\"A faire\",IF(BASE!G237>=DATE(YEAR(TODAY()),MONTH(TODAY())-1,DAY(TODAY())),\"Retard\",\"Retard de plus d'un mois\"))","v":"Retard de plus d'un mois"},"USL-EST-ATTENTE - VEHICULES REFORMES AFC"]
["EST-AFC","USL-EST-ATTENTE","VEHICULES REFORMES AFC","CONTROLE POLLUTION",0,0,"2014-05-16","2014-05-16",0,0,0,15,0,"2015-03-01",null,{"$f":"IF(BASE!G80>TODAY(),\"A faire\",IF(BASE!G80>=DATE(YEAR(TODAY()),MONTH(TODAY())-1,DAY(TODAY())),\"Retard\",\"Retard de plus d'un mois\"))","v":"Retard de plus d'un mois"},"USL-EST-ATTENTE - VEHICULES REFORMES AFC"]
["EST-AFC","USL-EST-ATTENTE","VEHICULES REFORMES AFC","COURROIE DE DISTRIBUTION",234542,239542,"2014-03-26","2014-04-26",0,0,0,15,240000,"2015-03-01",null,{"$f":"IF(BASE!G70>TODAY(),\"A faire\",IF(BASE!G70>=DATE(YEAR(TODAY()),MONTH(TODAY())-1,DAY(TODAY())),\"Retard\",\"Retard de plus d'un mois\"))","v":"Retard de plus d'un mois"},"USL-EST-ATTENTE - VEHICULES REFORMES AFC"]
["EST-AFC","USL-EST-ATTENTE","VEHICULES REFORMES AFC","CONTROLE POLLUTION",0,0,"2015-01-23","2015-01-23",0,0,0,15,0,"2015-03-01",null,{"$f":"IF(BASE!G241>TODAY(),\"A faire\",IF(BASE!G241>=DATE(YEAR(TODAY()),MONTH(TODAY())-1,DAY(TODAY())),\"Retard\",\"Retard de plus d'un mois\"))","v":"Retard de plus d'un mois"},"USL-EST-ATTENTE - VEHICULES REFORMES AFC"]
["EST-AFC","USL-EST-ATTENTE","VEHICULES REFORMES AFC","CONTROLE TECHNIQUE",0,0,"2014-01-23","2014-01-23",0,0,0,15,0,"2015-03-01",null,{"$f":"IF(BASE!G63>TODAY(),\"A faire\",IF(BASE!G63>=DATE(YEAR(TODAY()),MONTH(TODAY())-1,DAY(TODAY())),\"Retard\",\"Retard de plus d'un mois\"))","v":"Retard de plus d'un mois"},"USL-EST-ATTENTE - VEHICULES REFORMES AFC"]
["EST-AFC","USL-EST-ATTENTE","VEHICULES REFORMES AFC","COURROIE DE DISTRIBUTION",201135,206135,"2014-03-10","2014-04-10",0,0,0,15,360000,"2015-03-01",null,{"$f":"IF(BASE!G68>TODAY(),\"A faire\",IF(BASE!G68>=DATE(YEAR(TODAY()),MONTH(TODAY())-1,DAY(TODAY())),\"Retard\",\"Retard de plus d'un mois\"))","v":"Retard"},"USL-EST-ATTENTE - VEHICULES REFORMES AFC"]
["EST-AFC","USL-EST-ATTENTE","VEHICULES REFORMES AFC","ENTRETIEN REVISION",134369,134369,"2014-04-18","2014-04-18",0,0,0,15,105000,"2015-03-01",null,{"$f":"IF(BASE!G71>TODAY(),\"A faire\",IF(BASE!G71>=DATE(YEAR(TODAY()),MONTH(TODAY())-1,DAY(TODAY())),\"Retard\",\"Retard de plus d'un mois\"))","v":"Retard de plus d'un mois"},"USL-EST-ATTENTE - VEHICULES REFORMES AFC"]
["EST-AFC","USL-EST-ATTENTE","VEHICULES REFORMES AFC","ENTRETIEN REVISION",123285,123285,"2014-12-07","2014-12-07",0,0,0,15,90000,"2015-03-01",null,{"$f":"IF(BASE!G209>TODAY(),\"A faire\",IF(BASE!G209>=DATE(YEAR(TODAY()),MONTH(TODAY())-1,DAY(TODAY())),\"Retard\",\"Retard de plus d'un mois\"))","v":"Retard"},"USL-EST-ATTENTE - VEHICULES REFORMES AFC"]
["EST-AFC","USL-EST-ATTENTE","VEHICULES REFORMES AFC","CONTROLE POLLUTION",0,0,"2015-01-06","2015-01-06",0,0,0,15,0,"2015-03-01",null,{"$f":"IF(BASE!G231>TODAY(),\"A faire\",IF(BASE!G231>=DATE(YEAR(TODAY()),MONTH(TODAY())-1,DAY(TODAY())),\"Retard\",\"Retard de plus d'un mois\"))","v":"Retard de plus d'un mois"},"USL-EST-ATTENTE - VEHICULES REFORMES AFC"]
["EST-AFC","USL-EST-ATTENTE","VEHICULES REFORMES AFC","CONTROLE TECHNIQUE",0,0,"2014-01-06","2014-01-06",0,0,0,15,0,"2015-03-01",null,{"$f":"IF(BASE!G57>TODAY(),\"A faire\",IF(BASE!G57>=DATE(YEAR(TODAY()),MONTH(TODAY())-1,DAY(TODAY())),\"Retard\",\"Retard de plus d'un mois\"))","v":"Retard de plus d'un mois"},"USL-EST-ATTENTE - VEHICULES REFORMES AFC"]
["EST-AFC","USL-EST-ATTENTE","VEHICULES REFORMES AFC","COURROIE DE DISTRIBUTION",120000,125000,"2013-11-04","2013-12-04",0,0,0,15,0,"2015-03-01",null,{"$f":"IF(BASE!G48>TODAY(),\"A faire\",IF(BASE!G48>=DATE(YEAR(TODAY()),MONTH(TODAY())-1,DAY(TODAY())),\"Retard\",\"Retard de plus d'un mois\"))","v":"Retard de plus d'un mois"},"USL-EST-ATTENTE - VEHICULES REFORMES AFC"]
["EST-AFC","USL-EST-ATTENTE","VEHICULES REFORMES AFC","ENTRETIEN REVISION",96693,96693,"2013-05-02","2013-05-02",0,0,0,15,90000,"2015-03-01",null,{"$f":"IF(BASE!G32>TODAY(),\"A faire\",IF(BASE!G32>=DATE(YEAR(TODAY()),MONTH(TODAY())-1,DAY(TODAY())),\"Retard\",\"Retard de plus d'un mois\"))","v":"Retard de plus d'un mois"},"USL-EST-ATTENTE - VEHICULES REFORMES AFC"]
["EST-AFC","USL-EST-ATTENTE","VEHICULES REFORMES AFC","CONTROLE POLLUTION",0,0,"2014-10-23","2014-10-23",0,0,0,15,0,"2015-03-01","2014-10-21",{"$f":"IF(BASE!G162>TODAY(),\"A faire\",IF(BASE!G162>=DATE(YEAR(TODAY()),MONTH(TODAY())-1,DAY(TODAY())),\"Retard\",\"Retard de plus d'un mois\"))","v":"Retard de plus d'un mois"},"USL-EST-ATTENTE - VEHICULES REFORMES AFC"]
["EST-AFC","USL-EST-ATTENTE","VEHICULES REFORMES AFC","CONTROLE TECHNIQUE",0,0,"2015-03-06","2015-03-06",0,0,0,15,0,"2015-03-01",null,{"$f":"IF(BASE!G312>TODAY(),\"A faire\",IF(BASE!G312>=DATE(YEAR(TODAY()),MONTH(TODAY())-1,DAY(TODAY())),\"Retard\",\"Retard de plus d'un mois\"))","v":"Retard de plus d'un mois"},"USL-EST-ATTENTE - VEHICULES REFORMES AFC"]
["EST-AFC","EST-DCT","TOUS VEHICULES UNITE",{"$nulls":13},"EST-DCT - TOUS VEHICULES UNITE"]
["EST-AFC","EST-DR-AFC","TOUS VEHICULES UNITE",{"$nulls":13},"EST-DR-AFC - TOUS VEHICULES UNITE"]
["EST-AFC","EST-DRG","TOUS VEHICULES UNITE",{"$nulls":13},"EST-DRG - TOUS VEHICULES UNITE"]
["EST-AFC","EST-UCF-AFC","TOUS VEHICULES UNITE",{"$nulls":13},"EST-UCF-AFC - TOUS VEHICULES UNITE"]
["EST-AFC","EST-USR","TOUS VEHICULES UNITE",{"$nulls":13},"EST-USR - TOUS VEHICULES UNITE"]
["EST-AFC","USL-EST-ATTENTE","TOUS VEHICULES UNITE",{"$nulls":13},"USL-EST-ATTENTE - TOUS VEHICULES UNITE"]

{"sheet":"Liste Site","index":3,"n_rows":2006,"n_cols":2,"rows_kept":2006,"hidden":true}
["Site","Région"]
["68ILLZACH-L'ILL",68]
["68ILLZACH-L'ILL",68]
["67SELESTAT",68]
["68ILLZACH-L'ILL",68]
["67SELESTAT",68]
["68ILLZACH-L'ILL",68]
["68ILLZACH-L'ILL",68]
["67SELESTAT",68]
["68ILLZACH-L'ILL",68]
["68TURCKHEIM",68]
["68TURCKHEIM",68]
["68ILLZACH-L'ILL",68]
["68ILLZACH-L'ILL",68]
["68ILLZACH-L'ILL",68]
["68ILLZACH-L'ILL",68]
["68ILLZACH-L'ILL",68]
["68ILLZACH-L'ILL",68]
["68ILLZACH-L'ILL",68]
["67SELESTAT",68]
["67SELESTAT",68]
["68ILLZACH-L'ILL",68]
["68ILLZACH-L'ILL",68]
["67SELESTAT",68]
["68ILLZACH-L'ILL",68]
["68ILLZACH-L'ILL",68]
["68ILLZACH-L'ILL",68]
["67SELESTAT",68]
["68ILLZACH-L'ILL",68]
["68ILLZACH-L'ILL",68]
["68ILLZACH-L'ILL",68]
["68ILLZACH-L'ILL",68]
["68ILLZACH-L'ILL",68]
["68ILLZACH-L'ILL",68]
["68ILLZACH-L'ILL",68]
["67SELESTAT",68]
["67SELESTAT",68]
["68TURCKHEIM",68]
["68ILLZACH-L'ILL",68]
["67SELESTAT",68]
["68ILLZACH-L'ILL",68]
["68ILLZACH-L'ILL",68]
["68ILLZACH-L'ILL",68]
["68ILLZACH-L'ILL",68]
["67SELESTAT",68]
["68ILLZACH-L'ILL",68]
["68ILLZACH-L'ILL",68]
["67SELESTAT",68]
["68ILLZACH-L'ILL",68]
["68ILLZACH-L'ILL",68]
["67SELESTAT",68]
["90BELFORT","FCN"]
["25MONTBELIARD-BEAU D","FCN"]
["25MONTBELIARD-BEAU D","FCN"]
["90BELFORT","FCN"]
["25MONTBELIARD-BEAU D","FCN"]
["25MONTBELIARD-BEAU D","FCN"]
["70VESOUL","FCN"]
["70LUXEUIL","FCN"]
["90BELFORT","FCN"]
["70VESOUL","FCN"]
["70VESOUL","FCN"]
["70LUXEUIL","FCN"]
["70VESOUL","FCN"]
["70VESOUL","FCN"]
["70LUXEUIL","FCN"]
["70VESOUL","FCN"]
["25MONTBELIARD-BEAU D","FCN"]
["70LUXEUIL","FCN"]
["25MONTBELIARD-BEAU D","FCN"]
["25MONTBELIARD-BEAU D","FCN"]
["25MONTBELIARD-BEAU D","FCN"]
["25MONTBELIARD-BEAU D","FCN"]
["25MONTBELIARD-BEAU D","FCN"]
["70VESOUL","FCN"]
["25MONTBELIARD-FOILLE","FCN"]
["70VESOUL","FCN"]
["90BELFORT","FCN"]
["90BELFORT","FCN"]
["90BELFORT","FCN"]
["90BELFORT","FCN"]
["25MONTBELIARD-BEAU D","FCN"]
["25MONTBELIARD-BEAU D","FCN"]
["70LUXEUIL","FCN"]
["25MONTBELIARD-BEAU D","FCN"]
["90BELFORT","FCN"]
["70VESOUL","FCN"]
["90BELFORT","FCN"]
["90BELFORT","FCN"]
["25MONTBELIARD-BEAU D","FCN"]
["90BELFORT","FCN"]
["25MONTBELIARD-BEAU D","FCN"]
["25MONTBELIARD-BEAU D","FCN"]
["25MONTBELIARD-BEAU D","FCN"]
["25MONTBELIARD-BEAU D","FCN"]
["39DOLE-ZONE P","FCS"]
["70GRAY","FCS"]
["25PONTARLIER-MERMOZ","FCS"]
["25BESANCON-EDISON","FCS"]
["25PONTARLIER-MERMOZ","FCS"]
["39LONS-BURY","FCS"]
["39LONS-BURY","FCS"]
["39LONS-BURY","FCS"]
["39LONS-BURY","FCS"]
["39LONS-BURY","FCS"]
["39LONS-BURY","FCS"]
["39CHAMPAGNOLE","FCS"]
["25PONTARLIER-MERMOZ","FCS"]
["39ST CLAUDE","FCS"]
["39MOREZ","FCS"]
["25BESANCON-EDISON","FCS"]
["39ST CLAUDE","FCS"]
["39CHAMPAGNOLE","FCS"]
["39DOLE-ZONE P","FCS"]
["39DOLE-ZONE P","FCS"]
["39DOLE-ZONE P","FCS"]
["70GRAY","FCS"]
["39CHAMPAGNOLE","FCS"]
["25BESANCON-EDISON","FCS"]
["39MOREZ","FCS"]
["39DOLE-ZONE P","FCS"]
["25BESANCON-EDISON","FCS"]
["25BESANCON-EDISON","FCS"]
["39ST CLAUDE","FCS"]
["25BESANCON-EDISON","FCS"]
["25BESANCON-EDISON","FCS"]
["39CHAMPAGNOLE","FCS"]
["39DOLE-ZONE P","FCS"]
["25BESANCON-EDISON","FCS"]
["25BESANCON-EDISON","FCS"]
["25BESANCON-BERSO 57","FCS"]
["25BESANCON-EDISON","FCS"]
["25PONTARLIER-MERMOZ","FCS"]
["39MOREZ","FCS"]
["39ST CLAUDE","FCS"]
["39CHAMPAGNOLE","FCS"]
["25BESANCON-EDISON","FCS"]
["25PONTARLIER-MERMOZ","FCS"]
["25BESANCON-EDISON","FCS"]
["39DOLE-ZONE P","FCS"]
["39LONS-BURY","FCS"]
["39MOREZ","FCS"]
["70GRAY","FCS"]
["39LONS-BURY","FCS"]
["25BESANCON-EDISON","FCS"]
["39LONS-BURY","FCS"]
["39DOLE-ZONE P","FCS"]
["25BESANCON-EDISON","FCS"]
["39DOLE-ZONE P","FCS"]
["25BESANCON-EDISON","FCS"]
["25BESANCON-EDISON","FCS"]
["25BESANCON-EDISON","FCS"]
["25BESANCON-EDISON","FCS"]
["25BESANCON-EDISON","FCS"]
["39LONS-BURY","FCS"]
["25BESANCON-BERSO 57","FCS"]
["25PONTARLIER-MERMOZ","FCS"]
["25BESANCON-PALENTE","FCS"]
["68ILLZACH-L'ILL",68]
["25BESANCON-PALENTE","FCS"]
["25MONTBELIARD-FOILLE","FCN"]
["ILLZACH-PRET",68]
["68ILLZACH-L'ILL",68]
["68ILLZACH-L'ILL",68]
["68ILLZACH-L'ILL",68]
[435,68]
[435,68]
[435,68]
[435,68]
[435,68]
["68ILLZACH-L'ILL",68]
[435,68]
[435,68]
[435,68]
[435,68]
[435,68]
[435,68]
["68ILLZACH-L'ILL",68]
["68ILLZACH-L'ILL",68]
["68ILLZACH-L'ILL",68]
["ILLZACH-PRET",68]
["68ILLZACH-L'ILL",68]
["68ILLZACH-L'ILL",68]
[435,68]
["68ILLZACH-L'ILL",68]
["68ILLZACH-L'ILL",68]
["68ILLZACH-L'ILL",68]
["68ILLZACH-L'ILL",68]
["68ILLZACH-L'ILL",68]
["68ILLZACH-L'ILL",68]
["68ILLZACH-L'ILL",68]
[435,68]
["68ILLZACH-L'ILL",68]
["68ILLZACH-L'ILL",68]
["68ILLZACH-L'ILL",68]
[435,68]
["68ILLZACH-L'ILL",68]
["MODELE"]
["68ILLZACH-L'ILL",68]
["68ILLZACH-L'ILL",68]
[435,68]
[435,68]
["ILLZACH-PRET",68]
[435,68]
["68ILLZACH-L'ILL",68]
["68ILLZACH-L'ILL",68]
["68ILLZACH-L'ILL",68]
["68ILLZACH-L'ILL",68]
[435,68]
["68ILLZACH-L'ILL",68]
["68ILLZACH-L'ILL",68]
["68ILLZACH-L'ILL",68]
["ILLZACH-PRET",68]
["68ILLZACH-L'ILL",68]
["68ILLZACH-L'ILL",68]
["68ILLZACH-L'ILL",68]
["68ILLZACH-L'ILL",68]
[435,68]
["68ILLZACH-L'ILL",68]
["68ILLZACH-L'ILL",68]
["68ILLZACH-L'ILL",68]
["68ILLZACH-L'ILL",68]
["68ILLZACH-L'ILL",68]
["68ILLZACH-L'ILL",68]
["68ILLZACH-L'ILL",68]
["68ILLZACH-L'ILL",68]
["68ILLZACH-L'ILL",68]
["68ILLZACH-L'ILL",68]
["68ILLZACH-L'ILL",68]
["68ILLZACH-L'ILL",68]
["ILLZACH-PRET",68]
["68ILLZACH-L'ILL",68]
["68ILLZACH-L'ILL",68]
["68ILLZACH-L'ILL",68]
[435,68]
[435,68]
[435,68]
[435,68]
[435,68]
[435,68]
[435,68]
[435,68]
[435,68]
[435,68]
["ILLZACH-PRET",68]
["68ILLZACH-L'ILL",68]
["ILLZACH-PRET",68]
[435,68]
["ILLZACH-PRET",68]
["25BESANCON-PALENTE","FCS"]
["25-BESAC-POOL","FCS"]
["25-BESAC-POOL","FCS"]
["25-BESAC-POOL","FCS"]
["BESANCON-PRET","FCS"]
["25-BESAC-POOL","FCS"]
["25-BESAC-POOL","FCS"]
["25MONTBELIARD-POOL-F","FCN"]
["25MONTBELIARD-POOL-F","FCN"]
["MONTBELIARD-PRET","FCN"]
["25MONTBELIARD-BEAU D","FCN"]
["25MONTBELIARD-POOL-F","FCN"]
["25MONTBELIARD-POOL-F","FCN"]
["25MONTBELIARD-POOL-F","FCN"]
["25MONTBELIARD-POOL-F","FCN"]
["25MONTBELIARD-POOL-F","FCN"]
["25MONTBELIARD-POOL-F","FCN"]
["25MONTBELIARD-POOL-F","FCN"]
["25MONTBELIARD-POOL-F","FCN"]
["25MONTBELIARD-POOL-F","FCN"]
["25MONTBELIARD-POOL-F","FCN"]
["25MONTBELIARD-POOL-F","FCN"]
["25MONTBELIARD-POOL-F","FCN"]
["25MONTBELIARD-POOL-F","FCN"]
["25MONTBELIARD-POOL-F","FCN"]
["25MONTBELIARD-POOL-F","FCN"]
["25MONTBELIARD-POOL-F","FCN"]
["25MONTBELIARD-POOL-F","FCN"]
["25MONTBELIARD-POOL-F","FCN"]
["25MONTBELIARD-POOL-F","FCN"]
["25MONTBELIARD-POOL-F","FCN"]
["25MONTBELIARD-POOL-F","FCN"]
["25MONTBELIARD-POOL-F","FCN"]
["25MONTBELIARD-POOL-F","FCN"]
["25MONTBELIARD-POOL-F","FCN"]
["25MONTBELIARD-POOL-F","FCN"]
["25MONTBELIARD-POOL-F","FCN"]
["25MONTBELIARD-POOL-F","FCN"]
["25MONTBELIARD-POOL-F","FCN"]
["25MONTBELIARD-POOL-F","FCN"]
["25MONTBELIARD-POOL-F","FCN"]
["ILLZACH-PRET",68]
["25MONTBELIARD-FOILLE","FCN"]
["MONTBELIARD-PRET","FCN"]
["MONTBELIARD-PRET","FCN"]
["70VESOUL","FCN"]
["25LERUSSEY","FCS"]
[4638,68]
["39LONS-BURY","FCS"]
["39LONS-BURY","FCS"]
["70LURE","FCN"]
["70VESOUL","FCN"]
["MONTBELIARD-PRET","FCN"]
["A000378","FCN"]
["67SELESTAT",68]
["25BESANCON-BERSO 57","FCS"]
["39DOLE-ZONE P","FCS"]
["25BESANCON-PALENTE","FCS"]
["25BESANCON-BERSO 57","FCS"]
["25BESANCON-BERSO 57","FCS"]
["25BESANCON-BERSO 57","FCS"]
["25BESANCON-BERSO 57","FCS"]
["25BESANCON-BERSO 57","FCS"]
["25BESANCON-BERSO 57","FCS"]
["25BESANCON-BERSO 57","FCS"]
["25BESANCON-BERSO 57","FCS"]
["25BESANCON-BERSO 57","FCS"]
["25BESANCON-BERSO 57","FCS"]
["25BESANCON-BERSO 57","FCS"]
["25BESANCON-BERSO 57","FCS"]
["25BESANCON-BERSO 57","FCS"]
["25BESANCON-BERSO 57","FCS"]
["25BESANCON-BERSO 57","FCS"]
["25BESANCON-BERSO 57","FCS"]
["25BESANCON-BERSO 57","FCS"]
["25BESANCON-BERSO 57","FCS"]
["25BESANCON-BERSO 57","FCS"]
["25BESANCON-BERSO 57","FCS"]
["25BESANCON-BERSO 57","FCS"]
["25BESANCON-BERSO 57","FCS"]
["25BESANCON-BERSO 57","FCS"]
["25BESANCON-BERSO 57","FCS"]
["25BESANCON-BERSO 57","FCS"]
["25BESANCON-BERSO 57","FCS"]
["25BESANCON-BERSO 57","FCS"]
["25BESANCON-BERSO 57","FCS"]
["25BESANCON-BERSO 57","FCS"]
["25BESANCON-BERSO 57","FCS"]
["25BESANCON-BERSO 57","FCS"]
["25BESANCON-BERSO 57","FCS"]
["25BESANCON-BERSO 57","FCS"]
["25BESANCON-BERSO 57","FCS"]
["25BESANCON-BERSO 57","FCS"]
["25BESANCON-BERSO 57","FCS"]
["25BESANCON-BERSO 57","FCS"]
["25BESANCON-BERSO 57","FCS"]
["25BESANCON-BERSO 57","FCS"]
["25BESANCON-BERSO 57","FCS"]
["25BESANCON-BERSO 57","FCS"]
["25BESANCON-BERSO 57","FCS"]
["25BESANCON-BERSO 57","FCS"]
["25BESANCON-BERSO 57","FCS"]
["25BESANCON-BERSO 57","FCS"]
["25BESANCON-BERSO 57","FCS"]
["25BESANCON-BERSO 57","FCS"]
["25BESANCON-BERSO 57","FCS"]
["25BESANCON-BERSO 57","FCS"]
["25BESANCON-BERSO 57","FCS"]
["25BESANCON-BERSO 57","FCS"]
["25BESANCON-BERSO 57","FCS"]
["25BESANCON-BERSO 57","FCS"]
["25BESANCON-BERSO 57","FCS"]
["25BESANCON-BERSO 57","FCS"]
["25BESANCON-BERSO 57","FCS"]
["39ST CLAUDE","FCS"]
["25-BESAC-POOL","FCS"]
["67SELESTAT",68]
["25BESANCON-BERSO 57","FCS"]
["25MONTBELIARD-FOILLE","FCN"]
["68TURCKHEIM",68]
[435,68]
[435,68]
[435,68]
[435,68]
[435,68]
["68ILLZACH-L'ILL",68]
["68ILLZACH-L'ILL",68]
[435,68]
["25MONTBELIARD-BEAU D","FCN"]
["25MONTBELIARD-BEAU D","FCN"]
["70VESOUL","FCN"]
["70VESOUL","FCN"]
["70GRAY","FCS"]
["25BESANCON-EDISON","FCS"]
["70GRAY","FCS"]
["25BESANCON-EDISON","FCS"]
["39MOREZ","FCS"]
["BESANCON-PRET","FCS"]
["25BESANCON-BERSO 57","FCS"]
["25BESANCON-BERSO 57","FCS"]
["25BESANCON-BERSO 57","FCS"]
["25BESANCON-BERSO 57","FCS"]
["25BESANCON-BERSO 57","FCS"]
["25PONTARLIER-MERMOZ","FCS"]
[435,68]
["ILLZACH-PRET",68]
["68ILLZACH-L'ILL",68]
[435,68]
[435,68]
["25MONTBELIARD-POOL-F","FCN"]
["25-BESAC-POOL","FCS"]
["25MONTBELIARD-POOL-F","FCN"]
["25MONTBELIARD-POOL-F","FCN"]
["25BESANCON-BERSO 57","FCS"]
["25MONTBELIARD-BEAU D","FCN"]
["25MONTBELIARD-SCHWAN","FCN"]
["25BESANCON-BERSO 57","FCS"]
["25BESANCON-BERSO 57","FCS"]
["25BESANCON-BERSO 57","FCS"]
["25BESANCON-BERSO 57","FCS"]
["25BESANCON-BERSO 57","FCS"]
["25BESANCON-BERSO 57","FCS"]
["25BESANCON-BERSO 57","FCS"]
["25BESANCON-BERSO 57","FCS"]
["25BESANCON-BERSO 57","FCS"]
["25BESANCON-BERSO 57","FCS"]
["25BESANCON-BERSO 57","FCS"]
["25BESANCON-BERSO 57","FCS"]
["25BESANCON-BERSO 57","FCS"]
["25BESANCON-BERSO 57","FCS"]
["25BESANCON-BERSO 57","FCS"]
["25BESANCON-BERSO 57","FCS"]
["25BESANCON-PALENTE","FCS"]
["25MONTBELIARD-SCHWAN","FCN"]
["68ILLZACH-L'ILL",68]
["25BESANCON-PALENTE","FCS"]
["25BESANCON-PALENTE","FCS"]
["25MONTBELIARD-SCHWAN","FCN"]
["25BESANCON-PALENTE","FCS"]
["25MONTBELIARD-SCHWAN","FCN"]
["25MONTBELIARD-SCHWAN","FCN"]
["25BESANCON-PALENTE","FCS"]
["68ILLZACH-L'ILL",68]
["68ILLZACH-L'ILL",68]
["68ILLZACH-L'ILL",68]
["68ILLZACH-L'ILL",68]
["68ILLZACH-L'ILL",68]
["68ILLZACH-L'ILL",68]
["68ILLZACH-L'ILL",68]
["25BESANCON-PALENTE","FCS"]
["25MONTBELIARD-SCHWAN","FCN"]
["25BESANCON-PALENTE","FCS"]
["25MONTBELIARD-SCHWAN","FCN"]
["68ILLZACH-L'ILL",68]
["25BESANCON-PALENTE","FCS"]
["25MONTBELIARD-SCHWAN","FCN"]
["25BESANCON-PALENTE","FCS"]
["25BESANCON-PALENTE","FCS"]
["25MONTBELIARD-SCHWAN","FCN"]
["68ILLZACH-L'ILL",68]
["68ILLZACH-L'ILL",68]
["88ST DIE-LA MENAN","FCN"]
["25BESANCON-PALENTE","FCS"]
["25BESANCON-PALENTE","FCS"]
["68ILLZACH-L'ILL",68]
["25BESANCON-PALENTE","FCS"]
["68ILLZACH-L'ILL",68]
["25BESANCON-PALENTE","FCS"]
["25BESANCON-PALENTE","FCS"]
["68ILLZACH-L'ILL",68]
["25BESANCON-PALENTE","FCS"]
["25BESANCON-PALENTE","FCS"]
["68ILLZACH-L'ILL",68]
["68ILLZACH-L'ILL",68]
["25BESANCON-PALENTE","FCS"]
["68ILLZACH-L'ILL",68]
["68ILLZACH-L'ILL",68]
["68ILLZACH-L'ILL",68]
["68ILLZACH-L'ILL",68]
["68ILLZACH-L'ILL",68]
["68ILLZACH-L'ILL",68]
["68ILLZACH-L'ILL",68]
["68ILLZACH-L'ILL",68]
["68ILLZACH-L'ILL",68]
["68ILLZACH-L'ILL",68]
["25BESANCON-PALENTE","FCS"]
["68ILLZACH-L'ILL",68]
["25BESANCON-PALENTE","FCS"]
["68ILLZACH-L'ILL",68]
["25BESANCON-PALENTE","FCS"]
["68ILLZACH-L'ILL",68]
["25MONTBELIARD-SCHWAN","FCN"]
["25BESANCON-PALENTE","FCS"]
["25BESANCON-PALENTE","FCS"]
["68ILLZACH-L'ILL",68]
["25BESANCON-PALENTE","FCS"]
["68ILLZACH-L'ILL",68]
["68ILLZACH-L'ILL",68]
["25BESANCON-PALENTE","FCS"]
["25BESANCON-PALENTE","FCS"]
["25BESANCON-PALENTE","FCS"]
["25BESANCON-BERSO 57","FCS"]
["39LONS-BURY","FCS"]
["25BESANCON-PALENTE","FCS"]
["25BESANCON-PALENTE","FCS"]
["25BESANCON-PALENTE","FCS"]
["25MONTBELIARD-SCHWAN","FCN"]
["39LONS-BURY","FCS"]
["39LONS-BURY","FCS"]
["25BESANCON-PALENTE","FCS"]
["25MONTBELIARD-SCHWAN","FCN"]
["25MONTBELIARD-SCHWAN","FCN"]
["25MONTBELIARD-SCHWAN","FCN"]
["25MONTBELIARD-SCHWAN","FCN"]
["25BESANCON-PALENTE","FCS"]
["39LONS-BURY","FCS"]
["25MONTBELIARD-SCHWAN","FCN"]
["25MONTBELIARD-SCHWAN","FCN"]
["25MONTBELIARD-SCHWAN","FCN"]
["25MONTBELIARD-SCHWAN","FCN"]
["25MONTBELIARD-SCHWAN","FCN"]
["68ILLZACH-L'ILL",68]
["25MONTBELIARD-SCHWAN","FCN"]
["25MONTBELIARD-SCHWAN","FCN"]
["25MONTBELIARD-SCHWAN","FCN"]
["25BESANCON-PALENTE","FCS"]
["25MONTBELIARD-SCHWAN","FCN"]
["25BESANCON-PALENTE","FCS"]
["25MONTBELIARD-SCHWAN","FCN"]
["25BESANCON-PALENTE","FCS"]
["25MONTBELIARD-SCHWAN","FCN"]
["39LONS-BURY","FCS"]
["25MONTBELIARD-SCHWAN","FCN"]
["68ILLZACH-L'ILL",68]
["25MONTBELIARD-SCHWAN","FCN"]
["39LONS-BURY","FCS"]
["68ILLZACH-L'ILL",68]
["68ILLZACH-L'ILL",68]
["68ILLZACH-L'ILL",68]
["68ILLZACH-L'ILL",68]
["68ILLZACH-L'ILL",68]
["68ILLZACH-L'ILL",68]
["25MONTBELIARD-SCHWAN","FCN"]
["68ILLZACH-L'ILL",68]
["68ILLZACH-L'ILL",68]
["68ILLZACH-L'ILL",68]
["68ILLZACH-L'ILL",68]
["68ILLZACH-L'ILL",68]
["68ILLZACH-L'ILL",68]
["68ILLZACH-L'ILL",68]
["68ILLZACH-L'ILL",68]
["25BESANCON-PALENTE","FCS"]
["39LONS-BURY","FCS"]
["39LONS-BURY","FCS"]
["39LONS-BURY","FCS"]
["39LONS-BURY","FCS"]
["25BESANCON-PALENTE","FCS"]
["25BESANCON-PALENTE","FCS"]
["39LONS-BURY","FCS"]
["39LONS-BURY","FCS"]
["25BESANCON-PALENTE","FCS"]
["25MONTBELIARD-SCHWAN","FCN"]
["25BESANCON-PALENTE","FCS"]
["68ILLZACH-L'ILL",68]
["68ILLZACH-L'ILL",68]
["25MONTBELIARD-SCHWAN","FCN"]
["39LONS-BURY","FCS"]
["25MONTBELIARD-SCHWAN","FCN"]
["25MONTBELIARD-SCHWAN","FCN"]
["39LONS-BURY","FCS"]
["25MONTBELIARD-SCHWAN","FCN"]
["25MONTBELIARD-SCHWAN","FCN"]
["25MONTBELIARD-SCHWAN","FCN"]
["68ILLZACH-L'ILL",68]
["68KINGERSHEIM",68]
["68KINGERSHEIM",68]
["68KINGERSHEIM",68]
["68ALTKIRCH",68]
["68ALTKIRCH",68]
["67CHATENOIS",68]
["68ALTKIRCH",68]
["68ALTKIRCH",68]
["68KINGERSHEIM",68]
["68KINGERSHEIM",68]
["68KINGERSHEIM",68]
["68KINGERSHEIM",68]
["67CHATENOIS",68]
["68ALTKIRCH",68]
["68KINGERSHEIM",68]
["67CHATENOIS",68]
["67CHATENOIS",68]
["68KINGERSHEIM",68]
["68KINGERSHEIM",68]
["67CHATENOIS",68]
["68KINGERSHEIM",68]
["68KINGERSHEIM",68]
["68KINGERSHEIM",68]
["68ALTKIRCH",68]
["68KINGERSHEIM",68]
["68KINGERSHEIM",68]
["67CHATENOIS",68]
["67CHATENOIS",68]
["68ALTKIRCH",68]
["68KINGERSHEIM",68]
["67CHATENOIS",68]
["67CHATENOIS",68]
["68KINGERSHEIM",68]
["68KINGERSHEIM",68]
["68KINGERSHEIM",68]
["68KINGERSHEIM",68]
["68KINGERSHEIM",68]
["67CHATENOIS",68]
["68KINGERSHEIM",68]
["68KINGERSHEIM",68]
["68KINGERSHEIM",68]
["68ALTKIRCH",68]
["68KINGERSHEIM",68]
["68KINGERSHEIM",68]
["67CHATENOIS",68]
["67CHATENOIS",68]
["68ALTKIRCH",68]
["68KINGERSHEIM",68]
["67CHATENOIS",68]
["68KINGERSHEIM",68]
["68KINGERSHEIM",68]
["68ALTKIRCH",68]
["68KINGERSHEIM",68]
["67CHATENOIS",68]
["68KINGERSHEIM",68]
["67CHATENOIS",68]
["67CHATENOIS",68]
["68ALTKIRCH",68]
["67CHATENOIS",68]
["68KINGERSHEIM",68]
["68KINGERSHEIM",68]
["68ALTKIRCH",68]
["68KINGERSHEIM",68]
["68KINGERSHEIM",68]
["67CHATENOIS",68]
["68KINGERSHEIM",68]
["68ALTKIRCH",68]
["68KINGERSHEIM",68]
["67CHATENOIS",68]
["67CHATENOIS",68]
["67CHATENOIS",68]
["67CHATENOIS",68]
["68KINGERSHEIM",68]
["68KINGERSHEIM",68]
["68KINGERSHEIM",68]
["70VESOUL","FCN"]
["70LURE","FCN"]
["70LURE","FCN"]
["70VESOUL","FCN"]
["70LURE","FCN"]
["70VESOUL","FCN"]
["90BELFORT","FCN"]
["25MONTBELIARD-BEAU D","FCN"]
["25MONTBELIARD-BEAU D","FCN"]
["70VESOUL","FCN"]
["25MONTBELIARD-BEAU D","FCN"]
["25MONTBELIARD-BEAU D","FCN"]
["70VESOUL","FCN"]
["70VESOUL","FCN"]
["70VESOUL","FCN"]
["25MONTBELIARD-BEAU D","FCN"]
["70VESOUL","FCN"]
["25MONTBELIARD-BEAU D","FCN"]
["70LURE","FCN"]
["70VESOUL","FCN"]
["25MONTBELIARD-BEAU D","FCN"]
["90BELFORT","FCN"]
["70LURE","FCN"]
["70LURE","FCN"]
["70VESOUL","FCN"]
["25MONTBELIARD-BEAU D","FCN"]
["70VESOUL","FCN"]
["90BELFORT","FCN"]
["90BELFORT","FCN"]
["70VESOUL","FCN"]
["25MONTBELIARD-BEAU D","FCN"]
["70LURE","FCN"]
["25MONTBELIARD-BEAU D","FCN"]
["25MONTBELIARD-BEAU D","FCN"]
["70VESOUL","FCN"]
["90BELFORT","FCN"]
["70LURE","FCN"]
["70LURE","FCN"]
["90BELFORT","FCN"]
["70LURE","FCN"]
["70VESOUL","FCN"]
["70LURE","FCN"]
["90BELFORT","FCN"]
["90BELFORT","FCN"]
["25MONTBELIARD-BEAU D","FCN"]
["90BELFORT","FCN"]
["25MONTBELIARD-BEAU D","FCN"]
["70VESOUL","FCN"]
["70LURE","FCN"]
["70VESOUL","FCN"]
["70VESOUL","FCN"]
["90BELFORT","FCN"]
["90BELFORT","FCN"]
["90BELFORT","FCN"]
["25MONTBELIARD-BEAU D","FCN"]
["70LURE","FCN"]
["70LURE","FCN"]
["90BELFORT","FCN"]
["90BELFORT","FCN"]
["25MONTBELIARD-BEAU D","FCN"]
["25MONTBELIARD-BEAU D","FCN"]
["90BELFORT","FCN"]
["90BELFORT","FCN"]
["25MONTBELIARD-BEAU D","FCN"]
["25MONTBELIARD-BEAU D","FCN"]
["70VESOUL","FCN"]
["25BESANCON-BERSO 57","FCS"]
["25BESANCON-BERSO 57","FCS"]
["25BESANCON-BERSO 57","FCS"]
["25BESANCON-BERSO 57","FCS"]
["25MONTBELIARD-FOILLE","FCN"]
["70VESOUL","FCN"]
["68ILLZACH-L'ILL",68]
["67SELESTAT",68]
["25MONTBELIARD-SCHWAN","FCN"]
["25MONTBELIARD-SCHWAN","FCN"]
["25MONTBELIARD-SCHWAN","FCN"]
["25MONTBELIARD-SCHWAN","FCN"]
["25MONTBELIARD-SCHWAN","FCN"]
["25MONTBELIARD-SCHWAN","FCN"]
["25MONTBELIARD-SCHWAN","FCN"]
["25PONTARLIER-MERMOZ","FCS"]
["25BAUME","FCN"]
["25BAUME","FCN"]
["25LERUSSEY","FCS"]
["25BAUME","FCN"]
["25BESANCON-EDISON","FCS"]
["25BAUME","FCN"]
["25BESANCON-EDISON","FCS"]
["25BESANCON-EDISON","FCS"]
["25PONTARLIER-MERMOZ","FCS"]
["25BESANCON-EDISON","FCS"]
["25BESANCON-EDISON","FCS"]
["25BESANCON-EDISON","FCS"]
["25BAUME","FCN"]
["25LERUSSEY","FCS"]
["70GRAY","FCS"]
["70GRAY","FCS"]
["25PONTARLIER-MERMOZ","FCS"]
["25BESANCON-EDISON","FCS"]
["25BESANCON-EDISON","FCS"]
["25LERUSSEY","FCS"]
["25LERUSSEY","FCS"]
["25BAUME","FCN"]
["25LERUSSEY","FCS"]
["25LERUSSEY","FCS"]
["25LERUSSEY","FCS"]
["25BAUME","FCN"]
["70GRAY","FCS"]
["25BESANCON-EDISON","FCS"]
["25PONTARLIER-MERMOZ","FCS"]
["70GRAY","FCS"]
["25BAUME","FCN"]
["25BAUME","FCN"]
["25BESANCON-EDISON","FCS"]
["70GRAY","FCS"]
["25BESANCON-EDISON","FCS"]
["25BESANCON-EDISON","FCS"]
["25PONTARLIER-MERMOZ","FCS"]
["25BAUME","FCN"]
["70GRAY","FCS"]
["25BESANCON-BERSO 57","FCS"]
["25LERUSSEY","FCS"]
["25PONTARLIER-MERMOZ","FCS"]
["25BESANCON-EDISON","FCS"]
["25LERUSSEY","FCS"]
["25BESANCON-EDISON","FCS"]
["25BESANCON-EDISON","FCS"]
["25BESANCON-EDISON","FCS"]
["25PONTARLIER-MERMOZ","FCS"]
["25BESANCON-EDISON","FCS"]
["70GRAY","FCS"]
["25BESANCON-EDISON","FCS"]
["25LERUSSEY","FCS"]
["25PONTARLIER-MERMOZ","FCS"]
["70GRAY","FCS"]
["25BESANCON-EDISON","FCS"]
["25BESANCON-EDISON","FCS"]
["25PONTARLIER-MERMOZ","FCS"]
["70GRAY","FCS"]
["25LERUSSEY","FCS"]
["25PONTARLIER-MERMOZ","FCS"]
["25PONTARLIER-MERMOZ","FCS"]
["25BESANCON-EDISON","FCS"]
["25BESANCON-EDISON","FCS"]
["25BESANCON-EDISON","FCS"]
["25LERUSSEY","FCS"]
["25BESANCON-EDISON","FCS"]
["25PONTARLIER-MERMOZ","FCS"]
["25BESANCON-EDISON","FCS"]
["25PONTARLIER-MERMOZ","FCS"]
["25LERUSSEY","FCS"]
["25PONTARLIER-MERMOZ","FCS"]
["25BAUME","FCN"]
["25PONTARLIER-MERMOZ","FCS"]
["25LERUSSEY","FCS"]
["25PONTARLIER-MERMOZ","FCS"]
["25BAUME","FCN"]
["25PONTARLIER-MERMOZ","FCS"]
["39LONS-BURY","FCS"]
["39DOLE-ZONE P","FCS"]
["39CHAMPAGNOLE","FCS"]
["39DOLE-ZONE P","FCS"]
["39LONS-BURY","FCS"]
["39LONS-BURY","FCS"]
["39LONS-BURY","FCS"]
["39ST CLAUDE","FCS"]
["39CHAMPAGNOLE","FCS"]
["39CHAMPAGNOLE","FCS"]
["39ST CLAUDE","FCS"]
["39ST CLAUDE","FCS"]
["39CHAMPAGNOLE","FCS"]
["39LONS-BURY","FCS"]
["39CHAMPAGNOLE","FCS"]
["39DOLE-ZONE P","FCS"]
["39ST CLAUDE","FCS"]
["39ST CLAUDE","FCS"]
["39CHAMPAGNOLE","FCS"]
["39DOLE-ZONE P","FCS"]
["39LONS-BURY","FCS"]
["39LONS-BURY","FCS"]
["39LONS-BURY","FCS"]
["39ST CLAUDE","FCS"]
["39CHAMPAGNOLE","FCS"]
["39LONS-BURY","FCS"]
["39CHAMPAGNOLE","FCS"]
["39DOLE-ZONE P","FCS"]
["39ST CLAUDE","FCS"]
["39CHAMPAGNOLE","FCS"]
["39LONS-BURY","FCS"]
["39ST CLAUDE","FCS"]
["39CHAMPAGNOLE","FCS"]
["39CHAMPAGNOLE","FCS"]
["39DOLE-ZONE P","FCS"]
["39CHAMPAGNOLE","FCS"]
["39DOLE-ZONE P","FCS"]
["39LONS-BURY","FCS"]
["39CHAMPAGNOLE","FCS"]
["39LONS-BURY","FCS"]
["39DOLE-ZONE P","FCS"]
["39CHAMPAGNOLE","FCS"]
["39DOLE-ZONE P","FCS"]
["39DOLE-ZONE P","FCS"]
["39DOLE-ZONE P","FCS"]
["39LONS-BURY","FCS"]
["39ST CLAUDE","FCS"]
["39ST CLAUDE","FCS"]
["39CHAMPAGNOLE","FCS"]
["39LONS-BURY","FCS"]
["39ST CLAUDE","FCS"]
["39DOLE-ZONE P","FCS"]
["39CHAMPAGNOLE","FCS"]
["39LONS-BURY","FCS"]
["39CHAMPAGNOLE","FCS"]
["39DOLE-ZONE P","FCS"]
["25MONTBELIARD-BEAU D","FCN"]
["68ILLZACH-L'ILL",68]
["25BESANCON-BERSO 57","FCS"]
["25BESANCON-BERSO 57","FCS"]
["67SELESTAT",68]
["68ILLZACH-L'ILL",68]
["25BESANCON-BERSO 57","FCS"]
["25BESANCON-BERSO 57","FCS"]
["25BESANCON-BERSO 57","FCS"]
["25MONTBELIARD-BEAU D","FCN"]
["25MONTBELIARD-BEAU D","FCN"]
["25MONTBELIARD-BEAU D","FCN"]
["25MONTBELIARD-BEAU D","FCN"]
["25MONTBELIARD-FOILLE","FCN"]
["68ILLZACH-L'ILL",68]
["67SELESTAT",68]
["67SELESTAT",68]
["67SELESTAT",68]
["67SELESTAT",68]
["67SELESTAT",68]
["67SELESTAT",68]
["67SELESTAT",68]
["67SELESTAT",68]
["67SELESTAT",68]
["67SELESTAT",68]
["70VESOUL","FCN"]
["70VESOUL","FCN"]
["70VESOUL","FCN"]
["70VESOUL","FCN"]
["70VESOUL","FCN"]
["70VESOUL","FCN"]
["70VESOUL","FCN"]
["39LONS-BURY","FCS"]
["39LONS-BURY","FCS"]
["39LONS-BURY","FCS"]
["25BESANCON-BERSO 57","FCS"]
["25BESANCON-BERSO 57","FCS"]
["39DOLE-ZONE P","FCS"]
["39DOLE-ZONE P","FCS"]
["25BESANCON-BERSO 57","FCS"]
["25BESANCON-BERSO 57","FCS"]
["25BESANCON-BERSO 57","FCS"]
["25PONTARLIER-MERMOZ","FCS"]
["25PONTARLIER-MERMOZ","FCS"]
["39LONS-BURY","FCS"]
["25PONTARLIER-MERMOZ","FCS"]
["39DOLE-ZONE P","FCS"]
["25PONTARLIER-MERMOZ","FCS"]
["39LONS-BURY","FCS"]
["39LONS-BURY","FCS"]
["25BESANCON-BERSO 57","FCS"]
["25PONTARLIER-MERMOZ","FCS"]
["25BESANCON-BERSO 57","FCS"]
["25BESANCON-BERSO 57","FCS"]
["25BESANCON-BERSO 57","FCS"]
["25BESANCON-BERSO 57","FCS"]
["25BESANCON-BERSO 57","FCS"]
["39DOLE-ZONE P","FCS"]
["25PONTARLIER-MERMOZ","FCS"]
["25BESANCON-BERSO 57","FCS"]
["25PONTARLIER-MERMOZ","FCS"]
["25BESANCON-BERSO 57","FCS"]
["39LONS-BURY","FCS"]
["25PONTARLIER-MERMOZ","FCS"]
["25MONTBELIARD-FOILLE","FCN"]
["25BESANCON-BERSO 57","FCS"]
["25BESANCON-BERSO 57","FCS"]
["68ILLZACH-L'ILL",68]
["68ILLZACH-L'ILL",68]
["67SELESTAT",68]
["39DOLE-ZONE P","FCS"]
["68ILLZACH-L'ILL",68]
["25BESANCON-BERSO 57","FCS"]
["68ILLZACH-L'ILL",68]
["68ILLZACH-L'ILL",68]
["25MONTBELIARD-FOILLE","FCN"]
["25BESANCON-BERSO 57","FCS"]
["68ILLZACH-L'ILL",68]
["25MONTBELIARD-FOILLE","FCN"]
["67SELESTAT",68]
["67SELESTAT",68]
["25BESANCON-BERSO 57","FCS"]
["25MONTBELIARD-FOILLE","FCN"]
["25BESANCON-PALENTE","FCS"]
["25MONTBELIARD-BEAU D","FCN"]
["70VESOUL","FCN"]
["68ILLZACH-L'ILL",68]
["25BESANCON-PALENTE","FCS"]
["68ILLZACH-L'ILL",68]
["25MONTBELIARD-SCHWAN","FCN"]
["25BESANCON-BERSO 57","FCS"]
["90BELFORT","FCN"]
["90BELFORT","FCN"]
["25MONTBELIARD-BEAU D","FCN"]
["70VESOUL","FCN"]
["25MONTBELIARD-BEAU D","FCN"]
["90BELFORT","FCN"]
["25MONTBELIARD-BEAU D","FCN"]
["68ILLZACH-L'ILL",68]
["25PONTARLIER-MERMOZ","FCS"]
["25BESANCON-EDISON","FCS"]
["68ILLZACH-L'ILL",68]
["25MONTBELIARD-FOILLE","FCN"]
["67SELESTAT",68]
["67SELESTAT",68]
["68ILLZACH-L'ILL",68]
["25BESANCON-BERSO 57","FCS"]
["68ILLZACH-L'ILL",68]
["25MONTBELIARD-FOILLE","FCN"]
["68ILLZACH-L'ILL",68]
["67SELESTAT",68]
["67SELESTAT",68]
["68ILLZACH-L'ILL",68]
["68ILLZACH-L'ILL",68]
["68ILLZACH-L'ILL",68]
["67HAGUENAU-DOMINICAI",68]
["68ILLZACH-L'ILL",68]
["25BESANCON-BERSO 57","FCS"]
["67SELESTAT",68]
["25BESANCON-BERSO 57","FCS"]
["25BESANCON-BERSO 57","FCS"]
["25BESANCON-BERSO 57","FCS"]
["25BESANCON-BERSO 57","FCS"]
["25BESANCON-BERSO 57","FCS"]
["25BESANCON-BERSO 57","FCS"]
["39DOLE-ZONE P","FCS"]
["68ILLZACH-L'ILL",68]
["25MONTBELIARD-FOILLE","FCN"]
["25MONTBELIARD-FOILLE","FCN"]
["25MONTBELIARD-FOILLE","FCN"]
["25MONTBELIARD-FOILLE","FCN"]
["68KINGERSHEIM",68]
["25BESANCON-BERSO 57","FCS"]
["67HAGUENAU-DOMINICAI",68]
["67SELESTAT",68]
["67SELESTAT",68]
["67SELESTAT",68]
["67SELESTAT",68]
["68ILLZACH-L'ILL",68]
["68ILLZACH-L'ILL",68]
["68ILLZACH-L'ILL",68]
["68ILLZACH-L'ILL",68]
["68ILLZACH-L'ILL",68]
["68ILLZACH-L'ILL",68]
["67CHATENOIS",68]
["68ILLZACH-L'ILL",68]
["25BESANCON-EDISON","FCS"]
["68ILLZACH-L'ILL",68]
["68ILLZACH-L'ILL",68]
["68ILLZACH-L'ILL",68]
["68ILLZACH-L'ILL",68]
["67CHATENOIS",68]
["68ILLZACH-L'ILL",68]
["68ILLZACH-L'ILL",68]
["68ILLZACH-L'ILL",68]
["68KINGERSHEIM",68]
["68ILLZACH-L'ILL",68]
["25MONTBELIARD-SCHWAN","FCN"]
["67CHATENOIS",68]
["68KINGERSHEIM",68]
["68ALTKIRCH",68]
["70VESOUL","FCN"]
["25BESANCON-EDISON","FCS"]
["39LONS-BURY","FCS"]
["25BESANCON-EDISON","FCS"]
["25BAUME","FCN"]
["39CHAMPAGNOLE","FCS"]
["25MONTBELIARD-SCHWAN","FCN"]
["25MONTBELIARD-FOILLE","FCN"]
["25MONTBELIARD-SCHWAN","FCN"]
["70LURE","FCN"]
["25MONTBELIARD-SCHWAN","FCN"]
["MODELE"]
["25MONTBELIARD-BEAU D","FCN"]
["70LURE","FCN"]
["25MONTBELIARD-SCHWAN","FCN"]
["25MONTBELIARD-BEAU D","FCN"]
["25MONTBELIARD-POOL-F","FCN"]
["MODELE"]
["MODELE"]
["MODELE"]
["25MONTBELIARD-SCHWAN","FCN"]
["MODELE"]
["70VESOUL","FCN"]
["25MONTBELIARD-SCHWAN","FCN"]
["25MONTBELIARD-SCHWAN","FCN"]
["39LONS-BURY","FCS"]
["70VESOUL","FCN"]
["25MONTBELIARD-POOL-F","FCN"]
["25MONTBELIARD-POOL-F","FCN"]
["68ILLZACH-L'ILL",68]
["25MONTBELIARD-SCHWAN","FCN"]
["MODELE"]
["68ILLZACH-L'ILL",68]
["90BELFORT","FCN"]
["90BELFORT","FCN"]
["25PONTARLIER-MERMOZ","FCS"]
["25PONTARLIER-MERMOZ","FCS"]
["39LONS-BURY","FCS"]
["25BESANCON-PALENTE","FCS"]
["25BESANCON-PALENTE","FCS"]
["39DOLE-ZONE P","FCS"]
["25BESANCON-PALENTE","FCS"]
["25BESANCON-PALENTE","FCS"]
["25BESANCON-PALENTE","FCS"]
["25BESANCON-PALENTE","FCS"]
["25BESANCON-PALENTE","FCS"]
["25BESANCON-PALENTE","FCS"]
["25BESANCON-PALENTE","FCS"]
["25BESANCON-EDISON","FCS"]
["25BESANCON-EDISON","FCS"]
["25BESANCON-PALENTE","FCS"]
["25BESANCON-EDISON","FCS"]
["25BESANCON-PALENTE","FCS"]
["25BESANCON-PALENTE","FCS"]
["25BESANCON-PALENTE","FCS"]
["25BESANCON-PALENTE","FCS"]
["MODELE"]
["39LONS-BURY","FCS"]
["25BESANCON-PALENTE","FCS"]
["39DOLE-CLEMEN","FCS"]
["25BESANCON-PALENTE","FCS"]
["25BESANCON-PALENTE","FCS"]
["25BESANCON-BERSO 57","FCS"]
["39ST CLAUDE","FCS"]
["25-BESAC-POOL","FCS"]
["25BESANCON-PALENTE","FCS"]
["25BESANCON-BERSO 57","FCS"]
["25BESANCON-EDISON","FCS"]
["25BESANCON-PALENTE","FCS"]
["25BESANCON-PALENTE","FCS"]
["25BESANCON-PALENTE","FCS"]
["25BESANCON-PALENTE","FCS"]
["39ST CLAUDE","FCS"]
["25BESANCON-PALENTE","FCS"]
["25BESANCON-PALENTE","FCS"]
["25MONTBELIARD-SCHWAN","FCN"]
["25MONTBELIARD-SCHWAN","FCN"]
["MODELE"]
["25MONTBELIARD-SCHWAN","FCN"]
["25BAUME","FCN"]
["25BESANCON-PALENTE","FCS"]
["25BESANCON-PALENTE","FCS"]
["25BESANCON-BERSO 57","FCS"]
["25MONTBELIARD-SCHWAN","FCN"]
["25MONTBELIARD-SCHWAN","FCN"]
["MODELE"]
["25MONTBELIARD-SCHWAN","FCN"]
["25BESANCON-PALENTE","FCS"]
["25PONTARLIER-MERMOZ","FCS"]
["25BESANCON-PALENTE","FCS"]
["25BESANCON-EDISON","FCS"]
["25BESANCON-EDISON","FCS"]
["25BESANCON-PALENTE","FCS"]
["25BESANCON-PALENTE","FCS"]
["25BESANCON-PALENTE","FCS"]
["MODELE"]
["25MONTBELIARD-SCHWAN","FCN"]
["MODELE"]
["MODELE"]
["25BESANCON-PALENTE","FCS"]
["39CHAMPAGNOLE","FCS"]
["25BESANCON-PALENTE","FCS"]
["25MONTBELIARD-SCHWAN","FCN"]
["25BESANCON-PALENTE","FCS"]
["39ST CLAUDE","FCS"]
["25PONTARLIER-MERMOZ","FCS"]
["MODELE"]
["25MONTBELIARD-SCHWAN","FCN"]
["70LUXEUIL","FCN"]
["25MONTBELIARD-BEAU D","FCN"]
["39LONS-BURY","FCS"]
["25MONTBELIARD-POOL-F","FCN"]
["25MONTBELIARD-POOL-F","FCN"]
["25MONTBELIARD-POOL-F","FCN"]
["25MONTBELIARD-SCHWAN","FCN"]
["25MONTBELIARD-BEAU D","FCN"]
["25BESANCON-EDISON","FCS"]
["25BESANCON-PALENTE","FCS"]
["25BESANCON-PALENTE","FCS"]
["39LONS-BURY","FCS"]
["25BESANCON-PALENTE","FCS"]
["25MONTBELIARD-SCHWAN","FCN"]
["25MONTBELIARD-SCHWAN","FCN"]
["25MONTBELIARD-POOL-F","FCN"]
["25MONTBELIARD-POOL-F","FCN"]
["25MONTBELIARD-FOILLE","FCN"]
["25MONTBELIARD-BEAU D","FCN"]
["MONTBELIARD-PRET","FCN"]
["25MONTBELIARD-FOILLE","FCN"]
["25MONTBELIARD-FOILLE","FCN"]
["MODELE"]
["25MONTBELIARD-SCHWAN","FCN"]
["39CHAMPAGNOLE","FCS"]
["25BESANCON-PALENTE","FCS"]
["25MONTBELIARD-SCHWAN","FCN"]
["25BESANCON-PALENTE","FCS"]
["25BESANCON-BERSO 57","FCS"]
["25PONTARLIER-MERMOZ","FCS"]
["MODELE"]
["25MONTBELIARD-BEAU D","FCN"]
["25BESANCON-PALENTE","FCS"]
["25MONTBELIARD-SCHWAN","FCN"]
["MODELE"]
["25MONTBELIARD-FOILLE","FCN"]
["25MONTBELIARD-SCHWAN","FCN"]
["MODELE"]
["25BESANCON-BERSO 57","FCS"]
["25BESANCON-PALENTE","FCS"]
["25BESANCON-EDISON","FCS"]
["25BESANCON-PALENTE","FCS"]
["25MONTBELIARD-SCHWAN","FCN"]
["25MONTBELIARD-SCHWAN","FCN"]
["25MONTBELIARD-SCHWAN","FCN"]
["25MONTBELIARD-SCHWAN","FCN"]
["39DOLE-ZONE P","FCS"]
["25MONTBELIARD-SCHWAN","FCN"]
["90BELFORT","FCN"]
["25MONTBELIARD-SCHWAN","FCN"]
["25MONTBELIARD-SCHWAN","FCN"]
["25MONTBELIARD-SCHWAN","FCN"]
["70VESOUL","FCN"]
["70VESOUL","FCN"]
["25MONTBELIARD-SCHWAN","FCN"]
["70VESOUL","FCN"]
["70LUXEUIL","FCN"]
["25MONTBELIARD-SCHWAN","FCN"]
["25MONTBELIARD-SCHWAN","FCN"]
["70VESOUL","FCN"]
["25MONTBELIARD-FOILLE","FCN"]
["90BELFORT","FCN"]
["25MONTBELIARD-FOILLE","FCN"]
["25MONTBELIARD-SCHWAN","FCN"]
["70VESOUL","FCN"]
["25MONTBELIARD-SCHWAN","FCN"]
["70VESOUL","FCN"]
["25MONTBELIARD-FOILLE","FCN"]
["MODELE"]
["25MONTBELIARD-SCHWAN","FCN"]
["MODELE"]
["25MONTBELIARD-SCHWAN","FCN"]
["MODELE"]
["MODELE"]
["39DOLE-ZONE P","FCS"]
["25BESANCON-PALENTE","FCS"]
["25BESANCON-BERSO 57","FCS"]
["25BESANCON-PALENTE","FCS"]
["25BESANCON-PALENTE","FCS"]
["25MONTBELIARD-SCHWAN","FCN"]
["25MONTBELIARD-BEAU D","FCN"]
["MONTBELIARD-PRET","FCN"]
["25MONTBELIARD-BEAU D","FCN"]
["39DOLE-ZONE P","FCS"]
["25BESANCON-PALENTE","FCS"]
["39CHAMPAGNOLE","FCS"]
["25LERUSSEY","FCS"]
["25PONTARLIER-MERMOZ","FCS"]
["39DOLE-ZONE P","FCS"]
["39DOLE-ZONE P","FCS"]
["25BESANCON-PALENTE","FCS"]
["25BESANCON-BERSO 57","FCS"]
["25BESANCON-PALENTE","FCS"]
["39DOLE-ZONE P","FCS"]
["25BESANCON-PALENTE","FCS"]
["25MONTBELIARD-BEAU D","FCN"]
["90BELFORT","FCN"]
["25MONTBELIARD-SCHWAN","FCN"]
["25MONTBELIARD-SCHWAN","FCN"]
["90BELFORT","FCN"]
["25MONTBELIARD-SCHWAN","FCN"]
["25MONTBELIARD-BEAU D","FCN"]
["68ILLZACH-L'ILL",68]
["68ILLZACH-L'ILL",68]
["68ILLZACH-L'ILL",68]
["68ILLZACH-L'ILL",68]
["25MONTBELIARD-SCHWAN","FCN"]
["25MONTBELIARD-SCHWAN","FCN"]
["25MONTBELIARD-SCHWAN","FCN"]
["MODELE"]
["70VESOUL","FCN"]
["68ILLZACH-L'ILL",68]
["68ILLZACH-L'ILL",68]
["68ILLZACH-L'ILL",68]
["68ILLZACH-L'ILL",68]
["68ILLZACH-L'ILL",68]
["68ILLZACH-L'ILL",68]
["68ILLZACH-L'ILL",68]
["MODELE"]
["25MONTBELIARD-SCHWAN","FCN"]
["25MONTBELIARD-SCHWAN","FCN"]
["MODELE"]
["68ILLZACH-L'ILL",68]
["25MONTBELIARD-SCHWAN","FCN"]
["25MONTBELIARD-BEAU D","FCN"]
["70LURE","FCN"]
["90BELFORT","FCN"]
["68ILLZACH-L'ILL",68]
["68ILLZACH-L'ILL",68]
["68ILLZACH-L'ILL",68]
["68ILLZACH-L'ILL",68]
["MODELE"]
["39LONS-BURY","FCS"]
["70VESOUL","FCN"]
["25MONTBELIARD-SCHWAN","FCN"]
["MODELE"]
["25MONTBELIARD-SCHWAN","FCN"]
["70LUXEUIL","FCN"]
["25MONTBELIARD-SCHWAN","FCN"]
["25MONTBELIARD-SCHWAN","FCN"]
["68ILLZACH-L'ILL",68]
["39DOLE-ZONE P","FCS"]
["25BESANCON-PALENTE","FCS"]
["25BESANCON-PALENTE","FCS"]
["25BESANCON-PALENTE","FCS"]
["MODELE"]
["MODELE"]
["90BELFORT","FCN"]
["MODELE"]
["25MONTBELIARD-SCHWAN","FCN"]
["25MONTBELIARD-SCHWAN","FCN"]
["25BESANCON-BERSO 57","FCS"]
["25BESANCON-PALENTE","FCS"]
["25BESANCON-EDISON","FCS"]
["39CHAMPAGNOLE","FCS"]
["MODELE"]
["70LURE","FCN"]
["MODELE"]
["25PONT","FCS"]
["25MONTBELIARD-SCHWAN","FCN"]
["90BELFORT","FCN"]
["70VESOUL","FCN"]
["25MONTBELIARD-SCHWAN","FCN"]
["25BESANCON-PALENTE","FCS"]
["25MONTBELIARD-SCHWAN","FCN"]
["25MONTBELIARD-SCHWAN","FCN"]
["25MONTBELIARD-SCHWAN","FCN"]
["90BELFORT","FCN"]
["39CHAMPAGNOLE","FCS"]
["25BESANCON-EDISON","FCS"]
["39CHAMPAGNOLE","FCS"]
["25MONTBELIARD-FOILLE","FCN"]
["25MONTBELIARD-SCHWAN","FCN"]
["MODELE"]
["90BELFORT","FCN"]
["25MONTBELIARD-FOILLE","FCN"]
["25BESANCON-PALENTE","FCS"]
["MONTBELIARD-PRET","FCN"]
["25BESANCON-PALENTE","FCS"]
["25BESANCON-EDISON","FCS"]
["68ILLZACH-L'ILL",68]
["25PONTARLIER-MERMOZ","FCS"]
["MODELE"]
["MODELE"]
["70VESOUL","FCN"]
["MODELE"]
["MODELE"]
["MODELE"]
["25MONTBELIARD-SCHWAN","FCN"]
["25MONTBELIARD-SCHWAN","FCN"]
["25MONTBELIARD-SCHWAN","FCN"]
["25MONTBELIARD-SCHWAN","FCN"]
["MODELE"]
["90BELFORT","FCN"]
["25MONTBELIARD-BEAU D","FCN"]
["25BESANCON-PALENTE","FCS"]
["90BELFORT","FCN"]
["25BESANCON-PALENTE","FCS"]
["25MONTBELIARD-BEAU D","FCN"]
["MODELE"]
["MODELE"]
["25MONTBELIARD-SCHWAN","FCN"]
["25MONTBELIARD-SCHWAN","FCN"]
["MODELE"]
["MODELE"]
["25MONTBELIARD-SCHWAN","FCN"]
["70VESOUL","FCN"]
["70LUXEUIL","FCN"]
["25MONTBELIARD-SCHWAN","FCN"]
["68ILLZACH-L'ILL",68]
["25MONTBELIARD-SCHWAN","FCN"]
["68ILLZACH-L'ILL",68]
["39LONS-BURY","FCS"]
["25MONTBELIARD-SCHWAN","FCN"]
["68ILLZACH-L'ILL",68]
["68ILLZACH-L'ILL",68]
["68ILLZACH-L'ILL",68]
["68ILLZACH-L'ILL",68]
["68ILLZACH-L'ILL",68]
["68ILLZACH-L'ILL",68]
["68ILLZACH-L'ILL",68]
["68ILLZACH-L'ILL",68]
["70VESOUL","FCN"]
["90BELFORT","FCN"]
["68ILLZACH-L'ILL",68]
["68ILLZACH-L'ILL",68]
["68ILLZACH-L'ILL",68]
["68ILLZACH-L'ILL",68]
["68ILLZACH-L'ILL",68]
["68ILLZACH-L'ILL",68]
["68ILLZACH-L'ILL",68]
["68ILLZACH-L'ILL",68]
["68ILLZACH-L'ILL",68]
["68ILLZACH-L'ILL",68]
["68ILLZACH-L'ILL",68]
["68ILLZACH-L'ILL",68]
["68ILLZACH-L'ILL",68]
["68ILLZACH-L'ILL",68]
["68ILLZACH-L'ILL",68]
["68ILLZACH-L'ILL",68]
["68ILLZACH-L'ILL",68]
["68ILLZACH-L'ILL",68]
["68ILLZACH-L'ILL",68]
["68ILLZACH-L'ILL",68]
["68ILLZACH-L'ILL",68]
["68ILLZACH-L'ILL",68]
["68ILLZACH-L'ILL",68]
["68ILLZACH-L'ILL",68]
["68ILLZACH-L'ILL",68]
["68ILLZACH-L'ILL",68]
["68ILLZACH-L'ILL",68]
["68ILLZACH-L'ILL",68]
["68ILLZACH-L'ILL",68]
["68ILLZACH-L'ILL",68]
["68ILLZACH-L'ILL",68]
["68KINGERSHEIM",68]
["25MONTBELIARD-FOILLE","FCN"]
["68ILLZACH-L'ILL",68]
["68ILLZACH-L'ILL",68]
["25BESANCON-BERSO 57","FCS"]
["39DOLE-ZONE P","FCS"]
["68ILLZACH-L'ILL",68]
["68ILLZACH-L'ILL",68]
["68ILLZACH-L'ILL",68]
["68ILLZACH-L'ILL",68]
["25BESANCON-PALENTE","FCS"]
["68ILLZACH-L'ILL",68]
["68ILLZACH-L'ILL",68]
["68ILLZACH-L'ILL",68]
["68ILLZACH-L'ILL",68]
["68ILLZACH-L'ILL",68]
["68ILLZACH-L'ILL",68]
["25BESANCON-PALENTE","FCS"]
["68ILLZACH-L'ILL",68]
["68ILLZACH-L'ILL",68]
["68ILLZACH-L'ILL",68]
["68ILLZACH-L'ILL",68]
["68ILLZACH-L'ILL",68]
["68ILLZACH-L'ILL",68]
["68ILLZACH-L'ILL",68]
["68ILLZACH-L'ILL",68]
["68ILLZACH-L'ILL",68]
["68ILLZACH-L'ILL",68]
["68ILLZACH-L'ILL",68]
["68ILLZACH-L'ILL",68]
["68ILLZACH-L'ILL",68]
["68ILLZACH-L'ILL",68]
["68ILLZACH-L'ILL",68]
["68ILLZACH-L'ILL",68]
["68ILLZACH-L'ILL",68]
["68ILLZACH-L'ILL",68]
["68ILLZACH-L'ILL",68]
["68ILLZACH-L'ILL",68]
["68ILLZACH-L'ILL",68]
["68ILLZACH-L'ILL",68]
["68ILLZACH-L'ILL",68]
["68ILLZACH-L'ILL",68]
["68ILLZACH-L'ILL",68]
["68ILLZACH-L'ILL",68]
["68ILLZACH-L'ILL",68]
["68ILLZACH-L'ILL",68]
["68ILLZACH-L'ILL",68]
["68ILLZACH-L'ILL",68]
["68ILLZACH-L'ILL",68]
["68ILLZACH-L'ILL",68]
["68ILLZACH-L'ILL",68]
["68ILLZACH-L'ILL",68]
["68ILLZACH-L'ILL",68]
["68ILLZACH-L'ILL",68]
["68ILLZACH-L'ILL",68]
["68ILLZACH-L'ILL",68]
["68ILLZACH-L'ILL",68]
["68ILLZACH-L'ILL",68]
["68ILLZACH-L'ILL",68]
["68ILLZACH-L'ILL",68]
["68ILLZACH-L'ILL",68]
["68ILLZACH-L'ILL",68]
["68ILLZACH-L'ILL",68]
["68ILLZACH-L'ILL",68]
["68ILLZACH-L'ILL",68]
["68ILLZACH-L'ILL",68]
["68ILLZACH-L'ILL",68]
["68ILLZACH-L'ILL",68]
["68ILLZACH-L'ILL",68]
["68ILLZACH-L'ILL",68]
["68ILLZACH-L'ILL",68]
["68ILLZACH-L'ILL",68]
["68ILLZACH-L'ILL",68]
["68ILLZACH-L'ILL",68]
["68ILLZACH-L'ILL",68]
["68ILLZACH-L'ILL",68]
["68ILLZACH-L'ILL",68]
["68ILLZACH-L'ILL",68]
["68ILLZACH-L'ILL",68]
["68ILLZACH-L'ILL",68]
["68ILLZACH-L'ILL",68]
["68ILLZACH-L'ILL",68]
["68ILLZACH-L'ILL",68]
["68ILLZACH-L'ILL",68]
["68ILLZACH-L'ILL",68]
["68ILLZACH-L'ILL",68]
["68ILLZACH-L'ILL",68]
["68ILLZACH-L'ILL",68]
["68ILLZACH-L'ILL",68]
["25MONTBELIARD-SCHWAN","FCN"]
["68ILLZACH-L'ILL",68]
["68ILLZACH-L'ILL",68]
["68ILLZACH-L'ILL",68]
["68ILLZACH-L'ILL",68]
["68ILLZACH-L'ILL",68]
["68ILLZACH-L'ILL",68]
["68ILLZACH-L'ILL",68]
["68ILLZACH-L'ILL",68]
["68ILLZACH-L'ILL",68]
["68ILLZACH-L'ILL",68]
["68ILLZACH-L'ILL",68]
["68ILLZACH-L'ILL",68]
["68ILLZACH-L'ILL",68]
["68ILLZACH-L'ILL",68]
["39ST CLAUDE","FCS"]
["68ILLZACH-L'ILL",68]
["68ILLZACH-L'ILL",68]
["68ILLZACH-L'ILL",68]
["68ILLZACH-L'ILL",68]
["68ILLZACH-L'ILL",68]
["68ILLZACH-L'ILL",68]
["25MONTBELIARD-SCHWAN","FCN"]
["25MONTBELIARD-SCHWAN","FCN"]
["90BELFORT","FCN"]
["90BELFORT","FCN"]
["68ILLZACH-L'ILL",68]
["68ILLZACH-L'ILL",68]
["68ILLZACH-L'ILL",68]
["68ILLZACH-L'ILL",68]
["68ILLZACH-L'ILL",68]
["68ILLZACH-L'ILL",68]
["68ILLZACH-L'ILL",68]
["68ILLZACH-L'ILL",68]
["68ILLZACH-L'ILL",68]
["68ILLZACH-L'ILL",68]
["68ILLZACH-L'ILL",68]
["68ILLZACH-L'ILL",68]
["68ILLZACH-L'ILL",68]
["68ILLZACH-L'ILL",68]
["68ILLZACH-L'ILL",68]
["68ILLZACH-L'ILL",68]
["68ILLZACH-L'ILL",68]
["68ILLZACH-L'ILL",68]
["68ILLZACH-L'ILL",68]
["68ILLZACH-L'ILL",68]
["68ILLZACH-L'ILL",68]
["68ILLZACH-L'ILL",68]
["68ILLZACH-L'ILL",68]
["68ILLZACH-L'ILL",68]
["68ILLZACH-L'ILL",68]
["68ILLZACH-L'ILL",68]
["68ILLZACH-L'ILL",68]
["68ILLZACH-L'ILL",68]
["68ILLZACH-L'ILL",68]
["68ILLZACH-L'ILL",68]
["39CHAMPAGNOLE","FCS"]
["68ILLZACH-L'ILL",68]
["68ILLZACH-L'ILL",68]
["68ILLZACH-L'ILL",68]
["68ILLZACH-L'ILL",68]
["25MONTBELIARD-FOILLE","FCN"]
["68ILLZACH-L'ILL",68]
["68ILLZACH-L'ILL",68]
["68ILLZACH-L'ILL",68]
["68ILLZACH-L'ILL",68]
["68ILLZACH-L'ILL",68]
["68ILLZACH-L'ILL",68]
["68ILLZACH-L'ILL",68]
["68ILLZACH-L'ILL",68]
["68ILLZACH-L'ILL",68]
["68ILLZACH-L'ILL",68]
["68ILLZACH-L'ILL",68]
["68ILLZACH-L'ILL",68]
["68ILLZACH-L'ILL",68]
["68ILLZACH-L'ILL",68]
["68ILLZACH-L'ILL",68]
["68ILLZACH-L'ILL",68]
["88ST DIE-LA MENAN","FCN"]
["39LONS-BURY","FCS"]
["25BESANCON-PALENTE","FCS"]
["39ST CLAUDE","FCS"]
["25PONTARLIER-MERMOZ","FCS"]
["25PONTARLIER-MERMOZ","FCS"]
["25BESANCON-PALENTE","FCS"]
["39LONS-BURY","FCS"]
["25BESANCON-PALENTE","FCS"]
["39CHAMPAGNOLE","FCS"]
["25BESANCON-PALENTE","FCS"]
["39ST CLAUDE","FCS"]
["25BESANCON-EDISON","FCS"]
["70GRAY","FCS"]
["90BELFORT","FCN"]
["39LONS-BURY","FCS"]
["39LONS-BURY","FCS"]
["25BESANCON-PALENTE","FCS"]
["39LONS-BURY","FCS"]
["25BESANCON-BERSO 57","FCS"]
["25BESANCON-EDISON","FCS"]
["39DOLE-ZONE P","FCS"]
["25BESANCON-BERSO 57","FCS"]
["25BESANCON-BERSO 57","FCS"]
["25BESANCON-PALENTE","FCS"]
["39LONS-BURY","FCS"]
["25BESANCON-PALENTE","FCS"]
["25BESANCON-BERSO 57","FCS"]
["39DOLE-ZONE P","FCS"]
["39DOLE-ZONE P","FCS"]
["70GRAY","FCS"]
["25BESANCON-PALENTE","FCS"]
["25BESANCON-PALENTE","FCS"]
["39LONS-BURY","FCS"]
["39LONS-BURY","FCS"]
["25BESANCON-PALENTE","FCS"]
["25BESANCON-EDISON","FCS"]
["39MOREZ","FCS"]
["39LONS-BURY","FCS"]
["25MONTBELIARD-SCHWAN","FCN"]
["25MONTBELIARD-FOILLE","FCN"]
["25BESANCON-BERSO 57","FCS"]
["25BESANCON-BERSO 57","FCS"]
["25MONTBELIARD-BEAU D","FCN"]
["25BESANCON-BERSO 57","FCS"]
["25-BESAC-POOL","FCS"]
["25BESANCON-PALENTE","FCS"]
["25BESANCON-PALENTE","FCS"]
["25BESANCON-PALENTE","FCS"]
["25PONTARLIER-MERMOZ","FCS"]
["25BESANCON-PALENTE","FCS"]
["25BESANCON-PALENTE","FCS"]
["25BESANCON-PALENTE","FCS"]
["25PONTARLIER-MERMOZ","FCS"]
["39ST CLAUDE","FCS"]
["25BESANCON-PALENTE","FCS"]
["25BESANCON-PALENTE","FCS"]
["25BESANCON-EDISON","FCS"]
["25BESANCON-PALENTE","FCS"]
["39LONS-BURY","FCS"]
["39LONS-BURY","FCS"]
["39LONS-BURY","FCS"]
["25BESANCON-BERSO 57","FCS"]
["39ST CLAUDE","FCS"]
["39CHAMPAGNOLE","FCS"]
["25BESANCON-EDISON","FCS"]
["25BESANCON-EDISON","FCS"]
["39DOLE-ZONE P","FCS"]
["25BESANCON-PALENTE","FCS"]
["25BESANCON-PALENTE","FCS"]
["25MORTEAU","FCS"]
["39LONS-BURY","FCS"]
["25PONTARLIER-MERMOZ","FCS"]
["39DOLE-ZONE P","FCS"]
["39LONS-BURY","FCS"]
["25BESANCON-PALENTE","FCS"]
["39DOLE-ZONE P","FCS"]
["68ILLZACH-L'ILL",68]
["90BELFORT","FCN"]
["MONTBELIARD-PRET","FCN"]
["25MONTBELIARD-FOILLE","FCN"]
["25BESANCON-EDISON","FCS"]
["25MONTBELIARD-SCHWAN","FCN"]
["25MONTBELIARD-FOILLE","FCN"]
["70VESOUL","FCN"]
["BESANCON-PRET","FCS"]
["25BESANCON-EDISON","FCS"]
["39MOREZ","FCS"]
["25BESANCON-PALENTE","FCS"]
["25BESANCON-PALENTE","FCS"]
["39DOLE-ZONE P","FCS"]
["25BESANCON-PALENTE","FCS"]
["25BESANCON-PALENTE","FCS"]
["25MONTBELIARD-FOILLE","FCN"]
["MODELE"]
["25MONTBELIARD-SCHWAN","FCN"]
["25MONTBELIARD-SCHWAN","FCN"]
["25MONTBELIARD-SCHWAN","FCN"]
["39DOLE-ZONE P","FCS"]
["25MONTBELIARD-SCHWAN","FCN"]
["25MONTBELIARD-BEAU D","FCN"]
["25MONTBELIARD-SCHWAN","FCN"]
["39DOLE-ZONE P","FCS"]
["25MONTBELIARD-SCHWAN","FCN"]
["25MONTBELIARD-SCHWAN","FCN"]
["25MONTBELIARD-SCHWAN","FCN"]
["25MONTBELIARD-SCHWAN","FCN"]
["70VESOUL","FCN"]
["MODELE"]
["25BESANCON-PALENTE","FCS"]
["25MONTBELIARD-SCHWAN","FCN"]
["39CHAMPAGNOLE","FCS"]
["25BESANCON-PALENTE","FCS"]
["25PONTARLIER-MERMOZ","FCS"]
["39LONS-BURY","FCS"]
["25BESANCON-PALENTE","FCS"]
["25BESANCON-BERSO 57","FCS"]
["25MONTBELIARD-SCHWAN","FCN"]
["25MONTBELIARD-SCHWAN","FCN"]
["MODELE"]
["25MONTBELIARD-SCHWAN","FCN"]
["25MONTBELIARD-SCHWAN","FCN"]
["25MONTBELIARD-FOILLE","FCN"]
["MODELE"]
["MODELE"]
["25MONTBELIARD-FOILLE","FCN"]
["25MONTBELIARD-POOL-F","FCN"]
["25MONTBELIARD-SCHWAN","FCN"]
["MODELE"]
["25LERUSSEY","FCS"]
["MODELE"]
["68ILLZACH-L'ILL",68]
["68ILLZACH-L'ILL",68]
["68ILLZACH-L'ILL",68]
["68ILLZACH-L'ILL",68]
["68KINGERSHEIM",68]
["68ILLZACH-L'ILL",68]
["68ILLZACH-L'ILL",68]
["68ILLZACH-L'ILL",68]
["39DOLE-ZONE P","FCS"]
["25BESANCON-PALENTE","FCS"]
["25BESANCON-EDISON","FCS"]
["25BESANCON-PALENTE","FCS"]
["25BESANCON-EDISON","FCS"]
["70GRAY","FCS"]
["25BESANCON-PALENTE","FCS"]
["25MONTBELIARD-SCHWAN","FCN"]
["25MONTBELIARD-POOL-F","FCN"]
["25PONTARLIER-MERMOZ","FCS"]
["MODELE"]
["25MONTBELIARD-SCHWAN","FCN"]
["70VESOUL","FCN"]
["MODELE"]
["68ILLZACH-L'ILL",68]
["39DOLE-ZONE P","FCS"]
["25BESANCON-EDISON","FCS"]
["39LONS-BURY","FCS"]
["25BESANCON-PALENTE","FCS"]
["39LONS-BURY","FCS"]
["25MONTBELIARD-FOILLE","FCN"]
["25BESANCON-PALENTE","FCS"]
["25BESANCON-PALENTE","FCS"]
["25BESANCON-PALENTE","FCS"]
["25MONTBELIARD-SCHWAN","FCN"]
["68ILLZACH-L'ILL",68]
["25BESANCON-PALENTE","FCS"]
["25BESANCON-PALENTE","FCS"]
["MODELE"]
["MODELE"]
["70LUXEUIL","FCN"]
["MONTBELIARD-PRET","FCN"]
["MODELE"]
["25MONTBELIARD-BEAU D","FCN"]
["MODELE"]
["25MONTBELIARD-SCHWAN","FCN"]
["MODELE"]
["39CHAMPAGNOLE","FCS"]
["25BESANCON-PALENTE","FCS"]
["25BESANCON-BERSO 57","FCS"]
["25BESANCON-EDISON","FCS"]
["25BESANCON-PALENTE","FCS"]
["39LONS-BURY","FCS"]
["25BESANCON-PALENTE","FCS"]
["39DOLE-CLEMEN","FCS"]
["25MONTBELIARD-SCHWAN","FCN"]
["25MONTBELIARD-SCHWAN","FCN"]
["70LURE","FCN"]
["25BESANCON-EDISON","FCS"]
["68ILLZACH-L'ILL",68]
["68ILLZACH-L'ILL",68]
["68ILLZACH-L'ILL",68]
["25MONTBELIARD-BEAU D","FCN"]
["25MONTBELIARD-SCHWAN","FCN"]
["67CHATENOIS",68]
["68KINGERSHEIM",68]
["67HAGUENAU-DOMINICAI",68]
["68KINGERSHEIM",68]
["67HAGUENAU-DOMINICAI",68]
["67HAGUENAU-DOMINICAI",68]
["67HAGUENAU-DOMINICAI",68]
["67HAGUENAU-DOMINICAI",68]
["68KINGERSHEIM",68]
["68KINGERSHEIM",68]
["68KINGERSHEIM",68]
["68KINGERSHEIM",68]
["68KINGERSHEIM",68]
["67HAGUENAU-DOMINICAI",68]
["68KINGERSHEIM",68]
["68KINGERSHEIM",68]
["68KINGERSHEIM",68]
["68KINGERSHEIM",68]
["67HAGUENAU-DOMINICAI",68]
["67CHATENOIS",68]
["67HAGUENAU-DOMINICAI",68]
["68KINGERSHEIM",68]
["68KINGERSHEIM",68]
["68KINGERSHEIM",68]
["68KINGERSHEIM",68]
["68KINGERSHEIM",68]
["68KINGERSHEIM",68]
["68KINGERSHEIM",68]
["68KINGERSHEIM",68]
["67CHATENOIS",68]
["67CHATENOIS",68]
["68KINGERSHEIM",68]
["67HAGUENAU-DOMINICAI",68]
["68KINGERSHEIM",68]
["67HAGUENAU-DOMINICAI",68]
["68KINGERSHEIM",68]
["67HAGUENAU-DOMINICAI",68]
["67HAGUENAU-DOMINICAI",68]
["68KINGERSHEIM",68]
["67CHATENOIS",68]
["68KINGERSHEIM",68]
["67HAGUENAU-DOMINICAI",68]
["68ILLZACH-L'ILL",68]
["25BESANCON-EDISON","FCS"]
["68ILLZACH-L'ILL",68]
["68ILLZACH-L'ILL",68]
["68ILLZACH-L'ILL",68]
["68ILLZACH-L'ILL",68]
["68ILLZACH-L'ILL",68]
["25MONTBELIARD-SCHWAN","FCN"]
["25MONTBELIARD-SCHWAN","FCN"]
["68ILLZACH-L'ILL",68]
["68ILLZACH-L'ILL",68]
["68ILLZACH-L'ILL",68]
["25MONTBELIARD-SCHWAN","FCN"]
["68ILLZACH-L'ILL",68]
["25BESANCON-EDISON","FCS"]
["25BESANCON-EDISON","FCS"]
["68ILLZACH-L'ILL",68]
["68ILLZACH-L'ILL",68]
["68ILLZACH-L'ILL",68]
["68ILLZACH-L'ILL",68]
["25MONTBELIARD-SCHWAN","FCN"]
["68ILLZACH-L'ILL",68]
["68ILLZACH-L'ILL",68]
["25BESANCON-EDISON","FCS"]
["25BESANCON-EDISON","FCS"]
["68ILLZACH-L'ILL",68]
["70VESOUL","FCN"]
["70VESOUL","FCN"]
["70VESOUL","FCN"]
["90BELFORT","FCN"]
["90BELFORT","FCN"]
["25MONTBELIARD-BEAU D","FCN"]
["25MONTBELIARD-BEAU D","FCN"]
["90BELFORT","FCN"]
["70VESOUL","FCN"]
["25MONTBELIARD-BEAU D","FCN"]
["25MONTBELIARD-BEAU D","FCN"]
["70VESOUL","FCN"]
["90BELFORT","FCN"]
["25MONTBELIARD-BEAU D","FCN"]
["90BELFORT","FCN"]
["25MONTBELIARD-BEAU D","FCN"]
["90BELFORT","FCN"]
["25MONTBELIARD-BEAU D","FCN"]
["25MONTBELIARD-BEAU D","FCN"]
["90BELFORT","FCN"]
["25MONTBELIARD-BEAU D","FCN"]
["25MONTBELIARD-BEAU D","FCN"]
["25MONTBELIARD-BEAU D","FCN"]
["25MONTBELIARD-BEAU D","FCN"]
["90BELFORT","FCN"]
["25MONTBELIARD-BEAU D","FCN"]
["25MONTBELIARD-BEAU D","FCN"]
["25MONTBELIARD-BEAU D","FCN"]
["25MONTBELIARD-BEAU D","FCN"]
["90BELFORT","FCN"]
["39LONS-BURY","FCS"]
["39LONS-BURY","FCS"]
["39DOLE-ZONE P","FCS"]
["25BESANCON-EDISON","FCS"]
["25BESANCON-EDISON","FCS"]
["39LONS-BURY","FCS"]
["39DOLE-ZONE P","FCS"]
["39DOLE-ZONE P","FCS"]
["25BESANCON-EDISON","FCS"]
["25BESANCON-EDISON","FCS"]
["25BESANCON-EDISON","FCS"]
["25BESANCON-EDISON","FCS"]
["25BESANCON-EDISON","FCS"]
["25BESANCON-EDISON","FCS"]
["25BESANCON-EDISON","FCS"]
["25BESANCON-EDISON","FCS"]
["25BESANCON-EDISON","FCS"]
["39DOLE-ZONE P","FCS"]
["25BESANCON-EDISON","FCS"]
["39LONS-BURY","FCS"]
["25BESANCON-EDISON","FCS"]
["25BESANCON-EDISON","FCS"]
["39LONS-BURY","FCS"]
["39LONS-BURY","FCS"]
["39DOLE-ZONE P","FCS"]
["39DOLE-ZONE P","FCS"]
["25BESANCON-EDISON","FCS"]
["25BESANCON-EDISON","FCS"]
["39LONS-BURY","FCS"]
["39DOLE-ZONE P","FCS"]
["25BESANCON-EDISON","FCS"]
["25BESANCON-EDISON","FCS"]
["39DOLE-ZONE P","FCS"]
["39DOLE-ZONE P","FCS"]
["68ILLZACH-L'ILL",68]
["67SELESTAT",68]
["67SELESTAT",68]
["67SELESTAT",68]
["67SELESTAT",68]
["67SELESTAT",68]
["25MONTBELIARD-BEAU D","FCN"]
["25MONTBELIARD-BEAU D","FCN"]
["25MONTBELIARD-BEAU D","FCN"]
["25MONTBELIARD-BEAU D","FCN"]
["25MONTBELIARD-BEAU D","FCN"]
["70VESOUL","FCN"]
["70VESOUL","FCN"]
["25BESANCON-BERSO 57","FCS"]
["25BESANCON-BERSO 57","FCS"]
["25BESANCON-BERSO 57","FCS"]
["25BESANCON-BERSO 57","FCS"]
["39LONS-BURY","FCS"]
["MODELE"]
["MODELE"]
["MODELE"]
["MODELE"]
["MODELE"]
["MODELE"]
["MODELE"]
["MODELE"]
["MODELE"]
["MODELE"]
["MODELE"]
["MODELE"]
["MODELE"]
["MODELE"]
["MODELE"]
["MODELE"]
["MODELE"]
["MODELE"]
["MODELE"]
["MODELE"]
["MODELE"]
["MODELE"]
["MODELE"]
["MODELE"]
["MODELE"]
["MODELE"]
["MODELE"]
["MODELE"]
["MODELE"]
["MODELE"]
["MODELE"]
["MODELE"]
["MODELE"]
["MODELE"]
["MODELE"]
["MODELE"]
["MODELE"]
["MODELE"]
["MODELE"]
["MODELE"]
["MODELE"]
["MODELE"]
["MODELE"]
["MODELE"]
["MODELE"]
["MODELE"]
["MODELE"]
["MODELE"]
["MODELE"]
["MODELE"]
["MODELE"]
["MODELE"]
["MODELE"]
["MODELE"]
["MODELE"]
["MODELE"]
["MODELE"]
["54NANCY-DE FOUC","FCN"]
["MODELE"]
["MODELE"]
["MODELE"]
["MODELE"]
["MODELE"]
["MODELE"]
["MODELE"]
["MODELE"]
["MODELE"]
["MODELE"]
["MODELE"]
["MODELE"]
["MODELE"]
["MODELE"]
["MODELE"]
["MODELE"]
["MODELE"]
["MODELE"]
["MODELE"]
["MODELE"]
["MODELE"]
["MODELE"]
["MODELE"]
["MODELE"]
["MODELE"]
["MODELE"]
["MODELE"]
["MODELE"]
["MODELE"]
["MODELE"]
["MODELE"]
["MODELE"]
["MODELE"]
["MODELE"]
["MODELE"]
["MODELE"]
["MODELE"]
["MODELE"]
["MODELE"]
["MODELE"]
["MODELE"]
["MODELE"]
["MODELE"]
["MODELE"]
["MODELE"]
["MODELE"]
["MODELE"]
["MODELE"]
["MODELE"]
["MODELE"]
["MODELE"]
["MODELE"]
["MODELE"]
["MODELE"]
["MODELE"]
["MODELE"]
["MODELE"]
["MODELE"]
["MODELE"]
["MODELE"]
["25MONTBELIARD-SCHWAN","FCN"]

{"sheet":"LIB","index":4,"n_rows":2059,"n_cols":2,"rows_kept":2059,"hidden":true}
["Immat","Lib"]
[1377,"REM PORTE PANNEAU"]
["0015YM68","PEUGEOT_206"]
["0041TW68","RVI 170-13 4X4"]
["0048WB25","RENAULT_MASTER"]
["0056WJ25","SIPREL-RASSOL_REM PORTE TOUR R502"]
["0061VM68","RENAULT_MASTER"]
["0064ZK68","RENAULT_MASTER"]
["0067XD25","REM PORTE PANNEAU"]
["0075WE25","RENAULT_CLIO"]
["0085VW25","RENAULT_SUPER 5"]
["0097TJ68","RVI_S 150"]
["0102VM25","CITROEN_AX"]
["0116YS68","RENAULT_MASTER"]
["0127XL68","RENAULT_KANGOO"]
["0132XL68","RENAULT_KANGOO"]
["0136XL68","RENAULT_KANGOO"]
["0140XL68","RENAULT_KANGOO"]
["0144VS25","RENAULT_SUPER 5"]
["0144XL68","RENAULT_KANGOO"]
["0147XL68","RENAULT_KANGOO"]
["0153VH25","MACO MEUDON_COMPRESSEUR"]
["0155XY25","MERCEDES SPRINTER 4X4"]
["0168XD25","RENAULT_KANGOO"]
["0169XD25","RENAULT_KANGOO"]
["0173XD25","RENAULT_KANGOO"]
["0175XD25","RENAULT_KANGOO"]
["0177VZ68","ECOMECA ENROULEUSE"]
["0178XD25","RENAULT_KANGOO"]
["0181XD25","RENAULT_KANGOO"]
["0204WR68","PEUGEOT_106"]
["0220NE25","CABINE MOBILE"]
["0242XJ68","NISSAN_PATROL"]
["0245XH25","RENAULT_CLIO"]
["0247XH25","RENAULT_CLIO"]
["0248XH25","RENAULT_CLIO"]
["0249VE25","INCONNU"]
["0254XH25","IVECO_DAILY"]
["0275RC68","INCONNU"]
["0283WD68","ECEM REM SOUDURE"]
["0284WD68","RENAULT_CLIO"]
["0287RT39","GROUPE SOUDURE"]
["0290WD68","RENAULT_CLIO"]
["0290XJ25","RENAULT_CLIO"]
["0295XJ25","RENAULT_CLIO"]
["0305XA68","CITROEN_SAXO"]
["0318VT25","DEMICO_REM R11"]
["0326VM25","CITROEN_C 15"]
["0334WD68","PEUGEOT_106"]
["0337WD68","PEUGEOT_106"]
["0350PQ68","POSTE SEREM"]
["0351TZ25","RENAULT_EXPRESS"]
["0365QK68","ERGE R500"]
["0377WG25","PEUGEOT_106"]
["0377WP68","CITROEN_SAXO"]
["0380RR39","RENAULT_CLIO"]
["0381RR39","RENAULT_CLIO"]
["0382RR39","RENAULT_CLIO"]
["0382WP68","CITROEN_SAXO"]
["0383YY25","RENAULT_MEGANE"]
["0385RR39","RENAULT_CLIO"]
["0387RR39","RENAULT_CLIO"]
["0389RR39","RENAULT_CLIO"]
["0402WH25","CITROEN_C 15"]
["0403WH25","CITROEN_C 15"]
["0406WH25","CITROEN_C 15"]
["0412VQ25","CITROEN_AX"]
["0414VQ25","CITROEN_AX"]
["0428XZ25","RENAULT_MEGANE"]
["0431XZ25","RENAULT_KANGOO"]
["0439XQ68","RENAULT_TWINGO"]
["0455VX25","PEUGEOT_205"]
["0457VX25","RENAULT_SUPER 5"]
["0457YT25","KANGOO 4X4"]
["0458VX25","RENAULT_SUPER 5"]
["0459YT25","KANGOO 4X4"]
["0460VX25","RENAULT_SUPER 5"]
["0461YT25","RENAULT_KANGOO"]
["0462YT25","RENAULT_KANGOO"]
["0464YT25","RENAULT_KANGOO"]
["0465YT25","VOLKSWAGEN TRANSPORTER 4X4"]
["0466YT25","VOLKSWAGEN TRANSPORTER 4X4"]
["0467VX25","RENAULT_MASTER"]
["0467XA68","RENAULT_TWINGO"]
["0470VX25","CITROEN_C 15"]
["0472XA68","RENAULT_TWINGO"]
["0476XA68","RENAULT_TWINGO"]
["0506WY25","PEUGEOT_106"]
["0509VN68","SACEM REM B500"]
["0510WS25","RENAULT_MASTER"]
["0527QT68","COMPRESSEUR PEUGEOT"]
["0548WL25","RENAULT_CLIO"]
["0550WL25","RENAULT_EXPRESS"]
["0554WL25","RENAULT_EXPRESS"]
["0571VG68","IVECO 80.17 TRIBENNE"]
["0624VY25","RVI_4X4JP3"]
["0632WA68","RENAULT_MASTER"]
["0632XH68","PEUGEOT_BOXER"]
["0632XZ68","RENAULT_KANGOO"]
["0640XQ25","RVI_110X150"]
["0641XA68","PEUGEOT_206"]
["0648WY68","RVI 110 150 4X4 / RENAULT 100KVA"]
["0659SN25","SIPREL-RASSOL_REM PORTE TOUR RT900"]
["0660SN25","SIPREL-RASSOL_REM PORTE TOUR RT900"]
["0677VS25","SDMO GE"]
["0680VS25","SDMO GE"]
["0694VG68","RVI 110 150 4X4 / AMAN 100KVA"]
["0701ZJ25","RENAULT_KANGOO"]
["0702ZJ25","RENAULT_KANGOO"]
["0704VB25","RENAULT_TRAFIC"]
["0707VB25","RENAULT_TRAFIC"]
["0712VC25","DEMICO_REM R11"]
["0713XL25","RENAULT_CLIO"]
["0720XL25","RENAULT_CLIO"]
["0721XY68","RENAULT_MASTER"]
["0734YN25","RENAULT_MASTER"]
["0738TP25","SIPREL-RASSOL_REM PORTE TOUR RT900"]
["0746WX25","RENAULT_EXPRESS"]
["0753XL25","PEUGEOT_PARTNER"]
["0770XL25","PEUGEOT_EXPERT"]
["0781XH68","PEUGEOT_EXPERT"]
["0783XH68","PEUGEOT_206"]
["0805SD39","NISSAN_PATROL"]
["0810TG25","SIPREL-RASSOL_REM PORTE TOUR R502"]
["0843WF25","RENAULT_MASTER"]
["0844WF25","PEUGEOT_BOXER"]
["0860WP25","DEFENDER 110 6 PL"]
["0862WP25","RENAULT_MASTER"]
["0872ZK25","NISSAN PATHFINDER"]
["0884WB68","CITROEN_AX"]
["0886WB68","CITROEN_AX"]
["0890SQ25","RVI G260 / LEROY SOMMER 175KVA"]
["0890VQ25","CITROEN_C 15"]
["0890WB68","CITROEN_AX"]
["0891WB68","PEUGEOT_BOXER"]
["0896TW25","RVI_BA02A0 / GROUPE 160KVA"]
["0930YR25","RENAULT_MASTER"]
["0947VV25","PEUGEOT_205"]
["0962WS68","IVECO_DAILY"]
["0964WP25","RENAULT_EXPRESS"]
["0967WP25","RENAULT_EXPRESS"]
["0969WP25","RENAULT_CLIO"]
["0972WP25","RENAULT_TRAFIC"]
["0976XP68","PEUGEOT_BOXER"]
["0980VP25","RENAULT_SUPER 5"]
["0982XP68","PEUGEOT_BOXER"]
["0984WE68","SIPREL-RASSOL_REM PORTE TOUR RT900"]
["0987XP68","NISSAN_PATROL"]
["0988WH25","RENAULT_EXPRESS"]
["0988XP68","NISSAN_PATROL"]
["0991XP68","FIAT_PANDA"]
["0995WH25","RENAULT_EXPRESS"]
["1015WC68","RENAULT_MASTER"]
["1027XG68","RENAULT_CLIO GNV"]
["1036RE68","DEMICO REM"]
["1059TA25","DEMICO REM R11"]
["1073XZ25","CITROEN_BERLINGO"]
["1091ZS68","RENAULT_CLIO"]
["1095ZS68","RENAULT_CLIO"]
["1096ZS68","RENAULT_CLIO"]
["1101ZS68","RENAULT_CLIO"]
["1103ZS68","RENAULT_CLIO"]
["1126VA25","INCONNU"]
["1144WE25","RENAULT_EXPRESS"]
["1147XR68","RENAULT_CLIO"]
["1148WE25","RENAULT_EXPRESS"]
["1149ZK25","RENAULT SCENIC 1,5  DCI 85"]
["1158YE25","RENAULT_CLIO"]
["1160VV25","RENAULT_MASTER"]
["1160YE25","RENAULT_CLIO"]
["1166XS25","RENAULT_CLIO"]
["1171XS25","RENAULT_CLIO"]
["1172XS25","RENAULT_CLIO"]
["1173XS25","RENAULT_KANGOO"]
["1174XS25","RENAULT_KANGOO"]
["1179XS25","RENAULT_KANGOO"]
["1180XS25","RENAULT_KANGOO"]
["1187VV25","RENAULT_SUPER 5"]
["1189VV25","RENAULT_SUPER 5"]
["1197XZ25","RENAULT_LAGUNA"]
["1215WY25","PEUGEOT_106"]
["1217WY25","CITROEN_BERLINGO"]
["1221WY25","CITROEN_BERLINGO"]
["1223WY25","CITROEN_BERLINGO"]
["1237RT39","RENAULT_EXPRESS"]
["1277TX25","DEMICO_REM R11"]
["1279TX25","DEMICO_REM R11"]
["1290WM25","CITROEN_JUMPER"]
["1291WM25","CITROEN_JUMPER"]
["1292WM25","CITROEN_AX"]
["1293WM25","CITROEN_JUMPER"]
["1294WM25","CITROEN_C 15"]
["1314VJ25","REM RT 900"]
["1362ZR25","PEUGEOT_PARTNER"]
["1363SJ25","INCONNU"]
["1368SJ25","CITROEN_C 35"]
["1373XD68","RENAULT_TWINGO"]
["1376XF25","RENAULT_KANGOO"]
["1377XF25","RENAULT_SCENIC"]
["1381XD68","RENAULT_TWINGO"]
["1382XD68","RENAULT_TWINGO"]
["1386SJ25","INCONNU"]
["1402RX68","DEMICO_REM R11"]
["1402YA25","RENAULT_KANGOO"]
["1405WR68","IVECO 120E15 CARGO / GRUE PLATEAU HIAB 100A/B2"]
["1407ZJ25","RENAULT_KANGOO"]
["1408ZJ25","RENAULT_KANGOO"]
["1410ZJ25","RENAULT_MASTER"]
["1411ZJ25","RENAULT_MASTER"]
["1413ZB25","RENAULT_MASTER"]
["1453VB25","RVI_FN40A0"]
["1460XM25","ECIM_REM DIVERS"]
["1461XM25","ECIM_REM DIVERS"]
["1463XM25","SDMO"]
["1464XM25","SDMO"]
["1466XM25","ECIM_REM DIVERS"]
["1468XM25","SDMO GE"]
["1470TR25","MERCEDES_711"]
["1478WC25","PAILLARD_TAPIR"]
["1490WK68","PEUGEOT_BOXER"]
["1498WK68","CITROEN_C 15"]
["1498XX68","CITROEN_JUMPY"]
["1505WK68","RENAULT_TWINGO"]
["1507WP68","RENAULT_KANGOO"]
["1508WK68","RENAULT_TWINGO"]
["1508WP68","RENAULT_KANGOO"]
["1510WP68","RENAULT_KANGOO"]
["1514ZF25","RENAULT_KANGOO"]
["1515SR25","REM RT 900"]
["1516WK68","PEUGEOT_106"]
["1520RX39","RENAULT_KANGOO"]
["1521WK68","CITROEN_SAXO"]
["1523WK68","CITROEN_SAXO"]
["1524WK68","CITROEN_SAXO"]
["1524YX68","RENAULT_MASTER"]
["1527YX68","RENAULT_MASTER"]
["1535VR25","RENAULT_MASTER"]
["1548VG25","RVI_110X150"]
["1559WC68","THOMAS MT 15-20"]
["1577XA25","PEUGEOT_306"]
["1655VY68","PEUGEOT_106"]
["1658VY68","PEUGEOT_106"]
["1661VY68","PEUGEOT_106"]
["1662ZP25","CLIO"]
["1664VC25","RENAULT_MASTER"]
["1664ZS25","C 3 GNV"]
["1670VC25","RENAULT_SUPER 5"]
["1681ZH68","RENAULT_CLIO"]
["1683WJ68","PEUGEOT_106"]
["1683ZH68","RENAULT_CLIO"]
["1684WJ68","PEUGEOT_106"]
["1685VC25","RENAULT_SUPER 5"]
["1685WJ68","PEUGEOT_106"]
["1685ZH68","RENAULT_KANGOO"]
["1686WJ68","RENAULT_EXPRESS"]
["1688ZH68","RENAULT_KANGOO"]
["1690VC25","RENAULT_SUPER 5"]
["1692WJ68","RENAULT_EXPRESS"]
["1700WN25","REMORQUE  TRANSFO  "]
["1702WN25","CITROEN_C 15"]
["1703WN25","CITROEN_C 15"]
["1704VC25","PEUGEOT_205"]
["1708VC25","PEUGEOT_205"]
["1751XK68","RENAULT_TWINGO"]
["1775WA25","RENAULT_MASTER"]
["1776XK25","SIPREL-RASSOL_PORTE TOURET RT 500"]
["1777XK25","SIPREL-RASSOL_PORTE TOURET RT 500"]
["1777XL25","PEUGEOT_206"]
["1778XK25","SIPREL-RASSOL_REM PORTE TOUR RT900"]
["1778XL25","PEUGEOT_206"]
["1779XK25","RVI_40ACE5 / COMILEV EN140EP"]
["1779XL25","PEUGEOT_206"]
["1781XL25","PEUGEOT_206"]
["1782XL25","PEUGEOT_206"]
["1785XL25","PEUGEOT_BOXER"]
["1788XK25","PEUGEOT_EXPERT"]
["1807YT68","PEUGEOT_PARTNER"]
["1808YT68","PEUGEOT_PARTNER"]
["1809YT68","PEUGEOT_PARTNER"]
["1814WR68","RENAULT_MASTER"]
["1834WR68","CITROEN_BERLINGO"]
["1871WZ25","RENAULT_CLIO"]
["1872WZ25","RENAULT_CLIO"]
["1874WZ25","RENAULT_KANGOO"]
["1905YV25","C 3 GNV"]
["1907YV25","C 3 GNV"]
["1908RT39","SACEM_REM GROUPE SOUDURE"]
["1908YV25","C 3 GNV"]
["1909YV25","C 3 GNV"]
["1910YV25","C 3 GNV"]
["1912ZC25","IVECO 4X4_ELEVATEUR / TIME FRANCE VST244NF"]
["1917YV25","C 3 GNV"]
["1918YV25","C 3 GNV"]
["1920YV25","C 3 GNV"]
["1921YV25","C 3 GNV"]
["1922VK68","RVI G210"]
["1933ZG68","MEGANE"]
["1934XX68","CITROEN_JUMPER"]
["1967VA25","PEUGEOT_205"]
["1988SR25","INCONNU"]
["1988YN68","BOEGLIN PLATEAU"]
["1995VY25","REM RT 900"]
["1995WD68","CITROEN_C 15"]
["2002SK68","BALAZUC CABIN. MOB"]
["2003WQ25","RENAULT_MASTER"]
["2013WH25","CITROEN_C 15"]
["2016WH25","CITROEN_C 15"]
["2019WH25","CITROEN_C 15"]
["2022WH25","CITROEN_C 15"]
["2024WS25","RVI_FN60A0"]
["2029WH25","CITROEN_C 15"]
["2043WF68","RENAULT_TWINGO"]
["2060XV68","CITROEN_SAXO"]
["2061XV68","CITROEN_SAXO"]
["2062VQ25","RENAULT_EXPRESS"]
["2062XV68","CITROEN_SAXO"]
["2064SC39","RENAULT_MASTER"]
["2066XV68","CITROEN_SAXO"]
["2111YF68","RENAULT_CLIO"]
["2130WE25","RENAULT_CLIO"]
["2147RY39","RENAULT_CLIO"]
["2189XK25","PEUGEOT_BOXER"]
["219ALS68","GERBEUR_CHARIOT ELEVATEUR"]
["2220WK25","RENAULT_EXPRESS"]
["2221WK25","RENAULT_EXPRESS"]
["2225TX25","RVI S100 S13"]
["2225WK25","RENAULT_EXPRESS"]
["2226WK25","RENAULT_EXPRESS"]
["2236SB25","SIPREL-RASSOL_PORTE TOURET RT 500"]
["2248SZ25","REMORQUE  A BETON"]
["2248WG68","RENAULT_CLIO"]
["2258ZJ68","CLIO"]
["2263VP25","G230 GRUE HIAB"]
["2269XX25","RENAULT_CLIO"]
["2270XX25","RENAULT_CLIO"]
["2273XX25","RENAULT_CLIO"]
["2285ZB25","PEUGEOT_PARTNER"]
["2291ZM25","CITROEN_BERLINGO 4X4"]
["229ALS68","FENWICK_CHARIOT ELEVATEUR"]
["2303RA68","DEMICO_REM R11"]
["2308VR25","CITROEN_C 15"]
["2309VR25","CITROEN_C 15"]
["230ALS68","TOYOTA_CHARIOT ELEVATEUR"]
["2314VR25","RENAULT_SUPER 5"]
["2317VR25","RENAULT_SUPER 5"]
["2318VR25","PEUGEOT_205"]
["2322VR25","PEUGEOT_205"]
["2324WD25","CITROEN_C 15"]
["232ALS68","CATERPILAR_CHARIOT ELEVATEUR"]
["2402VR25","SIPREL-RASSOL_REM PORTE TOUR R502"]
["2402VT25","RENAULT_CLIO"]
["2405VT25","RENAULT_CLIO"]
["2405WL25","IVECO_DAILY"]
["2410VT25","THOMA4X4_AR1929 / FOREUSE.SEP.C170"]
["2413WB68","RVI 180-13 4X4 / GRUE PLATEAU HIAB 140AW"]
["2441XD25","RENAULT_KANGOO"]
["2443XD25","PEUGEOT_BOXER 4X4"]
["2444XW68","NISSAN_PATROL MERCA"]
["2446WN25","RVI M180 4 X4 / F.ELEVATEUR TYPE 152 TTU"]
["2448WN25","RVI M180 4 X4 / F.ELEVATEUR TYPE 152 TTU"]
["2449ZJ25","RENAULT_KANGOO"]
["2462XG25","RENAULT_CLIO"]
["2465XQ25","IVECO_100E18 / F.ELEVATEUR TYPE 152 TPM"]
["2472WA68","RVI 365"]
["2477WG68","CITROEN_SAXO"]
["2481SG39","RENAULT_CLIO"]
["2496ZG25","DEFENDER 110 6 PL"]
["2499XM68","RENAULT_TWINGO"]
["2501XM68","RENAULT_CLIO"]
["2507VC25","DEMICO_REM R11"]
["250CMP01","CABINE MOBILE"]
["2551RV39","RENAULT_CLIO"]
["2553RV39","RENAULT_CLIO"]
["2556WK25","PEUGEOT_106"]
["2557WK25","PEUGEOT_106"]
["2558WK25","PEUGEOT_106"]
["2559WK25","PEUGEOT_106"]
["2560WK25","PEUGEOT_106"]
["2561WK25","PEUGEOT_106"]
["2574WK25","RENAULT_CLIO"]
["2575WK25","RENAULT_CLIO"]
["2576WK25","RENAULT_CLIO"]
["2577WK25","RENAULT_CLIO"]
["2578XA25","HUBIERE REM"]
["2599TF25","IVECO_ELEVATEUR"]
["260BEA67","CLIO"]
["2616WS25","PEUGEOT_106"]
["2620WS25","CITROEN_JUMPY"]
["2622WS25","PEUGEOT_PARTNER"]
["2638ZH68","CITROEN_BERLINGO"]
["2646ZH68","CITROEN_BERLINGO"]
["2649ZH68","C 3 GNV"]
["2676WL25","CITROEN_ZX"]
["2692ZH25","RENAULT_TRAFIC"]
["2708XM25","REM RT 1250"]
["2709XM25","REM RT 1250"]
["2710XM25","RENAULT_KANGOO"]
["2722WK25","RENAULT_CLIO"]
["2725WK25","RENAULT_CLIO"]
["2733WK25","RENAULT_CLIO"]
["2750WK68","RENAULT_MASTER"]
["2776TN25","DEMICO_REM R11"]
["2777TN25","DEMICO_REM R11"]
["2789ZK68","MERCEDES_SPRINTER"]
["2797ZB25","RENAULT_MASTER"]
["2807VE68","RVI 110 150 4X4"]
["2809WR25","PEUGEOT_106"]
["2814WR25","DEMICO_REM R11"]
["2815WR25","RENAULT_MASTER"]
["2826XJ25","RENAULT_CLIO"]
["2836YS25","RENAULT_KANGOO"]
["2842YS25","RENAULT_KANGOO"]
["2856WZ25","RENAULT_TRAFIC"]
["2858WZ25","RENAULT_TRAFIC"]
["2858YA25","CITROEN_BERLINGO"]
["2863YZ25","RENAULT_CLIO"]
["2867YZ25","RENAULT_CLIO"]
["2869YZ25","RENAULT_CLIO"]
["2895XE68","RENAULT_CLIO"]
["2900ZK68","RENAULT_KANGOO"]
["2942WH25","REM_GROUPE SOUDURE"]
["2959ZR25","RENAULT_MASTER"]
["2987VL25","PEUGEOT_205"]
["2988XZ68","CITROEN_SAXO"]
["2993VL25","RENAULT_MASTER"]
["2996VL25","RENAULT_MASTER"]
["3010YD25","CITROEN_JUMPER"]
["3012VL25","REM RT 502 A"]
["3022VL25","PEUGEOT_205"]
["3023VL25","CITROEN_C 15"]
["3025VL25","CITROEN_C 15"]
["3035YW25","RENAULT_KANGOO 4X4"]
["3041ZQ68","MITSUBISHI_L200"]
["3068RT25","CABINE MOBILE"]
["3076TP25","REM TOURNIER"]
["3085XP25","RVI_42ACA0 / COMILEV EN140TPC"]
["3108ZM25","IVECO_ML140E25WRS 4X4 /FRANCE ELEVATEUR 162 TBA N° 3080"]
["3129WP68","RENAULT_KANGOO"]
["3130VS25","CITROEN_AX"]
["3130WP68","CITROEN_BERLINGO"]
["3131VS25","CITROEN_AX"]
["3132ZR25","RENAULT MASTER"]
["3143WB68","RENAULT_TWINGO"]
["3162WJ25","RVI G300 / GROUPE MOTEUR PERKINGS 250KVA"]
["3166WT25","RVI 95.130"]
["3199YF25","RENAULT_MASTER"]
["3230SF39","PEUGEOT_PARTNER"]
["3248VK25","PEUGEOT_J9"]
["3264XL25","HUBIERE_REM COMPRESSEUR"]
["3266WR25","ECEM_REM_SOUDURE"]
["3267WR25","JAUNIN_REM DIVERS"]
["3284XH25","PARTNER 4X4"]
["3294VV25","REMORQUE MARTEL"]
["3297VV25","RENAULT_MASTER"]
["3302RC25","MERCEDES_ELEVATEUR"]
["3309XD68","PLUTONARC REM SOUDURE"]
["3356ZQ25","PARTNER"]
["3366YG25","SIPREL-RASSOL_REM PORTE TOUR RT900"]
["3366YM25","RENAULT_KANGOO"]
["3368YG25","SIPREL-RASSOL_PORTE TOURET RT 500"]
["3372YG25","SIPREL-RASSOL_PORTE TOURET RT 500"]
["3377VS25","RENAULT_MASTER"]
["3378TG25","RENAULT_SUPER 5"]
["3406WR25","RENAULT_EXPRESS"]
["3408WR25","RENAULT_CLIO"]
["3409ZG25","C 3 GNV"]
["3410XX25","RENAULT_CLIO"]
["3411WR25","PEUGEOT_106"]
["3414YS68","RENAULT_KANGOO"]
["3417XY25","CITROEN_JUMPY"]
["3418YS68","RENAULT_KANGOO"]
["3420YS68","RENAULT_KANGOO"]
["3465ZJ25","RVI KERAX 270DCI 4X4"]
["3475RT39","RENAULT_MASTER"]
["3488VV25","PEUGEOT_205"]
["3523XF25","RENAULT_KANGOO"]
["3524XF25","PEUGEOT_BOXER 4X4"]
["3525XF25","PEUGEOT_BOXER 4X4"]
["3525XT25","RENAULT_KANGOO"]
["3529ZG25","C 3 GNV"]
["3531ZG25","C 3 GNV"]
["3532ZG25","C 3 GNV"]
["3533ZG25","C 3 GNV"]
["3534ZG25","CITROEN_BERLINGO"]
["3535ZG25","CITROEN_BERLINGO"]
["3536ZG25","CITROEN_BERLINGO"]
["3537ZG25","CITROEN_BERLINGO"]
["3538ZG25","CITROEN_BERLINGO"]
["3539WQ25","PEUGEOT_BOXER"]
["3540ZG25","CITROEN_BERLINGO"]
["3543WK25","RENAULT_CLIO"]
["3544WK25","RENAULT_CLIO"]
["3545WK25","RENAULT_CLIO"]
["3569RY25","REM TRANSFO SEREM"]
["3570RY25","REM TRANSFO SEREM"]
["3572RY25","INCONNU"]
["3605WF25","REM RT 502 A"]
["3621WB25","RENAULT_CLIO"]
["3633TJ25","INCONNU"]
["3635WE68","RENAULT_EXPRESS"]
["3653WE68","RENAULT_CLIO"]
["3654TS25","MERCEDES_709"]
["3664SN25","PLUTONARC_REM_SOUDUR"]
["3665SN25","INCONNU"]
["3674VP25","RVI_110X150"]
["3696WH25","CITROEN_C 15"]
["3697WH25","CITROEN_C 15"]
["3698WH25","CITROEN_C 15"]
["3721XH68","PEUGEOT_206"]
["3732WR68","RENAULT_EXPRESS"]
["3735WR68","RENAULT_EXPRESS"]
["3735XL25","PEUGEOT_EXPERT"]
["3739VR68","RVI B110"]
["3749WR68","RENAULT_EXPRESS"]
["3754RS25","DEMICO_REM_R11"]
["3781YR25","RENAULT_KANGOO"]
["3786TE25","RVI 95.130"]
["3792YR25","RENAULT_KANGOO"]
["3794XR25","RENAULT_KANGOO"]
["3794YR25","RENAULT_MASTER"]
["3795XR25","RENAULT_KANGOO"]
["3797XR25","RENAULT_KANGOO"]
["3798XR25","RENAULT_KANGOO"]
["3819YM25","IVECO ML 100 E 18 / EGI TP214NA"]
["3843SA25","DEMICO REM R11"]
["3865VX68","RENAULT_TWINGO"]
["3874WB68","PEUGEOT_106"]
["3876WB68","PEUGEOT_106"]
["3877WV25","RENAULT_KANGOO"]
["3880XM68","RENAULT_TWINGO"]
["3911RY25","DEMICO_REM_R11"]
["3912RY25","DEMICO REM R11"]
["3912YF68","RENAULT_MASTER"]
["3920VL68","SEREM CABINE MOBILE"]
["3921VS25","RVI_ELEVATEUR"]
["3924ZQ25","RENAULT_CLIO"]
["3925ZQ25","RENAULT_CLIO"]
["3930SD25","SULAIR_COMPRESSEUR"]
["3934ZQ25","RENAULT_CLIO"]
["3937ZG25","RENAULT_MASTER"]
["3939ZG25","RENAULT_MASTER"]
["3942ZG25","RENAULT_MASTER"]
["3943XF25","RVI M 180 162 TBA-FE / F.ELEVATEUR TYPE 162TBA"]
["3944ZG25","RENAULT_MASTER"]
["3971RL68","INCONNU"]
["3971VC25","DEMICO_REM DIVERS"]
["3974ZN68","IVECO DAILY 50C15V"]
["3974ZQ25","RENAULT_CLIO"]
["3981VY25","RVI_JN1A12"]
["3983WN68","RENAULT_TWINGO"]
["3984ZQ25","RENAULT_CLIO"]
["3988ZQ25","RENAULT_CLIO"]
["3989ZQ25","RENAULT_CLIO"]
["3991ZQ25","RENAULT_CLIO"]
["4006ZF25","CITROEN_BERLINGO_4X4"]
["4059XD25","CITROEN_JUMPY"]
["4061XD25","PEUGEOT_BOXER"]
["4065XJ25","RENAULT_CLIO"]
["4066XJ25","RENAULT_TWINGO"]
["4067XJ25","RENAULT_CLIO"]
["4070XJ25","RENAULT_CLIO"]
["4095RN39","RENAULT_EXPRESS"]
["4105YE68","RENAULT_CLIO"]
["4106YE68","RENAULT_CLIO"]
["4138YN25","PEUGEOT_206"]
["4140YN25","PEUGEOT_206"]
["4142YN25","PEUGEOT_206"]
["4144YN25","KANGOO 4X4"]
["4146WH68","RENAULT_CLIO"]
["4147YN25","CITROEN_BERLINGO"]
["4148WH68","RENAULT_CLIO"]
["4148ZR25","FIAT DOBLO"]
["4149ZR25","FIAT DOBLO"]
["4150WH68","RENAULT_TWINGO"]
["4150YN25","CITROEN_BERLINGO"]
["4151RR39","RENAULT_CLIO"]
["4152YN25","CITROEN_BERLINGO"]
["4153WH68","RENAULT_TWINGO"]
["4175XV25","REM RT 505A"]
["4183WC68","RENAULT_MASTER"]
["4212WC68","PEUGEOT_306"]
["4214WC68","NISSAN KING CAB"]
["4215ZH68","C 3 GNV"]
["4216ZH68","RENAULT_MASTER"]
["4217ZH68","RENAULT_MASTER"]
["4218ZH68","RENAULT_CLIO"]
["4219XX25","RENAULT_KANGOO"]
["4220VW25","RVI 110 150 4X4"]
["4220ZH68","RENAULT_CLIO"]
["4221XX25","RENAULT_KANGOO"]
["4222XX25","RENAULT_KANGOO"]
["4223XX25","RENAULT_KANGOO"]
["4258WS25","PEUGEOT BOXER 4X4"]
["4270RX68","REM RT 2000"]
["4272WA25","RENAULT_MASTER"]
["4273VC25","RVI S100 S13 / EGIE TYPE S13 BV  S5  24/3"]
["4276VC25","SULAIR_COMPRESSEUR"]
["4286WE25","RVI M180 4 X4 / F.ELEVATEUR TYPE 152 TTU"]
["4292YC68","RENAULT_KANGOO"]
["4317XZ25","RENAULT_CLIO"]
["4333ZQ68","CLIO"]
["4334ZQ68","CLIO"]
["4335ZQ68","CLIO"]
["4338TX25","RENAULT_SUPER 5"]
["4339YV68","PEUGEOT_PARTNER"]
["4344TX25","RENAULT_SUPER 5"]
["4348TX25","RENAULT_SUPER 5"]
["4349TA25","DEMICO_REM DIVERS"]
["4350TA25","DEMICO_REM R11"]
["4352ZR68","PEUGEOT_PARTNER"]
["4354ZR68","PEUGEOT_PARTNER"]
["4355ZR68","RENAULT_CLIO"]
["4367RY39","RENAULT_KANGOO"]
["4374VX25","CITROEN_C 15"]
["4387ZG25","RENAULT_MASTER"]
["4407YN25","IVECO / HIAB 166-4 "]
["4419SC39","RENAULT_KANGOO"]
["4443ZH25","RENAULT_CLIO"]
["4474WR25","CITROEN_BERLINGO"]
["4479ZQ25","KANGOO"]
["4498WR25","CITROEN_BERLINGO"]
["4503ZQ68","RENAULT_KANGOO"]
["4505ZQ68","RENAULT_KANGOO"]
["4506ZQ68","RENAULT_KANGOO"]
["4508WR25","CITROEN_BERLINGO"]
["4508ZQ68","MITSUBISHI_L200"]
["4521XJ68","PEUGEOT_206"]
["4522XJ68","PEUGEOT_206"]
["4523WA25","RENAULT_CLIO"]
["4524YV25","REM RT 2500C"]
["4525WR25","CITROEN_BERLINGO"]
["4525XJ68","PEUGEOT_206"]
["4529WR25","CITROEN_BERLINGO"]
["4531WD25","REM RT 2100C"]
["4559WK68","RENAULT_EXPRESS"]
["4562WK68","RENAULT_EXPRESS"]
["4564WK68","RENAULT_EXPRESS"]
["4565WK68","RENAULT_EXPRESS"]
["4568RP39","RENAULT_TRAFIC"]
["4570RP39","GROUPE E MOIROUD"]
["4571WF25","RENAULT_MASTER"]
["4576SZ25","REM RT 900"]
["4577SZ25","REM RT 502 A"]
["4604WM68","IVECO_DAILY"]
["4617TY25","RENAULT_SUPER 5"]
["4618XV68","RENAULT_KANGOO"]
["4619XV68","RENAULT_KANGOO"]
["4621WG68","THOMAS 15-20 4X4 / GRUE PLATEAU HIAB 145.4"]
["4629VW68","RENAULT_CLIO"]
["4629YT25","RENAULT_KANGOO"]
["4630VW68","RENAULT_CLIO"]
["4632YT25","RENAULT_KANGOO"]
["4640RL68","DEMICO_REM R11"]
["4641RL68","DEMICO_REM R11"]
["4647WC25","SIPREL-RASSOL_REM PORTE TOUR RT900"]
["4657QS25","INCONNU"]
["4658WN25","CITROEN_SAXO"]
["4667YV25","RENAULT_KANGOO 4X4"]
["4673ZG25","FIAT PANDA 4X4"]
["4675YV25","CITROEN_BERLINGO"]
["4677YV25","CITROEN_BERLINGO"]
["4678YV25","CITROEN_BERLINGO"]
["4681YV25","CITROEN_BERLINGO"]
["4686YV25","CITROEN_BERLINGO"]
["4688YV25","CITROEN_BERLINGO"]
["4692YV25","CITROEN_BERLINGO"]
["4693VV68","PEUGEOT_106"]
["4711ZR25","L200 4X4"]
["4746WB68","RENAULT_CLIO"]
["4748WP25","PEUGEOT_EXPERT"]
["4748XB68","PEUGEOT_EXPERT"]
["4749WB68","RENAULT_CLIO"]
["4751WB68","RENAULT_CLIO"]
["4752XB68","RENAULT_TWINGO"]
["4757XB68","RENAULT_TWINGO"]
["4758XB68","RENAULT_TWINGO"]
["4762XB68","RENAULT_TWINGO"]
["4768YE25","CITROEN_SAXO"]
["4772YE25","CITROEN_SAXO"]
["4774YE25","CITROEN_SAXO"]
["4776XZ25","PEUGEOT_PARTNER"]
["4852WT25","HUBIERE_REM DIVERS"]
["4862XY68","CITROEN_BERLINGO"]
["4872VQ68","NISSAN KING CAB PICK UP"]
["4876YS68","RENAULT_KANGOO"]
["4878YS68","RENAULT_KANGOO"]
["4881YS68","MITSUBISHI_L200"]
["4888XZ25","CITROEN_BERLINGO"]
["4889XZ25","CITROEN_BERLINGO"]
["4890XZ25","CITROEN_BERLINGO"]
["4891XZ25","PEUGEOT_PARTNER"]
["4894XZ25","PEUGEOT_PARTNER"]
["4911VN25","PEUGEOT_205"]
["4932XH68","PEUGEOT_PARTNER"]
["4934XH68","PEUGEOT_PARTNER"]
["4936XH68","PEUGEOT_PARTNER"]
["4937VZ25","RENAULT_CLIO"]
["4941VZ25","RENAULT_CLIO"]
["4942XH68","PEUGEOT_PARTNER"]
["4943VZ25","RENAULT_CLIO"]
["4945VZ25","RENAULT_CLIO"]
["4946VS25","PEUGEOT_205"]
["4953XA25","PEUGEOT_BOXER 4X4"]
["4958WY25","CITROEN_BERLINGO"]
["4964SD39","RENAULT_CLIO"]
["4969VX68","RENAULT_MASTER"]
["4986YE25","CITROEN_SAXO"]
["4988WQ25","THOMAS_BCMBK2"]
["4990VM25","RENAULT_TRAFIC"]
["4991VM25","RENAULT_MASTER"]
["4995WS25","RENAULT_EXPRESS"]
["4995XN25","IVECO_DAILY"]
["4998YE25","CITROEN_SAXO"]
["5001WS25","RENAULT_EXPRESS"]
["5003XJ25","PEUGEOT_PARTNER"]
["5004XJ25","PEUGEOT_PARTNER"]
["5007YE25","CITROEN_SAXO"]
["5008WS25","RENAULT_EXPRESS"]
["5011WS25","RENAULT_EXPRESS"]
["5014WS25","RENAULT_EXPRESS"]
["5021WS25","RENAULT_MASTER"]
["5071VZ25","RENAULT_CLIO"]
["5074VZ25","RENAULT_CLIO"]
["5082VP68","REM RT 900"]
["5083ZB25","PEUGEOT_PARTNER"]
["5085ZB25","RENAULT_CLIO"]
["5107TN25","SULAIR_COMPRESSEUR"]
["5113WP25","RENAULT_CLIO"]
["5114YZ25","C 3 GNV"]
["5115WP25","RENAULT_CLIO"]
["5116TM25","REM RT 900"]
["5116YZ25","C 3 GNV"]
["5118YZ25","C 3 GNV"]
["5119YZ25","C 3 GNV"]
["5132YN25","CITROEN_BERLINGO"]
["5142XG25","RENAULT_CLIO"]
["5160WD25","RENAULT_CLIO"]
["5163WD25","RENAULT_CLIO"]
["5165WD25","RENAULT_CLIO"]
["5168TW25","CITROEN_C 15"]
["5169WD25","RENAULT_CLIO"]
["5174QM68","DEMICO_REM R11"]
["5178WD25","RENAULT_CLIO"]
["517BBA67","CLIO"]
["5180WD25","RENAULT_CLIO"]
["5182WD25","RENAULT_CLIO"]
["5189WN25","LAND ROVER_DEFENDER 11"]
["518BBA67","CLIO"]
["5192XA25","RENAULT_CLIO"]
["5193XA25","RENAULT_CLIO"]
["5194XA25","RENAULT_CLIO"]
["5195XA25","RENAULT_CLIO"]
["5196XA25","RENAULT_CLIO"]
["5197XA25","RENAULT_KANGOO"]
["5198YZ25","PEUGEOT_PARTNER"]
["5199YZ25","RENAULT_CLIO"]
["5201YZ25","PEUGEOT_PARTNER"]
["5203YZ25","PEUGEOT_PARTNER"]
["5226WV25","RENAULT_KANGOO"]
["5230WV25","RENAULT_KANGOO"]
["5232VH68","DEMICO_REM R11"]
["5234ZJ68","RENAULT_MASTER"]
["5244WX25","PEUGEOT_106"]
["5246WX25","PEUGEOT_106"]
["5248WX25","PEUGEOT_106"]
["5249TQ68","DAF-2300 GE CUMINS / GROUPE AMAN 250KVA"]
["5249VC25","RENAULT_SUPER 5"]
["5249WX25","PEUGEOT_106"]
["5253RN39","RENAULT_MASTER"]
["5254RN39","RENAULT_MASTER"]
["5341XQ25","PEUGEOT_206"]
["5359WH25","CITROEN_C 15"]
["5360VK25","RENAULT_SUPER 5"]
["5373VV25","PEUGEOT_205"]
["5374TZ68","INCONNU"]
["5410YD68","CITROEN_JUMPY"]
["5411YD68","PEUGEOT_PARTNER"]
["5413YD68","PEUGEOT_PARTNER"]
["5416YD68","PEUGEOT_PARTNER"]
["5417YD68","PEUGEOT_PARTNER"]
["5419YD68","CITROEN_JUMPY"]
["5434TZ25","SIPREL-RASSOL_REM PORTE TOUR RT900"]
["5447XV25","CITROEN_JUMPER"]
["5450YB25","REMORQUE BAGAGERE"]
["5472VL68","IVECO 59-12"]
["5505TK25","REM RT 1250"]
["5527XS25","PEUGEOT_EXPERT"]
["5533VX25","RENAULT_MASTER"]
["5540YS25","PEUGEOT_PARTNER"]
["5542YS25","PEUGEOT_PARTNER"]
["5545YS25","PEUGEOT_PARTNER"]
["5548YS25","PEUGEOT_PARTNER"]
["5549YS25","PEUGEOT_PARTNER"]
["5551QZ68","DEMICO_REM R11"]
["5552WQ25","RENAULT_TRAFIC 4x4"]
["5560YT25","RENAULT_KANGOO"]
["5566YT25","RENAULT_KANGOO"]
["5567YT25","RENAULT_MASTER"]
["5593TN25","RENAULT_SUPER 5"]
["5596XV68","CITROEN_BERLINGO"]
["5603WG68","RENAULT_EXPRESS"]
["5605XN68","PEUGEOT_PARTNER"]
["5606XN68","PEUGEOT_PARTNER"]
["5610XN68","PEUGEOT_PARTNER"]
["5612XN68","RENAULT_CLIO"]
["5616XN68","RENAULT_CLIO"]
["5618XZ25","RENAULT_KANGOO"]
["5619YA25","PEUGEOT_PARTNER"]
["5621XN68","RENAULT_CLIO"]
["5623XN68","RENAULT_CLIO"]
["5625XN68","RENAULT_CLIO"]
["5626XN68","RENAULT_CLIO"]
["5650RX39","RENAULT_KANGOO"]
["5650WQ25","PEUGEOT_BOXER"]
["5651WQ25","CITROEN_BERLINGO"]
["5653WQ25","CITROEN_BERLINGO"]
["5661WE25","RENAULT_CLIO"]
["5667TS25","MERCEDES_709"]
["5669YM68","RENAULT_KANGOO"]
["5670YM68","RENAULT_KANGOO"]
["5705XY68","RENAULT_CLIO"]
["5707XY68","RENAULT_CLIO"]
["5708XY68","RENAULT_CLIO"]
["5711XY68","RENAULT_KANGOO"]
["5713XY68","RENAULT_KANGOO"]
["5723WC25","PEUGEOT_106"]
["5748VT25","SIPREL-RASSOL_REM PORTE TOUR R502"]
["5749VT25","NISSAN PATROL MERCA"]
["5752WS25","RENAULT_MASTER"]
["5753WS25","RENAULT_MASTER"]
["5766YE68","PEUGEOT_PARTNER"]
["5768YE68","PEUGEOT_PARTNER"]
["5784SX25","RVI_JK1E24"]
["5785SX25","RVI_JK1E24"]
["5790VM68","MERCEDES 911"]
["5792YG25","CITROEN_BERLINGO"]
["5793YG25","CITROEN_BERLINGO"]
["5798YG25","CITROEN_BERLINGO"]
["5799YG25","CITROEN_BERLINGO"]
["5800YG25","CITROEN_BERLINGO"]
["5811WD25","RENAULT_CLIO"]
["5812WD25","RENAULT_CLIO"]
["5814WD25","RENAULT_CLIO"]
["5815WD25","RENAULT_CLIO"]
["5815WV25","RENAULT_EXPRESS"]
["5816WD25","RENAULT_CLIO"]
["5819WV25","RENAULT_EXPRESS"]
["5821WV25","RENAULT_EXPRESS"]
["5835ZQ68","RENAULT_TRAFIC"]
["5836YW25","RENAULT_ESPACE"]
["5836ZQ68","RENAULT_TRAFIC"]
["5838ZQ68","RENAULT_TRAFIC"]
["5845YD68","RENAULT_KANGOO"]
["5847YD68","RENAULT_KANGOO"]
["5849YD68","RENAULT_KANGOO"]
["5851YD68","RENAULT_KANGOO"]
["5853XQ68","RENAULT MEGANE"]
["5855WP25","RENAULT_CLIO"]
["5858WP25","RENAULT_CLIO"]
["5859WP25","RENAULT_CLIO"]
["5861WP25","RENAULT_CLIO"]
["5887VX68","RENAULT_MASTER"]
["5898SF25","DEMICO REM"]
["5899SF25","DEMICO REM R11"]
["5901YC68","RENAULT_CLIO"]
["5903YC68","RENAULT_CLIO"]
["5905YC68","RENAULT_CLIO"]
["5908YC68","RENAULT_CLIO"]
["5909VL25","GILIBERT TAPIR"]
["5910VL25","CITROEN_AX"]
["5912VL25","CITROEN_AX"]
["5914VL25","CITROEN_AX"]
["5918VL25","CITROEN_AX"]
["5921VN25","RENAULT_SUPER 5"]
["5950YY68","RENAULT_MASTER"]
["5951YY68","RENAULT_CLIO"]
["5952ZK68","BOEGLIN PLATEAU"]
["5967XA25","PEUGEOT_106"]
["5967XR25","PEUGEOT_206"]
["5968XR25","PEUGEOT_206"]
["5969XA25","CITROEN_SAXO"]
["5969XR25","PEUGEOT_206"]
["5971XR25","PEUGEOT_206"]
["5973XR25","PEUGEOT_206"]
["5975XR25","PEUGEOT_206"]
["5976XR25","PEUGEOT_206     N14"]
["5977XR25","PEUGEOT_206"]
["6008WA25","RENAULT_MASTER"]
["6009VJ68","INCONNU"]
["6014VT68","CITROEN_ZX"]
["6042ZR25","MERCEDES SPRINTER 4X4"]
["6051WA25","RENAULT_MASTER"]
["6084WB25","PEUGEOT_205"]
["6087WB25","PEUGEOT_205"]
["6091WB25","PEUGEOT_205"]
["6093WB25","CITROEN_C 15"]
["6096WB25","CITROEN_C 15"]
["6098WB25","CITROEN_C 15"]
["6101WB25","CITROEN_C 15"]
["6103WB25","RENAULT_EXPRESS"]
["6104WB25","RENAULT_EXPRESS"]
["6104ZJ25","MEGANE"]
["6105ZJ25","MEGANE"]
["6116RA68","MERCEDES_1513 GE CUMINS / GROUPE AMAN 250KVA"]
["6135TP25","RENAULT_MASTER"]
["6157WQ25","PEUGEOT_PARTNER"]
["6178VF68","BRIMONT 4X4 /  FOREUSE SEP C170"]
["6181VW68","RENAULT_TWINGO"]
["6186RV68","REMORQUE SAURON"]
["6187YG25","KANGOO 4X4"]
["6188XK25","PATROL 4X4"]
["6188YG25","KANGOO 4X4"]
["6190YG25","KANGOO 4X4"]
["6203XK25","PEUGEOT_206"]
["6205XK25","PEUGEOT_206"]
["6207XK25","PEUGEOT_206"]
["6208XK25","PEUGEOT_206"]
["6211XK25","PEUGEOT_206"]
["6212XK25","PEUGEOT_206"]
["6214XK25","PEUGEOT_206"]
["6217XK25","PEUGEOT_206"]
["6227WF68","PEUGEOT_EXPERT"]
["6233WF68","INCONNU"]
["6238WF68","RENAULT_MASTER"]
["6267XD25","CITROEN_JUMPY"]
["6272YE68","RENAULT_KANGOO"]
["6274YE68","RENAULT_KANGOO"]
["6275YE68","RENAULT_KANGOO"]
["6279QM68","MERCEDES MB 1513 ELEV"]
["6283XS68","INCONNU"]
["6289ZJ25","C 3 GNV"]
["6290ZJ25","C 3 GNV"]
["6298ZK25","RENAULT_EXPRESS"]
["6313SF39","PEUGEOT_PARTNER"]
["634AYT67","CLIO"]
["6351WJ25","INCONNU"]
["6362QP68","REMORQUE ERGE"]
["6369VK68","REM RT 900"]
["6379ZA25","RENAULT_TRAFIC"]
["6380ZA25","RENAULT_MASTER"]
["6383ZA25","RENAULT_MASTER"]
["6406WY25","RENAULT_CLIO"]
["6408WY25","RENAULT_CLIO"]
["6410WY25","RENAULT_TWINGO"]
["6452ZQ25","RENAULT MASTER"]
["6463RC25","REM LEVEQUE R 581"]
["6473VQ25","110 150 4X4"]
["6481ZG25","RENAULT_CLIO"]
["6497SD39","PEUGEOT_PARTNER"]
["6498SD39","PEUGEOT_PARTNER"]
["6525WL68","RENAULT_EXPRESS"]
["6531XJ68","PEUGEOT_PARTNER"]
["6532XJ68","PEUGEOT_PARTNER"]
["6533XJ68","NISSAN_PATROL"]
["6544VK25","RENAULT_MASTER"]
["6545XN68","PEUGEOT_206"]
["6546XN68","PEUGEOT_206"]
["6553RT39","RENAULT_MASTER"]
["6553WG25","CITROEN_C 15"]
["6557XN68","RENAULT_TWINGO"]
["6560XN68","PEUGEOT_EXPERT"]
["6561WG25","CITROEN_C 15"]
["6566YG25","RENAULT_CLIO"]
["6605YW25","KANGOO 4X4"]
["6617VS25","RENAULT_MASTER"]
["6620VS25","SAURON PLUTONARC_GROUPE SOUDURE"]
["6623VS25","SACEM REM B500"]
["6630VL25","RENAULT_MASTER"]
["6635VL25","RENAULT_MASTER"]
["6636VL25","RENAULT_SUPER 5"]
["6638VL25","RENAULT_MASTER"]
["6640XH25","RENAULT_CLIO"]
["6641VL25","RENAULT_SUPER 5"]
["6676VQ68","MOIROUD GE 60KVA"]
["6680YF25","CITROEN_SAXO"]
["6690VC25","SIPREL-RASSOL_REM PORTE TOUR OR 2000A"]
["6710XH68","NISSAN_PATROL"]
["6712XH68","NISSAN_PATROL"]
["6722XB25","REM RT 502 A"]
["6726YB68","CITROEN_BERLINGO"]
["6729YZ25","MERCEDES SPRINTER 4X4"]
["6737VM25","RENAULT_MASTER"]
["6741ZA25","FIAT PANDA 4X4"]
["6753VA25","RENAULT_SUPER 5"]
["6757VA25","RENAULT_SUPER 5"]
["6763VA25","RENAULT_SUPER 5"]
["6766VA25","REM RT 900"]
["6767VA25","SIPREL-RASSOL_REM PORTE TOUR R502"]
["6790RC25","INCONNU"]
["6800VD68","IVECO 75E14 CARGO"]
["6801XP68","RENAULT_CLIO"]
["6803XP68","NISSAN_PATROL"]
["6812YZ68","RENAULT_KANGOO"]
["6813YZ68","RENAULT_TRAFIC"]
["6824YZ68","RENAULT_MASTER"]
["682ZH25","CLIO"]
["6834TY25","RENAULT_EXPRESS"]
["6839YT25","RENAULT_KANGOO"]
["683ZH25","MEGANE"]
["684ZH25","MEGANE"]
["6857WB25","REM SPECIALE GAZ MPS"]
["6881TC25","RVI_BA02A0"]
["6919WZ68","RENAULT_MASTER"]
["6920XK68","RENAULT_KANGOO"]
["6937XQ68","RENAULT_KANGOO"]
["6958XG68","RENAULT_SCENIC"]
["6959YE25","PEUGEOT_PARTNER"]
["6965ZS68","RENAULT_MASTER"]
["6997WZ25","REM RT 505 A"]
["6998WZ25","CITROEN_JUMPY"]
["7003WZ25","RVI B120"]
["7018XG25","RENAULT_MASTER"]
["7035VP25","SIPREL-RASSOL_REM PORTE TOUR RT900"]
["7051SL25","SULAIR_COMPRESSEUR"]
["7052SL25","REM RT 2100C"]
["7060SC39","RENAULT_KANGOO"]
["7090YN68","RENAULT_KANGOO"]
["7095XB68","NISSAN_PATROL"]
["7097XB68","IVECO_DAILY"]
["7098ZR68","C 3 GNV"]
["7112ZR68","RENAULT_MASTER"]
["7123XM68","PEUGEOT_206"]
["7125XM68","PEUGEOT_206"]
["7127TZ25","SIPREL-RASSOL_REM PORTE TOUR RT900"]
["7128XM68","PEUGEOT_206"]
["7150QD68","DEMICO_REM R11"]
["7166SD39","PEUGEOT_BOXER"]
["7166YE25","CITROEN_SAXO"]
["7170WS68","RENAULT_EXPRESS"]
["7172WS68","RENAULT_EXPRESS"]
["7173WS68","RENAULT_EXPRESS"]
["7173YD25","RENAULT_CLIO"]
["7174YD25","RENAULT_CLIO"]
["7183YE25","CITROEN_XSARA"]
["718AKL57","RENAULT CLIO"]
["7212XC68","RENAULT_KANGOO"]
["7225YF68","PEUGEOT_PARTNER"]
["7226XC68","RENAULT_CLIO"]
["7236YF25","RENAULT_KANGOO_4X4"]
["7239YF25","RENAULT_KANGOO"]
["7243WE25","RENAULT_MASTER"]
["7245TD25","DEMICO_REM R11"]
["7246TD25","REM RT 900"]
["7248SP25","IVECO_80.14 4X4"]
["7249YL25","RENAULT_SCENIC"]
["7274TE25","DEMICO_REM R11"]
["7275TE25","DEMICO_REM R11"]
["7277TL25","RENAULT_EXPRESS"]
["7298XR25","SIPREL-RASSOL_PORTE TOURET GR 500"]
["7304WR68","CITROEN_SAXO"]
["7312WR68","PEUGEOT_106"]
["7312ZP25","RENAULT_SCENIC"]
["7314WR68","PEUGEOT_106"]
["7327YE25","PEUGEOT_PARTNER"]
["7328YE25","PEUGEOT_PARTNER"]
["7341VD25","RENAULT_R 21"]
["7344XR68","RVI 110 150 4X4 / GROUPE A MAN 100KVA"]
["7350WZ25","RENAULT_MASTER"]
["7352WZ25","RENAULT_MASTER"]
["7362VB25","RENAULT_SUPER 5"]
["7364XR68","CITROEN_SAXO"]
["7366XR68","CITROEN_BERLINGO"]
["7367WY25","RENAULT_CLIO"]
["7371SA25","DEMICO REM R11"]
["7371VB25","RENAULT_MASTER"]
["7372SA25","DEMICO_REM R11"]
["7381VB25","RENAULT_MASTER"]
["7382YA25","CITROEN_BERLINGO"]
["7384YA25","CITROEN_BERLINGO"]
["7384YL68","PEUGEOT_PARTNER"]
["7385YA25","CITROEN_BERLINGO"]
["7386VB25","RENAULT_MASTER"]
["7386YL68","PEUGEOT_PARTNER"]
["7387YA25","CITROEN_BERLINGO"]
["7387YL68","PEUGEOT_PARTNER"]
["7389YL68","PEUGEOT_PARTNER"]
["7390YA25","PEUGEOT_PARTNER"]
["7391YA25","PEUGEOT_PARTNER"]
["7396WE25","PEUGEOT_106"]
["7403WE25","RENAULT_MASTER"]
["7415WB25","PEUGEOT_106"]
["7415WN68","PEUGEOT_106"]
["7417WN68","PEUGEOT_106"]
["7428WR25","PEUGEOT_BOXER"]
["7434WR25","PEUGEOT_BOXER"]
["7438WR25","PEUGEOT_BOXER"]
["7447XS25","PEUGEOT_BOXER"]
["7451RN39","PEUGEOT_106"]
["7452RN39","PEUGEOT_106"]
["7453RN39","REM RT 502 A"]
["7453WJ25","CITROEN_AX"]
["7454WS25","PEUGEOT_BOXER"]
["7456WS25","PEUGEOT_BOXER"]
["7457WS25","PEUGEOT_PARTNER"]
["7459WS25","PEUGEOT_PARTNER"]
["7460WS25","PEUGEOT_PARTNER"]
["7461WS25","PEUGEOT_PARTNER"]
["7462WS25","PEUGEOT_PARTNER"]
["7464XM68","PEUGEOT_206"]
["7470SK25","RVI G230 / GROUPE GE ALSTHOM 230KVA"]
["7473WH25","RENAULT_CLIO"]
["7476WH25","RENAULT_CLIO"]
["7478WH25","CITROEN_AX"]
["7493VN68","RENAULT_EXPRESS"]
["7497YC68","RENAULT_CLIO"]
["7542VC25","SIPREL-RASSOL_REM PORTE TOUR RT900"]
["7553XB68","RENAULT_KANGOO"]
["7556XB68","RENAULT_KANGOO"]
["7558XB68","RENAULT_KANGOO"]
["7560XB68","RENAULT_KANGOO"]
["7561XB68","RENAULT_KANGOO"]
["7562XD68","CITROEN_SAXO"]
["7565XD68","CITROEN_SAXO"]
["7568XD68","CITROEN_SAXO"]
["7572XD68","CITROEN_SAXO"]
["7574XD68","CITROEN_SAXO"]
["7580RW39","INCONNU"]
["7615SC39","PEUGEOT_PARTNER"]
["7616SC39","PEUGEOT_PARTNER"]
["7639SR25","SIPREL-RASSOL REM RT 502 A"]
["7640SR25","SIPREL-RASSOL_REM PORTE TOUR R502"]
["7669XF25","RENAULT_CLIO"]
["7670XF25","RENAULT_CLIO"]
["7679VX25","RENAULT_EXPRESS"]
["7682VX25","RENAULT_EXPRESS"]
["7702RE68","DEMICO_REM R11"]
["7721XF25","SIPREL-RASSOL_PORTE TOURET RT 500"]
["7722XF25","RENAULT_KANGOO"]
["7737WJ25","RENAULT_EXPRESS"]
["7739YQ68","PEUGEOT_206"]
["7741WJ25","RENAULT_EXPRESS"]
["7741YQ68","PEUGEOT_206"]
["7748WJ25","RENAULT_EXPRESS"]
["7750WJ25","RENAULT_EXPRESS"]
["7753WA25","RENAULT_CLIO"]
["7756WJ25","RENAULT_EXPRESS"]
["7757YQ68","PEUGEOT_206"]
["7762VA25","RENAULT_SUPER 5"]
["7764RU25","COMPRESSEUR PEUGEOT"]
["7765VA25","RENAULT_SUPER 5"]
["7768VP68","RVI 365 / EGIE TP222 "]
["7774VB68","TOUTACIER_REM DIVERS"]
["7775WM25","RENAULT_CLIO"]
["7795XV68","RENAULT_KANGOO"]
["7796XV68","RENAULT_KANGOO"]
["7797XV68","RENAULT_KANGOO"]
["7799XV68","RENAULT_CLIO"]
["7803XV68","RENAULT_CLIO"]
["7805XV68","RENAULT_CLIO"]
["7806XV68","RENAULT_CLIO"]
["7807XV68","RENAULT_CLIO"]
["7833XF68","RENAULT_CLIO"]
["7834XF68","RENAULT_CLIO"]
["7843XR25","RENAULT_KANGOO"]
["7844XR25","RENAULT_KANGOO"]
["7845XR25","RENAULT_KANGOO"]
["7862VV68","RVI M180"]
["7869VL25","RVI_BA02A0 / GROUPE 160KVA"]
["7886VN25","CITROEN_C 15"]
["7889ZA25","RENAULT_MASTER"]
["7894ZA25","RENAULT_MASTER"]
["789BDW67","CLIO"]
["7933WC25","RVI_ELEVATEUR"]
["7938TE68","INCONNU"]
["7942ZS25","CLIO CAMPUS"]
["7973SY25","SIPREL-RASSOL_PORTE TOURET RT 2100C"]
["7978VA25","REM RT 502 A"]
["8021VM25","DEMICO_REM R11"]
["8021WC25","PEUGEOT_BOXER"]
["8028YY25","RENAULT_MASTER"]
["8067WN68","DEMICO CABIN. MOB"]
["8070WN68","DEMICO CABIN. MOB"]
["8074WP68","RENAULT_TWINGO"]
["8093YA25","CITROEN_JUMPY"]
["8095VL25","RENAULT_SUPER 5"]
["8095YA25","CITROEN_JUMPY"]
["8098VL25","RENAULT_SUPER 5"]
["8100VL25","RENAULT_SUPER 5"]
["8131ZF25","C 3 GNV"]
["8133ZF25","C 3 GNV"]
["8136ZF25","C 3 GNV"]
["8139ZF25","C 3 GNV"]
["8141XX25","CITROEN_BERLINGO"]
["8142WT25","RENAULT_CLIO"]
["8151WP25","CITROEN_ZX"]
["8153WP25","PEUGEOT_106"]
["8155WP25","RENAULT_TRAFIC"]
["8162YF68","KANGOO 4X4"]
["8169VS25","RENAULT_SUPER 5"]
["8174VS25","RENAULT_MASTER"]
["8174YV68","PEUGEOT_206"]
["8176YV68","PEUGEOT_206"]
["8193WZ25","RVI B120 / F.ELEVATEUR TYPE 141TT"]
["8203ZK68","RENAULT_CLIO"]
["8240WF68","RENAULT_TWINGO"]
["8243VK25","RENAULT_SUPER 5"]
["8246VK25","RENAULT_SUPER 5"]
["8248VK25","CITROEN_C 15"]
["8248YR25","RENAULT_MASTER"]
["8250YR25","RENAULT_MASTER"]
["8251VK25","RENAULT_SUPER 5"]
["8254WH25","PEUGEOT_106"]
["8256WH25","PEUGEOT_106"]
["8258WH25","PEUGEOT_106"]
["8269XY68","CITROEN_BERLINGO"]
["8277XQ68","RENAULT_CLIO"]
["8300ZK68","MEGANE"]
["8308WV68","CITROEN_XSARA"]
["8323YE25","RENAULT_KANGOO"]
["8324XR25","RVI M 180 / F.ELEVATEUR TYPE 152TPM"]
["8324YE25","RENAULT_MASTER"]
["8325XR25","PEUGEOT_PARTNER"]
["8326XR25","RENAULT_KANGOO"]
["8327SF25","SIPREL-RASSOL_REM PORTE TOUR R502"]
["8328XR25","RENAULT_KANGOO"]
["8330SF25","SIPREL-RASSOL_REM PORTE TOUR R502"]
["8331YE25","RENAULT_KANGOO"]
["8332VR25","RENAULT_EXPRESS"]
["8336YM68","RENAULT_KANGOO"]
["8337XR25","THOMAS 4X4 / C3M 172 FRANCE ELEVATEUR "]
["8343VV25","110 150 4X4"]
["8352WG25","PEUGEOT_106"]
["8354WG25","PEUGEOT_106"]
["8355WG25","PEUGEOT_106"]
["8363YT25","MITSUBISHI_L200"]
["8386WJ25","PEUGEOT_405"]
["8388WJ25","PEUGEOT_106"]
["8389WJ25","PEUGEOT_106"]
["8390WJ25","PEUGEOT_106"]
["8392WP68","RENAULT_MASTER"]
["8412WY68","PEUGEOT_PARTNER"]
["8414WY68","PEUGEOT_PARTNER"]
["8414YY68","PEUGEOT_PARTNER"]
["8415YY68","PEUGEOT_PARTNER"]
["8416WY68","PEUGEOT_PARTNER"]
["8416YY68","PEUGEOT_PARTNER"]
["8417WY68","NISSAN_PATROL"]
["8421WY68","PEUGEOT_BOXER"]
["8447XH68","RENAULT_CLIO"]
["8448XH68","RENAULT_CLIO"]
["8448YA25","CITROEN_SAXO"]
["8449XH68","RENAULT_KANGOO"]
["8450XH68","RENAULT_CLIO"]
["8450YA25","CITROEN_SAXO"]
["8459WG25","CITROEN_C 15"]
["8461WG25","CITROEN_C 15"]
["8470WA68","RENAULT_TWINGO"]
["8472WA68","RENAULT_MASTER"]
["8491RL68","REM RT 2000"]
["8499VF25","RENAULT_MASTER"]
["8504WL25","CITROEN_JUMPY"]
["8505ZR25","C 3 GNV"]
["8508WL25","CITROEN_JUMPY"]
["8519TL68","MACO MEUDON COMPRESSEUR"]
["8520TL68","REMORQUE MACO MEUDON"]
["8521WB25","PEUGEOT_106"]
["8524WB25","PEUGEOT_106"]
["8527WB25","RENAULT_MASTER"]
["8529XC68","INCONNU"]
["8533YZ25","C 3 GNV"]
["8534YZ25","C 3 GNV"]
["8535YZ25","C 3 GNV"]
["8536YZ25","C 3 GNV"]
["8540XC68","REMORQUE SAURON"]
["8541RQ39","RENAULT_EXPRESS"]
["8542RQ39","RENAULT_EXPRESS"]
["8543RQ39","RENAULT_EXPRESS"]
["8569XR68","RENAULT_CLIO"]
["8570XR68","RENAULT_CLIO"]
["8574XR68","FIAT_PANDA"]
["8577XZ25","CITROEN_SAXO"]
["8582SB39","RENAULT_MASTER"]
["8604ZQ25","L200 4X4"]
["8605ZQ25","FIAT DOBLO"]
["8623VM25","110 150 4X4"]
["8628VZ25","PEUGEOT_106"]
["8630ZG25","RENAULT_TRAFIC"]
["8631VZ25","PEUGEOT_106"]
["8643TD25","TRAILOR_0R551E"]
["8652YD25","RENAULT_MASTER"]
["8653YD25","RENAULT_KANGOO 4X4"]
["8654YD25","RENAULT_CLIO"]
["8655YD25","RENAULT_KANGOO 4X4"]
["8656VA68","POSTE SEREM"]
["8657YD25","RENAULT_KANGOO 4X4"]
["8667WZ25","THOMAS 4X4 180"]
["8699YR25","RENAULT_KANGOO"]
["8707YX68","C 3 GNV"]
["8709YX68","C 3 GNV"]
["8710YX68","C 3 GNV"]
["8711YX68","C 3 GNV"]
["8715XQ68","CITROEN_JUMPER"]
["8735WS68","RENAULT_MASTER"]
["8740XE25","RENAULT_KANGOO"]
["8742XE25","RENAULT_KANGOO"]
["8743VT68","RVI B110"]
["8743XE25","RENAULT_KANGOO"]
["8745XC68","RENAULT_KANGOO"]
["8745XE25","RENAULT_KANGOO"]
["8746XC68","RENAULT_KANGOO"]
["8746XE25","RENAULT_KANGOO"]
["8747XE25","RENAULT_KANGOO"]
["8753TK25","SIPREL-RASSOL_REM PORTE TOUR RT900"]
["8789VT25","SEREM_PAP"]
["8799RX25","REM TRANSFO"]
["8843YV25","NISSAN_TERRANO"]
["8863VQ68","RVI G300 / EGIE"]
["8868XR25","RENAULT_CLIO"]
["8877YT25","RENAULT_KANGOO"]
["8877ZS25","REM_GOURDON_PE9000_GE170KVA"]
["8879YT25","RENAULT_MASTER"]
["8880YT25","RENAULT_MASTER"]
["8882XG25","RENAULT_CLIO"]
["8887WR68","RENAULT_KANGOO"]
["8910XJ25","RENAULT_KANGOO"]
["8922VZ68","RENAULT_CLIO"]
["8942TZ25","SIPREL-RASSOL_REM PORTE TOUR R502"]
["8950TZ25","SIPREL-RASSOL_REM PORTE TOUR R502"]
["8957ZR25","CITROEN_SAXO"]
["8958ZR25","RENAULT_TWINGO"]
["8971YS25","DEFENDER 110 6 PL"]
["8973WJ25","IVECO_DAILY"]
["8973ZG25","C 3 GNV"]
["8986VV25","RENAULT_TRAFIC"]
["8992XS25","RENAULT_KANGOO"]
["8995ZJ68","RENAULT_KANGOO"]
["8997ZJ68","RENAULT_KANGOO"]
["8999YX25","UNIMOG 4X4"]
["9001ZJ68","RENAULT_KANGOO"]
["9003ZJ68","RENAULT_CLIO"]
["9011SN25","MACO MEUDON COMPRESSEUR"]
["9052WK25","COMPRESSEUR KAISER"]
["9081WX25","RENAULT_KANGOO"]
["9091YF25","CITROEN_SAXO"]
["9096YF25","CITROEN_SAXO"]
["9097XP25","RENAULT_KANGOO"]
["9101YF25","CITROEN_SAXO"]
["9123WQ68","RENAULT_EXPRESS"]
["9125WQ68","RENAULT_EXPRESS"]
["9126WQ68","RENAULT_EXPRESS"]
["9129WQ68","RENAULT_KANGOO"]
["9131WQ68","RENAULT_KANGOO"]
["9132RT68","PLUTONARC REM SOUDURE"]
["9132XS25","CITROEN_BERLINGO 4X4"]
["9135XS25","CITROEN_BERLINGO 4X4"]
["9148ZE25","CLIO"]
["9152WH25","RVI_4X4JS3 / GRUE HIAB 110.3"]
["9183VA25","SIPREL-RASSOL_PORTE TOURET RT 2100C"]
["9183XW68","RENAULT_MASTER"]
["9184WV25","PEUGEOT_106"]
["9189TL25","SIPREL-RASSOL_REM PORTE TOUR R502"]
["9190WG25","RENAULT_MASTER"]
["9192WG25","RENAULT_MASTER"]
["9196WG25","RENAULT_MASTER"]
["9214WM25","CITROEN_JUMPER"]
["9215ZQ68","CLIO"]
["9223WC25","CITROEN_C 15"]
["9228WC25","CITROEN_C 15"]
["9229RU25","UNIMOG MERCEDES U425 / GRUE GRUE MARREL TYPE A91 K2D"]
["9246VR25","RVI_4X4JP3"]
["9247YZ25","KERAX 370 DCI / GRUE HIAB TYPE 220-5"]
["9251VR25","RENAULT_SUPER 5"]
["9259VR25","RENAULT_SUPER 5"]
["9267XR68","CITROEN_SAXO"]
["9269XR68","CITROEN_SAXO"]
["9277XC68","RENAULT_KANGOO"]
["9301ZC25","MOIROUD_GE"]
["9303VY25","RVI_ELEVATEUR / EGIE"]
["9308WK68","RENAULT_MASTER"]
["9309WK68","NISSAN_PATROL"]
["9309XN25","PEUGEOT_206"]
["9312XL25","PEUGEOT_EXPERT"]
["9326SX68","SARIS"]
["9351XZ25","CITROEN_JUMPER"]
["9365YZ25","RENAULT_TRAFIC"]
["9367XZ25","CITROEN_SAXO"]
["9368SU25","REM TRANSFO"]
["9369SU25","REM RT 900"]
["9378NF70","CLIO"]
["9387YT68","RENAULT_KANGOO"]
["9390MZ52","RENAULT CLIO   PRET ERDF"]
["9390VN25","RVI_4X4JS1 / EGIE ETT17BI MâT DE CHARGE  HYDRAULIQUE H115 N°"]
["9392YT68","C 3 GNV"]
["9392ZG25","RENAULT_TRAFIC"]
["9395YT68","C 3 GNV"]
["9395ZE25","CLIO"]
["9399TV25","RENAULT_EXPRESS"]
["9440YE25","PEUGEOT_PARTNER"]
["9441YE25","PEUGEOT_PARTNER"]
["9442YE25","PEUGEOT_PARTNER"]
["9444ZP25","C 3 GNV"]
["9445ZP25","C 3 GNV"]
["9446XW25","CITROEN_XSARA"]
["9447ZP25","C 3 GNV"]
["9449ZP25","C 3 GNV"]
["9451ZP25","C 3 GNV"]
["9517YK68","RENAULT_KANGOO"]
["9518YK68","RENAULT_KANGOO"]
["9523XL25","PATROL 4X4"]
["9525XL25","PATROL 4X4"]
["9526XL25","PATROL 4X4"]
["9528YM68","RENAULT_MASTER"]
["9535YF25","MERCEDES SPRINTER 4X4"]
["9545SC39","RENAULT_KANGOO"]
["9570VZ25","DEMICO_REM R11"]
["9587TS25","RENAULT_SUPER 5"]
["9588RN39","SACEM_REM PORTE TOUR B600"]
["9591ZR25","C 3 GNV"]
["9592ZR25","C 3 GNV"]
["9593TS25","RENAULT_SUPER 5"]
["9599WK68","PEUGEOT_106"]
["961TD39","CLIO"]
["9637WC25","PEUGEOT_106"]
["9638WC25","PEUGEOT_106"]
["9686VP25","THOMAS 6X6  FGT6"]
["9699XP25","RENAULT_CLIO"]
["9701XP25","RENAULT_CLIO"]
["9708XP25","RENAULT_CLIO"]
["9711XP25","RENAULT_CLIO"]
["971AGR25","AGRECKO_GE"]
["9721XP25","RENAULT_CLIO"]
["9726XP25","RENAULT_CLIO"]
["9730XP25","RENAULT_CLIO"]
["9732XP25","RENAULT_KANGOO"]
["9733XP25","RENAULT_KANGOO"]
["9742ZW68","REM-MOIROUD"]
["9751ZE25","CITROEN_BERLINGO"]
["9793ZN25","PEUGEOT_EXPERT"]
["9800ZR25","CITROEN_BERLINGO"]
["9813XG68","PEUGEOT_BOXER"]
["9848WX68","PEUGEOT_EXPERT"]
["9860RX39","RENAULT_MASTER"]
["9861RX39","RENAULT_MASTER"]
["9863XZ25","CITROEN_JUMPY"]
["9864XE25","ECEM CABIN. MOB"]
["9864XL25","PEUGEOT_206"]
["9865XL25","NISSAN_PATROL MERCA"]
["9866TE68","DEMICO_REM R11"]
["9867XE25","RENAULT_MASTER"]
["9871XE25","RENAULT_MASTER"]
["9881XD68","RENAULT_CLIO"]
["9894WT25","PEUGEOT_BOXER"]
["9898YV25","CITROEN_BERLINGO"]
["9904ZQ25","RENAULT_MASTER"]
["9905ZQ25","RENAULT_KANGOO"]
["9906ZQ25","RENAULT_KANGOO"]
["9908ZQ25","RENAULT_KANGOO"]
["9914YX68","RENAULT_KANGOO"]
["9916YX68","RENAULT_KANGOO"]
["9926XY25","CITROEN_JUMPY"]
["9926ZF68","CLIO"]
["9928XY25","CITROEN_JUMPY"]
["9970VE25","RENAULT_MASTER"]
["9970XZ25","CITROEN_BERLINGO"]
["9972XZ25","CITROEN_BERLINGO"]
["9976RK25","DEMICO_REM_R11"]
["9977VY68","FUCHS"]
["9977WH25","VEREM REM"]
["9979VY68","RENAULT_TWINGO"]
["9987WL25","NISSAN_PATROL MERCA"]
["AA735XM","MERCEDES SPRINTER 4X4"]
["AA830QE","MERCEDES SPRINTER 4X4"]
["AA949BR","IVECO 4X4 / FRANCE ELEVATEUR 172 TBI / N°3183 "]
["AB445EP","CLIO"]
["AC008HE","FIAT DOBLO"]
["AC023HE","FIAT DOBLO"]
["AC028KW","FIAT DOBLO"]
["AC045HE","RENAULT_KANGOO"]
["AC059HE","RENAULT_SCENIC"]
["AC308QS","C 3 GNV"]
["AC315QS","C 3 GNV"]
["AC325QS","C 3 GNV"]
["AC331QS","C 3 GNV"]
["AC499KW","FIAT PANDA 4X4"]
["AC589ZD","RENAULT CLIO III"]
["AC623KV","FIAT DOBLO"]
["AC678KT","IVECO 4X4 / GRUE HIAB XS166-E4 HIDUO"]
["AC682KT","IVECO EL EN140EP 4X4  /  162TBA  F.ELEVATEUR"]
["AC789KV","FIAT DOBLO"]
["AC921KV","FIAT DOBLO"]
["AC927AP","FIAT DOBLO"]
["AC937AP","FIAT DOBLO"]
["AC946AP","FIAT DOBLO"]
["AC959AP","FIAT DOBLO"]
["AC974HD","FIAT DOBLO"]
["AC989HD","FIAT DOBLO"]
["AD166GX","GRANDE PUNTO"]
["AD210AR","GRANDE PUNTO"]
["AD217AR","GRANDE PUNTO"]
["AD222AR","GRANDE PUNTO"]
["AD225AR","GRANDE PUNTO"]
["AD229AJ","MASTER"]
["AD232GH","GRANDE PUNTO"]
["AD256MC","MERCEDES SPRINTER 4X4"]
["AD285GZ","GRANDE PUNTO"]
["AD308GZ","GRANDE PUNTO"]
["AD334GZ","GRANDE PUNTO"]
["AD343GW","GRANDE PUNTO"]
["AD566GW","GRANDE PUNTO"]
["AD625GW","GRANDE PUNTO"]
["AD634GW","GRANDE PUNTO"]
["AD643GW","GRANDE PUNTO"]
["AD922GW","GRANDE PUNTO"]
["AE077ET","RENAULT_KANGOO"]
["AE091YE","CLIO"]
["AE164AS","CLIO"]
["AE205PE","VOLKSWAGEN TRANSPORTER 4X4"]
["AE219PE","VOLKSWAGEN TRANSPORTER 4X4"]
["AE244PE","VOLKSWAGEN TRANSPORTER 4X4"]
["AE263PE","VOLKSWAGEN TRANSPORTER 4X4"]
["AE276PE","VOLKSWAGEN TRANSPORTER 4X4"]
["AE330AR","CLIO"]
["AE428TK","CLIO"]
["AE618TK","MASTER"]
["AE768AP","CLIO"]
["AE790RN","VOLKSWAGEN TRANSPORTER 4X4"]
["AE837MT","MERCEDES SPRINTER 4X4"]
["AF505SY","MASTER"]
["AF559SY","MASTER"]
["AF568GE","MASTER"]
["AF952YM","RENAULT KANGOO GO 2009"]
["AG730MK","TRAFIC"]
["AG762MK","MASTER"]
["AG770GL","MERCEDES SPRINTER 4X4"]
["AG795MK","MASTER"]
["AG840MK","MASTER"]
["AH393BV","TOYOTA HILUX"]
["AH528BD","TOYOTA HILUX"]
["AH574BT","TOYOTA HILUX"]
["AH593ME","RENAULT_TRAFIC"]
["AH671WF","TRAFIC"]
["AH819LW","RENAULT_MASTER"]
["AH884LW","RENAULT_MASTER"]
["AJ086VN","PAJERO LONG 7 PLACES"]
["AJ291ZX","MASTER"]
["AJ359PY","TRAFIC"]
["AJ377EA","TRAFIC"]
["AJ384ZX","TRAFIC"]
["AJ402PL","TRAFIC"]
["AJ408EA","TRAFIC"]
["AJ427PL","KANGOO FW1AB5"]
["AJ449PL","RENAULT MASTER"]
["AK147KQ","RENAULT_TRAFIC"]
["AK159CJ","RENAULT SCENIC"]
["AK172WX","RENAULT_KANGOO"]
["AK239KQ","RENAULT_TRAFIC"]
["AK623KP","TOYOTA HILUX"]
["AK770KP","IVECO 4X4  / F.ELEVATEUR 192 TBA"]
["AK830XM","CLIO"]
["AK861PL","RENAULT_ESPACE VSR"]
["AL436DH","TRAFIC"]
["AM499CH","RENAULT_TRAFIC"]
["AM588CH","RENAULT_TRAFIC"]
["AP100VJ","RENAULT_TRAFIC"]
["AP765LD","REM PORTE PANNEAU"]
["AP816DX","PEUGEOT_PARTNER"]
["AQ247MH","PEUGEOT_PARTNER"]
["AQ608CD","REM RT 502 A"]
["AT074EB","RENAULT_TRAFIC"]
["AX091QG","RENAULT_MASTER"]
["AY101WR","IVECO ML 100 E 18 / F.ELEVATEUR 152 TPM"]
["AY125WR","IVECO ML 100 E 18 / F.ELEVATEUR 152 TPM"]
["AY197VJ","GRANDE PUNTO"]
["AY262VJ","RENAULT_TRAFIC"]
["AY767PC","CLIO"]
["AZ061SW","KANGOO FW1AB5"]
["AZ104ZG","CLIO"]
["AZ168ZG","CLIO"]
["AZ339MB","CLIO"]
["AZ538MX","CLIO"]
["AZ632MX","CLIO"]
["AZ695MX","CLIO"]
["AZ723MX","CLIO"]
["AZ827SW","CLIO"]
["AZ869SW","CLIO"]
["AZ910SW","RENAULT_KANGOO"]
["AZ944SW","CLIO"]
["BA030GE","IVECO ML 150 E 25WRS 4X4 / F.ELEVATEUR 162TBA"]
["BA064TD","MASTER"]
["BA112FA","RENAULT_KANGOO"]
["BA347ET","KANGOO FW1AB5"]
["BA365XJ","PUNTO GNV"]
["BA395ET","RENAULT SCENIC 5PL"]
["BA435ET","KANGOO FW1AB5"]
["BA506TC","KANGOO FW1AB5"]
["BA529AA","RENAULT_CLIO"]
["BA547TC","CLIO"]
["BA577TC","MASTER"]
["BA607TC","MASTER"]
["BA630TE","MASTER"]
["BA666QC","RENAULT SCENIC 5PL"]
["BA686AA","RENAULT_CLIO"]
["BA807XE","RENAULT_TRAFIC"]
["BA856SR","RENAULT_KANGOO"]
["BA859SR","KANGOO FW1AB5"]
["BB001JN","KANGOO FW1AB5"]
["BB107FK","FIAT PANDA 4X4"]
["BB148FK","FIAT PANDA 4X4"]
["BB300ZV","CLIO"]
["BB342VA","CLIO"]
["BB369VA","CLIO"]
["BB448FN","KANGOO FW1AB5"]
["BB567YW","FIAT PANDA 4X4"]
["BB602MJ","KANGOO FW1AB5"]
["BB623MJ","KANGOO FW1AB5"]
["BB815NC","RENAULT_TRAFIC"]
["BB848NC","RENAULT_TRAFIC"]
["BC013ZC","TRAFIC"]
["BC045ZF","RENAULT_MASTER"]
["BC350ZF","PLUTONARC REM SOUDURE"]
["BC404XJ","MASTER 2 GO VASP"]
["BC639TK","KANGOO FW1AB5"]
["BC767PL","RENAULT_TRAFIC"]
["BD784HV","MERCEDES SPRINTER 4X4"]
["BD823FM","MERCEDES SPRINTER 4X4"]
["BE088TD","MERCEDES SPRINTER 4X4"]
["BE125WZ","MERCEDES SPRINTER 4X4"]
["BE141TD","MERCEDES SPRINTER 4X4"]
["BE452ZD","REMORQUE TRIGANO"]
["BE945TC","IVECO 140E22 / GRUE PLATEAU  FASSI F80A/90AXP22"]
["BF223TR","RENAULT_CLIO"]
["BF371AG","PAJERO LONG 7 PLACES"]
["BF381WP","PEUGEOT_PARTNER"]
["BF418WP","PEUGEOT_PARTNER"]
["BG387KZ","KAESER COMPRESSEUR"]
["BG390PF","IVECO 140E22  / F.ELEVATEUR 192TBA"]
["BG434PF","IVECO ML 150 E 25WRS 4X4 / F.ELEVATEUR 192TBA"]
["BG453AX","KANGOO FW1AB5"]
["BG453KZ","KAESER COMPRESSEUR"]
["BG475KE","PEUGEOT_PARTNER"]
["BG476AX","KANGOO FW1AB5"]
["BG500KZ","KAESER COMPRESSEUR"]
["BG505KE","PEUGEOT_PARTNER"]
["BG509AX","KANGOO FW1AB5"]
["BG541AX","KANGOO FW1AB5"]
["BG565AX","KANGOO FW1AB5"]
["BG592AX","KANGOO FW1AB5"]
["BG612AX","KANGOO FW1AB5"]
["BG645NT","MERCEDES SPRINTER 4X4"]
["BG661KC","KAESER COMPRESSEUR"]
["BG678KC","KAESER COMPRESSEUR"]
["BG688KY","RENAULT_KANGOO"]
["BG729KY","TWINGO"]
["BH338LE","VOLKSWAGEN CADDY 4X4"]
["BH762GG","CLIO"]
["BH824CK","TWINGO 2"]
["BH847CK","TWINGO 2"]
["BH862CK","TWINGO 2"]
["BJ066NX","CLIO"]
["BJ134NX","CLIO"]
["BJ205AL","VOLKSWAGEN CADDY 4X4"]
["BJ328TL","VOLKSWAGEN CADDY 4X4"]
["BJ406NX","CLIO"]
["BJ728LZ","RENAULT CLIO CE"]
["BJ914NW","CLIO"]
["BJ927NW","CLIO"]
["BJ985MM","TWINGO 2"]
["BK753KJ","TWINGO"]
["BL022DN","CLIO"]
["BL177XC","RVI MIDLUM / F.ELEVATEUR 152TPM"]
["BL467KT","IVECO / GROUPE 400KVA"]
["BP624YH","KANGOO FW1AB5"]
["BP633YH","KANGOO FW1AB5"]
["BP639YH","KANGOO FW1AB5"]
["BP671YH","KANGOO FW1AB5"]
["BP685YH","KANGOO FW1AB5"]
["BP794ZK","KANGOO FW1AB5"]
["BQ030QX","TWINGO 2  GO"]
["BQ059QX","TWINGO 2  GO"]
["BQ087QX","TWINGO 2  GO"]
["BQ117QX","TWINGO 2  GO"]
["BQ140QX","TWINGO 2  GO"]
["BQ156QX","TWINGO 2  GO"]
["BQ467JC","KANGOO FW1AB5"]
["BQ746QW","TWINGO 2"]
["BQ783QW","TWINGO 2  GO"]
["BQ820QW","TWINGO 2  GO"]
["BQ858QW","TWINGO 2"]
["BQ886QW","TWINGO 2"]
["BQ911QS","KANGOO FW1AB5"]
["BQ919QW","TWINGO 2  GO"]
["BQ955QW","TWINGO 2  GO"]
["BQ990QW","TWINGO 2  GO"]
["BR065YS","TWINGO 2"]
["BR197YS","TWINGO 2"]
["BR557QC","MERCEDES SPRINTER 4X4"]
["BS021YV","GRANDE PUNTO"]
["BS035YV","GRANDE PUNTO"]
["BS052YV","GRANDE PUNTO"]
["BS069YV","GRANDE PUNTO"]
["BS085QV","RENAULT_MASTER"]
["BS089YV","GRANDE PUNTO"]
["BS105YV","GRANDE PUNTO"]
["BS113YV","GRANDE PUNTO"]
["BS118QV","RENAULT_MASTER"]
["BS205QV","MERCEDES SPRINTER 4X4"]
["BS505CT","TWINGO"]
["BS527CT","TWINGO"]
["BS547CT","TWINGO"]
["BS568CT","TWINGO"]
["BS804PL","FIAT DOBLO"]
["BS884CC","RENAULT_CLIO"]
["BT201SZ","FIAT PANDA 4X4"]
["BT365SW","TOYOTA HILUX"]
["BT396SW","TOYOTA HILUX"]
["BT469YE","MASTER"]
["BT510YE","RENAULT SCENIC 5PL"]
["BT578YE","RENAULT SCENIC 5PL"]
["BT620YE","TWINGO 2"]
["BT642YE","TWINGO 2"]
["BT664YE","TWINGO 2"]
["BT686YE","TWINGO 2"]
["BT700PS","PUNTO GNV"]
["BT723YE","TWINGO 2"]
["BT740YE","TWINGO 2"]
["BT767YE","TWINGO 2"]
["BT918SX","FIAT DOBLO"]
["BT971ZS","FIAT DOBLO GNV"]
["BT975ZS","FIAT DOBLO GNV"]
["BT980ZS","PUNTO GNV"]
["BT987ZS","PUNTO GNV"]
["BV107XB","VOLKSWAGEN CADDY 4X4"]
["BV155XB","VOLKSWAGEN CADDY 4X4"]
["BV193XB","VOLKSWAGEN CADDY 4X4"]
["BV228XB","VOLKSWAGEN CADDY 4X4"]
["BV467YZ","PUNTO GNV"]
["BV692PJ","PEUGEOT_PARTNER"]
["BV874XA","VOLKSWAGEN CADDY 4X4"]
["BV904XA","VOLKSWAGEN CADDY 4X4"]
["BW170LY","CLIO"]
["BW226WT","CLIO"]
["BW379WZ","FIAT DOBLO GNV"]
["BW819LX","CLIO"]
["BW840MN","PUNTO GNV"]
["BW949XE","IVECO 6X6 / GRUE FOREUSE SEP TLA23"]
["BX064CR","CLIO"]
["BX197GA","CADDY VAN 4*4 FOUR MOTION"]
["BX498DX","CLIO"]
["BX526CQ","CLIO"]
["BX706CQ","CLIO"]
["BX795WM","RENAULT_TRAFIC"]
["BX848DX","CLIO"]
["BX851WM","KANGOO FW1AB5"]
["BX858XJ","C 3 GNV"]
["BX919XJ","REMORQUE PLATEAU "]
["BX947XJ","REMORQUE PLATEAU "]
["BX952EC","RENAULT_TRAFIC"]
["BY213QD","TRAFIC FLAMA6"]
["BY238QD","TRAFIC FLAMA6"]
["BY260QD","RENAULT MASTER / MAFEAC MOD"]
["BY385AG","TRAFIC GO"]
["BY592QB","IVECO ML140E22K   / F.ELEVATEUR 192TBA "]
["BY612AG","TRAFIC GO"]
["BY662AG","TRAFIC GO"]
["BY719AG","TRAFIC FLAMA6"]
["BY746AG","KANGOO FW1AB5"]
["BY881CN","BOEGLIN PLATEAU"]
["BY930CN","BOEGLIN PLATEAU"]
["BZ006YF","TOYOTA HILUX"]
["BZ676WC","TRANSPORTER 4X4"]
["CA021CY","KANGOO FW1AB5"]
["CA209FE","CADDY GO 4X4"]
["CA543KF","KANGOO FW1AB5"]
["CB975LL","RENAULT_TRAFIC"]
["CC171CW","TWINGO 2  GO"]
["CC660RQ","TWINGO 2  GO"]
["CC680RQ","TWINGO 2  GO"]
["CC870RD","CAISSE MSG"]
["CD117GL","IVECO ML 150 E 25WRS 4X4  / F.ELEVATEUR 192TBA"]
["CD624EB","MASTER GO  MAF4EN DEFAUT DE CABLE"]
["CE324WC","CLIO III  VF1CR"]
["CF192FE","RVI MIDLUM / F.ELEVATEUR 152TPM  N° 4667"]
["CH001DK","TWINGO 2"]
["CH041DK","TWINGO 2"]
["CH107DK","TWINGO 2"]
["CH152DK","TWINGO 2"]
["CH206DK","TWINGO 2"]
["CH235MV","KANGOO ELECTRIQUE ZE - DEMONSTRATEUR"]
["CH247DK","TWINGO 2"]
["CH279DK","TWINGO 2"]
["CH321DK","TWINGO 2"]
["CH369DK","TWINGO 2"]
["CH796DJ","TWINGO 2"]
["CH831DJ","TWINGO 2"]
["CH955DJ","TWINGO 2"]
["CJ053PB","RVI PREMIUM / 250TPE COMILEV"]
["CJ217YB","KANGOO FW14B5"]
["CJ264JT","TWINGO 2"]
["CJ281JW","RENAULT_KANGOO"]
["CJ283JT","TWINGO 2"]
["CJ299JT","TWINGO 2"]
["CJ308JW","RENAULT_KANGOO"]
["CJ314JT","TWINGO 2"]
["CJ318CV","IVECO ML150E 25WS TST 4X4 "]
["CJ326JT","TWINGO 2"]
["CJ478YB","KANGOO FW14B5"]
["CJ606KX","TWINGO 2"]
["CJ638KX","TWINGO 2"]
["CJ661KX","TWINGO 2"]
["CJ687YB","TWINGO 2"]
["CJ711YB","TWINGO 2"]
["CJ736YB","TWINGO 2"]
["CJ766YB","TWINGO 2"]
["CJ779YB","TWINGO 2"]
["CJ801YB","TWINGO 2"]
["CJ823YB","TWINGO 2"]
["CJ829XJ","RENAULT MASTER"]
["CJ832YB","TWINGO 2"]
["CJ858YB","TWINGO 2"]
["CJ926YB","KANGOO FW14B5"]
["CJ945YA","KANGOO FW14B5"]
["CK016NN","KANGOO FW14B5"]
["CK041NN","KANGOO FW14B5"]
["CK050NN","KANGOO FW14B5"]
["CK074ZJ","MASTER GO"]
["CK089ZJ","MASTER GO"]
["CK094ZJ","MASTER GO"]
["CK097ZJ","MASTER GO"]
["CK107ZJ","MASTER GO"]
["CK112ZJ","MASTER GO"]
["CK118ZJ","MASTER GO"]
["CK124ZJ","TWINGO 2"]
["CK125NN","KANGOO FW14B5"]
["CK148NN","KANGOO FW14B5"]
["CK160NN","KANGOO FW14B5"]
["CK197NN","KANGOO FW14B5"]
["CK205SA","RENAULT_MASTER"]
["CK215NN","KANGOO FW14B5"]
["CK321SD","RENAULT_KANGOO"]
["CK348ZM","RENAULT MASTER"]
["CK356SD","RENAULT_KANGOO"]
["CK375SA","RENAULT_KANGOO"]
["CK381ZM","RENAULT MASTER"]
["CK396SA","RENAULT_KANGOO"]
["CK423ZM","RENAULT MASTER"]
["CK455ZM","RENAULT MASTER"]
["CK758NM","KANGOO FW14B5"]
["CK846NM","KANGOO FW14B5"]
["CK917NM","KANGOO FW14B5"]
["CK939NM","KANGOO FW14B5"]
["CK964NM","KANGOO FW14B5"]
["CK985NM","KANGOO FW14B5"]
["CL201XX","308_VP4PL_DIESEL_1.6L HDI"]
["CL217XX","308_VP4PL_DIESEL_1.6L HDI"]
["CL443XX","308_VP4PL_DIESEL_1.6L HDI"]
["CL568QN","RENAULT_SCENIC"]
["CL584KT","RENAULT MASTER"]
["CL608KT","RENAULT_TRAFIC"]
["CL642KT","TWINGO 2"]
["CL661KT","RENAULT_KANGOO"]
["CL729WB","PUNTO GNV"]
["CL812WQ","RENAULT_KANGOO"]
["CL830WQ","RENAULT CLIO"]
["CL947YV","RENAULT_TRAFIC"]
["CM069NG","REMORQUE BOEGLIN"]
["CM123AA","RENAULT TRAFIC FLA0A6"]
["CM131QV","DOBLO"]
["CM146AA","RENAULT TRAFIC FLA0A6"]
["CM155ZE","RVI M 180 / FRANCE ELEVATEUR 152TPM / N° 4694"]
["CM160QV","DOBLO"]
["CM163AA","KANGOO FW14B5"]
["CM177AA","KANGOO FW14B5"]
["CM191PG","KANGOO FW14B5"]
["CM195QV","DOBLO"]
["CM221QV","DOBLO"]
["CM222PG","TWINGO 2"]
["CM452YE","RVI PREMIUM / 250TPE COMILEV"]
["CM499DD","IVECO 140E22K / FRANCE ELEVATEUR 192 TBA"]
["CM601YE","RENAULT CLIO"]
["CM603VR","RENAULT_KANGOO"]
["CM849BP","REMORQUE BOEGLIN"]
["CM859CV","RENAULT CLIO"]
["CM874BP","REMORQUE BOEGLIN"]
["CM894BP","REMORQUE BOEGLIN"]
["CN078MV","IVECO 6X6 / FOREUSE HEP TLA23"]
["CN518XD","CAISSE MSG"]
["CP069LH","VOLKSWAGEN CADDY 4X4"]
["CP279HW","VOLKSWAGEN CADDY 4X4"]
["CP282SH","VOLKSWAGEN CADDY 4X4"]
["CP316HW","VOLKSWAGEN CADDY 4X4"]
["CP390ZJ","IVECO / GROUPE  PERKINS   400KVA"]
["CP413BT","KAESER COMPRESSEUR"]
["CP501RL","MEGANE"]
["CP550RL","MEGANE"]
["CP657GK","VOLKSWAGEN CADDY 4X4"]
["CP682XR","CLIO III  VF1CR"]
["CP694XR","VOLKSWAGEN CADDY 4X4"]
["CP706XR","VOLKSWAGEN CADDY 4X4"]
["CP712XR","RENAULT_KANGOO"]
["CP911GH","VOLKSWAGEN CADDY 4X4"]
["CP961GH","VOLKSWAGEN CADDY 4X4"]
["CP969XJ","RVI PREMIUM / 250TPE COMILEV"]
["CQ020CJ","MASTER GO"]
["CQ342CF","IVECO_ML150E25WS 4X4 / F.ELEVATEUR 192 TBA / N° 5026"]
["CQ578TK","REM-MOIROUD"]
["CQ658CG","CLIO"]
["CQ731AN","TOYOTA HILUX"]
["CQ951ZF","CITROEN_BERLINGO"]
["CR070ES","RENAULT_KANGOO"]
["CR703WA","RENAULT_KANGOO"]
["CS724QK","IVECO C3M 172TBI"]
["CT200DH","REMORQUE BRENDER"]
["CV127WQ","TWINGO 2"]
["CV153WQ","TWINGO 2"]
["CV200WQ","TWINGO 2"]
["CV218WQ","TWINGO 2"]
["CV252EW","TWINGO 2"]
["CV284EW","TWINGO 2"]
["CV604XF","TWINGO 2"]
["CV674LK","RVI MIDLUM / 2 H ENERGY GROUPE 250KVA N° 3125069"]
["CW600ZS","RVI M 180 152 TPM / F.ELEVATEUR N° 5113"]
["CW916GL","CLIO IV"]
["CW964ZW","RVI M 180 152 TPM-FE"]
["CW982ZS","RVI M 180 152 TPM-FE"]
["CX024RV","CLIO IV"]
["CX034RV","CLIO IV"]
["CX134LK","FIORINO"]
["CX315YR","FIORINO"]
["CX406RT","CLIO IV"]
["CX418RT","CLIO IV"]
["CX434RT","CLIO IV"]
["CX764YR","PAJERO LONG 7 PLACES"]
["CX997RT","CLIO IV"]
["CY051KZ","RENAULT_MASTER"]
["CY101BW","MEGANE"]
["CY129BW","MEGANE"]
["CY144BW","TWINGO 2"]
["CY164BW","TWINGO 2"]
["CY181BW","TWINGO 2"]
["CY207BW","TWINGO 2"]
["CY233BW","TWINGO 2"]
["CY260BW","TWINGO 2"]
["CY503HQ","DOBLO"]
["CY579BE","DOBLO"]
["CY640YA","IVECO ML140E22K   / F.ELEVATEUR 192TBA  N° 5115"]
["CY683XY","MASTER 3 ATELIER MAFEBC A MOD"]
["CY713RL","MASTER 3 ATELIER MAFEBC A MOD"]
["CY740RL","MASTER 3 ATELIER MAFEBC A MOD"]
["CY758RL","MASTER 3 ATELIER MAFEBC A MOD"]
["CY767RL","MASTER 3 ATELIER MAFEBC A MOD"]
["CY784BE","DOBLO"]
["CZ005PL","RENAULT_KANGOO"]
["CZ057JP","KANGOO ELECTRIQUE ZE"]
["CZ069YB","KANGOO ELECTRIQUE ZE"]
["CZ075JP","KANGOO ELECTRIQUE ZE"]
["CZ087JP","KANGOO ELECTRIQUE ZE"]
["CZ090YB","KANGOO ELECTRIQUE ZE"]
["CZ110VJ","VOLKSWAGEN CADDY 4X4"]
["CZ131PK","VOLKSWAGEN CADDY 4X4"]
["CZ132YB","KANGOO ELECTRIQUE ZE"]
["CZ166YB","KANGOO ELECTRIQUE ZE"]
["CZ184VJ","VOLKSWAGEN CADDY 4X4"]
["CZ194JP","RENAULT_TRAFIC"]
["CZ200VJ","VOLKSWAGEN CADDY 4X4"]
["CZ202PK","RENAULT_KANGOO"]
["CZ202TH","KANGOO "]
["CZ212JP","MERCEDES SPRINTER 4X4"]
["CZ213TH","KANGOO "]
["CZ222TH","KANGOO "]
["CZ223JP","RENAULT_TRAFIC"]
["CZ227PK","RENAULT_KANGOO"]
["CZ228JP","RENAULT_TRAFIC"]
["CZ230TH","KANGOO "]
["CZ241TH","KANGOO "]
["CZ252TH","KANGOO "]
["CZ267TH","KANGOO "]
["CZ273TH","KANGOO "]
["CZ382VJ","VOLKSWAGEN CADDY 4X4"]
["CZ958PK","RENAULT_KANGOO"]
["CZ982PK","RENAULT_KANGOO"]
["DA010LS","VOLKSWAGEN CADDY 4X4"]
["DA038LS","VOLKSWAGEN CADDY 4X4"]
["DA098WV","RENAULT_TRAFIC"]
["DA380WV","RENAULT_TRAFIC"]
["DA427WV","RENAULT_TRAFIC"]
["DA476WV","RENAULT_TRAFIC"]
["DA523WV","RENAULT_TRAFIC"]
["DA562WV","MASTER 3 ATELIER MAFEBCAMOD"]
["DA608WV","MASTER 3 ATELIER MAFEBC A MOD"]
["DA663WV","MASTER 3 ATELIER MAFEBCAMOD"]
["DA722WV","MASTER 3 ATELIER MAFEBCAMOD"]
["DA776WV","MASTER 3 ATELIER MAFEBCAMOD"]
["DA819WV","MASTER 3 ATELIER MAFEBC A MOD"]
["DA868WV","MASTER 3 ATELIER MAFEBCAMOD"]
["DA902LR","FIAT DOBLO"]
["DB183WL","IVECO ML150E 25WS TST 4X4 "]
["DB556LR","CLIO IV"]
["DB573LR","CLIO IV"]
["DB600LR","CLIO IV"]
["DB864TF","MASTER 3 ATELIER MAFEBCAMOD"]
["DB890TF","MASTER 3 ATELIER MAFEBCAMOD"]
["DC078PS","TWINGO 2"]
["DC098PS","TWINGO 2"]
["DC114PS","TWINGO 2"]
["DC136PS","TWINGO 2"]
["DC278GK","70C17"]
["DC620PR","REMORQUE BOEGLIN"]
["DC815PR","RENAULT_TRAFIC"]
["DC829PR","MASTER 3 ATELIER MAFEBC A MOD"]
["DC841PR","RENAULT_TRAFIC"]
["DC853PR","RENAULT_TRAFIC"]
["DC864PR","RENAULT_TRAFIC"]
["DE756PN","RENAULT_KANGOO"]
["DJ001SX","RENAULT_KANGOO"]
["DJ008SX","RENAULT_KANGOO"]
["DJ014SX","RENAULT_KANGOO"]
["DJ020SX","RENAULT_KANGOO"]
["DJ028SX","RENAULT_KANGOO"]
["DJ032SX","RENAULT_KANGOO"]
["DJ041SX","RENAULT_KANGOO"]
["DJ045SX","RENAULT_KANGOO"]
["DJ064SX","RENAULT_KANGOO"]
["DJ071SX","RENAULT_KANGOO"]
["DJ099SX","RENAULT_KANGOO"]
["DJ145SX","RENAULT_KANGOO"]
["DJ171SX","KANGOO ELECTRIQUE ZE"]
["DJ193SX","RENAULT_KANGOO"]
["DJ393JH","CLIO IV"]
["DJ412JH","CLIO IV"]
["DJ463QT","CITROEN_BERLINGO 4X4"]
["DJ497SA","IVECO / GROUPE 400KVA"]
["DJ530QT","PAJERO LONG 7 PLACES"]
["DJ774MJ","IVECO 4X4 140E24 CAISSE"]
["DJ919SW","RENAULT_KANGOO"]
["DJ922SW","RENAULT_KANGOO"]
["DJ926SW","RENAULT_KANGOO"]
["DJ929SW","RENAULT_KANGOO"]
["DJ931SW","RENAULT_KANGOO"]
["DJ937SW","RENAULT_KANGOO"]
["DJ940SW","RENAULT_KANGOO"]
["DJ944YS","RENAULT_MASTER"]
["DJ952SW","RENAULT_KANGOO"]
["DJ955SW","RENAULT_KANGOO"]
["DJ957SW","RENAULT_KANGOO"]
["DJ960SW","RENAULT_KANGOO"]
["DJ987SW","RENAULT_KANGOO"]
["DJ993SW","RENAULT_KANGOO"]
["DK006NK","RENAULT_KANGOO"]
["DK010NK","RENAULT_KANGOO"]
["DK025NK","RENAULT_KANGOO"]
["DK040NK","RENAULT_KANGOO"]
["DK049NK","RENAULT_KANGOO"]
["DK478PZ","RENAULT_KANGOO"]
["DK509PZ","RENAULT_KANGOO"]
["DK609TR","DOBLO"]
["DK614TR","DOBLO"]
["DK620TR","DOBLO"]
["DK624TR","DOBLO"]
["DK633TR","DOBLO"]
["DK946EV","TOYOTA HILUX"]
["DL458LH","CLIO IV"]
["ESTAFC1377","REM PORTE PANNEAU"]
["ESTAFC20089","CHARIOT-DE-MANUTENTION H45"]
["ESTAFC500484","CHARIOT-DE-MANUTENTION"]
["ESTAFCTST01","STILL SAXBY CHARIOT MANUTENTION"]
["ESTFCS05","PUMA-CHARIOT ELEVATEUR CLARK"]
["ESTFCS06","MANITOU-CHARIOT ELEVATEUR"]
["ESTFCS07","FENWICK_CHARIOT ELEVATEUR"]
["JM40KVALABO","SDMO GE"]

{"sheet":"Feuil8","index":5,"n_rows":46,"n_cols":4,"rows_kept":46,"hidden":true}
["IMMAT + LIB","DATE RDV","OBSERVATION","Lib"]
["2449ZJ25  CONTROLE TECHNIQUE","2013-12-13",null,"RENAULT_KANGOO"]
["2449ZJ25  CONTROLE TECHNIQUE","2013-12-13",null,"RENAULT_KANGOO"]
["2692ZH25  CONTROLE TECHNIQUE","2014-01-28",null,"RENAULT_TRAFIC"]
["4148ZR25  ENTRETIEN REVISION","2014-01-14",null,"FIAT DOBLO"]
["4531WD25  CTRL REMORQUE","2014-01-28",null,"REM RT 2100C"]
["4686YV25  CONTROLE TECHNIQUE","2014-01-10",null,"CITROEN_BERLINGO"]
["4688YV25  ENTRETIEN REVISION","2014-01-10",null,"CITROEN_BERLINGO"]
["5083ZB25  CONTROLE POLLUTION","2014-02-20",null,"PEUGEOT_PARTNER"]
["6722XB25  CTRL REMORQUE","2014-02-18",null,"REM RT 502 A"]
["7387YA25  CONTROLE POLLUTION","2014-02-28",null,"CITROEN_BERLINGO"]
["8789VT25  CTRL REMORQUE","2014-02-18",null,"SEREM_PAP"]
["9570VZ25  CTRL REMORQUE","2014-02-18",null,"DEMICO_REM R11"]
["9898YV25  CONTROLE TECHNIQUE","2014-01-10",null,"CITROEN_BERLINGO"]
["AC331QS  ENTRETIEN REVISION","2014-01-21",null,"C 3 GNV"]
["AH574BT  CONTROLE TECHNIQUE","2014-01-29",null,"TOYOTA HILUX"]
["AJ377EA  ENTRETIEN REVISION","2014-01-23",null,"TRAFIC"]
["AJ449PL  CONTROLE TECHNIQUE","ok",null,"RENAULT MASTER"]
["AJ449PL  ENTRETIEN REVISION","ok",null,"RENAULT MASTER"]
["BA859SR  ENTRETIEN REVISION","2014-01-09",null,"KANGOO FW1AB5"]
["BB148FK  ENTRETIEN REVISION","ok",null,"FIAT PANDA 4X4"]
["1478WC25  CTRL REMORQUE","2014-02-18",null,"PAILLARD_TAPIR"]
["1514ZF25  CONTROLE TECHNIQUE","2014-01-15",null,"RENAULT_KANGOO"]
["2449ZJ25  COURROIE DE DISTRIBUTION","2013-12-13",null,"RENAULT_KANGOO"]
["4140YN25  CONTROLE POLLUTION","2014-01-28",null,"PEUGEOT_206"]
["4149ZR25  CONTROLE POLLUTION","2014-01-28",null,"FIAT DOBLO"]
["4524YV25  CTRL REMORQUE","2014-02-18",null,"REM RT 2500C"]
["4681YV25  CONTROLE TECHNIQUE","2014-01-21",null,"CITROEN_BERLINGO"]
["4681YV25  ENTRETIEN REVISION","2014-01-17",null,"CITROEN_BERLINGO"]
["6042ZR25  CONTROLE POLLUTION","2014-01-30",null,"MERCEDES SPRINTER 4X4"]
["6187YG25  ENTRETIEN REVISION","2014-01-30",null,"KANGOO 4X4"]
["6190YG25  ENTRETIEN REVISION","2014-01-28",null,"KANGOO 4X4"]
["6605YW25  CONTROLE TECHNIQUE","2014-02-20",null,"KANGOO 4X4"]
["6680YF25  ENTRETIEN REVISION","2014-02-19",null,"CITROEN_SAXO"]
["7173YD25  COURROIE DE DISTRIBUTION","ok",null,"RENAULT_CLIO"]
["8971YS25  ENTRETIEN REVISION","2014-01-15",null,"DEFENDER 110 6 PL"]
["AD256MC  ENTRETIEN REVISION","voir date",null,"MERCEDES SPRINTER 4X4"]
["AE276PE  ENTRETIEN REVISION","OK",null,"VOLKSWAGEN TRANSPORTER 4X4"]
["AJ086VN  CONTROLE TECHNIQUE","2014-01-07",null,"PAJERO LONG 7 PLACES"]
["AJ359PY  CONTROLE TECHNIQUE","2013-12-26",null,"TRAFIC"]
["AJ384ZX  CONTROLE TECHNIQUE","2014-02-03",null,"TRAFIC"]
["AJ408EA  CONTROLE TECHNIQUE","2014-01-06",null,"TRAFIC"]
["AL436DH  CONTROLE TECHNIQUE","2014-02-05",null,"TRAFIC"]
["BP633YH  ENTRETIEN REVISION","2014-02-21",null,"KANGOO FW1AB5"]
["CK985NM  ENTRETIEN REVISION","2014-02-07",null,"KANGOO FW14B5"]
["CM146AA  ENTRETIEN REVISION","2014-01-16",null,"RENAULT TRAFIC FLA0A6"]

{"sheet":"Feuil9","index":6,"n_rows":208,"n_cols":1,"rows_kept":208,"hidden":true}
["0462YT25"]
["0734YN25"]
["1073XZ25"]
["1527YX68"]
["1807YT68"]
["1907YV25"]
["1910YV25"]
["1921YV25"]
["2285ZB25"]
["3366YM25"]
["3792YR25"]
["3934ZQ25"]
["4106YE68"]
["4140YN25"]
["4144YN25"]
["4217ZH68"]
["4317XZ25"]
["4474WR25"]
["4632YT25"]
["4776XZ25"]
["4878YS68"]
["4881YS68"]
["5118YZ25"]
["5203YZ25"]
["5545YS25"]
["5549YS25"]
["5560YT25"]
["5768YE68"]
["5847YD68"]
["5905YC68"]
["6042ZR25"]
["6272YE68"]
["6274YE68"]
["6531XJ68"]
["6729YZ25"]
["6741ZA25"]
["7173YD25"]
["7174YD25"]
["7387YA25"]
["7497YC68"]
["7807XV68"]
["8325XR25"]
["8363YT25"]
["8415YY68"]
["8416YY68"]
["8973ZG25"]
["9898YV25"]
["BF381WP"]
["BG475KE"]
["BG505KE"]
["BV692PJ"]
["CQ951ZF"]
["CY129BW"]
["DN"]
["DN"]
["DN"]
["DN"]
["102ASP51"]
["1115MN52"]
["134ANK51"]
["211APK51"]
["212APK51"]
["2359SN08"]
["2704PN10"]
["280AQW51"]
["2867NQ52"]
["31SF08"]
["338PE10"]
["377ADK51"]
["379AJW51"]
["428AJX51"]
["435AMB51"]
["4542NF52"]
["4547PM10"]
["4931RV08"]
["50AYP51"]
["5485SE08"]
["592ALT51"]
["677ATT51"]
["684ALE51"]
["684ATT51"]
["6958PA10"]
["7411RW08"]
["8481PE10"]
["8514NH52"]
["8960SH08"]
["904ALK51"]
["908AJC51"]
["921APB51"]
["9298PJ10"]
["9389MZ52"]
["9556NB52"]
["AY323DH"]
["BH424WH"]
["CG981CB"]
["CL396KW"]
["CL502NN"]
["CX921YH"]
["Nouvelle dotation"]
["1362ZH54"]
["172ACS54"]
["181BKP57"]
["236ASC57"]
["258AQX57"]
["3873VS88"]
["4127ZN54"]
["419BFX57"]
["4246ZL54"]
["4392ZQ54"]
["444BGX57"]
["465BFT57"]
["4743TW88"]
["5392NM52"]
["752BFX57"]
["762AWW57"]
["804AHJ57"]
["8122ZR54"]
["8151ZZ54"]
["8204VH88"]
["8519VM88"]
["8573VS88"]
["8582VS88"]
["863AMA51"]
["9102XW54"]
["9171ZZ54"]
["931BFX57"]
["9345ZG54"]
["946BFX57"]
["9574ZG54"]
["9576ZG54"]
["96BCB57"]
["980ACN54"]
["9847MX52"]
["AD172NC"]
["AG475QM"]
["AS357MX"]
["AX820QN"]
["BA432PF"]
["CF489VD"]
["CF921VD"]
["DN"]
["DN"]
["DN"]
["8450YA25"]
["838AFS51"]
["198ANM57"]
["0015YM68"]
["A définir"]
["A définir"]
["A définir"]
["0713XL25"]
["0930YR25"]
["1173NL10"]
["1217WY25"]
["1514ZF25"]
["162ABC51"]
["224AAA54"]
["32BJV57"]
["385CAX57"]
["397BKW57"]
["39BJV57"]
["4101ND52"]
["445YS54"]
["51AED54"]
["542AMZ51"]
["5482SE08"]
["5484SE08"]
["5766YE68"]
["5880SJ08"]
["591AQX51"]
["671AET51"]
["7225YF68"]
["729ALH54"]
["7318NH52"]
["7387YL68"]
["7389YL68"]
["742BBB57"]
["747BBB57"]
["747ZJ54"]
["7894ZA25"]
["812BFR57"]
["8203VH88"]
["824BDQ57"]
["8269XY68"]
["827BDQ57"]
["833BVW57"]
["849AWZ57"]
["8569XR68"]
["8958SH08"]
["896ALS54"]
["8997ZJ68"]
["9183XW68"]
["9335ZP54"]
["996VR88"]
["AC132PR"]
["AE790RN"]
["AK172WX"]
["AK239KQ"]
["AM499CH"]
["AQ203RB"]
["AS521AY"]
["BH087GH"]
["BQ072AH"]
["CG410YD"]
["CN517RX"]
["DN"]
["DN"]
["DN"]

{"sheet":"Feuil10","index":7,"n_rows":357,"n_cols":4,"rows_kept":357,"hidden":true}
{"$rows_empty":8}
["1776XK25","2014-06-01","2014-06-04","RVI DOLE"]
[]
[]
[]
[]
["2449ZJ25","2014-06-01","2014-04-29"]
[]
["2692ZH25","2014-06-01","2014-01-28"]
[]
[]
["2777TN25","2014-06-01","semaine 23"]
[]
["2836YS25","2014-06-01","2014-06-18"]
{"$rows_empty":12}
["4148ZR25","2014-06-01","2014-01-14"]
["4149ZR25","2014-06-01","2013-12-02"]
[]
[]
[]
[]
["4387ZG25","2014-06-01","2014-06-06"]
["4474WR25","2014-06-01","2014-04-28"]
[]
["4686YV25","2014-06-01","2014-01-10"]
["4688YV25","2014-06-01","2014-01-10"]
[]
[]
[]
[null,"2014-06-01","2014-06-12"]
[]
[]
["5542YS25","2014-06-01","2014-06-11"]
[]
[]
[]
[]
[]
["6722XB25","2014-06-01","2014-02-18"]
[]
["7174YD25","2014-06-01","2014-04-23"]
["7174YD25","2014-06-01","vl proche réforme"]
{"$rows_empty":9}
["8389WJ25","2014-06-01","2014-02-06"]
[]
["8389WJ25","2014-06-01","2014-02-06"]
[]
[]
["8533YZ25","2014-06-01","2014-03-03"]
[]
[]
[]
[]
[]
["8753TK25","2014-06-01","semaine 23"]
["8789VT25","2014-06-01","2014-02-18"]
[]
[]
[]
[]
[]
["9535YF25","2014-06-01","OK"]
[]
[]
[]
[]
[]
[]
["AC315QS","2014-06-01","ATTENTE FA OU ATTE"]
[]
["AC331QS","2014-06-01","2014-01-21"]
["AC623KV","2014-06-01","2013-10-02"]
["AC789KV","2014-06-01","2014-04-14"]
[]
[]
[]
[]
[]
["AD566GW","2014-06-01","ok"]
[]
[]
[]
["AD922GW","2014-06-01","2013-10-02"]
["AD922GW","2014-06-01","2013-10-02"]
{"$rows_empty":12}
["BB148FK","2014-06-01","2014-02-07"]
[]
[]
[]
[]
["BE125WZ","2014-06-01","2014-02-10"]
[]
[]
[]
[]
[]
["BQ087QX","2014-06-01","2014-06-06","gge pernin"]
[]
["BR557QC","2014-06-01","2014-06-17","gge etoile 90"]
["BT510YE","2014-06-01","2014-06-10","gge pernin"]
{"$rows_empty":13}
["CH247DK","2014-06-01","2014-06-11"]
[]
[]
[]
["CH955DJ","2014-06-01","2014-06-18"]
["CJ217YB","2014-06-01","2014-06-13"]
[]
[]
[]
["CM069NG","2014-06-01","2013-04-30"]
[]
[]
[]
[]
[]
[]
["0067XD25","2014-07-01"]
["0431XZ25","2014-07-01"]
["0461YT25","2014-07-01"]
["0659SN25","2014-07-01"]
["0701ZJ25","2014-07-01"]
["0713XL25","2014-07-01"]
["0872ZK25","2014-07-01"]
["0872ZK25","2014-07-01"]
["0930YR25","2014-07-01"]
["1059TA25","2014-07-01"]
["1279TX25","2014-07-01"]
["1408ZJ25","2014-07-01"]
["1411ZJ25","2014-07-01"]
["1411ZJ25","2014-07-01"]
["1413ZB25","2014-07-01"]
["1514ZF25","2014-07-01"]
["1664ZS25","2014-07-01"]
["1776XK25","2014-07-01"]
["1910YV25","2014-07-01"]
["2269XX25","2014-07-01"]
["2291ZM25","2014-07-01"]
["2294ZM25","2014-07-01"]
["2449ZJ25","2014-07-01"]
["2578XA25","2014-07-01"]
["2692ZH25","2014-07-01"]
["2708XM25","2014-07-01"]
["2777TN25","2014-07-01"]
["2814WR25","2014-07-01"]
["2836YS25","2014-07-01"]
["2863YZ25","2014-07-01"]
["2863YZ25","2014-07-01"]
["2867YZ25","2014-07-01"]
["2867YZ25","2014-07-01"]
["3035YW25","2014-07-01"]
["3368YG25","2014-07-01"]
["3409ZG25","2014-07-01"]
["3410XX25","2014-07-01"]
["3410XX25","2014-07-01"]
["3529ZG25","2014-07-01"]
["3534ZG25","2014-07-01"]
["3540ZG25","2014-07-01"]
["3781YR25","2014-07-01"]
["3843SA25","2014-07-01"]
["3924ZQ25","2014-07-01"]
["3939ZG25","2014-07-01"]
["3944ZG25","2014-07-01"]
["3988ZQ25","2014-07-01"]
["4006ZF25","2014-07-01"]
["4006ZF25","2014-07-01"]
["4148ZR25","2014-07-01"]
["4149ZR25","2014-07-01"]
["4149ZR25","2014-07-01"]
["4152YN25","2014-07-01"]
["4276VC25","2014-07-01"]
["4350TA25","2014-07-01"]
["4387ZG25","2014-07-01"]
["4474WR25","2014-07-01"]
["4474WR25","2014-07-01"]
["4686YV25","2014-07-01"]
["4688YV25","2014-07-01"]
["4711ZR25","2014-07-01"]
["4776XZ25","2014-07-01"]
["4852WT25","2014-07-01"]
["4894XZ25","2014-07-01"]
["4998YE25","2014-07-01"]
["5505TK25","2014-07-01"]
["5542YS25","2014-07-01"]
["5909VL25","2014-07-01"]
["6008WA25","2014-07-01"]
["6008WA25","2014-07-01"]
["6289ZJ25","2014-07-01","ok demande attestation garage citroen besancon "]
["6452ZQ25","2014-07-01"]
["6481ZG25","2014-07-01"]
["6722XB25","2014-07-01"]
["7035VP25","2014-07-01"]
["7174YD25","2014-07-01"]
["7174YD25","2014-07-01"]
["7542VC25","2014-07-01"]
["7889ZA25","2014-07-01"]
["8021VM25","2014-07-01"]
["8131ZF25","2014-07-01"]
["8136ZF25","2014-07-01"]
["8139ZF25","2014-07-01"]
["8250YR25","2014-07-01"]
["8389WJ25","2014-07-01"]
["8389WJ25","2014-07-01"]
["8389WJ25","2014-07-01"]
["8448YA25","2014-07-01"]
["8533YZ25","2014-07-01"]
["8577XZ25","2014-07-01"]
["8630ZG25","2014-07-01"]
["8753TK25","2014-07-01"]
["8789VT25","2014-07-01"]
["8880YT25","2014-07-01"]
["9011SN25","2014-07-01"]
["9096YF25","2014-07-01"]
["9096YF25","2014-07-01"]
["9096YF25","2014-07-01"]
["9368SU25","2014-07-01"]
["9444ZP25","2014-07-01"]
["9447ZP25","2014-07-01"]
["9535YF25","2014-07-01"]
["9711XP25","2014-07-01"]
["9751ZE25","2014-07-01","ok demande attestation garage citroen besancon "]
["AA735XM","2014-07-01"]
["AA830QE","2014-07-01"]
["AC028KW","2014-07-01"]
["AC315QS","2014-07-01"]
["AC325QS","2014-07-01"]
["AC331QS","2014-07-01"]
["AC623KV","2014-07-01"]
["AC789KV","2014-07-01"]
["AC921KV","2014-07-01"]
["AC927AP","2014-07-01"]
["AC946AP","2014-07-01"]
["AC946AP","2014-07-01"]
["AC959AP","2014-07-01"]
["AD256MC","2014-07-01"]
["AD285GZ","2014-07-01"]
["AD566GW","2014-07-01"]
["AD625GW","2014-07-01"]
["AD643GW","2014-07-01"]
["AD643GW","2014-07-01"]
["AD922GW","2014-07-01"]
["AD922GW","2014-07-01"]
["AE091YE","2014-07-01"]
["AE164AS","2014-07-01"]
["AE618TK","2014-07-01"]
["AF505SY","2014-07-01"]
["AF559SY","2014-07-01"]
["AF559SY","2014-07-01"]
["AF568GE","2014-07-01"]
["AG762MK","2014-07-01"]
["AG795MK","2014-07-01"]
["AG840MK","2014-07-01"]
["AH393BV","2014-07-01"]
["AH528BD","2014-07-01"]
["AJ291ZX","2014-07-01"]
["AJ449PL","2014-07-01"]
["BA064TD","2014-07-01"]
["BA112FA","2014-07-01"]
["BA347ET","2014-07-01"]
["BA547TC","2014-07-01"]
["BA577TC","2014-07-01"]
["BA607TC","2014-07-01"]
["BB107FK","2014-07-01"]
["BB148FK","2014-07-01"]
["BB448FN","2014-07-01"]
["BC013ZC","2014-07-01"]
["BC404XJ","2014-07-01"]
["BC639TK","2014-07-01"]
["BD823FM","2014-07-01"]
["BE125WZ","2014-07-01"]
["BE452ZD","2014-07-01"]
["BF371AG","2014-07-01"]
["BP671YH","2014-07-01"]
["BQ087QX","2014-07-01"]
["BR557QC","2014-07-01"]
["BT469YE","2014-07-01"]
["BT510YE","2014-07-01"]
["BX858XJ","2014-07-01"]
["BX919XJ","2014-07-01"]
["BX947XJ","2014-07-01"]
["BY213QD","2014-07-01"]
["BY662AG","2014-07-01"]
["BZ676WC","2014-07-01"]
["CD624EB","2014-07-01"]
["CH041DK","2014-07-01"]
["CH107DK","2014-07-01"]
["CH152DK","2014-07-01"]
["CH235MV","2014-07-01"]
["CH247DK","2014-07-01"]
["CH279DK","2014-07-01"]
["CH369DK","2014-07-01"]
["CH796DJ","2014-07-01"]
["CH955DJ","2014-07-01"]
["CJ217YB","2014-07-01"]
["CJ823YB","2014-07-01"]
["CK074ZJ","2014-07-01"]
["CK094ZJ","2014-07-01"]
["CK097ZJ","2014-07-01"]
["CK107ZJ","2014-07-01"]
["CK118ZJ","2014-07-01"]
["CL443XX","2014-07-01"]
["CM069NG","2014-07-01"]
["CM163AA","2014-07-01"]
["CM191PG","2014-07-01"]
["CP501RL","2014-07-01"]
["CQ020CJ","2014-07-01"]
["CY207BW","2014-07-01"]
["ESTAFC1377","2014-07-01"]

{"sheet":"LISTE CCS","index":8,"n_rows":185,"n_cols":6,"rows_kept":185}
["Unité + lib CCS DR","Unité + lib CCS DCT","Unité + lib CCS DRG","Unité + lib CCS UCF","Unité + lib CCS USR","Unité + lib CCS USL"]
["EST-DR-AFC - TOUS LES VEHICULES","EST-DCT - TOUS LES VEHICULES","EST-DRG - TOUS LES VEHICULES","EST-UCF-AFC - TOUS LES VEHICULES","EST-USR - TOUS VEHICULES UNITE","USL-EST-ATTENTE - TOUS LES VEHICULES"]
["EST-DR-AFC - EMA APE PREVENTION","EST-DCT - T&D AGENCE TERRITOIRE  AFC","EST-DRG - ETAT_MAJOR_URG_AFC","EST-UCF-AFC - OPE INT ATC ALS PF","EST-USR - VEHICULES POOL AFC","USL-EST-ATTENTE - SLO VEH"]
["EST-DR-AFC - EMA DIR ETAT MAJOR","EST-DCT - T&D-AGENCE ENTREPRISE AFC","EST-DRG - ETAT_MAJOR_URG_AFC","EST-UCF-AFC - OPE INT ATC ALS PF","EST-USR - VEHICULES POOL AFC","USL-EST-ATTENTE - SLO VEH"]
["EST-DR-AFC - IRE ENCADT OP PATRI ALSACE","EST-DCT - T&D-AGENCE ENTREPRISE AFC","EST-DRG - EXPLOITATION GAZ ALSACE","EST-UCF-AFC - OPE INT ATC ALS PF","EST-USR - VEHICULES POOL AFC","USL-EST-ATTENTE - SLO VEH"]
["EST-DR-AFC - IRE ENCADT OP PATRI ALSACE","EST-DCT - T&D-AGENCE ENTREPRISE AFC","EST-DRG - EXPLOITATION GAZ ALSACE","EST-UCF-AFC - OPE INT ATC ALS PF","EST-USR - VEHICULES POOL AFC","USL-EST-ATTENTE - SLO VEH"]
["EST-DR-AFC - IRE ENCADT OP PATRI ALSACE","EST-DCT - T&D-AGENCE ENTREPRISE AFC","EST-DRG - EXPLOITATION GAZ ALSACE","EST-UCF-AFC - OPE INT ATC ALS PF","EST-USR - VEHICULES POOL AFC","USL-EST-ATTENTE - SLO VEH"]
["EST-DR-AFC - IRE ENCADT OP PATRI ALSACE","EST-DCT - T&D-AGENCE ENTREPRISE AFC","EST-DRG - EXPLOITATION GAZ ALSACE","EST-UCF-AFC - OPE INT ATC ALS PF","EST-USR - VEHICULES POOL AFC","USL-EST-ATTENTE - VEHICULES REFORMES AFC"]
["EST-DR-AFC - IRE ENCADT OP PATRI FRANCHE COMTE","EST-DCT - T&D-AGENCE ENTREPRISE AFC","EST-DRG - EXPLOITATION GAZ ALSACE","EST-UCF-AFC - OPE INT ATC ALS PF","EST-USR - VEHICULES POOL AFC","USL-EST-ATTENTE - VEHICULES REFORMES AFC"]
["EST-DR-AFC - IRE ENCADT OP PATRI FRANCHE COMTE","EST-DCT - T&D-AGENCE ENTREPRISE AFC","EST-DRG - EXPLOITATION GAZ ALSACE","EST-UCF-AFC - OPE INT ATC ALS PF","EST-USR - VEHICULES POOL AFC","USL-EST-ATTENTE - VEHICULES REFORMES AFC"]
["EST-DR-AFC - IRE ENCADT OP PATRI FRANCHE COMTE","EST-DCT - T&D-AGENCE ENTREPRISE AFC","EST-DRG - EXPLOITATION GAZ ALSACE","EST-UCF-AFC - OPE INT ATC ALS PF","EST-USR - VEHICULES POOL AFC","USL-EST-ATTENTE - VEHICULES REFORMES AFC"]
["EST-DR-AFC - IRE ENCADT OP PATRI FRANCHE COMTE","EST-DCT - T&D-AGENCE ENTREPRISE AFC","EST-DRG - EXPLOITATION GAZ ALSACE","EST-UCF-AFC - OPE INT ATC ALS PF","EST-USR - VEHICULES POOL AFC","USL-EST-ATTENTE - VEHICULES REFORMES AFC"]
["EST-DR-AFC - IRE ENCADT OP PATRI FRANCHE COMTE","EST-DCT - T&D-AGENCE ENTREPRISE AFC","EST-DRG - EXPLOITATION GAZ ALSACE","EST-UCF-AFC - OPE INT ATC ALS PF","EST-USR - VEHICULES POOL AFC","USL-EST-ATTENTE - VEHICULES REFORMES AFC"]
["EST-DR-AFC - IRE ENCADT OP PATRI FRANCHE COMTE","EST-DCT - T&D-AGENCE ENTREPRISE AFC","EST-DRG - EXPLOITATION GAZ ALSACE","EST-UCF-AFC - OPE INT ATC ALS PF","EST-USR - VEHICULES POOL AFC","USL-EST-ATTENTE - VEHICULES REFORMES AFC"]
["EST-DR-AFC - IRE ENCADT OP PATRI FRANCHE COMTE","EST-DCT - T&D-AGENCE ENTREPRISE AFC","EST-DRG - EXPLOITATION GAZ ALSACE","EST-UCF-AFC - OPE INT ATC ALS PF","EST-USR - VEHICULES POOL AFC","USL-EST-ATTENTE - VEHICULES REFORMES AFC"]
["EST-DR-AFC - IRE ENCADT OP PATRI FRANCHE COMTE","EST-DCT - T&D-AGENCE ENTREPRISE LORCA","EST-DRG - EXPLOITATION GAZ ALSACE","EST-UCF-AFC - OPE INT ATC ALS PF","EST-USR - VEHICULES POOL AFC","USL-EST-ATTENTE - VEHICULES REFORMES AFC"]
["EST-DR-AFC - IRE ENCADT OP PATRI FRANCHE COMTE","EST-DCT - T&D-AGENCE ENTREPRISE LORCA","EST-DRG - EXPLOITATION GAZ ALSACE","EST-UCF-AFC - OPE INT ATC ALS PF","EST-USR - VEHICULES POOL AFC","USL-EST-ATTENTE - VEHICULES REFORMES AFC"]
["EST-DR-AFC - OPE AME  PF FC","EST-DCT - T&D-AGENCE MARCHE GRAND PUBLIC  AFC","EST-DRG - EXPLOITATION GAZ ALSACE","EST-UCF-AFC - OPE INT ATC ALS PF","EST-USR - VEHICULES POOL AFC","USL-EST-ATTENTE - VEHICULES REFORMES AFC"]
["EST-DR-AFC - OPE AME  PF FC","EST-DCT - T&D-AGENCE MARCHE GRAND PUBLIC  AFC","EST-DRG - EXPLOITATION GAZ ALSACE","EST-UCF-AFC - OPE INT ATC ALS PF","EST-USR - VEHICULES POOL AFC","USL-EST-ATTENTE - VEHICULES REFORMES AFC"]
["EST-DR-AFC - OPE AME  PF FC","EST-DCT - T&D-AGENCE MARCHE GRAND PUBLIC  AFC","EST-DRG - EXPLOITATION GAZ ALSACE","EST-UCF-AFC - OPE INT ATC ALS PF","EST-USR - VEHICULES POOL AFC","USL-EST-ATTENTE - VEHICULES REFORMES AFC"]
["EST-DR-AFC - OPE AME  PF FC",null,"EST-DRG - EXPLOITATION GAZ ALSACE","EST-UCF-AFC - OPE INT ATC ALS PF","EST-USR - VEHICULES POOL AFC","USL-EST-ATTENTE - VEHICULES REFORMES AFC"]
["EST-DR-AFC - OPE AME  PF FC",null,"EST-DRG - EXPLOITATION GAZ ALSACE","EST-UCF-AFC - OPE INT ATC FC PF","EST-USR - VEHICULES POOL AFC","USL-EST-ATTENTE - VEHICULES REFORMES AFC"]
["EST-DR-AFC - OPE AME  PF FC",null,"EST-DRG - EXPLOITATION GAZ ALSACE","EST-UCF-AFC - OPE INT ATC FC PF","EST-USR - VEHICULES POOL AFC","USL-EST-ATTENTE - VEHICULES REFORMES AFC"]
["EST-DR-AFC - OPE AME  PF FC",null,"EST-DRG - EXPLOITATION GAZ ALSACE","EST-UCF-AFC - OPE INT ATC FC PF","EST-USR - VEHICULES POOL AFC","USL-EST-ATTENTE - VEHICULES REFORMES AFC"]
["EST-DR-AFC - OPE AME  PF FC",null,"EST-DRG - EXPLOITATION GAZ ALSACE","EST-UCF-AFC - OPE INT ATC FC PF","EST-USR - VEHICULES POOL AFC","USL-EST-ATTENTE - VEHICULES REFORMES AFC"]
["EST-DR-AFC - OPE AME  PF FC",null,"EST-DRG - EXPLOITATION GAZ ALSACE","EST-UCF-AFC - OPE INT ATC FC PF","EST-USR - VEHICULES POOL AFC","USL-EST-ATTENTE - VEHICULES REFORMES AFC"]
["EST-DR-AFC - OPE AME  PF FC",null,"EST-DRG - EXPLOITATION GAZ ALSACE","EST-UCF-AFC - OPE INT ATC FC PF","EST-USR - VEHICULES POOL AFC","USL-EST-ATTENTE - VEHICULES REFORMES AFC"]
["EST-DR-AFC - OPE AME  PF FC",null,"EST-DRG - EXPLOITATION GAZ ALSACE","EST-UCF-AFC - OPE INT ATC FC PF","EST-USR - VEHICULES POOL AFC","USL-EST-ATTENTE - VEHICULES REFORMES AFC"]
["EST-DR-AFC - OPE AME  PF FC",null,"EST-DRG - EXPLOITATION GAZ ALSACE","EST-UCF-AFC - OPE INT ATC FC PF",null,"USL-EST-ATTENTE - VEHICULES REFORMES AFC"]
["EST-DR-AFC - OPE AME  PF FC",null,"EST-DRG - EXPLOITATION GAZ FCN","EST-UCF-AFC - OPE INT ATC FC PF",null,"USL-EST-ATTENTE - VEHICULES REFORMES AFC"]
["EST-DR-AFC - OPE AME  PF FC",null,"EST-DRG - EXPLOITATION GAZ FCN","EST-UCF-AFC - OPE INT ATC FC PF",null,"USL-EST-ATTENTE - VEHICULES REFORMES AFC"]
["EST-DR-AFC - OPE AME  PF FC",null,"EST-DRG - EXPLOITATION GAZ FCN","EST-UCF-AFC - OPE INT ATC FC PF",null,"USL-EST-ATTENTE - TOUS VEHICULES UNITE"]
["EST-DR-AFC - OPE AME  PF FC",null,"EST-DRG - EXPLOITATION GAZ FCN","EST-UCF-AFC - TECHNIQUE CLIENTELE FCS"]
["EST-DR-AFC - OPE AME PF ALS",null,"EST-DRG - EXPLOITATION GAZ FCN","EST-UCF-AFC - TECHNIQUE CLIENTELE FCS"]
["EST-DR-AFC - OPE AME PF ALS",null,"EST-DRG - EXPLOITATION GAZ FCN","EST-UCF-AFC - TECHNIQUE CLIENTELE FCS"]
["EST-DR-AFC - OPE AME PF ALS",null,"EST-DRG - EXPLOITATION GAZ FCS","EST-UCF-AFC - TECHNIQUE CLIENTELE FCS"]
["EST-DR-AFC - OPE AME PF ALS",null,"EST-DRG - EXPLOITATION GAZ FCS","EST-UCF-AFC - TECHNIQUE CLIENTELE FCS"]
["EST-DR-AFC - OPE AME PF ALS",null,"EST-DRG - EXPLOITATION GAZ FCS","EST-UCF-AFC - TECHNIQUE CLIENTELE FCS"]
["EST-DR-AFC - OPE AME PF ALS",null,"EST-DRG - EXPLOITATION GAZ FCS","EST-UCF-AFC - TECHNIQUE CLIENTELE FCS"]
["EST-DR-AFC - OPE AME PF ALS",null,"EST-DRG - EXPLOITATION GAZ FCS","EST-UCF-AFC - TECHNIQUE CLIENTELE FCS"]
["EST-DR-AFC - OPE AME PF ALS",null,"EST-DRG - EXPLOITATION GAZ FCS","EST-UCF-AFC - TECHNIQUE CLIENTELE FCS"]
["EST-DR-AFC - OPE AME PF ALS",null,"EST-DRG - INGENIERIE GAZ FCN","EST-UCF-AFC - TECHNIQUE CLIENTELE FCS"]
["EST-DR-AFC - OPE AME PF ALS",null,"EST-DRG - INGENIERIE GAZ FCN","EST-UCF-AFC - TECHNIQUE CLIENTELE FCS"]
["EST-DR-AFC - OPE AME PF ALS",null,"EST-DRG - INGENIERIE GAZ FCN","EST-UCF-AFC - TECHNIQUE CLIENTELE FCS"]
["EST-DR-AFC - OPE ARX BEX  PF",null,"EST-DRG - INGENIERIE GAZ FCS","EST-UCF-AFC - TECHNIQUE CLIENTELE FCS"]
["EST-DR-AFC - OPE ARX BEX  PF",null,"EST-DRG - INGENIERIE GAZ FCS"]
["EST-DR-AFC - OPE INT ALSACE PF",null,"EST-DRG - INGENIERIE GAZ FCS"]
["EST-DR-AFC - OPE INT ALSACE PF",null,"EST-DRG - INGENIERIE GAZ FCS"]
["EST-DR-AFC - OPE INT ALSACE PF",null,"EST-DRG - INGENIERIE GAZ FCS"]
["EST-DR-AFC - OPE INT ALSACE PF",null,"EST-DRG - INGENIERIE GAZ FCS"]
["EST-DR-AFC - OPE INT ALSACE PF",null,"EST-DRG - MSG AFC"]
["EST-DR-AFC - OPE INT ALSACE PF",null,"EST-DRG - MSG AFC"]
["EST-DR-AFC - OPE INT ALSACE PF",null,"EST-DRG - MSG AFC"]
["EST-DR-AFC - OPE INT ALSACE PF",null,"EST-DRG - MSG AFC"]
["EST-DR-AFC - OPE INT ALSACE PF",null,"EST-DRG - MSG AFC"]
["EST-DR-AFC - OPE INT ALSACE PF",null,"EST-DRG - MSG AFC"]
["EST-DR-AFC - OPE INT ALSACE PF"]
["EST-DR-AFC - OPE INT ALSACE PF"]
["EST-DR-AFC - OPE INT ALSACE PF"]
["EST-DR-AFC - OPE INT ALSACE PF"]
["EST-DR-AFC - OPE INT ALSACE PF"]
["EST-DR-AFC - OPE INT ALSACE PF"]
["EST-DR-AFC - OPE INT ALSACE PF"]
["EST-DR-AFC - OPE INT ALSACE PF"]
["EST-DR-AFC - OPE INT ALSACE PF"]
["EST-DR-AFC - OPE INT ALSACE PF"]
["EST-DR-AFC - OPE INT ALSACE PF"]
["EST-DR-AFC - OPE INT ALSACE PF"]
["EST-DR-AFC - OPE INT ALSACE PF"]
["EST-DR-AFC - OPE INT ALSACE PF"]
["EST-DR-AFC - OPE INT ALSACE PF"]
["EST-DR-AFC - OPE INT ALSACE PF"]
["EST-DR-AFC - OPE INT ALSACE PF"]
["EST-DR-AFC - OPE INT ALSACE PF"]
["EST-DR-AFC - OPE INT ALSACE PF"]
["EST-DR-AFC - OPE INT ALSACE PF"]
["EST-DR-AFC - OPE INT ALSACE PF"]
["EST-DR-AFC - OPE INT ALSACE PF"]
["EST-DR-AFC - OPE INT ALSACE PF"]
["EST-DR-AFC - OPE INT ALSACE PF"]
["EST-DR-AFC - OPE INT ALSACE PF"]
["EST-DR-AFC - OPE INT FCC PF"]
["EST-DR-AFC - OPE INT FCC PF"]
["EST-DR-AFC - OPE INT FCC PF"]
["EST-DR-AFC - OPE INT FCC PF"]
["EST-DR-AFC - OPE INT FCC PF"]
["EST-DR-AFC - OPE INT FCC PF"]
["EST-DR-AFC - OPE INT FCC PF"]
["EST-DR-AFC - OPE INT FCC PF"]
["EST-DR-AFC - OPE INT FCC PF"]
["EST-DR-AFC - OPE INT FCC PF"]
["EST-DR-AFC - OPE INT FCC PF"]
["EST-DR-AFC - OPE INT FCC PF"]
["EST-DR-AFC - OPE INT FCC PF"]
["EST-DR-AFC - OPE INT FCC PF"]
["EST-DR-AFC - OPE INT FCC PF"]
["EST-DR-AFC - OPE INT FCC PF"]
["EST-DR-AFC - OPE INT FCC PF"]
["EST-DR-AFC - OPE INT FCC PF"]
["EST-DR-AFC - OPE INT FCC PF"]
["EST-DR-AFC - OPE INT FCC PF"]
["EST-DR-AFC - OPE INT FCC PF"]
["EST-DR-AFC - OPE INT FCC PF"]
["EST-DR-AFC - OPE INT FCC PF"]
["EST-DR-AFC - OPE INT FCC PF"]
["EST-DR-AFC - OPE INT FCN PF"]
["EST-DR-AFC - OPE INT FCN PF"]
["EST-DR-AFC - OPE INT FCN PF"]
["EST-DR-AFC - OPE INT FCN PF"]
["EST-DR-AFC - OPE INT FCN PF"]
["EST-DR-AFC - OPE INT FCN PF"]
["EST-DR-AFC - OPE INT FCN PF"]
["EST-DR-AFC - OPE INT FCN PF"]
["EST-DR-AFC - OPE INT FCN PF"]
["EST-DR-AFC - OPE INT FCN PF"]
["EST-DR-AFC - OPE INT FCN PF"]
["EST-DR-AFC - OPE INT FCN PF"]
["EST-DR-AFC - OPE INT FCN PF"]
["EST-DR-AFC - OPE INT FCN PF"]
["EST-DR-AFC - OPE INT FCN PF"]
["EST-DR-AFC - OPE INT JURA PF"]
["EST-DR-AFC - OPE INT JURA PF"]
["EST-DR-AFC - OPE INT JURA PF"]
["EST-DR-AFC - OPE INT JURA PF"]
["EST-DR-AFC - OPE INT JURA PF"]
["EST-DR-AFC - OPE INT JURA PF"]
["EST-DR-AFC - OPE INT JURA PF"]
["EST-DR-AFC - OPE INT JURA PF"]
["EST-DR-AFC - OPE INT JURA PF"]
["EST-DR-AFC - OPE INT JURA PF"]
["EST-DR-AFC - OPE INT JURA PF"]
["EST-DR-AFC - OPE INT JURA PF"]
["EST-DR-AFC - OPE INT JURA PF"]
["EST-DR-AFC - OPE INT JURA PF"]
["EST-DR-AFC - OPE INT JURA PF"]
["EST-DR-AFC - OPE INT JURA PF"]
["EST-DR-AFC - OPE INT JURA PF"]
["EST-DR-AFC - OPE INT JURA PF"]
["EST-DR-AFC - OPE INT JURA PF"]
["EST-DR-AFC - OPE INT JURA PF"]
["EST-DR-AFC - OPE INT JURA PF"]
["EST-DR-AFC - OPE INT JURA PF"]
["EST-DR-AFC - OPE TST PF ALS"]
["EST-DR-AFC - OPE TST PF ALS"]
["EST-DR-AFC - OPE TST PF ALS"]
["EST-DR-AFC - OPE TST PF ALS"]
["EST-DR-AFC - OPE TST PF ALS"]
["EST-DR-AFC - OPE TST PF ALS"]
["EST-DR-AFC - OPE TST PF FC"]
["EST-DR-AFC - OPE TST PF FC"]
["EST-DR-AFC - OPE TST PF FC"]
["EST-DR-AFC - OPE TST PF FC"]
["EST-DR-AFC - OPE TST PF FC"]
["EST-DR-AFC - OPE TST PF FC"]
["EST-DR-AFC - OPE TST PF FC"]
["EST-DR-AFC - OPE TST PF FC"]
["EST-DR-AFC - OPE TST PF FC"]
["EST-DR-AFC - OPE TST PF FC"]
["EST-DR-AFC - OPE TST PF FC"]
["EST-DR-AFC - OPE TST PF FC"]
["EST-DR-AFC - OPE TST PF FC"]
["EST-DR-AFC - OPE TST PF FC"]
["EST-DR-AFC - OPE TST PF FC"]
["EST-DR-AFC - OPE TST PF FC"]
["EST-DR-AFC - OPE TST PF FC"]
["EST-DR-AFC - OPE TST PF FC"]
["EST-DR-AFC - OPE TST PF FC"]
["EST-DR-AFC - OPE TST PF FC"]
["EST-DR-AFC - RCI RMM QUALITE PF"]
["EST-DR-AFC - RCI RMM QUALITE PF"]
["EST-DR-AFC - RCI RMM QUALITE PF"]
["EST-DR-AFC - RCI RMM QUALITE PF"]
["EST-DR-AFC - RCI RMM QUALITE PF"]
["EST-DR-AFC - RCI RMM QUALITE PF"]
["EST-DR-AFC - RCI RMM QUALITE PF"]
["EST-DR-AFC - RCI RMM QUALITE PF"]
["EST-DR-AFC - RCI RMM QUALITE PF"]
["EST-DR-AFC - RCI RMM QUALITE PF"]
["EST-DR-AFC - SRC ENC RELATION CLT"]
["EST-DR-AFC - SRC MAA ACM FC PF"]
["EST-DR-AFC - SRC MAA ACM FC PF"]
["EST-DR-AFC - SRC MAA ACM FC PF"]
["EST-DR-AFC - SRC MAA ACM FC PF"]
["EST-DR-AFC - TER DTL COLLOC 39/70"]
["EST-DR-AFC - TER DTL COLLOC 67/68"]